{"text_format":"1","workbook":"xlsx","n_sheets":16,"sheets":["HOJA RESUMEN","Hoja4","Hoja1 (2)","FORMULARIO ","Detalle","Hoja2","SEDE CENTRAL","Hoja3","EDUCAC TECNICA SEDE CENTRAL","  SATELITE 2","EDUCAC TECNICA SATELITE 2","  SATELITE 3","  SATELITE 4","  SATELITE 5","  SATELITE 6","  SATELITE 7"],"not_rendered":{"charts":0,"images":3,"macros":0,"external_links":0,"defined_names":1,"comments":3,"pivot_tables":0},"unopened":[],"bounds":{"document_bytes":16777216,"sheet_cells":100000,"rows_first":2000,"rows_last":500,"rows_between":2000,"halvings":0,"cell_chars":16384,"cell_head_chars":4096},"cells_cut":0,"cells_raw":0,"read":"whole","date_system":"1900"}

{"sheet":"HOJA RESUMEN","index":0,"n_rows":57,"n_cols":13,"rows_kept":57,"cut":false,"hidden":false,"merged":[[47,1,54,8],[46,1,46,8],[23,10,23,12],[24,10,24,11],[25,10,26,11],[25,12,26,12],[44,1,44,3],[29,6,29,7],[28,6,28,7],[31,2,31,6],[32,2,41,6],[56,1,56,8],[15,2,15,4],[28,2,28,4],[43,1,43,3],[22,6,22,7],[25,8,26,8],[18,6,18,7],[20,6,20,7],[23,6,23,7],[23,2,23,4],[21,6,21,7],[22,2,22,4],[24,6,24,7],[25,2,25,4],[25,6,26,7],[24,2,24,4],[0,1,4,8],[16,2,16,4],[17,2,17,4],[27,2,27,4],[10,7,10,8],[16,6,16,7],[13,6,13,8],[15,6,15,7],[17,6,17,7],[14,6,14,7],[19,6,19,7]]}
[]
[]
[]
[]
[]
[]
[null,"INSTITUTO PROFESIONAL DE EDUCACION COMUNITARIA (IPEC)"]
[]
[null,"RESUMEN DE LECCIONES DEL IPEC"]
[null,"CURSO LECTIVO 2024"]
[]
[null,"CARACTERIZACIÓN DEL CENTRO EDUCATIVO"]
[]
[null,"Código Presupuestario: ",null,null,null,null,"OFERTA EDUCATIVA DEL IPEC"]
[null,null,null,null,null,null,"Oferta",null,"Lecciones"]
[null,"Centro Educativo:",{"$f":"IF(C14=\"\",\"\",IFERROR(LOOKUP($C$14,'Hoja1 (2)'!$A$2:$A$103,'Hoja1 (2)'!$B$2:$B$103),\"CODIGO INCORRECTO\"))","v":""},null,null,null,"Oferta Modular (Ampliaciones)",null,{"$f":"+Detalle!D4","v":4}]
[null,"Dirección Regional:",{"$f":"IF(C14=\"\",\"\",IFERROR(LOOKUP($C$14,'Hoja1 (2)'!$A$2:$A$103,'Hoja1 (2)'!$D$2:$D$103),\"CODIGO INCORRECTO\"))","v":""},null,null,null,"Oferta Modular (Lecciones)",null,{"$f":"+SUM(Detalle!D5:D7)","v":0}]
[null,"Circuito:",{"$f":"+IF(C14=0,\"\",LOOKUP($C$14,'Hoja1 (2)'!$A$2:A$103,'Hoja1 (2)'!$E$2:$E$103))","v":""},null,null,null,"Cursos Modulares Opcionales",null,{"$f":"+Detalle!D8","v":0}]
[null,null,null,null,null,null,"Cursos Libres",null,{"$f":"+Detalle!D10","v":0}]
[null,null,null,null,null,null,"Labora",null,{"$f":"IFERROR(VLOOKUP(C14,Hoja4!A29:D44,4,0),\"N/A\")","v":"N/A"}]
[null,null,null,null,null,null,"Educación Técnica",null,{"$f":"+Detalle!D9","v":0}]
[null,null,null,null,null,null,"Coordinacion Académica"]
[null,"Provincia:",{"$f":"+IF(C14=0,\"\",LOOKUP($C$14,'Hoja1 (2)'!$A$2:$A$103,'Hoja1 (2)'!$F$2:$F$103))","v":""},null,null,null,"Comité Técnico Asesor",null,{"$f":"IF(I29=\"\",\"\",IF(I29>2000,18,IF(I29>1500,15,IF(I29>1000,12,IF(I29>0,9,0)))))","v":0}]
[null,"Cantón:",{"$f":"+IF(C14=0,\"\",LOOKUP($C$14,'Hoja1 (2)'!$A$2:$A$103,'Hoja1 (2)'!$G$2:$G$103))","v":""},null,null,null,"Coordinación Técnica",null,{"$f":"+IF(I30=\"\",\"\",IF(I30>350,40,IF(I30>150,40,IF(I30>0,20,0))))","v":0},null,"USO EXCLUSIVO DEL ANALISTA"]
[null,"Distrito:",{"$f":"+IF(C14=0,\"\",LOOKUP($C$14,'Hoja1 (2)'!$A$2:$A$103,'Hoja1 (2)'!$H$2:$H$103))","v":""},null,null,null,"Coordinación con la Empresa",null,{"$f":"+IF(I30=\"\",\"\",IF(I30>350,40,IF(I30>150,32,IF(I30>0,20,0))))","v":0},null,"LECCIONES EN INTEGRA2",null,"DIFERENCIA"]
[null,"Poblado:",{"$f":"+IF(C14=0,\"\",LOOKUP($C$14,'Hoja1 (2)'!$A$2:$A$103,'Hoja1 (2)'!$I$2:$I$103))","v":""},null,null,null,"Total de Lecciones",null,{"$f":"+SUM(I17:I25)","v":0},null,null,null,{"$f":"I26-K26","v":0}]
[]
[null,"Teléfono/Fax:",{"$f":"+IF(C14=0,\"\",LOOKUP($C$14,'Hoja1 (2)'!$A$2:A$103,'Hoja1 (2)'!$L$2:$L$103))","v":""}]
[null,"JORNADA ","UNICA (  )  DOBLE(  ) TRIPLE (   )  NOCTURNA (  )",null,null,null,"Matrícula total de la Institución:",null,0]
[null,null,null,null,null,null,"Matricula de Carreras tecnicas total:",null,{"$f":"Detalle!C14","v":0}]
[]
[null,"Nombre Satélite",null,null,null,null,null,"Matrícula","Lecciones"]
[1,{"$f":"+'FORMULARIO '!B39:D39","v":0},null,null,null,null,null,{"$f":"+'FORMULARIO '!I46","v":0},{"$f":"+'FORMULARIO '!G60","v":0}]
[2,{"$f":"+'FORMULARIO '!B67:D67","v":0},null,null,null,null,null,{"$f":"+'FORMULARIO '!I74","v":0},{"$f":"+'FORMULARIO '!G88","v":0}]
[3,{"$f":"+'FORMULARIO '!B94:D94","v":0},null,null,null,null,null,{"$f":"+'FORMULARIO '!I101","v":0},{"$f":"'FORMULARIO '!G115","v":0}]
[4,{"$f":"+'FORMULARIO '!B121:D121","v":0},null,null,null,null,null,{"$f":"+'FORMULARIO '!I128","v":0},{"$f":"'FORMULARIO '!G142","v":0}]
[5,{"$f":"+'FORMULARIO '!B148:D148","v":0},null,null,null,null,null,{"$f":"+'FORMULARIO '!I155","v":0},{"$f":"'FORMULARIO '!G169","v":0}]
[6,{"$f":"+'FORMULARIO '!B175:D175","v":0},null,null,null,null,null,{"$f":"+'FORMULARIO '!I182","v":0},{"$f":"'FORMULARIO '!G196","v":0}]
[7,{"$f":"+'FORMULARIO '!B202:D202","v":0},null,null,null,null,null,{"$f":"+'FORMULARIO '!I209","v":0},{"$f":"'FORMULARIO '!G223","v":0}]
[8]
[9]
[10]
[]
[]
[null,"Nombre del Director de la Institución"]
[]
[null,"Observaciones del Analista"]
[]
[]
[]
[]
[]
[]
[]
[]
[]
[null,"\"Declaro que la información aquí certificada la hago bajo la fe y la palabra de certeza, conociendo que cualquier inexactitud o falsedad estaría incurriendo en las responsabilidades administrativo disciplinarias, sin perjuicio de las acciones civiles.\" (Legislación vinculante a la legitimidad de la información: Ley de Administración Pública (Artículo 4), Estatuto de Servicio Civil  (Artículo 39), Ley de Control Interno (Artículo 39) y Ley contra la Corrupción y el Enriquecimiento Ilícito en la Función Pública (Artículo 3), Así mismo también declaro que no tengo grado de parentesco por afinidad o consanguinidad hasta tercer grado inclusive con el personal docente aquí reportado. "]

{"sheet":"Hoja4","index":1,"n_rows":44,"n_cols":7,"rows_kept":44,"cut":false,"hidden":true,"merged":[[0,4,0,6]]}
[null,"ESPECIALIDADES TECNICAS",null,null,"PLAN DOS AÑOS"]
[]
["CODIGO PRESUPUESTARIO","DESCRIPCION","DETALLE",null,"CODIGO PRESUPUESTARIO","DESCRIPCION","DETALLE"]
[5676,"CINDEA ABANGARES","SI",null,4887,"IPEC AGUA BUENA","SI"]
[4876,"IPEC CAÑAS","SI",null,4866,"IPEC BARVA","SI"]
[6729,"CINDEA LA PALMA","SI",null,4864,"IPEC SANTO DOMINGO","SI"]
[4864,"IPEC SANTO DOMINGO","SI",null,4845,"IPEC POAS","SI"]
[4870,"IPEC LIBERIA","SI",null,6729,"CINDEA LA PALMA","SI"]
[5889,"CINDEA FLORIDA DE SIQUIRRES","SI",null,6728,"CINDEA TILARAN","SI"]
[6573,"CINDEA LA PAZ","SI",null,4876,"IPEC CAÑAS","SI"]
[6572,"CINDEA SAN ISIDRO","SI",null,4870,"IPEC SANTO DOMINGO","SI"]
[6519,"CINDEA JUDAS ","SI",null,5889,"CINDEA LA FLORIDA","SI"]
[4866,"IPEC BARVA","SI",null,6572,"CINDEA SAN ISIDRO","SI"]
[4845,"IPEC POAS","SI",null,4879,"IPEC PUNTARENAS","SI"]
[6727,"CINDEA BEBEDERO","SI",null,null,null,"SI"]
[4879,"IPEC PUNTARENAS","SI",null,null,null,"SI"]
[4873,"CINDEA SANTA CRUZ","SI",null,null,null,"SI"]
[4887,"IPEC AGUA BUENA","SI",null,null,null,"SI"]
[6728,"CINDEA TILARAN","SI",null,null,null,"SI"]
[4826,"IPEC SAN JOSE","SI",null,null,null,"SI"]
[4827,"CINDEA MAZARELLO","SI",null,null,null,"SI"]
[null,null,"SI",null,null,null,"SI"]
[null,null,"SI",null,null,null,"SI"]
[null,null,"SI",null,null,null,"SI"]
[null,null,"SI",null,null,null,"SI"]
[]
[]
[]
[4845,"Alajuela","IPEC de Poás",15]
[6572,"Occidente","CINDEA San Isidro de Peñas Blancas",15]
[6573,"Occidente","CINDEA La Paz",15]
[4864,"Heredia","IPEC de Santo Domingo",15]
[4866,"Heredia","IPEC de Barva",15]
[4879,"Puntarenas","IPEC de Puntarenas Fray Casiano de Madrid",15]
[4870,"Liberia","IPEC de Liberia",15]
[4873,"Santa Cruz","CINDEA Santa Cruz",15]
[4876,"Cañas","IPEC de Cañas",15]
[5676,"Cañas","CINDEA de Abangares",15]
[6727,"Cañas","CINDEA Bebedero",15]
[6728,"Cañas","CINDEA Tilarán",15]
[6729,"Cañas","CINDEA La Palma",15]
[6519,"Puntarenas","CINDEA Judas de Chomes",15]
[4887,"Coto","IPEC de Agua Buena",15]
[5889,"Limón","CINDEA La Florida de Siquirres",15]

{"sheet":"Hoja1 (2)","index":2,"n_rows":103,"n_cols":12,"rows_kept":103,"cut":false,"hidden":true,"merged":[]}
["CODIGO","INSTITUCION","REGION","DR","CIRES","PROVINCIA","CANTON","DISTRITO","POBLADO","SECTOR","ZONA","TELEFONO"]
[4826,"IPEC DE SAN JOSE",72,"SJ OESTE",1,"SAN JOSE","SAN JOSE","MERCED","BARRIO MÉXICO","PUB","URB",22336329]
[4827,"CINDEA MARIA MAZZARELLO",72,"SJ OESTE",1,"SAN JOSE","SAN JOSE","MATA REDONDA","DON BOSCO","PUB","URB",22563748]
[4828,"CINDEA SANTA ANA",72,"SJ OESTE",4,"SAN JOSE","SANTA ANA","SANTA ANA","SANTA ANA CENTRO","PUB","URB",22828622]
[4830,"IPEC QUINCE DE SETIEMBRE",50,"SJ CENTRAL",5,"SAN JOSE","SAN JOSE","HATILLO","COLONIA 15 DE SETIEMBRE","PUB","URB",22548390]
[4834,"CINDEA ALBERTO BRENES MORA",72,"SJ OESTE",1,"SAN JOSE","SAN JOSE","MERCED","BARRIO MEXICO","PUB","URB",22229282]
[4845,"IPEC POAS",54,"ALALJUELA",7,"ALAJUELA","POAS","SAN PEDRO","SAN PEDRO","PUB","URB",24486633]
[4847,"IPEC MARIA PACHECO",54,"ALAJUELA",1,"ALAJUELA","ALAJUELA","ALAJUELA","URBANIZACIÓN MONTENEGRO","PUB","URB",24300140]
[4852,"CINDEA SAN CARLOS",56,"SAN CARLOS ",3,"ALAJUELA","SAN CARLOS","QUESADA","SAN ROQUE","PUB","URB",24613716]
[4856,"IPEC ARABELLA JIMENEZ DE VOLIO",57,"CARTAGO",1,"CARTAGO","CARTAGO","ORIENTAL","LOS ÁNGELES","PUB","URB",25918844]
[4863,"IPEC SANTA BARBARA",59,"HEREDIA",3,"HEREDIA","SANTA BARBARA","SANTA BARBARA","SANTA BÁRBARA","PUB","URB",22692300]
[4864,"IPEC SANTO DOMINGO",59,"HEREDIA",5,"HEREDIA","SANTO DOMINGO","SAN VICENTE","QUIZARCO","PUB","URB",22442343]
[4866,"IPEC BARVA",59,"HEREDIA",4,"HEREDIA","BARVA","BARVA","BARVA CENTRO","PUB","URB",22382438]
[4870,"IPEC LIBERIA",60,"LIBERIA",4,"GUANACASTE","LIBERIA","LIBERIA","MORACIA","PUB","URB",26660178]
[4873,"CINDEA SANTA CRUZ",52,"SANTA CRUZ",1,"GUANACASTE","SANTA CRUZ","SANTA CRUZ","PANAMA","PUB","URB",26801873]
[4876,"IPEC CAÑAS",63,"CAÑAS",1,"GUANACASTE","CAÑAS","CAÑAS","LOS MALINCHES","PUB","URB",26693575]
[4879,"IPEC PUNTARENAS",64,"PUNTARENAS",1,"PUNTARENAS","PUNTARENAS","BARRANCA","RIOJALANDIA","PUB","URB",26642421]
[4885,"CINDEA CIUDAD NEILY",65,"COTO",11,"PUNTARENAS","CORREDORES","LAUREL","NARANJO DE LAUREL","PUB","URB",27766325]
[4887,"IPEC AGUA BUENA",65,"COTO",7,"PUNTARENAS","COTO BRUS","AGUABUENA","AGUA BUENA","PUB","RUR",27340270]
[4895,"CINDEA CARIARI",67,"GUAPILES",3,"LIMON","POCOCI","CARIARI","LINDA VISTA","PUB","URB",27675744]
[4897,"CINDEA UPALA",69,"ZONA NORTE",1,"ALAJUELA","UPALA","UPALA","UPALA","PUB","RUR",24700305]
[4911,"CINDEA RICARDO JIMENEZ O.",50,"SJ CENTRAL",1,"SAN JOSE","SAN JOSE","CATEDRAL","CARIT","PUB","URB",40810072]
[5101,"CINDEA TURRIALBA",58,"TURRIALBA",2,"CARTAGO","TURRIALBA","TURRIALBA","SAN RAFAEL","PUB","URB",25565060]
[5280,"CINDEA SAN JUAN DE DIOS",51,"DESAMPARADOS",2,"SAN JOSE","DESAMPARADOS","SAN JUAN DE DIOS","SAN JUAN DE DIOS","PUB","URB",22190913]
[5281,"CINDEA PURISCAL",52,"PURISCAL",5,"SAN JOSE","ACOSTA","PALMICHAL","PALMICHAL DE ACOSTA","PUB","RUR",24184409]
[5282,"CINDEA C.A.I. ADULTO JOVEN",54,"ALAJUELA",4,"ALAJUELA","ALAJUELA","SAN RAFAEL","SAN RAFAEL, ALAJUELA","PUB","URB",24382557]
[5283,"CINDEA PUERTO VIEJO",74,"SARAPIQUI",2,"HEREDIA","SARAPIQUI","HORQUETAS","TICARI","PUB","RUR",27641145]
[5676,"CINDEA ABANGARES",63,"CAÑAS",2,"GUANACASTE","ABANGARES","JUNTAS","SAO PABLO","PUB","RUR",26620810]
[5686,"CINDEA BRIBRI",77,"SULA",1,"LIMON","TALAMANCA","BRATSI","BRIBRI","PUB","RUR",27511158]
[5687,"CINDEA 28 MILLAS",66,"LIMON",9,"LIMON","MATINA","BATAN","28 MILLAS","PUB","URB",21001575]
[5688,"CINDEA LIMON",66,"LIMON",1,"LIMON","LIMON","LIMON","LIMON CENTRO","PUB","URB",27584884]
[5746,"CINDEA VENECIA",56,"SAN CARLOS",1,"ALAJUELA","SAN CARLOS","VENECIA","VENECIA CENTRO","PUB","RUR",24721135]
[5835,"CINDEA JICARAL",76,"PENINSULAR",4,"PUNTARENAS","PUNTARENAS","LEPANTO","JICARAL","PUB","RUR",26500797]
[5888,"CINDEA LOMAS DE COCORI",53,"PEREZ Z","10","SAN JOSE","PEREZ ZELEDON","SAN ISIDRO","LOMAS DE COCORI","PUB","URB",27704220]
[5889,"CINDEA FLORIDA",66,"LIMON","06","LIMON","SIQUIRRES","FLORIDA","FLORIDA","PUB","RUR",27652345]
[5980,"CINDEA COLONIA PUNTARENAS",69,"ZONA NORTE","08","ALAJUELA","UPALA","UPALA","COLONIA PUNTARENAS","PUB","RUR",24708464]
[6015,"CINDEA NICOYA",61,"NICOYA","01","GUANACASTE","NICOYA","NICOYA","SAN MARTIN","PUB","URB",26854546]
[6221,"CINDEA GUACIMO",67,"GUAPILES","04","LIMON","GUACIMO","GUACIMO","GUACIMO","PUB","URB",27168552]
[6268,"CINDEA LOS CHILES",56,"SAN CARLOS","09","ALAJUELA","LOS CHILES","LOS CHILES","LOS CHILES CENTRO","PUB","RUR",24711879]
[6499,"CINDEA HEREDIANA",66,"LIMON","06","LIMON","SIQUIRRES","GERMANIA","HEREDIANA","PUB","URB",27654418]
[6511,"CINDEA LA BOMBA",66,"LIMON","02","LIMON","LIMON","MATAMA","LA BOMBA","PUB","RUR",27561001]
[6513,"CINDEA COBANO",76,"PENINSULAR","02","PUNTARENAS","PUNTARENAS","COBANO","COBANO","PUB","RUR",26421041]
[6515,"CINDEA DE PITAL",56,"SAN CARLOS","05","ALAJUELA","SAN CARLOS","PITAL","PITAL","PUB","RUR",24731054]
[6516,"CINDEA PEJIBAYE",53,"PEREZ Z","08","SAN JOSE","PEREZ ZELEDON","PEJIBAYE","BARRIO EL COLEGIO","PUB","RUR",27360136]
[6517,"CINDEA MIRAMAR",64,"PUNTARENAS","04","PUNTARENAS","MONTES DE ORO","MIRAMAR","MIRAMAR","PUB","URB",26397086]
[6518,"CINDEA PUNTARENAS",64,"PUNTARENAS","05","PUNTARENAS","PUNTARENAS","CHACARITA","CHACARITA","PUB","URB",26637660]
[6519,"CINDEA JUDAS",64,"PUNTARENAS","03","PUNTARENAS","PUNTARENAS","CHOMES","JUDAS","PUB","RUR",26388068]
[6520,"CINDEA ESPARZA",64,"PUNTARENAS","08","PUNTARENAS","ESPARZA","ESPIRITU SANTO","ESPARZA","PUB","URB",26359000]
[6521,"CINDEA FLORENCIA",56,"SAN CARLOS","02","ALAJUELA","SAN CARLOS","FLORENCIA","FLORENCIA CENTRO","PUB","URB",24756504]
[6522,"CINDEA HUACAS",52,"SANTA CRUZ","03","GUANACASTE","SANTA CRUZ","TAMARINDO","VILLARREAL","PUB","URB",26530984]
[6539,"CINDEA LA PERLA",56,"SAN CARLOS","06","ALAJUELA","SAN CARLOS","FORTUNA","LOS ANGELES","PUB","URB",24691247]
[6541,"CINDEA SANTA ROSA",56,"SAN CARLOS","08","ALAJUELA","SAN CARLOS","POCOSOL","SANTA ROSA POCOSOL","PUB","RUR",27777667]
[6552,"CINDEA GUATUSO",69,"ZONA NORTE","05","ALAJUELA","GUATUSO","SAN RAFAEL","SAN RAFAEL","PUB","RUR",24640042]
[6572,"CINDEA SAN ISIDRO",55,"OCCIDENTE","09","ALAJUELA","SAN RAMON","PEÑAS BLANCAS","SAN ISIDRO","PUB","RUR",24680356]
[6573,"CINDEA LA PAZ",55,"OCCIDENTE","02","ALAJUELA","SAN RAMON","PIEDADES NORTE","LA ESPERANZA","PUB","RUR",24458259]
[6585,"CINDEA RIO JIMENEZ",67,"GUAPILES","04","LIMON","GUACIMO","RIO JIMENEZ","RIO JIMENEZ","PUB","RUR",27621007]
[6586,"CINDEA LA RITA",67,"GUAPILES","02","LIMON","POCOCI","GUAPILES","LA RITA","PUB","RUR",27633238]
[6587,"CINDEA NANDAYURE",61,"NICOYA","03","GUANACASTE","NANDAYURE","CARMONA","CARMONA","PUB","URB",26575321]
[6626,"CINDEA SAN PABLO",52,"PURISCAL","06","SAN JOSE","TURRUBARES","SAN PABLO","SAN PABLO","PUB","URB",83169671]
[6627,"CINDEA SAN JOAQUIN",61,"NICOYA","03","GUANACASTE","NICOYA","MANSION","SAN JOAQUIN","PUB","RUR",86338679]
[6628,"CINDEA PUERTO JIMENEZ",65,"COTO","03","PUNTARENAS","GOLFITO","GOLFITO","LA URBA","PUB","RUR",27355244]
[6629,"CINDEA SAN VITO",65,"COTO","05","PUNTARENAS","COTO BRUS","SAN VITO","SAN VITO","PUB","RUR",27735449]
[6668,"CINDEA PAVAS",72,"SJ OESTE","02","SAN JOSE","SAN JOSE","PAVAS","LOMAS","PUB","URB",22130713]
[6669,"CINDEA ESCAZU",72,"SJ OESTE","03","SAN JOSE","ESCAZU","ESCAZU","ESCAZU","PUB","URB",22895590]
[6670,"CINDEA SAN ANTONIO",67,"GUAPILES","05","LIMON","POCOCI","ROXANA","SAN ANTONIO","PUB","RUR",27630044]
[6671,"CINDEA SAN MARTIN",67,"GUAPILES","01","LIMON","POCOCI","JIMENEZ","SAN MARTIN","PUB","RUR",27102653]
[6672,"CINDEA PAQUERA",76,"PENINSULAR","01","PUNTARENAS","PUNTARENAS","PAQUERA","PAQUERA","PUB","RUR",26410078]
[6673,"CINDEA SAN MIGUEL",74,"SARAPIQUI","01","ALAJUELA","ALAJUELA","SARAPIQUI","SAN MIGUEL","PUB","RUR",24760716]
[6674,"CINDEA SURETKA",77,"SULA","01","LIMON","TALAMANCA","BRATSI","SURETKA","PUB","RUR",86019965]
[6675,"CINDEA REPUBLICA DE NICARAGUA",50,"SJ CENTRAL",1,"SAN JOSE","SAN JOSE","HOSPITAL","CRISTO REY","PUB","URB",22261860]
[6720,"CINDEA CIUDAD CORTES",75,"GRANDE TERRAB","06","PUNTARENAS","OSA","PUERTO CORTES","OJO DE AGUA","PUB","URB",88883730]
[6721,"CINDEA KABAKOL",75,"GRANDE TERRAB",12,"PUNTARENAS","BUENOS AIRES","POTRERO GRANDE","SAN RAFAEL CABAGRA","PUB","RUR",22064088]
[6722,"CINDEA BUENOS AIRES",75,"GRANDE TERRAB","01","PUNTARENAS","BUENOS AIRES","BUENOS AIRES","URBANIZACION LAS LOMAS","PUB","URB",87060399]
[6723,"CINDEA MONTERREY",56,"SAN CARLOS","11","ALAJUELA","SAN CARLOS","MONTERREY","SANTO DOMINGO","PUB","RUR",24780715]
[6724,"CINDEA PAVON",56,"SAN CARLOS","10","ALAJUELA","LOS CHILES","EL AMPARO","EL PAVON","PUB","RUR",24718236]
[6725,"CINDEA SARDINAL",52,"SANTA CRUZ","06","GUANACASTE","CARRILLO","SARDINAL","SARDINAL","PUB","URB",26974230]
[6726,"CINDEA BELEN",51,"SANTA CRUZ","05","GUANACASTE","CARRILLO","BELEN","SAN FRANCISCO","PUB","URB",26511965]
[6727,"CINDEA BEBEDERO",63,"CAÑAS","01","GUANACASTE","CAÑAS","BEBEDERO","BEBEDERO","PUB","URB",26740012]
[6728,"CINDEA TILARAN",63,"CAÑAS","03","GUANACASTE","TILARAN","TILARAN","EL CARMEN","PUB","URB",26952151]
[6729,"CINDEA LA PALMA",63,"CAÑAS","04","GUANACASTE","ABANGARES","JUNTAS","LA PALMA","PUB","RUR",26628037]
[6730,"JENARO BONILLA",58,"TURRIALBA","02","CARTAGO","TURRIALBA","TURRIALBA","CENTRO","PUB","URB",25560211]
[6731,"CINDEA TAYUTIC",58,"TURRIALBA","02","CARTAGO","TURRIALBA","TAYUTIC","TAYUTIC","PUB","RUR",25548024]
[6732,"CINDEA PEJIBAYE",58,"TURRIALBA","01","CARTAGO","JIMENEZ","PEJIBAYE","HACIENDITA","PUB","RUR",25313404]
[6733,"CINDEA SAN JOSE UPALA",69,"ZONA NORTE","03","ALAJUELA","UPALA","SAN JOSE","SAN JOSE","PUB","RUR"]
[6734,"CINDEA AGUAS CLARAS",69,"ZONA NORTE","02","ALAJUELA","UPALA","AGUAS CLARAS","AGUAS CLARAS","PUB","RUR",24660035]
[6735,"CINDEA BRASILIA",69,"ZONA NORTE","07","ALAJUELA","UPALA","DOS RIOS","BRASILIA","PUB","RUR",24700341]
[6736,"CINDEA BIJAGUA",69,"ZONA NORTE","04","ALAJUELA","UPALA","BIJAGUA","BIJAGUA","PUB","RUR",24668451]
[6737,"CINDEA KATIRA",69,"ZONA NORTE","06","ALAJUELA","GUATUSO","KATIRA","KATIRA","PUB","RUR"]
[6741,"CINDEA MONTES DE OCA",71,"SJ NORTE",3,"SAN JOSE","MONTES DE OCA","SAN PEDRO","SAN PEDRO","PUB","URB",22536461]
[6797,"CINDEA CORONADO",71,"SJ NORTE","06","SAN JOSE","VASQUEZ DE CORONADO","SAN ISIDRO","SAN ISIDRO","PUB","URB",22928987]
[6798,"CINDEA MORAVIA",71,"SJ NORTE","05","SAN JOSE","MORAVIA","SAN VICENTE","SAN RAFAEL","PUB","URB"]
[6799,"CINDEA HOJANCHA",61,"NICOYA","05","GUANACASTE","HOJANCHA","HOJANCHA","HOJANCHA","PUB","RUR"]
[6800,"CINDEA NOSARA",61,"NICOYA","06","GUANACASTE","NICOYA","NOSARA","NOSARA","PUB","RUR"]
[6801,"CINDEA SAMARA",61,"NICOYA","06","GUANACASTE","NICOYA","SAMARA","TORITO","PUB","RUR"]
[6831,"CINDEA Nakelkälä",77,"SULA","05","LIMON","LIMON","VALLE LA ESTRELLA","GAVILAN","PUB","RUR",86715325]
[6832,"CINDEA ALAJUELITA",50,"SJ CENTRAL",6,"SAN JOSE","ALAJUELITA","ALAJUELITA","ALAJUELITA","PUB","URB",22142106]
[6833,"CINDEA COCAL",66,"LIMON","05","LIMON","SIQUIRRES","SIQUIRRES","EL COCAL","PUB","URB",27682103]
[6843,"CINDEA BOCA ARENAL",56,"SAN CARLO",7,"ALAJUELA","SAN CARLOS","CUTRIS","BOCA ARENAL","PUB.","RUR"]
[6844,"CINDEA KEKOLDI",77,"SULA",1,"LIMON","TALAMANCA","CAHUITA","PATIÑO","PUB.","RUR"]
[6845,"CINDEA SEPECUE",77,"SULA",3,"LIMON","TALAMANCA","TELIRE","SEPECUE","PUB.","RUR"]
[6846,"CINDEA MONTEVERDE",64,"PUNTARENAS",6,"PUNTARENAS","PUNTARENAS","MONTEVERDE","SANTA ELENA","PUB.","URB"]
[6847,"CINDEA VALVERDE VEGA",55,"OCCIDENTE",4,"ALAJUELA","VALVERDE VEGA","SARCHI NORT","CALLE COLEGIO","PUB.","RUR"]
[6946,"CINDEA KA BATA SIWA",75,"GRANDE TERRAB",12,"PUNTARENAS","BUENOS AIRES","BUENOS AIRES","UJARRAS","PUB.","RUR"]

{"sheet":"FORMULARIO ","index":3,"n_rows":223,"n_cols":11,"rows_kept":223,"cut":false,"hidden":false,"merged":[[145,5,146,7],[172,5,173,7],[199,5,200,7],[43,7,44,7],[71,7,72,7],[98,7,99,7],[125,7,126,7],[152,7,153,7],[179,7,180,7],[58,0,58,5],[59,0,59,5],[54,0,54,4],[54,6,54,9],[55,0,55,4],[55,6,55,9],[77,0,77,4],[77,6,77,9],[78,0,79,4],[78,6,78,9],[18,1,18,3],[18,8,18,9],[19,1,19,3],[19,8,19,9],[21,1,21,3],[22,5,23,9],[24,5,24,7],[25,5,25,7],[26,5,26,7],[53,0,53,4],[53,6,53,9],[21,8,21,9],[51,6,51,9],[24,0,24,1],[24,8,24,9],[25,0,25,1],[28,0,28,2],[25,8,25,9],[29,0,29,2],[29,5,29,8],[31,0,31,9],[49,0,49,4],[49,6,49,9],[38,1,38,3],[38,5,41,5],[50,0,51,4],[50,6,50,9],[52,0,52,4],[52,6,52,9],[26,8,26,9],[33,0,33,10],[37,5,37,7],[24,10,24,14],[79,6,79,9],[71,1,72,1],[71,2,71,4],[71,5,71,6],[56,0,56,4],[56,6,56,9],[64,5,65,7],[104,6,104,9],[83,0,83,4],[83,6,83,9],[84,0,84,4],[84,6,84,9],[98,1,99,1],[98,2,98,4],[98,5,98,6],[98,8,99,8],[91,5,92,7],[80,0,80,4],[80,6,80,9],[81,0,81,4],[81,6,81,9],[82,0,82,4],[82,6,82,9],[111,6,111,9],[108,0,108,4],[108,6,108,9],[86,0,86,5],[87,0,87,5],[93,1,93,3],[93,5,96,5],[105,0,106,4],[105,6,105,9],[106,6,106,9],[109,0,109,4],[109,6,109,9],[110,0,110,4],[110,6,110,9],[111,0,111,4],[107,0,107,4],[107,6,107,9],[104,0,104,4],[152,5,152,6],[152,8,153,8],[162,0,162,4],[162,6,162,9],[125,1,126,1],[125,2,125,4],[125,5,125,6],[125,8,126,8],[113,0,113,5],[136,0,136,4],[136,6,136,9],[114,0,114,5],[120,1,120,3],[120,5,123,5],[131,0,131,4],[131,6,131,9],[132,0,133,4],[132,6,132,9],[133,6,133,9],[134,0,134,4],[134,6,134,9],[135,0,135,4],[135,6,135,9],[118,5,119,7],[163,0,163,4],[163,6,163,9],[137,0,137,4],[137,6,137,9],[138,0,138,4],[138,6,138,9],[140,0,140,5],[141,0,141,5],[185,6,185,9],[179,1,180,1],[179,2,179,4],[179,5,179,6],[179,8,180,8],[159,0,160,4],[159,6,159,9],[160,6,160,9],[161,0,161,4],[161,6,161,9],[147,1,147,3],[147,5,150,5],[158,0,158,4],[158,6,158,9],[152,1,153,1],[152,2,152,4],[164,0,164,4],[164,6,164,9],[165,0,165,4],[165,6,165,9],[167,0,167,5],[168,0,168,5],[174,1,174,3],[174,5,177,5],[185,0,185,4],[222,0,222,5],[217,0,217,4],[217,6,217,9],[218,0,218,4],[218,6,218,9],[71,8,72,8],[66,1,66,3],[66,5,69,5],[213,0,214,4],[213,6,213,9],[214,6,214,9],[212,0,212,4],[212,6,212,9],[206,1,207,1],[206,2,206,4],[219,0,219,4],[219,6,219,9],[191,0,191,4],[191,6,191,9],[192,0,192,4],[192,6,192,9],[194,0,194,5],[195,0,195,5],[201,1,201,3],[221,0,221,5],[201,5,204,5],[215,0,215,4],[215,6,215,9],[216,0,216,4],[216,6,216,9],[206,5,206,6],[206,8,207,8],[186,0,187,4],[186,6,186,9],[187,6,187,9],[188,0,188,4],[188,6,188,9],[189,0,189,4],[189,6,189,9],[190,0,190,4],[206,7,207,7],[190,6,190,9],[1,0,5,9],[35,15,35,17],[35,18,35,19],[37,11,37,12],[43,1,44,1],[43,2,43,4],[43,5,43,6],[43,8,44,8],[35,0,36,10],[6,0,6,9],[7,0,7,8],[23,0,23,2],[8,0,8,9],[9,0,9,9],[13,1,13,3],[13,5,15,5],[14,1,14,3],[15,1,15,3],[11,8,11,9],[20,1,20,3],[20,8,20,9],[16,1,16,3],[17,5,21,5],[17,8,17,9]]}
[]
[]
[]
[]
[]
[]
["INSTITUTO PROFESIONAL DE EDUCACION COMUNITARIA (IPEC)"]
[]
["INFORMACIÓN BÁSICA DEL SATÉLITE"]
["Curso Lectivo 2024"]
[]
["Código Presupuestario: ",{"$f":"'HOJA RESUMEN'!C14","v":0},null,null,null,null,"Fecha:"]
[]
["Centro Educativo:",{"$f":"IF(B12=\"\",\"\",IFERROR(LOOKUP($B$12,Hoja2!$A$2:$A$104,Hoja2!$B$2:$B$104),\"CODIGO INCORRECTO\"))","v":"CODIGO INCORRECTO"}]
["Dirección Regional:",{"$f":"+IF(B12=0,\"\",LOOKUP($B$12,Hoja2!$A$2:$A$104,Hoja2!$D$2:$D$104))","v":""}]
["Circuito:",{"$f":"+IF(B12=0,\"\",LOOKUP($B$12,Hoja2!$A$2:$A$104,Hoja2!$E$2:$E$104))","v":""}]
["Teléfono/Fax:",{"$f":"+IF(B12=0,\"\",LOOKUP($B$12,Hoja2!$A$2:$A$104,Hoja2!$L$2:$L$104))","v":""}]
[]
["Provincia:",{"$f":"+IF(B12=0,\"\",LOOKUP($B$12,Hoja2!$A$2:$A$104,Hoja2!$F$2:$F$104))","v":""}]
["Cantón:",{"$f":"+IF(B12=0,\"\",LOOKUP($B$12,Hoja2!$A$2:$A$104,Hoja2!$G$2:$G$104))","v":""}]
["Distrito:",{"$f":"+IF(B12=0,\"\",LOOKUP($B$12,Hoja2!$A$2:$A$104,Hoja2!$H$2:$H$104))","v":""}]
["Poblado:",{"$f":"+IF(B12=0,\"\",LOOKUP($B$12,Hoja2!$A$2:$A$104,Hoja2!$I$2:$I$104))","v":""}]
[null,null,null,null,null,"MATRICULA TOTAL DE LA INSTITUCION"]
["ESPECIALIDADES TECNICAS"]
["PLAN REGULAR 3 AÑOS",null,{"$f":"IFERROR(VLOOKUP(B12,Hoja4!A4:C25,3,0),\"NO\")","v":"NO"},null,null,"MATRICULA POR SATELITES",null,null,{"$f":"I46+I74+I101+I128+I155+I182+I209+I27","v":0},null,"***ESTE DEBE DE COINCIDIR CON MATRICULA HOJA RESUMEN EN CASO CONTRARIO SE MARCA ROJO"]
["PLAN DOS AÑOS",null,{"$f":"IFERROR(VLOOKUP(B12,Hoja4!E4:G21,3,0),\"NO\")","v":"NO"},null,null,"MATRICULA HOJA RESUMEN ",null,null,{"$f":"+'HOJA RESUMEN'!I29","v":0},null,"***"]
[null,null,null,null,null,"MATICULA EDUCACION TECNICA",null,null,{"$f":"+'HOJA RESUMEN'!I30","v":0}]
[]
[]
["Nombre del Director de la Institución",null,null,null,null,"Firma"]
[]
["La información aquí certificada la hago bajo la fe y la palabra de certeza, conociendo que cualquier iexactitud o falsedad estaría incurriendo en las responsabilidades administrativo disciplinarias, sin perjuicio de las acciones civiles (Legislación vinculante a la legitimidad de la información: Ley de Administración Pública (Artículo ), Estatuto de Servicio Civil (Artículo 39), Ley de Control Interno (Artículo 39) y Ley contra la Corrupción y el Enriquecimiento Ilícito en la función pública (Artículo 3)."]
[]
["SE DEBE DE LLENAR MATRICULA Y SECCIONES POR SATELITES CARÁCTER OBLIGATORIO:"]
[]
["Resumen de Lecciones Asignadas"]
[]
[null,null,null,null,null,"MARQUE CON X LA JORNADA:"]
["Nombre del Satélite 1:",null,null,null,null,"Jornada:","Única:"]
[null,null,null,null,null,null,"Doble:"]
[null,null,null,null,null,null,"Triple:"]
[null,null,null,null,null,null,"Nocturna:"]
[]
["Ciclo:","I NIVEL"," (II NIVEL)",null,null,"(III NIVEL)",null,"CURSOS LIBRES","Matricula y secciones por Satelite"]
["Nivel:",null,"7°","8°","9°","10°","11°"]
["Matrícula TOTAL por Nivel:",null,null,null,null,null,null,null,{"$f":"SUM(B46:H46)","v":0}]
["Número de Secciones por Nivel:",null,null,null,null,null,null,null,{"$f":"SUM(B47:H47)","v":0}]
[]
[]
["Nivel / Oferta",null,null,null,null,"Lecciones Asignadas","Tipo de Remuneración"]
["1) Distribución de Matrícula y Lecciones Oferta Modular I NIVEL",null,null,null,null,{"$f":"IF(+'SEDE CENTRAL'!T11=\"\",0,'SEDE CENTRAL'!T11)","v":4},"Ampliación de la Jornada"]
[null,null,null,null,null,{"$f":"+IF('SEDE CENTRAL'!P31=\"\",0,'SEDE CENTRAL'!P31)+IF('SEDE CENTRAL'!T16=\"\",0,'SEDE CENTRAL'!T16)","v":0},"Lecciones (Idioma Extranjero) y Piscología"]
["2) Distribución de Matrícula y Lecciones Oferta Modular II NIVEL",null,null,null,null,{"$f":"+IF('SEDE CENTRAL'!P73=\"\",0,'SEDE CENTRAL'!P73)","v":0},"Lecciones"]
["3) Distribución de Matrícula y Lecciones Oferta Modular III NIVEL",null,null,null,null,{"$f":"+IF('SEDE CENTRAL'!P97=\"\",0,'SEDE CENTRAL'!P97)","v":0},"Lecciones"]
["4) Distribución de Matrícula y Lecciones Cursos Modulares Opcionales",null,null,null,null,{"$f":"+IF('SEDE CENTRAL'!T15=\"\",0,'SEDE CENTRAL'!T15)","v":0},"Lecciones"]
["5) Distribución de Matrícula y Lecciones Educación Técnica",null,null,null,null,{"$f":"+IF('SEDE CENTRAL'!T10=\"\",0,'SEDE CENTRAL'!T10)","v":0},"Lecciones"]
["7) Distribución de Matrícula y Lecciones Cursos Libres",null,null,null,null,{"$f":"+IF('SEDE CENTRAL'!P271=\"\",0,'SEDE CENTRAL'!P271)","v":0},"Lecciones"]
[]
["Total de \"Ampliación de la Jornada Laboral en IPEC y CINDEA\" Aprobadas (573.01):",null,null,null,null,null,{"$f":"+F51","v":4}]
["Total de Lecciones Aprobadas (573.05):",null,null,null,null,null,{"$f":"+IF(F53=\"\",0,F53)+IF(F54=\"\",0,F54)+IF(F55=\"\",0,F55)+IF(F56=\"\",0,F56)+IF(F57=\"\",0,F57)+F52","v":0}]
[]
[]
[]
[]
[null,null,null,null,null,"MARQUE CON X LA JORNADA:"]
[]
["Nombre del Satélite 2:",null,null,null,null,"Jornada:","Única:"]
[null,null,null,null,null,null,"Doble:"]
[null,null,null,null,null,null,"Triple:"]
[null,null,null,null,null,null,"Nocturna:"]
[]
["Ciclo:","I NIVEL"," (II NIVEL)",null,null," (III NIVEL)",null,"CURSOS LIBRES","Matricula y secciones por Satelite"]
["Nivel:",null,"7°","8°","9°","10°","11°"]
["Matrícula TOTAL por Nivel:",null,null,null,null,null,null,null,{"$f":"SUM(B74:H74)","v":0}]
["Número de Secciones por Nivel:",null,null,null,null,null,null,null,{"$f":"SUM(B75:H75)","v":0}]
[]
[]
["Nivel / Oferta",null,null,null,null,"Lecciones Asignadas","Tipo de Remuneración"]
["1) Distribución de Matrícula y Lecciones Oferta Modular I NIVEL",null,null,null,null,{"$f":"IF(+'  SATELITE 2'!T10=0,\"\",'  SATELITE 2'!T10)","v":""},"Ampliación de la Jornada"]
[null,null,null,null,null,{"$f":"+IF('  SATELITE 2'!P30=\"\",0,'  SATELITE 2'!P30)+IF('  SATELITE 2'!T15=\"\",0,'  SATELITE 2'!T15)","v":0},"Lecciones (Idioma Extranjero) y Psicología"]
["2) Distribución de Matrícula y Lecciones Oferta Modular II NIVEL",null,null,null,null,{"$f":"+IF('  SATELITE 2'!P72=0,\"\",'  SATELITE 2'!P72)","v":""},"Lecciones"]
["3) Distribución de Matrícula y Lecciones Oferta Modular III NIVEL",null,null,null,null,{"$f":"+IF('  SATELITE 2'!P96=0,\"\",'  SATELITE 2'!P96)","v":""},"Lecciones"]
["4) Distribución de Matrícula y Lecciones Cursos Modulares Opcionales",null,null,null,null,{"$f":"+IF('  SATELITE 2'!T14=0,\"\",'  SATELITE 2'!T14)","v":""},"Lecciones"]
["5) Distribución de Matrícula y Lecciones Educación Técnica",null,null,null,null,{"$f":"+IF('  SATELITE 2'!T9=\"\",0,'  SATELITE 2'!T9)","v":0},"Lecciones"]
["7) Distribución de Matrícula y Lecciones Cursos Libres",null,null,null,null,{"$f":"+IF('  SATELITE 2'!T16=\"\",0,'  SATELITE 2'!T16)","v":0},"Lecciones"]
[]
["Total de \"Ampliación de la Jornada Laboral en IPEC y CINDEA\" Aprobadas (573.01):",null,null,null,null,null,{"$f":"+F79","v":""}]
["Total de Lecciones Aprobadas (573.05):",null,null,null,null,null,{"$f":"+IF(F81=\"\",0,F81)+IF(F82=\"\",0,F82)+IF(F83=\"\",0,F83)+IF(F84=\"\",0,F84)+IF(F85=\"\",0,F85)+F80","v":0}]
[]
[]
[]
[null,null,null,null,null,"MARQUE CON X LA JORNADA:"]
[]
["Nombre del Satélite 3:",null,null,null,null,"Jornada:","Única:"]
[null," ",null,null,null,null,"Doble:"]
[null,null,null,null,null,null,"Triple:"]
[null,null,null,null,null,null,"Nocturna:"]
[]
["Ciclo:"," I NIVEL"," (II NIVEL)",null,null,"III NIVEL)",null,"CURSOS LIBRES","Matricula y secciones por Satelite"]
["Nivel:",null,"7°","8°","9°","10°","11°"]
["Matrícula TOTAL por Nivel:",null,null,null,null,null,null,null,{"$f":"SUM(B101:H101)","v":0}]
["Número de Secciones por Nivel:",null,null,null,null,null,null,null,{"$f":"SUM(B102:H102)","v":0}]
[]
[]
["Nivel / Oferta",null,null,null,null,"Lecciones Asignadas","Tipo de Remuneración"]
["1) Distribución de Matrícula y Lecciones Oferta Modular I NIVEL",null,null,null,null,{"$f":"IF(+'  SATELITE 3'!T10=0,\"\",'  SATELITE 3'!T10)","v":""},"Ampliación de la Jornada"]
[null,null,null,null,null,{"$f":"+IF('  SATELITE 3'!P30=\"\",0,'  SATELITE 3'!P30)+IF('  SATELITE 3'!T15=\"\",0,'  SATELITE 3'!T15)","v":0},"Lecciones (Idioma Extranjero)"]
["2) Distribución de Matrícula y Lecciones Oferta Modular II NIVEL",null,null,null,null,{"$f":"+IF('  SATELITE 3'!P72=0,\"\",'  SATELITE 3'!P72)","v":""},"Lecciones"]
["3) Distribución de Matrícula y Lecciones Oferta Modular III NIVEL",null,null,null,null,{"$f":"+IF('  SATELITE 3'!P96=0,\"\",'  SATELITE 3'!P96)","v":""},"Lecciones"]
["4) Distribución de Matrícula y Lecciones Cursos Modulares Opcionales",null,null,null,null,{"$f":"+IF('  SATELITE 3'!T14=0,\"\",'  SATELITE 3'!T14)","v":""},"Lecciones"]
["5) Distribución de Matrícula y Lecciones Educación Técnica",null,null,null,null,{"$f":"+IF('  SATELITE 3'!T9=\"\",0,'  SATELITE 3'!T9)","v":0},"Lecciones"]
["7) Distribución de Matrícula y Lecciones Cursos Libres",null,null,null,null,{"$f":"+IF('  SATELITE 3'!T16=\"\",0,'  SATELITE 3'!T16)","v":0},"Lecciones"]
[]
["Total de \"Ampliación de la Jornada Laboral en IPEC y CINDEA\" Aprobadas (573.01):",null,null,null,null,null,{"$f":"+F106","v":""}]
["Total de Lecciones Aprobadas (573.05):",null,null,null,null,null,{"$f":"+IF(F108=\"\",0,F108)+IF(F109=\"\",0,F109)+IF(F110=\"\",0,F110)+IF(F111=\"\",0,F111)+IF(F112=\"\",0,F112)+F107","v":0}]
[]
[]
[]
[null,null,null,null,null,"MARQUE CON X LA JORNADA:"]
[]
["Nombre del Satélite 4:",null,null,null,null,"Jornada:","Única:"]
[null,null,null,null,null,null,"Doble:"]
[null,null,null,null,null,null,"Triple:"]
[null,null,null,null,null,null,"Nocturna:"]
[]
["Ciclo:","I NIVEL"," (II NIVEL)",null,null," (III NIVEL)",null,"CURSOS LIBRES","Matricula y secciones por Satelite"]
["Nivel:",null,"7°","8°","9°","10°","11°"]
["Matrícula TOTAL por Nivel:",null,null,null,null,null,null,null,{"$f":"SUM(B128:H128)","v":0}]
["Número de Secciones por Nivel:",null,null,null,null,null,null,null,{"$f":"SUM(B129:H129)","v":0}]
[]
[]
["Nivel / Oferta",null,null,null,null,"Lecciones Asignadas","Tipo de Remuneración"]
["1) Distribución de Matrícula y Lecciones Oferta Modular I NIVEL",null,null,null,null,{"$f":"IF(+'  SATELITE 4'!T10=0,\"\",'  SATELITE 4'!T10)","v":""},"Ampliación de la Jornada"]
[null,null,null,null,null,{"$f":"+IF('  SATELITE 4'!P30=\"\",0,'  SATELITE 4'!P30)+IF('  SATELITE 4'!T15=\"\",0,'  SATELITE 4'!T15)","v":0},"Lecciones (Idioma Extranjero)"]
["2) Distribución de Matrícula y Lecciones Oferta Modular II NIVEL",null,null,null,null,{"$f":"+IF('  SATELITE 4'!P72=0,\"\",'  SATELITE 4'!P72)","v":""},"Lecciones"]
["3) Distribución de Matrícula y Lecciones Oferta Modular III NIVEL",null,null,null,null,{"$f":"+IF('  SATELITE 4'!P96=0,\"\",'  SATELITE 4'!P96)","v":""},"Lecciones"]
["4) Distribución de Matrícula y Lecciones Cursos Modulares Opcionales",null,null,null,null,{"$f":"+IF('  SATELITE 4'!T14=0,\"\",'  SATELITE 4'!T14)","v":""},"Lecciones"]
["5) Distribución de Matrícula y Lecciones Educación Técnica",null,null,null,null,null,"Lecciones"]
["7) Distribución de Matrícula y Lecciones Cursos Libres",null,null,null,null,{"$f":"+IF('  SATELITE 4'!T16=\"\",0,'  SATELITE 4'!T16)","v":0},"Lecciones"]
[]
["Total de \"Ampliación de la Jornada Laboral en IPEC y CINDEA\" Aprobadas (573.01):",null,null,null,null,null,{"$f":"+F133","v":""}]
["Total de Lecciones Aprobadas (573.05):",null,null,null,null,null,{"$f":"+IF(F135=\"\",0,F135)+IF(F136=\"\",0,F136)+IF(F137=\"\",0,F137)+IF(F138=\"\",0,F138)+IF(F139=\"\",0,F139)+F134","v":0}]
[]
[]
[]
[null,null,null,null,null,"MARQUE CON X LA JORNADA:"]
[]
["Nombre del Satélite 5:",null,null,null,null,"Jornada:","Única:"]
[null,null,null,null,null,null,"Doble:"]
[null,null,null,null,null,null,"Triple:"]
[null,null,null,null,null,null,"Nocturna:"]
[]
["Ciclo:","I NIVEL"," (II NIVEL)",null,null,"(III NIVEL)",null,"CURSOS LIBRES","Matricula y secciones por Satelite"]
["Nivel:",null,"7°","8°","9°","10°","11°"]
["Matrícula TOTAL por Nivel:",null,null,null,null,null,null,null,{"$f":"SUM(B155:H155)","v":0}]
["Número de Secciones por Nivel:",null,null,null,null,null,null,null,{"$f":"SUM(B156:H156)","v":0}]
[]
[]
["Nivel / Oferta",null,null,null,null,"Lecciones Asignadas","Tipo de Remuneración"]
["1) Distribución de Matrícula y Lecciones Oferta Modular I NIVEL",null,null,null,null,{"$f":"IF(+'  SATELITE 5'!T10=0,\"\",'  SATELITE 5'!T10)","v":""},"Ampliación de la Jornada"]
[null,null,null,null,null,{"$f":"+IF('  SATELITE 5'!P30=\"\",0,'  SATELITE 5'!P30)+IF('  SATELITE 5'!T15=\"\",0,'  SATELITE 5'!T15)","v":0},"Lecciones (Idioma Extranjero)"]
["2) Distribución de Matrícula y Lecciones Oferta Modular II NIVEL",null,null,null,null,{"$f":"+IF('  SATELITE 5'!P72=0,\"\",'  SATELITE 5'!P72)","v":""},"Lecciones"]
["3) Distribución de Matrícula y Lecciones Oferta Modular III NIVEL",null,null,null,null,{"$f":"+IF('  SATELITE 5'!P96=0,\"\",'  SATELITE 5'!P96)","v":""},"Lecciones"]
["4) Distribución de Matrícula y Lecciones Cursos Modulares Opcionales",null,null,null,null,{"$f":"+IF('  SATELITE 5'!T14=0,\"\",'  SATELITE 5'!T14)","v":""},"Lecciones"]
["5) Distribución de Matrícula y Lecciones Educación Técnica",null,null,null,null,null,"Lecciones"]
["7) Distribución de Matrícula y Lecciones Cursos Libres",null,null,null,null,{"$f":"+IF('  SATELITE 5'!T16=\"\",0,'  SATELITE 5'!T16)","v":0},"Lecciones"]
[]
["Total de \"Ampliación de la Jornada Laboral en IPEC y CINDEA\" Aprobadas (573.01):",null,null,null,null,null,{"$f":"+F160","v":""}]
["Total de Lecciones Aprobadas (573.05):",null,null,null,null,null,{"$f":"+IF(F162=\"\",0,F162)+IF(F163=\"\",0,F163)+IF(F164=\"\",0,F164)+IF(F165=\"\",0,F165)+IF(F166=\"\",0,F166)+F161","v":0}]
[]
[]
[]
[null,null,null,null,null,"MARQUE CON X LA JORNADA:"]
[]
["Nombre del Satélite 6:",null,null,null,null,"Jornada:","Única:"]
[null,null,null,null,null,null,"Doble:"]
[null,null,null,null,null,null,"Triple:"]
[null,null,null,null,null,null,"Nocturna:"]
[]
["Ciclo:","I NIVEL","(II NIVEL)",null,null," (III NIVEL)",null,"CURSOS LIBRES","Matricula y secciones por Satelite"]
["Nivel:",null,"7°","8°","9°","10°","11°"]
["Matrícula TOTAL por Nivel:",null,null,null,null,null,null,null,{"$f":"SUM(B182:H182)","v":0}]
["Número de Secciones por Nivel:",null,null,null,null,null,null,null,{"$f":"SUM(B183:H183)","v":0}]
[]
[]
["Nivel / Oferta",null,null,null,null,"Lecciones Asignadas","Tipo de Remuneración"]
["1) Distribución de Matrícula y Lecciones Oferta Modular I NIVEL",null,null,null,null,{"$f":"IF(+'  SATELITE 6'!T10=0,\"\",'  SATELITE 6'!T10)","v":""},"Ampliación de la Jornada"]
[null,null,null,null,null,{"$f":"+IF('  SATELITE 6'!P30=\"\",0,'  SATELITE 6'!P30)+IF('  SATELITE 6'!T15=\"\",0,'  SATELITE 6'!T15)","v":0},"Lecciones (Idioma Extranjero)"]
["2) Distribución de Matrícula y Lecciones Oferta Modular II NIVEL",null,null,null,null,{"$f":"+IF('  SATELITE 6'!P72=0,\"\",'  SATELITE 6'!P72)","v":""},"Lecciones"]
["3) Distribución de Matrícula y Lecciones Oferta Modular III NIVEL",null,null,null,null,{"$f":"+IF('  SATELITE 6'!P96=0,\"\",'  SATELITE 6'!P96)","v":""},"Lecciones"]
["4) Distribución de Matrícula y Lecciones Cursos Modulares Opcionales",null,null,null,null,{"$f":"+IF('  SATELITE 6'!T14=0,\"\",'  SATELITE 6'!T14)","v":""},"Lecciones"]
["5) Distribución de Matrícula y Lecciones Educación Técnica",null,null,null,null,null,"Lecciones"]
["7) Distribución de Matrícula y Lecciones Cursos Libres",null,null,null,null,{"$f":"+IF('  SATELITE 6'!T16=\"\",0,'  SATELITE 6'!T16)","v":0},"Lecciones"]
[]
["Total de \"Ampliación de la Jornada Laboral en IPEC y CINDEA\" Aprobadas (573.01):",null,null,null,null,null,{"$f":"+F187","v":""}]
["Total de Lecciones Aprobadas (573.05):",null,null,null,null,null,{"$f":"+IF(F189=\"\",0,F189)+IF(F190=\"\",0,F190)+IF(F191=\"\",0,F191)+IF(F192=\"\",0,F192)+IF(F193=\"\",0,F193)+F188","v":0}]
[]
[]
[]
[null,null,null,null,null,"MARQUE CON X LA JORNADA:"]
[]
["Nombre del Satélite 7:",null,null,null,null,"Jornada:","Única:"]
[null,null,null,null,null,null,"Doble:"]
[null,null,null,null,null,null,"Triple:"]
[null,null,null,null,null,null,"Nocturna:"]
[]
["Ciclo:","I NIVEL"," (II NIVEL)",null,null,"(III NIVEL)",null,"CURSOS LIBRES","Matricula y secciones por Satelite"]
["Nivel:",null,"7°","8°","9°","10°","11°"]
["Matrícula TOTAL por Nivel:",null,null,null,null,null,null,null,{"$f":"SUM(B209:H209)","v":0}]
["Número de Secciones por Nivel:",null,null,null,null,null,null,null,{"$f":"SUM(B210:H210)","v":0}]
[]
[]
["Nivel / Oferta",null,null,null,null,"Lecciones Asignadas","Tipo de Remuneración"]
["1) Distribución de Matrícula y Lecciones Oferta Modular I NIVEL",null,null,null,null,{"$f":"IF(+'  SATELITE 7'!T10=0,\"\",'  SATELITE 7'!T10)","v":""},"Ampliación de la Jornada"]
[null,null,null,null,null,{"$f":"+IF('  SATELITE 7'!P30=\"\",0,'  SATELITE 7'!P30)+IF('  SATELITE 7'!T15=\"\",0,'  SATELITE 7'!T15)","v":0},"Lecciones (Idioma Extranjero)"]
["2) Distribución de Matrícula y Lecciones Oferta Modular II NIVEL",null,null,null,null,{"$f":"+IF('  SATELITE 7'!P72=0,\"\",'  SATELITE 7'!P72)","v":""},"Lecciones"]
["3) Distribución de Matrícula y Lecciones Oferta Modular III NIVEL",null,null,null,null,{"$f":"+IF('  SATELITE 7'!P96=0,\"\",'  SATELITE 7'!P96)","v":""},"Lecciones"]
["4) Distribución de Matrícula y Lecciones Cursos Modulares Opcionales",null,null,null,null,{"$f":"+IF('  SATELITE 7'!T14=0,\"\",'  SATELITE 7'!T14)","v":""},"Lecciones"]
["5) Distribución de Matrícula y Lecciones Educación Técnica",null,null,null,null,null,"Lecciones"]
["7) Distribución de Matrícula y Lecciones Cursos Libres",null,null,null,null,{"$f":"+IF('  SATELITE 7'!T16=\"\",0,'  SATELITE 7'!T16)","v":0},"Lecciones"]
[]
["Total de \"Ampliación de la Jornada Laboral en IPEC y CINDEA\" Aprobadas (573.01):",null,null,null,null,null,{"$f":"+F214","v":""}]
["Total de Lecciones Aprobadas (573.05):",null,null,null,null,null,{"$f":"+IF(F216=\"\",0,F216)+IF(F217=\"\",0,F217)+IF(F218=\"\",0,F218)+IF(F219=\"\",0,F219)+IF(F220=\"\",0,F220)+F215","v":0}]

{"sheet":"Detalle","index":4,"n_rows":14,"n_cols":14,"rows_kept":14,"cut":false,"hidden":true,"merged":[[3,1,4,1]]}
[]
[]
[null,"Satelites:",null,"Total","Satétite 1","Satélite 2","Satétite 3","Satétite 4","Satétite 5","Satélite 6","Satétite 7","Satélite 8","Satétite 9","Satélite 10"]
[null,"1) Distribución de Matrícula y Lecciones Oferta Modular I NIVEL","Ampliaciones",{"$f":"+SUM(E4:N4)","v":4},{"$f":"+'FORMULARIO '!F51","v":4},{"$f":"+'FORMULARIO '!F79","v":""},{"$f":"'FORMULARIO '!F106","v":""},{"$f":"'FORMULARIO '!F133","v":""},{"$f":"'FORMULARIO '!F160","v":""},{"$f":"'FORMULARIO '!F187","v":""},{"$f":"'FORMULARIO '!F214","v":""}]
[null,null,"Lecciones",0,{"$f":"+'FORMULARIO '!F52","v":0},{"$f":"+'FORMULARIO '!F80","v":0},{"$f":"'FORMULARIO '!F107","v":0},{"$f":"'FORMULARIO '!F134","v":0},{"$f":"'FORMULARIO '!F161","v":0},{"$f":"'FORMULARIO '!F188","v":0},{"$f":"'FORMULARIO '!F215","v":0}]
[null,"2) Distribución de Matrícula y Lecciones Oferta Modular II NIVEL","Lecciones",0,{"$f":"+'FORMULARIO '!F53","v":0},{"$f":"+'FORMULARIO '!F81","v":""},{"$f":"'FORMULARIO '!F108","v":""},{"$f":"'FORMULARIO '!F135","v":""},{"$f":"'FORMULARIO '!F162","v":""},{"$f":"'FORMULARIO '!F189","v":""},{"$f":"'FORMULARIO '!F216","v":""}]
[null,"3) Distribución de Matrícula y Lecciones Oferta Modular III NIVEL","Lecciones",0,{"$f":"+'FORMULARIO '!F54","v":0},{"$f":"+'FORMULARIO '!F82","v":""},{"$f":"'FORMULARIO '!F109","v":""},{"$f":"'FORMULARIO '!F136","v":""},{"$f":"'FORMULARIO '!F163","v":""},{"$f":"'FORMULARIO '!F190","v":""},{"$f":"'FORMULARIO '!F217","v":""}]
[null,"4) Distribución de Matrícula y Lecciones Cursos Modulares Opcionales","Lecciones",0,{"$f":"+'FORMULARIO '!F55","v":0},{"$f":"+'FORMULARIO '!F83","v":""},{"$f":"'FORMULARIO '!F110","v":""},{"$f":"'FORMULARIO '!F137","v":""},{"$f":"'FORMULARIO '!F164","v":""},{"$f":"'FORMULARIO '!F191","v":""},{"$f":"'FORMULARIO '!F218","v":""}]
[null,"5) Distribución de Matrícula y Lecciones Educación Técnica","Lecciones",0,{"$f":"+'FORMULARIO '!F56","v":0},{"$f":"+'FORMULARIO '!F84","v":0},{"$f":"'FORMULARIO '!F111","v":0},{"$f":"'FORMULARIO '!F138","v":0}]
[null,"6) Distribución de Matrícula y Lecciones Cursos Libres","Lecciones",{"$f":"+SUM(E10:N10)","v":0},{"$f":"+'SEDE CENTRAL'!P271","v":""},{"$f":"+'FORMULARIO '!F85","v":0},{"$f":"'FORMULARIO '!F112","v":0},{"$f":"'FORMULARIO '!F139","v":0},{"$f":"'FORMULARIO '!F166","v":0},{"$f":"'FORMULARIO '!F193","v":0},{"$f":"'FORMULARIO '!F220","v":0}]
[]
[]
[]
[null,"MATRICULA TOTAL DE EDUCACION TECNICA SATELITES:",{"$f":"'EDUCAC TECNICA SATELITE 2'!J111+'EDUCAC TECNICA SEDE CENTRAL'!J111","v":0}]

{"sheet":"Hoja2","index":5,"n_rows":104,"n_cols":12,"rows_kept":104,"cut":false,"hidden":true,"merged":[]}
["CODIGO","INSTITUCION","REGION","DR","CIRES","PROVINCIA","CANTON","DISTRITO","POBLADO","SECTOR","ZONA","TELEFONO"]
[4826,"IPEC DE SAN JOSE",72,"SJ OESTE",1,"SAN JOSE","SAN JOSE","MERCED","BARRIO MÉXICO","PUB","URB",22336329]
[4827,"CINDEA MARIA MAZZARELLO",72,"SJ OESTE","01","SAN JOSE","SAN JOSE","MATA REDONDA","DON BOSCO","PUB","URB",22563748]
[4828,"CINDEA SANTA ANA",72,"SJ OESTE","04","SAN JOSE","SANTA ANA","SANTA ANA","SANTA ANA CENTRO","PUB","URB",22828622]
[4830,"IPEC QUINCE DE SETIEMBRE",50,"SJ CENTRAL",5,"SAN JOSE","SAN JOSE","HATILLO","COLONIA 15 DE SETIEMBRE","PUB","URB",22548390]
[4834,"CINDEA ALBERTO BRENES MORA",72,"SJ OESTE","01","SAN JOSE","SAN JOSE","MERCED","BARRIO MEXICO","PUB","URB",22229282]
[4845,"IPEC POAS",54,"ALALJUELA",7,"ALAJUELA","POAS","SAN PEDRO","SAN PEDRO","PUB","URB",24486633]
[4847,"IPEC MARIA PACHECO",54,"ALAJUELA",1,"ALAJUELA","ALAJUELA","ALAJUELA","URBANIZACIÓN MONTENEGRO","PUB","URB",24300140]
[4852,"CINDEA SAN CARLOS",56,"SAN CARLOS ","03","ALAJUELA","SAN CARLOS","QUESADA","SAN ROQUE","PUB","URB",24613716]
[4856,"IPEC ARABELLA JIMENEZ DE VOLIO",57,"CARTAGO",1,"CARTAGO","CARTAGO","ORIENTAL","LOS ÁNGELES","PUB","URB",25918844]
[4863,"IPEC SANTA BARBARA",59,"HEREDIA",3,"HEREDIA","SANTA BARBARA","SANTA BARBARA","SANTA BÁRBARA","PUB","URB",22692300]
[4864,"IPEC SANTO DOMINGO",59,"HEREDIA",5,"HEREDIA","SANTO DOMINGO","SAN VICENTE","QUIZARCO","PUB","URB",22442343]
[4866,"IPEC BARVA",59,"HEREDIA",4,"HEREDIA","BARVA","BARVA","BARVA CENTRO","PUB","URB",22382438]
[4870,{"$f":"IF(B12=\"\",\"\",IFERROR($B$12,Hoja2!$A$2:$A$104))","v":"IPEC SANTO DOMINGO"},60,"LIBERIA",4,"GUANACASTE","LIBERIA","LIBERIA","MORACIA","PUB","URB",26660178]
[4873,"CINDEA SANTA CRUZ",52,"SANTA CRUZ","01","GUANACASTE","SANTA CRUZ","SANTA CRUZ","PANAMA","PUB","URB",26801873]
[4876,"IPEC CAÑAS",63,"CAÑAS",1,"GUANACASTE","CAÑAS","CAÑAS","LOS MALINCHES","PUB","URB",26693575]
[4879,"IPEC PUNTARENAS",64,"PUNTARENAS",1,"PUNTARENAS","PUNTARENAS","BARRANCA","RIOJALANDIA","PUB","URB",26642421]
[4885,"CINDEA CIUDAD NEILY",65,"COTO","11","PUNTARENAS","CORREDORES","LAUREL","NARANJO DE LAUREL","PUB","URB",27766325]
[4887,"IPEC AGUA BUENA",65,"COTO",7,"PUNTARENAS","COTO BRUS","AGUABUENA","AGUA BUENA","PUB","RUR",27340270]
[4895,"CINDEA CARIARI",67,"GUAPILES","03","LIMON","POCOCI","CARIARI","LINDA VISTA","PUB","URB",27675744]
[4897,"CINDEA UPALA",69,"ZONA NORTE","01","ALAJUELA","UPALA","UPALA","UPALA","PUB","RUR",24700305]
[4911,"CINDEA RICARDO JIMENEZ O.",50,"SJ CENTRAL","01","SAN JOSE","SAN JOSE","CATEDRAL","CARIT","PUB","URB",40810072]
[5101,"CINDEA TURRIALBA",58,"TURRIALBA","02","CARTAGO","TURRIALBA","TURRIALBA","SAN RAFAEL","PUB","URB",25565060]
[5280,"CINDEA SAN JUAN DE DIOS",51,"DESAMPARADOS","02","SAN JOSE","DESAMPARADOS","SAN JUAN DE DIOS","SAN JUAN DE DIOS","PUB","URB",22190913]
[5281,"CINDEA PURISCAL",52,"PURISCAL","05","SAN JOSE","ACOSTA","PALMICHAL","PALMICHAL DE ACOSTA","PUB","RUR",24184409]
[5282,"CINDEA C.A.I. ADULTO JOVEN",54,"ALAJUELA","04","ALAJUELA","ALAJUELA","SAN RAFAEL","SAN RAFAEL, ALAJUELA","PUB","URB",24382557]
[5283,"CINDEA PUERTO VIEJO",74,"SARAPIQUI","02","HEREDIA","SARAPIQUI","HORQUETAS","TICARI","PUB","RUR",27641145]
[5676,"CINDEA ABANGARES",63,"CAÑAS","02","GUANACASTE","ABANGARES","JUNTAS","SAO PABLO","PUB","RUR",26620810]
[5686,"CINDEA BRIBRI",77,"SULA","01","LIMON","TALAMANCA","BRATSI","BRIBRI","PUB","RUR",27511158]
[5687,"CINDEA 28 MILLAS",66,"LIMON","09","LIMON","MATINA","BATAN","28 MILLAS","PUB","URB",21001575]
[5688,"CINDEA LIMON",66,"LIMON","01","LIMON","LIMON","LIMON","LIMON CENTRO","PUB","URB",27584884]
[5746,"CINDEA VENECIA",56,"SAN CARLOS","01","ALAJUELA","SAN CARLOS","VENECIA","VENECIA CENTRO","PUB","RUR",24721135]
[5835,"CINDEA JICARAL",76,"PENINSULAR","04","PUNTARENAS","PUNTARENAS","LEPANTO","JICARAL","PUB","RUR",26500797]
[5888,"CINDEA LOMAS DE COCORI",53,"PEREZ Z","10","SAN JOSE","PEREZ ZELEDON","SAN ISIDRO","LOMAS DE COCORI","PUB","URB",27704220]
[5889,"CINDEA FLORIDA",66,"LIMON","06","LIMON","SIQUIRRES","FLORIDA","FLORIDA","PUB","RUR",27652345]
[5980,"CINDEA COLONIA PUNTARENAS",69,"ZONA NORTE","08","ALAJUELA","UPALA","UPALA","COLONIA PUNTARENAS","PUB","RUR",24708464]
[6015,"CINDEA NICOYA",61,"NICOYA","01","GUANACASTE","NICOYA","NICOYA","SAN MARTIN","PUB","URB",26854546]
[6221,"CINDEA GUACIMO",67,"GUAPILES","04","LIMON","GUACIMO","GUACIMO","GUACIMO","PUB","URB",27168552]
[6268,"CINDEA LOS CHILES",56,"SAN CARLOS","09","ALAJUELA","LOS CHILES","LOS CHILES","LOS CHILES CENTRO","PUB","RUR",24711879]
[6499,"CINDEA HEREDIANA",66,"LIMON","06","LIMON","SIQUIRRES","GERMANIA","HEREDIANA","PUB","URB",27654418]
[6511,"CINDEA LA BOMBA",66,"LIMON","02","LIMON","LIMON","MATAMA","LA BOMBA","PUB","RUR",27561001]
[6513,"CINDEA COBANO",76,"PENINSULAR","02","PUNTARENAS","PUNTARENAS","COBANO","COBANO","PUB","RUR",26421041]
[6515,"CINDEA DE PITAL",56,"SAN CARLOS","05","ALAJUELA","SAN CARLOS","PITAL","PITAL","PUB","RUR",24731054]
[6516,"CINDEA PEJIBAYE",53,"PEREZ Z","08","SAN JOSE","PEREZ ZELEDON","PEJIBAYE","BARRIO EL COLEGIO","PUB","RUR",27360136]
[6517,"CINDEA MIRAMAR",64,"PUNTARENAS","04","PUNTARENAS","MONTES DE ORO","MIRAMAR","MIRAMAR","PUB","URB",26397086]
[6518,"CINDEA PUNTARENAS",64,"PUNTARENAS","05","PUNTARENAS","PUNTARENAS","CHACARITA","CHACARITA","PUB","URB",26637660]
[6519,"CINDEA JUDAS",64,"PUNTARENAS","03","PUNTARENAS","PUNTARENAS","CHOMES","JUDAS","PUB","RUR",26388068]
[6520,"CINDEA ESPARZA",64,"PUNTARENAS","08","PUNTARENAS","ESPARZA","ESPIRITU SANTO","ESPARZA","PUB","URB",26359000]
[6521,"CINDEA FLORENCIA",56,"SAN CARLOS","02","ALAJUELA","SAN CARLOS","FLORENCIA","FLORENCIA CENTRO","PUB","URB",24756504]
[6522,"CINDEA HUACAS",52,"SANTA CRUZ","03","GUANACASTE","SANTA CRUZ","TAMARINDO","VILLARREAL","PUB","URB",26530984]
[6539,"CINDEA LA PERLA",56,"SAN CARLOS","06","ALAJUELA","SAN CARLOS","FORTUNA","LOS ANGELES","PUB","URB",24691247]
[6541,"CINDEA SANTA ROSA",56,"SAN CARLOS","08","ALAJUELA","SAN CARLOS","POCOSOL","SANTA ROSA POCOSOL","PUB","RUR",27777667]
[6552,"CINDEA GUATUSO",69,"ZONA NORTE","05","ALAJUELA","GUATUSO","SAN RAFAEL","SAN RAFAEL","PUB","RUR",24640042]
[6572,"CINDEA SAN ISIDRO",55,"OCCIDENTE","09","ALAJUELA","SAN RAMON","PEÑAS BLANCAS","SAN ISIDRO","PUB","RUR",24680356]
[6573,"CINDEA LA PAZ",55,"OCCIDENTE","02","ALAJUELA","SAN RAMON","PIEDADES NORTE","LA ESPERANZA","PUB","RUR",24458259]
[6585,"CINDEA RIO JIMENEZ",67,"GUAPILES","04","LIMON","GUACIMO","RIO JIMENEZ","RIO JIMENEZ","PUB","RUR",27621007]
[6586,"CINDEA LA RITA",67,"GUAPILES","02","LIMON","POCOCI","GUAPILES","LA RITA","PUB","RUR",27633238]
[6587,"CINDEA NANDAYURE",61,"NICOYA","03","GUANACASTE","NANDAYURE","CARMONA","CARMONA","PUB","URB",26575321]
[6626,"CINDEA SAN PABLO",52,"PURISCAL","06","SAN JOSE","TURRUBARES","SAN PABLO","SAN PABLO","PUB","URB",83169671]
[6627,"CINDEA SAN JOAQUIN",61,"NICOYA","03","GUANACASTE","NICOYA","MANSION","SAN JOAQUIN","PUB","RUR",86338679]
[6628,"CINDEA PUERTO JIMENEZ",65,"COTO","03","PUNTARENAS","GOLFITO","GOLFITO","LA URBA","PUB","RUR",27355244]
[6629,"CINDEA SAN VITO",65,"COTO","05","PUNTARENAS","COTO BRUS","SAN VITO","SAN VITO","PUB","RUR",27735449]
[6668,"CINDEA PAVAS",72,"SJ OESTE","02","SAN JOSE","SAN JOSE","PAVAS","LOMAS","PUB","URB",22130713]
[6669,"CINDEA ESCAZU",72,"SJ OESTE","03","SAN JOSE","ESCAZU","ESCAZU","ESCAZU","PUB","URB",22895590]
[6670,"CINDEA SAN ANTONIO",67,"GUAPILES","05","LIMON","POCOCI","ROXANA","SAN ANTONIO","PUB","RUR",27630044]
[6671,"CINDEA SAN MARTIN",67,"GUAPILES","01","LIMON","POCOCI","JIMENEZ","SAN MARTIN","PUB","RUR",27102653]
[6672,"CINDEA PAQUERA",76,"PENINSULAR","01","PUNTARENAS","PUNTARENAS","PAQUERA","PAQUERA","PUB","RUR",26410078]
[6673,"CINDEA SAN MIGUEL",74,"SARAPIQUI","01","ALAJUELA","ALAJUELA","SARAPIQUI","SAN MIGUEL","PUB","RUR",24760716]
[6674,"CINDEA SURETKA",77,"SULA","01","LIMON","TALAMANCA","BRATSI","SURETKA","PUB","RUR",86019965]
[6675,"CINDEA REPUBLICA DE NICARAGUA",50,"SJ CENTRAL",1,"SAN JOSE","SAN JOSE","HOSPITAL","CRISTO REY","PUB","URB",22261860]
[6720,"CINDEA CIUDAD CORTES",75,"GRANDE TERRAB","06","PUNTARENAS","OSA","PUERTO CORTES","OJO DE AGUA","PUB","URB",88883730]
[6721,"CINDEA KABAKOL",75,"GRANDE TERRAB",12,"PUNTARENAS","BUENOS AIRES","POTRERO GRANDE","SAN RAFAEL CABAGRA","PUB","RUR",22064088]
[6722,"CINDEA BUENOS AIRES",75,"GRANDE TERRAB","01","PUNTARENAS","BUENOS AIRES","BUENOS AIRES","URBANIZACION LAS LOMAS","PUB","URB",87060399]
[6723,"CINDEA MONTERREY",56,"SAN CARLOS","11","ALAJUELA","SAN CARLOS","MONTERREY","SANTO DOMINGO","PUB","RUR",24780715]
[6724,"CINDEA PAVON",56,"SAN CARLOS","10","ALAJUELA","LOS CHILES","EL AMPARO","EL PAVON","PUB","RUR",24718236]
[6725,"CINDEA SARDINAL",52,"SANTA CRUZ","06","GUANACASTE","CARRILLO","SARDINAL","SARDINAL","PUB","URB",26974230]
[6726,"CINDEA BELEN",51,"SANTA CRUZ","05","GUANACASTE","CARRILLO","BELEN","SAN FRANCISCO","PUB","URB",26511965]
[6727,"CINDEA BEBEDERO",63,"CAÑAS","01","GUANACASTE","CAÑAS","BEBEDERO","BEBEDERO","PUB","URB",26740012]
[6728,"CINDEA TILARAN",63,"CAÑAS","03","GUANACASTE","TILARAN","TILARAN","EL CARMEN","PUB","URB",26952151]
[6729,"CINDEA LA PALMA",63,"CAÑAS","04","GUANACASTE","ABANGARES","JUNTAS","LA PALMA","PUB","RUR",26628037]
[6730,"JENARO BONILLA",58,"TURRIALBA","02","CARTAGO","TURRIALBA","TURRIALBA","CENTRO","PUB","URB",25560211]
[6731,"CINDEA TAYUTIC",58,"TURRIALBA","02","CARTAGO","TURRIALBA","TAYUTIC","TAYUTIC","PUB","RUR",25548024]
[6732,"CINDEA PEJIBAYE",58,"TURRIALBA","01","CARTAGO","JIMENEZ","PEJIBAYE","HACIENDITA","PUB","RUR",25313404]
[6733,"CINDEA SAN JOSE UPALA",69,"ZONA NORTE","03","ALAJUELA","UPALA","SAN JOSE","SAN JOSE","PUB","RUR"]
[6734,"CINDEA AGUAS CLARAS",69,"ZONA NORTE","02","ALAJUELA","UPALA","AGUAS CLARAS","AGUAS CLARAS","PUB","RUR",24660035]
[6735,"CINDEA BRASILIA",69,"ZONA NORTE","07","ALAJUELA","UPALA","DOS RIOS","BRASILIA","PUB","RUR",24700341]
[6736,"CINDEA BIJAGUA",69,"ZONA NORTE","04","ALAJUELA","UPALA","BIJAGUA","BIJAGUA","PUB","RUR",24668451]
[6737,"CINDEA KATIRA",69,"ZONA NORTE","06","ALAJUELA","GUATUSO","KATIRA","KATIRA","PUB","RUR"]
[6741,"CINDEA MONTES DE OCA",71,"SJ NORTE","03","SAN JOSE","MONTES DE OCA","SAN PEDRO","SAN PEDRO","PUB","URB",22536461]
[6741,"CINDEA MONTES DE OCA",71,"SJ NORTE","03","SAN JOSE","MONTES DE OCA","SAN PEDRO","SAN PEDRO","PUB","URB",22536461]
[6797,"CINDEA CORONADO",71,"SJ NORTE","06","SAN JOSE","VASQUEZ DE CORONADO","SAN ISIDRO","SAN ISIDRO","PUB","URB",22928987]
[6798,"CINDEA MORAVIA",71,"SJ NORTE","05","SAN JOSE","MORAVIA","SAN VICENTE","SAN RAFAEL","PUB","URB"]
[6799,"CINDEA HOJANCHA",61,"NICOYA","05","GUANACASTE","HOJANCHA","HOJANCHA","HOJANCHA","PUB","RUR"]
[6800,"CINDEA NOSARA",61,"NICOYA","06","GUANACASTE","NICOYA","NOSARA","NOSARA","PUB","RUR"]
[6801,"CINDEA SAMARA",61,"NICOYA","06","GUANACASTE","NICOYA","SAMARA","TORITO","PUB","RUR"]
[6831,"CINDEA Nakelkälä",77,"SULA","05","LIMON","LIMON","VALLE LA ESTRELLA","GAVILAN","PUB","RUR",86715325]
[6832,"CINDEA ALAJUELITA",50,"SJ CENTRAL",6,"SAN JOSE","ALAJUELITA","ALAJUELITA","ALAJUELITA","PUB","URB",22142106]
[6833,"CINDEA COCAL",66,"LIMON","05","LIMON","SIQUIRRES","SIQUIRRES","EL COCAL","PUB","URB",27682103]
[6843,"CINDEA BOCA ARENAL",56,"SAN CARLO",7,"ALAJUELA","SAN CARLOS","CUTRIS","BOCA ARENAL","PUB.","RUR"]
[6844,"CINDEA KEKOLDI",77,"SULA",1,"LIMON","TALAMANCA","CAHUITA","PATIÑO","PUB.","RUR"]
[6845,"CINDEA SEPECUE",77,"SULA",3,"LIMON","TALAMANCA","TELIRE","SEPECUE","PUB.","RUR"]
[6846,"CINDEA MONTEVERDE",64,"PUNTARENAS",6,"PUNTARENAS","PUNTARENAS","MONTEVERDE","SANTA ELENA","PUB.","URB"]
[6847,"CINDEA VALVERDE VEGA",55,"OCCIDENTE",4,"ALAJUELA","VALVERDE VEGA","SARCHI NORT","CALLE COLEGIO","PUB.","RUR"]
[6946,"CINDEA KA BATA SIWA",75,"GRANDE TERRAB",12,"PUNTARENAS","BUENOS AIRES","BUENOS AIRES","UJARRAS","PUB.","RUR"]

{"sheet":"SEDE CENTRAL","index":6,"n_rows":271,"n_cols":22,"rows_kept":271,"cut":false,"hidden":false,"merged":[[155,8,155,11],[156,8,156,11],[157,8,157,11],[158,8,158,11],[144,8,144,11],[145,8,145,11],[146,8,146,11],[147,8,147,11],[148,8,148,11],[149,8,149,11],[150,8,150,11],[151,8,151,11],[152,8,152,11],[137,8,137,11],[138,8,138,11],[139,8,139,11],[140,8,140,11],[141,8,141,11],[142,8,142,11],[143,8,143,11],[153,8,153,11],[154,8,154,11],[266,7,266,11],[267,7,267,11],[113,8,113,11],[114,8,114,11],[115,8,115,11],[116,8,116,11],[117,8,117,11],[118,8,118,11],[119,8,119,11],[120,8,120,11],[121,8,121,11],[122,8,122,11],[123,8,123,11],[124,8,124,11],[125,8,125,11],[126,8,126,11],[127,8,127,11],[128,8,128,11],[129,8,129,11],[130,8,130,11],[131,8,131,11],[132,8,132,11],[133,8,133,11],[134,8,134,11],[257,7,257,11],[258,7,258,11],[259,7,259,11],[260,7,260,11],[261,7,261,11],[262,7,262,11],[263,7,263,11],[264,7,264,11],[265,7,265,11],[248,7,248,11],[249,7,249,11],[250,7,250,11],[251,7,251,11],[252,7,252,11],[253,7,253,11],[254,7,254,11],[255,7,255,11],[256,7,256,11],[239,7,239,11],[240,7,240,11],[241,7,241,11],[242,7,242,11],[243,7,243,11],[244,7,244,11],[245,7,245,11],[246,7,246,11],[247,7,247,11],[230,7,230,11],[231,7,231,11],[232,7,232,11],[233,7,233,11],[234,7,234,11],[235,7,235,11],[236,7,236,11],[237,7,237,11],[238,7,238,11],[221,7,221,11],[222,7,222,11],[223,7,223,11],[224,7,224,11],[225,7,225,11],[226,7,226,11],[227,7,227,11],[228,7,228,11],[229,7,229,11],[220,7,220,11],[220,13,220,15],[9,17,9,18],[212,8,212,9],[213,8,213,9],[214,8,214,9],[212,10,212,11],[213,10,213,11],[214,10,214,11],[202,10,202,11],[203,8,203,9],[203,10,203,11],[187,10,187,11],[188,10,188,11],[190,10,190,11],[189,10,189,11],[12,1,12,15],[13,1,14,1],[13,2,14,2],[13,3,14,3],[46,13,46,15],[13,4,14,4],[13,13,13,15],[39,12,39,13],[204,8,204,9],[204,10,204,11],[205,8,205,9],[205,10,205,11],[211,8,211,9],[211,10,211,11],[206,8,206,9],[206,10,206,11],[207,8,207,9],[207,10,207,11],[208,8,208,9],[208,10,208,11],[209,8,209,9],[209,10,209,11],[210,8,210,9],[210,10,210,11],[201,10,201,11],[202,8,202,9],[197,8,197,9],[197,10,197,11],[196,10,196,11],[194,10,194,11],[193,10,193,11],[195,10,195,11],[195,8,195,9],[196,8,196,9],[198,10,198,11],[198,8,198,9],[199,8,199,9],[199,10,199,11],[200,8,200,9],[200,10,200,11],[201,8,201,9],[191,10,191,11],[192,10,192,11],[194,8,194,9],[191,8,191,9],[192,8,192,9],[193,8,193,9],[185,8,185,9],[185,10,185,11],[186,10,186,11],[186,8,186,9],[187,8,187,9],[188,8,188,9],[190,8,190,9],[189,8,189,9],[270,1,270,14],[268,12,268,13],[268,14,269,15],[269,12,269,13],[216,12,216,13],[217,1,217,14],[175,8,175,9],[174,10,174,11],[175,10,175,11],[176,8,176,9],[174,8,174,9],[184,8,184,9],[184,10,184,11],[219,1,219,15],[183,10,183,11],[177,10,177,11],[178,10,178,11],[179,10,179,11],[181,8,181,9],[182,10,182,11],[177,8,177,9],[178,8,178,9],[179,8,179,9],[216,3,216,11],[46,7,47,7],[46,2,47,2],[9,1,9,15],[10,1,10,15],[167,4,168,4],[167,12,168,12],[48,8,48,9],[167,13,167,15],[166,1,166,15],[94,12,94,13],[95,12,95,13],[96,1,96,14],[167,6,168,7],[167,8,168,9],[46,5,47,5],[70,12,70,13],[51,8,51,9],[49,8,49,9],[50,8,50,9],[48,10,48,11],[49,10,49,11],[46,1,47,1],[135,8,135,11],[136,8,136,11],[65,10,65,11],[66,10,66,11],[67,10,67,11],[68,10,68,11],[76,6,77,6],[215,12,215,13],[172,10,172,11],[173,10,173,11],[180,10,180,11],[181,10,181,11],[180,8,180,9],[171,10,171,11],[183,8,183,9],[169,10,169,11],[170,10,170,11],[170,8,170,9],[171,8,171,9],[89,8,89,9],[93,8,93,9],[85,8,85,9],[86,8,86,9],[167,10,168,11],[169,8,169,9],[182,8,182,9],[167,1,168,1],[167,2,168,2],[76,13,76,15],[167,3,168,3],[58,10,58,11],[59,10,59,11],[56,8,56,9],[60,8,60,9],[71,12,71,13],[72,1,72,14],[60,10,60,11],[61,10,61,11],[62,10,62,11],[61,8,61,9],[62,8,62,9],[56,10,56,11],[57,10,57,11],[57,8,57,9],[58,8,58,9],[76,4,77,4],[76,12,77,12],[103,7,103,12],[85,10,85,11],[86,10,86,11],[10,17,10,18],[11,17,11,18],[12,17,12,18],[13,17,13,18],[15,17,15,18],[16,17,16,18],[53,10,53,11],[54,10,54,11],[55,10,55,11],[50,10,50,11],[51,10,51,11],[52,10,52,11],[40,12,40,13],[172,8,172,9],[173,8,173,9],[176,10,176,11],[83,8,83,9],[78,8,78,9],[78,10,78,11],[84,8,84,9],[90,10,90,11],[91,10,91,11],[92,10,92,11],[79,10,79,11],[80,10,80,11],[81,10,81,11],[82,10,82,11],[83,10,83,11],[81,8,81,9],[82,8,82,9],[93,10,93,11],[87,8,87,9],[88,8,88,9],[90,8,90,9],[91,8,91,9],[92,8,92,9],[89,10,89,11],[103,17,103,20],[14,17,14,18],[84,10,84,11],[59,8,59,9],[76,8,77,9],[76,10,77,11],[17,17,17,18],[41,1,41,14],[46,3,47,3],[46,4,47,4],[46,12,47,12],[45,1,45,15],[13,12,15,12],[46,10,47,11],[13,6,14,11],[46,8,47,9],[42,11,42,14],[87,10,87,11],[88,10,88,11],[46,6,47,6],[19,17,19,19],[69,8,69,9],[63,10,63,11],[64,10,64,11],[111,1,112,1],[111,2,112,2],[111,3,112,3],[79,8,79,9],[80,8,80,9],[67,8,67,9],[68,8,68,9],[76,7,77,7],[69,10,69,11],[76,1,77,1],[76,2,77,2],[76,3,77,3],[75,1,75,15],[103,13,103,16],[121,6,121,7],[122,6,122,7],[123,6,123,7],[120,6,120,7],[52,8,52,9],[53,8,53,9],[54,8,54,9],[63,8,63,9],[64,8,64,9],[55,8,55,9],[65,8,65,9],[66,8,66,9],[145,6,145,7],[140,6,140,7],[141,6,141,7],[142,6,142,7],[137,6,137,7],[138,6,138,7],[139,6,139,7],[147,6,147,7],[124,6,124,7],[125,6,125,7],[126,6,126,7],[127,6,127,7],[135,6,135,7],[136,6,136,7],[131,6,131,7],[132,6,132,7],[133,6,133,7],[128,6,128,7],[129,6,129,7],[130,6,130,7],[144,6,144,7],[1,1,2,2],[8,1,8,15],[7,17,8,19],[158,6,158,7],[159,12,159,13],[160,12,160,13],[161,1,161,14],[111,8,112,11],[117,6,117,7],[118,6,118,7],[119,6,119,7],[110,1,110,15],[111,4,112,4],[111,6,112,7],[111,12,112,12],[111,13,111,15],[113,6,113,7],[114,6,114,7],[115,6,115,7],[116,6,116,7],[4,17,5,19],[155,6,155,7],[143,6,143,7],[148,6,148,7],[268,2,268,11],[269,2,269,11],[98,0,100,14],[39,3,39,11],[40,3,40,11],[70,3,70,11],[71,3,71,11],[94,3,94,11],[95,3,95,11],[159,3,159,11],[160,3,160,11],[215,3,215,11],[156,6,156,7],[157,6,157,7],[152,6,152,7],[153,6,153,7],[154,6,154,7],[149,6,149,7],[150,6,150,7],[151,6,151,7],[146,6,146,7],[162,1,162,14],[170,6,170,7],[134,6,134,7],[185,6,185,7],[186,6,186,7],[187,6,187,7],[169,6,169,7],[171,6,171,7],[172,6,172,7],[173,6,173,7],[174,6,174,7],[175,6,175,7],[176,6,176,7],[177,6,177,7],[178,6,178,7],[214,6,214,7],[197,6,197,7],[198,6,198,7],[199,6,199,7],[200,6,200,7],[201,6,201,7],[202,6,202,7],[203,6,203,7],[204,6,204,7],[205,6,205,7],[5,1,7,15],[206,6,206,7],[207,6,207,7],[208,6,208,7],[209,6,209,7],[210,6,210,7],[211,6,211,7],[212,6,212,7],[213,6,213,7],[188,6,188,7],[189,6,189,7],[190,6,190,7],[191,6,191,7],[192,6,192,7],[193,6,193,7],[194,6,194,7],[195,6,195,7],[196,6,196,7],[179,6,179,7],[180,6,180,7],[181,6,181,7],[182,6,182,7],[183,6,183,7],[184,6,184,7]]}
[]
[null,"***NOTA: SE DEBE INCLUIR PRIMERO LA MATRICULA Y LUEGO SECCIONES "]
[]
[]
[null,null,null,null,null,null,null,null,null,null,null,null,null,null,null,null,null,"RESUMEN DE LECCIONES Y AMPLIACION DEL SATELITE"]
["DFP24+"]
[]
[null,null,null,null,null,null,null,null,null,null,null,null,null,null,null,null,null,"SUMATORIA DE LAS LECCIONES POR SATELITE"]
[null,"NOMBRE DEL SATELITE N°1"]
[null,{"$f":"+'FORMULARIO '!B39:D39","v":0},null,null,null,null,null,null,null,null,null,null,null,null,null,null,null,"LECCIONES TECNICAS",null,{"$f":"SUM('EDUCAC TECNICA SEDE CENTRAL'!J108)","v":0}]
[null,null,null,null,null,null,null,null,null,null,null,null,null,null,null,null,null,"*AMPLIACIONES I NIVEL",null,{"$f":"+SUM(P42)+(P163)","v":4}]
[null,null,null,null,null,null,null,null,null,null,null,null,null,null,null,null,null,"LECCIONES INGLES I NIVEL",null,{"$f":"SUM(P31)","v":0}]
[null,"1) DISTRIBUCIÓN DE MATRÍCULA Y LECCIONES: NIVEL I",null,null,null,null,null,null,null,null,null,null,null,null,null,null,null,"LECCIONES II NIVEL",null,{"$f":"SUM(P73)","v":0}]
[null,"No.","Descripción del Módulo","Atinencia","Lecciones por Módulo",null,"MATRICULA",null,null,null,null,null,"MATRICULA TOTAL ","Cantidad",null,null,null,"LECCIONES III NIVEL",null,{"$f":"SUM(P97)","v":0}]
[null,null,null,null,null,null,null,null,null,null,null,null,null,"Secciones","Promedio por SECCIONES","Lecciones","→","LECCIONES MODULARES OPCIONALES I NIVEL, II NIVEL Y III NIVEL",null,{"$f":"SUM(P218)+SUM(P162)","v":0}]
[null,null,null,null,null,null,"PERIODO 1","PERIODO 2","PERIODO 3","PERIODO 4","PERIODO 5","PERIODO 6",null,null,null,null,null,"LECCIONES I NIVEL PSICOLOGIA",null,{"$f":"SUM(P32)+SUM(P37)","v":0}]
[null,1,"Aplicaciones cotidianas de la matemática","Matemáticas",4,1,15,null,null,null,null,null,{"$f":"SUM(G17:L17)","v":15},1,{"$f":"+IF(N17=\"\",\"\",M17/N17)","v":15},{"$f":"IF(F17=1,Hoja3!D5)*N17","v":4},null,"CURSOS LIBRES",null,{"$f":"SUM(P271)","v":0}]
[null,2,"Disfrutando del mundo de las palabras","Español",4,1,null,null,null,null,null,null,0,null,{"$f":"+IF(N18=\"\",\"\",M18/N18)","v":""},{"$f":"IF(F18=1,Hoja3!D6)*N18","v":0},null,"Total Lecciones Requeridas:",null,{"$f":"SUM(T12:T17)+SUM(T10)","v":0}]
[null,3,"Construyamos nuestro bienestar personal y comunitario","Ciencias",3,1,null,null,null,null,null,null,0,null,"",{"$f":"IF(F19=1,Hoja3!D7)*N19","v":0}]
[null,4,"Vida Cotidiana: Deberes y Derechos en el entorno cercano","Estudios Sociales",3,1,null,null,null,null,null,null,0,null,"",{"$f":"IF(F20=1,Hoja3!D8)*N20","v":0},null,"*Nota: Las ampliaciones no se suman al total de lecciones."]
[null,5,"Promovamos el desarrollo humano en forma equitativa y sostenible","Ciencias",3,1,null,null,null,null,null,null,0,null,"",{"$f":"IF(F21=1,Hoja3!D9)*N21","v":0}]
[null,6,"Relieve de mi Cantón: Conociendo mi patrimonio natural y cultural","Estudios Sociales",3,1,null,null,null,null,null,null,0,null,"",{"$f":"IF(F22=1,Hoja3!D10)*N22","v":0}]
[null,7,"Historia y Geografia de mi provincia","Estudios Sociales",3,1,null,null,null,null,null,null,0,null,"",{"$f":"IF(F23=1,Hoja3!D11)*N23","v":0}]
[null,8,"Actividades humanas asociadas a los paisajes geográficos de mi provincia","Estudios Sociales",3,1,null,null,null,null,null,null,0,null,"",{"$f":"IF(F24=1,Hoja3!D12)*N24","v":0}]
[null,9,"Costa Rica: Una sociedad intercultural, multiétnica y plurilingüe","Estudios Sociales",2,1,null,null,null,null,null,null,0,null,"",{"$f":"IF(F25=1,Hoja3!D13)*N25","v":0}]
[null,10,"Cuidemos nuestro planeta y toda forma de vida","Ciencias",3,1,null,null,null,null,null,null,0,null,"",{"$f":"IF(F26=1,Hoja3!D14)*N26","v":0}]
[null,11,"Adoptemos estilos de vida saludables","Ciencias",2,1,null,null,null,null,null,null,0,null,"",{"$f":"IF(F27=1,Hoja3!D15)*N27","v":0}]
[null,12,"Convivamos en entornos naturales y socioculturales seguros","Ciencias",2,1,null,null,null,null,null,null,0,null,"",{"$f":"IF(F28=1,Hoja3!D16)*N28","v":0}]
[null,13,"Modifiquemos nuestros patrones de consumo y producción para salvaguardar la integridad del planeta","Ciencias",3,1,null,null,null,null,null,null,0,null,"",{"$f":"IF(F29=1,Hoja3!D17)*N29","v":0}]
[null,15,"Protejamos y restauremos los procesos naturales que sustentan la vida","Ciencias",3,1,null,null,null,null,null,null,0,null,"",{"$f":"IF(F30=1,Hoja3!D18)*N30","v":0}]
[null,16,"Nos comunicamos en otras lenguas","Idioma Extranjero",5,1,null,null,null,null,null,null,0,null,"",{"$f":"IF(F31=1,Hoja3!D19)*N31","v":0}]
[null,17,"Descubriendo mi estilo de aprendizaje","Psicología",2,1,null,null,null,null,null,null,0,null,"",{"$f":"IF(F32=1,Hoja3!D20)*N32","v":0}]
[null,18,"Valoramos la importancia de la igualdad y la libertad a partir de nuestra historia colonial","Estudios Sociales",2,1,null,null,null,null,null,null,0,null,"",{"$f":"IF(F33=1,Hoja3!D21)*N33","v":0}]
[null,20,"Construcción de nuestro estado nación para el fortalecimiento de la identidad nacional","Estudios Sociales",2,1,null,null,null,null,null,null,0,null,"",{"$f":"IF(F34=1,Hoja3!D22)*N34","v":0}]
[null,21,"La sociedad costarricense actual: sus desafios y oportunidades en el contexto mundial","Estudios Sociales",2,1,null,null,null,null,null,null,0,null,"",{"$f":"IF(F35=1,Hoja3!D23)*N35","v":0}]
[null,22,"Espacios de participación y representación de mi cantón","Estudios Sociales",3,1,null,null,null,null,null,null,0,null,"",{"$f":"IF(F36=1,Hoja3!D24)*N36","v":0}]
[null,23,"Planificando mi fururo","Psicología",2,1,null,null,null,null,null,null,0,null,"",{"$f":"IF(F37=1,Hoja3!D25)*N37","v":0}]
[null,24,"Aplicaciones cotidianas de la matemática","Matemáticas",4,1,null,null,null,null,null,null,0,null,"",{"$f":"IF(F38=1,Hoja3!D26)*N38","v":0}]
[null,25,"¡Comunicandonos en la cotidianidad!","Español",4,1,null,null,null,null,null,null,0,null,"",{"$f":"IF(F39=1,Hoja3!D27)*N39","v":0}]
[null,null,null,"CANTIDAD DE MATRICULA I NIVEL"]
[null,null,null,"CANTIDAD DE SECCIONES",null,null,null,null,null,null,null,null,{"$f":"SUM(N17:N39)","v":1}]
[null,"TOTAL AMPLIACIONES NIVEL I:",null,null,null,null,null,null,null,null,null,null,null,null,null,{"$f":"IF(SUM(P17:P39)=0,\"\",SUM(P17:P39)-(P31+P32+P37))","v":4}]
[null,null,null,null,null,null,null,null,null,null,null,"TOTAL LECCIONES INGLES Y PSICOLOGIA",null,null,null,{"$f":"SUM(P31+P32+P37)","v":0}]
[]
[]
[null,"2) DISTRIBUCIÓN DE MATRÍCULA Y LECCIONES: NIVEL II"]
[null,"No.","Descripción del Módulo","Atinencia","Lecciones por Módulo",null,"PERIODO 1","PERIODO 2","PERIODO 3",null,"PERIODO 4",null,"MATRICULA TOTAL ","Cantidad"]
[null,null,null,null,null,null,null,null,null,null,null,null,null,"Secciones","Promedio","Lecciones"]
[null,30,"La ciencia de lo humano para el desarrollo científico","Ciencias",4,1,null,null,null,null,null,null,{"$f":"SUM(G49:L49)","v":0},null,{"$f":"+IF(N49=\"\",\"\",M49/N49)","v":""},{"$f":"IF(F49=1,Hoja3!D32)*N49","v":0}]
[null,{"$f":"+B49+1","v":31},"¿Por qué es importante el estudio del espacio geográfico en el planeta tierra?","Estudios Sociales",4,1,null,null,null,null,null,null,0,null,"",{"$f":"IF(F50=1,Hoja3!D33)*N50","v":0}]
[null,{"$f":"+B50+1","v":32},"Crecemos en el lenguaje","Español",4,1,null,null,null,null,null,null,0,null,"",{"$f":"IF(F51=1,Hoja3!D34)*N51","v":0}]
[null,{"$f":"+B51+1","v":33},"Entorno Científico: seres vivos y energía en sostenibilidad","Ciencias",2,1,null,null,null,null,null,null,0,null,"",{"$f":"IF(F52=1,Hoja3!D35)*N52","v":0}]
[null,35,"La adaptación del ser humano aun medio ambiente cambiante","Estudios Sociales",2,1,null,null,null,null,null,null,0,null,"",{"$f":"IF(F53=1,Hoja3!D36)*N53","v":0}]
[null,{"$f":"+B53+1","v":36},"Razonamiento de los números, la geometría y el álgebra para la cotidianidad","Matemáticas",6,1,null,null,null,null,null,null,0,null,"",{"$f":"IF(F54=1,Hoja3!D37)*N54","v":0}]
[null,37,"Seguridad de las personas en Costa Rica","Educación Cívica",4,1,null,null,null,null,null,null,0,null,"",{"$f":"IF(F55=1,Hoja3!D38)*N55","v":0}]
[null,38,"Variedades de la lengua","Español",3,1,null,null,null,null,null,null,0,null,"",{"$f":"IF(F56=1,Hoja3!D39)*N56","v":0}]
[null,39,"Participación, representación y derechos humanos en la sociedad democrática","Educación Cívica",4,1,null,null,null,null,null,null,0,null,"",{"$f":"IF(F57=1,Hoja3!D40)*N57","v":0}]
[null,40,"Estadística básica","Matemáticas",2,1,null,null,null,null,null,null,0,null,"",{"$f":"IF(F58=1,Hoja3!D41)*N58","v":0}]
[null,41,"Química de la tierra y su formación","Ciencias",3,1,null,null,null,null,null,null,0,null,"",{"$f":"IF(F59=1,Hoja3!D42)*N59","v":0}]
[null,42,"Comprendiendo la historia: de la edad media al renacimiento del siglo V al XVI","Estudios Sociales",2,1,null,null,null,null,null,null,0,null,"",{"$f":"IF(F60=1,Hoja3!D43)*N60","v":0}]
[null,43,"Materia y energía en sociedad","Ciencias",3,1,null,null,null,null,null,null,0,null,"",{"$f":"IF(F61=1,Hoja3!D44)*N61","v":0}]
[null,44,"Los procesos plurisignificativos de la comunicación literaria","Español",3,1,null,null,null,null,null,null,0,null,"",{"$f":"IF(F62=1,Hoja3!D45)*N62","v":0}]
[null,45,"Materia Planetaria en sostenibilidad","Ciencias",2,1,null,null,null,null,null,null,0,null,"",{"$f":"IF(F63=1,Hoja3!D46)*N63","v":0}]
[null,46,"Nos cominicamos en otras lenguas","Idioma Extranjero",5,1,null,null,null,null,null,null,0,null,"",{"$f":"IF(F64=1,Hoja3!D47)*N64","v":0}]
[null,48,"Cotidianidad del ser humano: desde la Edad Moderno en Europa y América siglos XVI-XIX","Estudios Sociales",3,1,null,null,null,null,null,null,0,null,"",{"$f":"IF(F65=1,Hoja3!D48)*N65","v":0}]
[null,{"$f":"+B65+1","v":49},"Vivencia de la sexualidad en el contexto familiar y social","Ciencias",3,1,null,null,null,null,null,null,0,null,"",{"$f":"IF(F66=1,Hoja3!D49)*N66","v":0}]
[null,{"$f":"+B66+1","v":50},"Roles de trabajo y formas de comunicación en el mundo antiguo","Estudios Sociales",4,1,null,null,null,null,null,null,0,null,"",{"$f":"IF(F67=1,Hoja3!D50)*N67","v":0}]
[null,{"$f":"+B67+1","v":51},"Construyamos nuestra identidad ciudadana","Educación Cívica",4,1,null,null,null,null,null,null,0,null,"",{"$f":"IF(F68=1,Hoja3!D51)*N68","v":0}]
[null,52,"Aplicaciones de los números, la geometría y el álgebra en nuetro entorno","Matemáticas",5,1,null,null,null,null,null,null,0,null,"",{"$f":"IF(F69=1,Hoja3!D52)*N69","v":0}]
[null,53,"Comprendiendo  nuestro entorno a través de la estadística","Matemáticas",2,1,null,null,null,null,null,null,0,null,"",{"$f":"IF(F70=1,Hoja3!D53)*N70","v":0}]
[null,null,null,"CANTIDAD DE MATRICULA II NIVEL"]
[null,null,null,"CANTIDAD DE SECCIONES",null,null,null,null,null,null,null,null,{"$f":"SUM(N49:N70)","v":0}]
[null,"TOTAL LECCIONES NIVEL II:",null,null,null,null,null,null,null,null,null,null,null,null,null,{"$f":"IF(SUM(P49:P70)=0,\"\",SUM(P49:P70))","v":""}]
[]
[]
[null,"3) DISTRIBUCIÓN DE MATRÍCULA Y LECCIONES: NIVEL III"]
[null,"No.","Descripción del Módulo","Atinencia","Lecciones por Módulo",null,"PERIODO 1","PERIODO 2","PERIODO 3",null,"PERIODO 4",null,"MATRICULA TOTAL","Cantidad"]
[null,null,null,null,null,null,null,null,null,null,null,null,null,"Secciones","Promedio","Lecciones"]
[null,60,"Nos comunicamos mejor","Español",4,1,null,null,null,null,null,null,{"$f":"SUM(G79:L79)","v":0},null,{"$f":"+IF(N79=\"\",\"\",M79/N79)","v":""},{"$f":"IF(F79=1,Hoja3!D58)*N79","v":0}]
[null,{"$f":"+B79+1","v":61},"Sistemas y Regímenes políticos, el estado costarricense garante de oporunidades para la construcción de la cultura democrática","Educación Cívica",2,1,null,null,null,null,null,null,0,null,"",{"$f":"IF(F80=1,Hoja3!D59)*N80","v":0}]
[null,62,"¿Cómo las transformaciones sociales, económicas, y políticas del mundo comtemporáneo impactan a la sociedad actual? (siglo XIX-Epoca actual)","Estudios Sociales",3,1,null,null,null,null,null,null,0,null,"",{"$f":"IF(F81=1,Hoja3!D60)*N81","v":0}]
[null,63,"Una mirada a las problemáticas contemporáneas; Repercusiones de la dinámica poblacional y movilización espacial","Estudios Sociales",3,1,null,null,null,null,null,null,0,null,"",{"$f":"IF(F82=1,Hoja3!D61)*N82","v":0}]
[null,64,"Interdependencia e interconexión: Los patrones espaciales en la sociedad globalizado","Estudios Sociales",3,1,null,null,null,null,null,null,0,null,"",{"$f":"IF(F83=1,Hoja3!D62)*N83","v":0}]
[null,65,"Seres vivos en población","Ciencias (Biología)",4,1,null,null,null,null,null,null,0,null,"",{"$f":"IF(F84=1,Hoja3!D63)*N84","v":0}]
[null,66,"Valorando nuestra sociedad (siglo XX-XXI)","Estudios Sociales",3,1,null,null,null,null,null,null,0,null,"",{"$f":"IF(F85=1,Hoja3!D64)*N85","v":0}]
[null,68,"Aplicación de la química en el hogar y la comunidad","Ciencias (Química)",4,1,null,null,null,null,null,null,0,null,"",{"$f":"IF(F86=1,Hoja3!D65)*N86","v":0}]
[null,69,"Aplicaciones de la física en la vida diaria","Ciencias (Física)",4,1,null,null,null,null,null,null,0,null,"",{"$f":"IF(F87=1,Hoja3!D66)*N87","v":0}]
[null,{"$f":"+B87+1","v":70},"¿Dónde esta presente la estadistica?","Matemáticas",2,1,null,null,null,null,null,null,0,null,"",{"$f":"IF(F88=1,Hoja3!D67)*N88","v":0}]
[null,71,"Nos comunicamos en otras lenguas","Idioma Extranjero",5,1,null,null,null,null,null,null,0,null,"",{"$f":"IF(F89=1,Hoja3!D68)*N89","v":0}]
[null,72,"¿Como aplicar la Estadística y Probabilidad de la vida diaria?","Matemáticas",2,1,null,null,null,null,null,null,0,null,"",{"$f":"IF(F90=1,Hoja3!D69)*N90","v":0}]
[null,73,"Construyamos el futuro","Ciencias (Biología)",3,1,null,null,null,null,null,null,0,null,"",{"$f":"IF(F91=1,Hoja3!D70)*N91","v":0}]
[null,74,"¿Cómo relacionar la geometría y las relaciones algebraicas con nuestro entorno?","Matemáticas",4,1,null,null,null,null,null,null,0,null,"",{"$f":"IF(F92=1,Hoja3!D71)*N92","v":0}]
[null,75,"¿Cómo nos puede ayudar las relaciones, el álgebra y la geometría a entender el mundo que nos rodea?","Matemáticas",4,1,null,null,null,null,null,null,0,null,"",{"$f":"IF(F93=1,Hoja3!D72)*N93","v":0}]
[null,76,"Ética Profesional","Filosofía",2,1,null,null,null,null,null,null,0,null,"",{"$f":"IF(F94=1,Hoja3!D73)*N94","v":0}]
[null,null,null,"CANTIDAD DE MATRICULA III NIVEL"]
[null,null,null,"CANTIDAD DE SECCIONES",null,null,null,null,null,null,null,null,{"$f":"SUM(N79:N94)","v":0}]
[null,"TOTAL LECCIONES NIVELES III:",null,null,null,null,null,null,null,null,null,null,null,null,null,{"$f":"IF(SUM(P79:P94)=0,\"\",SUM(P79:P94))","v":""}]
[]
["CURSOS OPCIONALES PRIMERO DEBE DE ELEGIR LOS DE I NIVEL Y  POSTERIORMENTE DEBEN ELEGIR LOS CURSOS DE II Y III NIVEL (ESTO PARA MEJOR DISTRIBUCION)"]
[]
[]
[]
[null,"*****","FAVOR LLENAR LA MATRICULA Y SECCIONES A INCLUIR EN CURSOS OPCIONALES (OBLIGATORIO):"]
[null,null,null,null,null,null,null,"I NIVEL ",null,null,null,null,null,"II NIVEL ",null,null,null,"III NIVEL",null,null,null,"TOTAL"]
[null,null,null,null,null,null,null,"1 PERIODO","2 PERIODO","3 PERIODO","4 PERIODO","5 PERIODO","6 PERIODO","1 PERIODO","2 PERIODO","3 PERIODO","4 PERIODO","1 PERIODO","2 PERIODO","3 PERIODO","4 PERIODO"]
[null,null,null,null,null,null,"MATRICULA ",null,null,null,null,null,null,null,null,null,null,null,null,null,null,{"$f":"SUM(H106:U106)","v":0}]
[null,null,null,null,null,null,"SECCIONES ",null,null,null,null,null,null,null,null,null,null,null,null,null,null,{"$f":"SUM(H107:U107)","v":0}]
[]
[null,"*Opcionales SOLO para I NIVEL (se subraya en CELESTE las materias básicas estos se separan ya que se dan por AMPLIACIONES  y las otras atinencias por LECCIONES):"]
[]
[null,"4) DISTRIBUCIÓN DE MATRÍCULA Y LECCIONES: CURSOS MODULARES OPCIONALES I NIVEL"]
[null,"No.","Descripción del Módulo","Atinencia","Lecciones por Módulo",null,"MATRICULA I NIVEL",null,null,null,null,null,"MATRICULA TOTAL","Cantidad"]
[null,null,null,null,null,null,null,null,null,null,null,null,null,"Secciones","Promedio","Lecciones"]
[null,80,"Administración de la pequeña empresa","Contabilidad",5,1,null,null,null,null,null,null,{"$f":"SUM(G114:L114)","v":0},null,{"$f":"+IF(N114=\"\",\"\",M114/N114)","v":""},{"$f":"IF(F114,Hoja3!D129)*N114","v":0}]
[null,81,"Aprendamos a apreciar la música","Música",5,1,null,null,null,null,null,null,0,null,"",{"$f":"IF(F115,Hoja3!D130)*N115","v":0}]
[null,83,"¿Cómo administrar recursos humanos y financieros?","Contabilidad ",3,1,null,null,null,null,null,null,0,null,"",{"$f":"IF(F116,Hoja3!D131)*N116","v":0}]
[null,84,"Reconociendo a las personas con discapacidad como sujetas de derecho","Enseñanza Especial Generalista",3,1,null,null,null,null,null,null,0,null,"",{"$f":"IF(F117,Hoja3!D132)*N117","v":0}]
[null,85,"¿Cómo comunicarnos en una lengua indígena?","Educación Indígena",5,1,null,null,null,null,null,null,0,null,"",{"$f":"IF(F118,Hoja3!D133)*N118","v":0}]
[null,86,"¡A comunicarnos se ha dicho!","Español",3,1,null,null,null,null,null,null,0,null,"",{"$f":"IF(F119,Hoja3!D134)*N119","v":0}]
[null,87,"Conozcamos nuestra cultura autóctona","Estudios Sociales",3,1,null,null,null,null,null,null,0,null,"",{"$f":"IF(F120,Hoja3!D135)*N120","v":0}]
[null,88,"Contabilidad para la pequeña empresa","Contabilidad",3,1,null,null,null,null,null,null,0,null,"",{"$f":"IF(F121,Hoja3!D136)*N121","v":0}]
[null,89,"Creando con el lenguaje","Español",5,1,null,null,null,null,null,null,0,null,"",{"$f":"IF(F122,Hoja3!D137)*N122","v":0}]
[null,90,"Desarrollo mi creatividad","Español",3,1,null,null,null,null,null,null,0,null,"",{"$f":"IF(F123,Hoja3!D138)*N123","v":0}]
[null,93,"El camino para iniciar su propia empresa","Contabilidad",5,1,null,null,null,null,null,null,0,null,"",{"$f":"IF(F124,Hoja3!D139)*N124","v":0}]
[null,94,"El Bribri, Maleku, Cabecar, como mi lengua materna","Ingles, Educación Indigena",3,1,null,null,null,null,null,null,0,null,"",{"$f":"IF(F125,Hoja3!D140)*N125","v":0}]
[null,97,"Formación de líderes democráticos","Estudios Sociales",5,1,null,null,null,null,null,null,0,null,"",{"$f":"IF(F126,Hoja3!D141)*N126","v":0}]
[null,100,"Importancia de la actividad física: juegos pre-deportivos tradicionales y gimnasia formativa I NIVEL","Educación Física",5,1,null,null,null,null,null,null,0,null,"",{"$f":"IF(F127,Hoja3!D142)*N127","v":0}]
[null,102,"Relaciones humanas","Psicología",3,1,null,null,null,null,null,null,0,null,"",{"$f":"IF(F128,Hoja3!D143)*N128","v":0}]
[null,103,"Los pueblos y sus expresiones culturales","Estudios Sociales",4,1,null,null,null,null,null,null,0,null,"",{"$f":"IF(F129,Hoja3!D144)*N129","v":0}]
[null,106,"Mundo del turismo","Turismo Ecológico",2,1,null,null,null,null,null,null,0,null,"",{"$f":"IF(F130,Hoja3!D145)*N130","v":0}]
[null,107,"Nos organizamos para enfrentar desastres","Ciencias",2,1,null,null,null,null,null,null,0,null,"",{"$f":"IF(F131,Hoja3!D146)*N131","v":0}]
[null,108,"Orientación vocacional y profesional","Psicología",5,1,null,null,null,null,null,null,0,null,"",{"$f":"IF(F132,Hoja3!D147)*N132","v":0}]
[null,109,"Primeros auxilios","Educación Física",5,1,null,null,null,null,null,null,0,null,"",{"$f":"IF(F133,Hoja3!D148)*N133","v":0}]
[null,110,"Problemas y soluciones planetarios","Ciencias",3,1,null,null,null,null,null,null,0,null,"",{"$f":"IF(F134,Hoja3!D149)*N134","v":0}]
[null,111,"Promoción y defensa de los deberes y derechos del ciudadano","Estudios Sociales",3,1,null,null,null,null,null,null,0,null,"",{"$f":"IF(F135,Hoja3!D150)*N135","v":0}]
[null,118,"Vida en el planeta","Ciencias",5,1,null,null,null,null,null,null,0,null,"",{"$f":"IF(F136,Hoja3!D151)*N136","v":0}]
[null,119,"Visualicemos el futuro","Ciencias",5,1,null,null,null,null,null,null,0,null,"",{"$f":"IF(F137,Hoja3!D152)*N137","v":0}]
[null,120,"Planificando mi futuro","Psicología",2,1,null,null,null,null,null,null,0,null,"",{"$f":"IF(F138,Hoja3!D153)*N138","v":0}]
[null,121,"Descubriendo mi estilo de aprendizaje","Psicología",2,1,null,null,null,null,null,null,0,null,"",{"$f":"IF(F139,Hoja3!D154)*N139","v":0}]
[null,123,"Fortalecimiento de la matemática (OPCIONAL I NIVEL)","Matemática",3,1,null,null,null,null,null,null,0,null,"",{"$f":"IF(F140,Hoja3!D155)*N140","v":0}]
[null,124,"Fortalecimiento del Ingles","Ingles",3,1,null,null,null,null,null,null,0,null,"",{"$f":"IF(F141,Hoja3!D156)*N141","v":0}]
[null,125,"Fortalecimiento de los Estudios Sociales (OPCIONAL I NIVEL)","Estudios Sociales",3,1,null,null,null,null,null,null,0,null,"",{"$f":"IF(F142,Hoja3!D157)*N142","v":0}]
[null,126,"Fortalecimiento de la Biología","Ciencias",3,1,null,null,null,null,null,null,0,null,"",{"$f":"IF(F143,Hoja3!D158)*N143","v":0}]
[null,127,"Fortalecimiento de la Educación Cívica (OPCIONAL I NIVEL)","Estudios Sociales",3,1,null,null,null,null,null,null,0,null,"",{"$f":"IF(F144,Hoja3!D159)*N144","v":0}]
[null,128,"Fortalecimiento del Español (OPCIONAL I NIVEL)","Español",3,1,null,null,null,null,null,null,0,null,"",{"$f":"IF(F145,Hoja3!D160)*N145","v":0}]
[null,129,"Fortalecimiento del Francés","Francés",3,1,null,null,null,null,null,null,0,null,"",{"$f":"IF(F146,Hoja3!D161)*N146","v":0}]
[null,130,"Fortalecimiento de la Quimica para Bachillerato","Ciencias",3,1,null,null,null,null,null,null,0,null,"",{"$f":"IF(F147,Hoja3!D162)*N147","v":0}]
[null,131,"Fortalecimiento de la Física para Bachillerato","Ciencias",3,1,null,null,null,null,null,null,0,null,"",{"$f":"IF(F148,Hoja3!D163)*N148","v":0}]
[null,139,"Tecnología y Trabajo","Informatica Educatica/ Desarrollo Sofware/ Progración Redes de Computadoras en Soporte",5,1,null,null,null,null,null,null,0,null,"",{"$f":"IF(F149,Hoja3!D164)*N149","v":0}]
[null,140,"Tecnología y Comunidad","Informatica Educatica/ Desarrollo Sofware/ Progración Redes de Computadoras en Soporte",5,1,null,null,null,null,null,null,0,null,"",{"$f":"IF(F150,Hoja3!D165)*N150","v":0}]
[null,141,"Tecnología y Emprendedurismo","Informatica Educatica/ Desarrollo Sofware/ Progración Redes de Computadoras en Soporte",5,1,null,null,null,null,null,null,0,null,"",{"$f":"IF(F151,Hoja3!D166)*N151","v":0}]
[null,142,"Expreción o Creción Musical","Música",5,1,null,null,null,null,null,null,0,null,"",{"$f":"IF(F152,Hoja3!D167)*N152","v":0}]
[null,143,"Desarrollo Comunitario (II Nivel)","Cualquier especilidad acádemica",2,1,null,null,null,null,null,null,0,null,"",{"$f":"IF(F153,Hoja3!D168)*N153","v":0}]
[null,144,"Desarrollo Comunitario (III Nivel)","Cualquier especilidad acádemica",3,1,null,null,null,null,null,null,0,null,"",{"$f":"IF(F154,Hoja3!D169)*N154","v":0}]
[null,145,"Introducción a la robótica","Informática, Informática educativa ambas con conocimiento en robótica",2,1,null,null,null,null,null,null,0,null,"",{"$f":"IF(F155,Hoja3!D170)*N155","v":0}]
[null,146,"Poniéndome en acción: entrenándome haciendo deporte y baile","Educación Física",5,1,null,null,null,null,null,null,0,null,"",{"$f":"IF(F156,Hoja3!D171)*N156","v":0}]
[null,147,"Promoviendo salud, venciendo desafíos","Educación Física",5,1,null,null,null,null,null,null,0,null,"",{"$f":"IF(F157,Hoja3!D172)*N157","v":0}]
[null,148,"Afectividad y sexualidad desde la cotidianidad","Psicología",2,1,null,null,null,null,null,null,0,null,"",{"$f":"IF(F158,Hoja3!D173)*N158","v":0}]
[null,149,"¡Qué lindo aprender Cabécar!","Educación indígena, especialidad lengua materna, subespecialidad: Cabécar",2,1,null,null,null,null,null,null,0,null,"",{"$f":"IF(F159,Hoja3!D174)*N159","v":0}]
[null,null,null,"CANTIDAD DE MATRICULA "]
[null,null,null,"CANTIDAD DE SECCIONES",null,null,null,null,null,null,null,null,{"$f":"SUM(N114:N159)","v":0}]
[null,"TOTAL LECCIONES DE CURSOS OPCIONALES I NIVEL:",null,null,null,null,null,null,null,null,null,null,null,null,null,{"$f":"IF(SUM(P114:P159)=0,\"\",SUM(P114:P159)+(-P119-P120-P122-P123-P126-P129-P131-P134-P135-P136-P137-P140-P142-P144-P145))","v":""}]
[null,"TOTAL AMPLIACIONES CURSOS OPCIONALES I NIVEL",null,null,null,null,null,null,null,null,null,null,null,null,null,{"$f":"SUM(P119+P120+P122+P123+P126+P129+P131+P134+P135+P136+P137+P140+P142+P144+P145)","v":0}]
[]
[null,"*Opcionales SOLO para II NIVEL Y III NIVEL a escoger (LECCIONES):"]
[]
[null,"4) DISTRIBUCIÓN DE MATRÍCULA Y LECCIONES: CURSOS MODULARES OPCIONALES II NIVEL Y III NIVEL "]
[null,"No.","Descripción del Módulo","Atinencia","Lecciones por Módulo",null,null,null,"II NIVEL",null,"III NIVEL",null,"MATRICULA TOTAL","Cantidad"]
[null,null,null,null,null,null,null,null,null,null,null,null,null,"Secciones","Promedio","Lecciones"]
[null,80,"Administración de la pequeña empresa","Contabilidad",5,1,null,null,null,null,null,null,{"$f":"SUM(G170:L170)","v":0},null,{"$f":"+IF(N170=\"\",\"\",M170/N170)","v":""},{"$f":"IF(F170,Hoja3!D129)*N170","v":0}]
[null,81,"Aprendamos a apreciar la música","Música",5,1,null,null,null,null,null,null,{"$f":"SUM(G171:L171)","v":0},null,"",{"$f":"IF(F171,Hoja3!D130)*N171","v":0}]
[null,83,"¿Cómo administrar recursos humanos y financieros?","Contabilidad ",3,1,null,null,null,null,null,null,0,null,"",{"$f":"IF(F172,Hoja3!D131)*N172","v":0}]
[null,84,"Reconociendo a las personas con discapacidad como sujetas de derecho","Enseñanza Especial Generalista",3,1,null,null,null,null,null,null,0,null,"",{"$f":"IF(F173,Hoja3!D132)*N173","v":0}]
[null,85,"¿Cómo comunicarnos en una lengua indígena?","Educación Indígena",5,1,null,null,null,null,null,null,0,null,"",{"$f":"IF(F174,Hoja3!D133)*N174","v":0}]
[null,86,"¡A comunicarnos se ha dicho!","Español",3,1,null,null,null,null,null,null,0,null,"",{"$f":"IF(F175,Hoja3!D134)*N175","v":0}]
[null,87,"Conozcamos nuestra cultura autóctona","Estudios Sociales",3,1,null,null,null,null,null,null,0,null,"",{"$f":"IF(F176,Hoja3!D135)*N176","v":0}]
[null,88,"Contabilidad para la pequeña empresa","Contabilidad",3,1,null,null,null,null,null,null,0,null,"",{"$f":"IF(F177,Hoja3!D136)*N177","v":0}]
[null,89,"Creando con el lenguaje","Español",5,1,null,null,null,null,null,null,0,null,"",{"$f":"IF(F178,Hoja3!D137)*N178","v":0}]
[null,90,"Desarrollo mi creatividad","Español",3,1,null,null,null,null,null,null,0,null,"",{"$f":"IF(F179,Hoja3!D138)*N179","v":0}]
[null,93,"El camino para iniciar su propia empresa","Contabilidad",5,1,null,null,null,null,null,null,0,null,"",{"$f":"IF(F180,Hoja3!D139)*N180","v":0}]
[null,94,"El Bribri, Maleku, Cabecar, como mi lengua materna","Ingles, Educación Indigena",3,1,null,null,null,null,null,null,0,null,"",{"$f":"IF(F181,Hoja3!D140)*N181","v":0}]
[null,97,"Formación de líderes democráticos","Estudios Sociales",5,1,null,null,null,null,null,null,0,null,"",{"$f":"IF(F182,Hoja3!D141)*N182","v":0}]
[null,100,"Importancia de la actividad física: juegos pre-deportivos tradicionales y gimnasia formativa","Educación Física",5,1,null,null,null,null,null,null,0,null,"",{"$f":"IF(F183,Hoja3!D142)*N183","v":0}]
[null,102,"Relaciones humanas","Psicología",3,1,null,null,null,null,null,null,0,null,"",{"$f":"IF(F184,Hoja3!D143)*N184","v":0}]
[null,103,"Los pueblos y sus expresiones culturales","Estudios Sociales",4,1,null,null,null,null,null,null,0,null,"",{"$f":"IF(F185,Hoja3!D144)*N185","v":0}]
[null,106,"Mundo del turismo","Turismo Ecológico",2,1,null,null,null,null,null,null,0,null,"",{"$f":"IF(F186,Hoja3!D145)*N186","v":0}]
[null,107,"Nos organizamos para enfrentar desastres","Ciencias",2,1,null,null,null,null,null,null,0,null,"",{"$f":"IF(F187,Hoja3!D146)*N187","v":0}]
[null,108,"Orientación vocacional y profesional","Psicología",5,1,null,null,null,null,null,null,0,null,"",{"$f":"IF(F188,Hoja3!D147)*N188","v":0}]
[null,109,"Primeros auxilios","Educación Física",5,1,null,null,null,null,null,null,0,null,"",{"$f":"IF(F189,Hoja3!D148)*N189","v":0}]
[null,110,"Problemas y soluciones planetarios","Ciencias",3,1,null,null,null,null,null,null,0,null,"",{"$f":"IF(F190,Hoja3!D149)*N190","v":0}]
[null,111,"Promoción y defensa de los deberes y derechos del ciudadano","Estudios Sociales",3,1,null,null,null,null,null,null,0,null,"",{"$f":"IF(F191,Hoja3!D150)*N191","v":0}]
[null,118,"Vida en el planeta","Ciencias",5,1,null,null,null,null,null,null,0,null,"",{"$f":"IF(F192,Hoja3!D151)*N192","v":0}]
[null,119,"Visualicemos el futuro","Ciencias",5,1,null,null,null,null,null,null,0,null,"",{"$f":"IF(F193,Hoja3!D152)*N193","v":0}]
[null,120,"Planificando mi futuro","Psicología",2,1,null,null,null,null,null,null,0,null,"",{"$f":"IF(F194,Hoja3!D153)*N194","v":0}]
[null,121,"Descubriendo mi estilo de aprendizaje","Psicología",2,1,null,null,null,null,null,null,0,null,"",{"$f":"IF(F195,Hoja3!D154)*N195","v":0}]
[null,123,"Fortalecimiento de la matemática ","Matemática",3,1,null,null,null,null,null,null,0,null,"",{"$f":"IF(F196,Hoja3!D155)*N196-G196","v":0}]
[null,124,"Fortalecimiento del Ingles","Ingles",3,1,null,null,null,null,null,null,0,null,"",{"$f":"IF(F197,Hoja3!D156)*N197","v":0}]
[null,125,"Fortalecimiento de los Estudios Sociales","Estudios Sociales",3,1,null,null,null,null,null,null,0,null,"",{"$f":"IF(F198,Hoja3!D157)*N198","v":0}]
[null,126,"Fortalecimiento de la Biología","Ciencias",3,1,null,null,null,null,null,null,0,null,"",{"$f":"IF(F199,Hoja3!D158)*N199","v":0}]
[null,127,"Fortalecimiento de la Educación Cívica","Estudios Sociales",3,1,null,null,null,null,null,null,0,null,"",{"$f":"IF(F200,Hoja3!D159)*N200","v":0}]
[null,128,"Fortalecimiento del Español ","Español",3,1,null,null,null,null,null,null,0,null,"",{"$f":"IF(F201,Hoja3!D160)*N201","v":0}]
[null,129,"Fortalecimiento del Francés","Francés",3,1,null,null,null,null,null,null,0,null,"",{"$f":"IF(F202,Hoja3!D161)*N202","v":0}]
[null,130,"Fortalecimiento de la Quimica para Bachillerato","Ciencias",3,1,null,null,null,null,null,null,0,null,"",{"$f":"IF(F203,Hoja3!D162)*N203","v":0}]
[null,131,"Fortalecimiento de la Física para Bachillerato","Ciencias",3,1,null,null,null,null,null,null,0,null,"",{"$f":"IF(F204,Hoja3!D163)*N204","v":0}]
[null,139,"Tecnología y Trabajo","Informatica Educatica/ Desarrollo Sofware/ Progración Redes de Computadoras en Soporte",5,1,null,null,null,null,null,null,0,null,"",{"$f":"IF(F205,Hoja3!D164)*N205","v":0}]
[null,140,"Tecnología y Comunidad","Informatica Educatica/ Desarrollo Sofware/ Progración Redes de Computadoras en Soporte",5,1,null,null,null,null,null,null,0,null,"",{"$f":"IF(F206,Hoja3!D165)*N206","v":0}]
[null,141,"Tecnología y Emprendedurismo","Informatica Educatica/ Desarrollo Sofware/ Progración Redes de Computadoras en Soporte",5,1,null,null,null,null,null,null,0,null,"",{"$f":"IF(F207,Hoja3!D166)*N207","v":0}]
[null,142,"Expreción o Creción Musical","Música",5,1,null,null,null,null,null,null,0,null,"",{"$f":"IF(F208,Hoja3!D167)*N208","v":0}]
[null,143,"Desarrollo Comunitario (II Nivel)","Cualquier especilidad acádemica",2,1,null,null,null,null,null,null,0,null,"",{"$f":"IF(F209,Hoja3!D168)*N209","v":0}]
[null,144,"Desarrollo Comunitario (III Nivel)","Cualquier especilidad acádemica",3,1,null,null,null,null,null,null,0,null,"",{"$f":"IF(F210,Hoja3!D169)*N210","v":0}]
[null,145,"Introducción a la robótica","Informática, Informática educativa ambas con conocimiento en robótica",2,1,null,null,null,null,null,null,0,null,"",{"$f":"IF(F211,Hoja3!D170)*N211","v":0}]
[null,146,"Poniéndome en acción: entrenándome haciendo deporte y baile","Educación Física",5,1,null,null,null,null,null,null,0,null,"",{"$f":"IF(F212,Hoja3!D171)*N212","v":0}]
[null,147,"Promoviendo salud, venciendo desafíos","Educación Física",5,1,null,null,null,null,null,null,0,null,"",{"$f":"IF(F213,Hoja3!D172)*N213","v":0}]
[null,148,"Afectividad y sexualidad desde la cotidianidad","Psicología",2,1,null,null,null,null,null,null,0,null,"",{"$f":"IF(F214,Hoja3!D173)*N214","v":0}]
[null,149,"¡Qué lindo aprender Cabécar!","Educación indígena, especialidad lengua materna, subespecialidad: Cabécar",2,1,null,null,null,null,null,null,0,null,"",{"$f":"IF(F215,Hoja3!D174)*N215","v":0}]
[null,null,null,"CANTIDAD DE MATRICULA "]
[null,null,null,"CANTIDAD DE SECCIONES",null,null,null,null,null,null,null,null,{"$f":"SUM(N170:N215)","v":0}]
[null,"TOTAL LECCIONES CURSOS OPCIONALES I Y II NIVEL:",null,null,null,null,null,null,null,null,null,null,null,null,null,{"$f":"IF(SUM(P170:P215)=0,\"\",SUM(P170:P215))","v":""}]
[]
[null,"6) DISTRIBUCIÓN DE MATRÍCULA Y LECCIONES: CURSOS LIBRES"]
[null,"No.","Descripción del Módulo","Atinencia","Lecciones por Módulo",null,"MATRICULA POR CURSO",null,null,null,null,null,"MATRICULA TOTAL","Cantidad"]
[null,250,"Preparación y productos de repostería","Educ/hogar",5,1,null,null,null,null,null,null,{"$f":"G222","v":0},null,{"$f":"+IF(N222=\"\",\"\",M222/N222)","v":""},{"$f":"IF(F222,Hoja3!D179)*N222","v":0}]
[null,271,"Mantenimiento preventivo de computadoras","Informática de desarrollo del software, en programación, en redes de computadoras, en soporte.",5,1,null,null,null,null,null,null,{"$f":"G223","v":0},null,"",{"$f":"IF(F223,Hoja3!D180)*N223","v":0}]
[null,259,"Bases de datos ","Informática de desarrollo del software, en programación, en redes de computadoras, en soporte.",5,1,null,null,null,null,null,null,0,null,"",{"$f":"IF(F224,Hoja3!D181)*N224","v":0}]
[null,260,"Diseño  WEB","Informática en desarrollo del software",5,1,null,null,null,null,null,null,0,null,"",{"$f":"IF(F225,Hoja3!D182)*N225","v":0}]
[null,255,"Técnicas Secretariales","Secretariado ejecutivo, secretariado bilingüe o ejecutivo para centros de servicio",5,1,null,null,null,null,null,null,0,null,"",{"$f":"IF(F226,Hoja3!D183)*N226","v":0}]
[null,265,"Oficina moderna","Secretariado ejecutivo, secretariado bilingüe o ejecutivo para centros de servicio",5,1,null,null,null,null,null,null,0,null,"",{"$f":"IF(F227,Hoja3!D184)*N227","v":0}]
[null,261,"Ingles conversacional  inicial I NIVEL","Inglés",5,1,null,null,null,null,null,null,0,null,"",{"$f":"IF(F228,Hoja3!D185)*N228","v":0}]
[null,262,"Ingles conversacional intermedio II NIVEL","Inglés",5,1,null,null,null,null,null,null,0,null,"",{"$f":"IF(F229,Hoja3!D186)*N229","v":0}]
[null,263,"Ingles conversacional  avanzado III NIVEL","Inglés",5,1,null,null,null,null,null,null,0,null,"",{"$f":"IF(F230,Hoja3!D187)*N230","v":0}]
[null,253,"Principios de contabilidad","Contabilidad",5,1,null,null,null,null,null,null,0,null,"",{"$f":"IF(F231,Hoja3!D188)*N231","v":0}]
[null,256,"Técnicas de manejo de hidroponía y abono orgánico","Agroecología",3,1,null,null,null,null,null,null,0,null,"",{"$f":"IF(F232,Hoja3!D189)*N232","v":0}]
[null,279,"El mundo de los negocios de capital individual y asociativo","Contabilidad o profesor de estado de educación comercial y de servicios.",3,1,null,null,null,null,null,null,0,null,"",{"$f":"IF(F233,Hoja3!D190)*N233","v":0}]
[null,280,"Doctrina cooperativa","Estudios Sociales",3,1,null,null,null,null,null,null,0,null,"",{"$f":"IF(F234,Hoja3!D191)*N234","v":0}]
[null,281,"Gestión Cooperativa","Estudios Sociales",3,1,null,null,null,null,null,null,0,null,"",{"$f":"IF(F235,Hoja3!D192)*N235","v":0}]
[null,282,"Líderes y gestores de iniciativas de negocios","Contabilidad o profesor de estado de educación comercial y de servicios",3,1,null,null,null,null,null,null,0,null,"",{"$f":"IF(F236,Hoja3!D193)*N236","v":0}]
[null,258,"Montajes eléctricos básicos","Electrónica industrial y electrotecnia",5,1,null,null,null,null,null,null,0,null,"",{"$f":"IF(F237,Hoja3!D194)*N237","v":0}]
[null,269,"Refrigeración doméstica","Refrigeración y aire acondicionado",5,1,null,null,null,null,null,null,0,null,"",{"$f":"IF(F238,Hoja3!D195)*N238","v":0}]
[null,272,"Técnicas de bisutería y orfebrería","Educ/hogar",5,1,null,null,null,null,null,null,0,null,"",{"$f":"IF(F239,Hoja3!D196)*N239","v":0}]
[null,252,"Confección de accesorios para el hogar","Educ/hogar",5,1,null,null,null,null,null,null,0,null,"",{"$f":"IF(F240,Hoja3!D197)*N240","v":0}]
[null,254,"Técnica manuales y  confección de artículos con material de desecho","Educ/hogar",5,1,null,null,null,null,null,null,0,null,"",{"$f":"IF(F241,Hoja3!D198)*N241","v":0}]
[null,266,"Hagamos artesanías","Educ/hogar o artesanías",5,1,null,null,null,null,null,null,0,null,"",{"$f":"IF(F242,Hoja3!D199)*N242","v":0}]
[null,257,"Alta costura","Educ/hogar",5,1,null,null,null,null,null,null,0,null,{"$f":"+IF(N243=\"\",\"\",M243/N243)","v":""},{"$f":"IF(F243,Hoja3!D200)*N243","v":0}]
[null,270,"Corte y confección","Educ/hogar",5,1,null,null,null,null,null,null,0,null,"",{"$f":"IF(F244,Hoja3!D201)*N244","v":0}]
[null,267,"Técnicas de estética y estilismo","Educ/hogar",5,1,null,null,null,null,null,null,0,null,"",{"$f":"IF(F245,Hoja3!D202)*N245","v":0}]
[null,268,"Corte de cabello clásico y alta peluquería","Educ/hogar",5,1,null,null,null,null,null,null,0,null,"",{"$f":"IF(F246,Hoja3!D203)*N246","v":0}]
[null,264,"Dibujo Técnico","Artes plásticas",5,1,null,null,null,null,null,null,0,null,"",{"$f":"IF(F247,Hoja3!D204)*N247","v":0}]
[null,273,"Servicio al cliente","Secretariado ejecutivo, secretariado bilingüe o ejecutivo para centros de servicio",5,1,null,null,null,null,null,null,0,null,"",{"$f":"IF(F248,Hoja3!D205)*N248","v":0}]
[null,274,"Taller de Teatro","Teatro",5,1,null,null,null,null,null,null,0,null,"",{"$f":"IF(F249,Hoja3!D206)*N249","v":0}]
[null,275,"Taller de pintura","Artes  Plásticas",5,1,null,null,null,null,null,null,0,null,"",{"$f":"IF(F250,Hoja3!D207)*N250","v":0}]
[null,276,"Taller en música","Música",5,1,null,null,null,null,null,null,0,null,"",{"$f":"IF(F251,Hoja3!D208)*N251","v":0}]
[null,277,"Promoción de la salud","Física",5,1,null,null,null,null,null,null,0,null,"",{"$f":"IF(F252,Hoja3!D209)*N252","v":0}]
[null,278,"Preparacion de Bebidas","Turismo: alimentos y bebidas. Hotelería y eventos especiales.",5,1,null,null,null,null,null,null,0,null,"",{"$f":"IF(F253,Hoja3!D210)*N253","v":0}]
[null,283,"Educación Solidarista","Estudios Sociales",3,1,null,null,null,null,null,null,0,null,"",{"$f":"IF(F254,Hoja3!D211)*N254","v":0}]
[null,284,"Principios de administración solidarista","Estudios Sociales",3,1,null,null,null,null,null,null,0,null,"",{"$f":"IF(F255,Hoja3!D212)*N255","v":0}]
[null,285,"Reparaciones básicas en la casa","Diseño y construcción de muebles y estructuras.",5,1,null,null,null,null,null,null,0,null,"",{"$f":"IF(F256,Hoja3!D213)*N256","v":0}]
[null,286,"AL disfrutar del movimiento, mejora mi salud","Educ/Fisica",5,1,null,null,null,null,null,null,0,null,"",{"$f":"IF(F257,Hoja3!D214)*N257","v":0}]
[null,287,"Educación Vial","Doc. de cualquier especialidad académica, que cuente con el aval de la Dirección General de Educación Vial",2,1,null,null,null,null,null,null,0,null,"",{"$f":"IF(F258,Hoja3!D215)*N258","v":0}]
[null,288,"Hagamos arte ","Artes Plásticas",5,1,null,null,null,null,null,null,0,null,"",{"$f":"IF(F259,Hoja3!D216)*N259","v":0}]
[null,289,"Manipulación de Alimentos","Técnico en agro-industria, tecnología de alimentos, Nutricionista",3,1,null,null,null,null,null,null,0,null,"",{"$f":"IF(F260,Hoja3!D217)*N260","v":0}]
[null,290,"¡Cuidemos a nuestros adultos mayores!","Doc. De cualquier especialidad academica que cuente con el certificado del IDP sobre gerontología",5,1,null,null,null,null,null,null,0,null,"",{"$f":"IF(F261,Hoja3!D218)*N261","v":0}]
[null,291,"Prevención y seguridad laboral","Salud ocupacional",5,1,null,null,null,null,null,null,0,null,"",{"$f":"IF(F262,Hoja3!D219)*N262","v":0}]
[null,292,"Preparación de comidas nacionales","Educación para el Hogar",5,1,null,null,null,null,null,null,0,null,"",{"$f":"IF(F263,Hoja3!D220)*N263","v":0}]
[null,293,"Preparación de comidas internacionales","Educación para el Hogar",5,1,null,null,null,null,null,null,0,null,"",{"$f":"IF(F264,Hoja3!D221)*N264","v":0}]
[null,294,"Elaboración de confites, chocolates y postres","Educación para el Hogar",5,1,null,null,null,null,null,null,0,null,"",{"$f":"IF(F265,Hoja3!D222)*N265","v":0}]
[null,295,"Elaboración y decoración de pastelería","Educación para el Hogar",5,1,null,null,null,null,null,null,0,null,"",{"$f":"IF(F266,Hoja3!D223)*N266","v":0}]
[null,296,"¿Cómo desarollor el pensamiento matemático a través de la creatividad?","Matemática",2,1,null,null,null,null,null,null,0,null,"",{"$f":"IF(F267,Hoja3!D224)*N267","v":0}]
[null,297,"Búsqueda del conocimiento al alcance de todos","Docentes de cualquier especialidad académica",2,1,null,null,null,null,null,null,0,null,"",{"$f":"IF(F268,Hoja3!D225)*N268","v":0}]
[null,null,"CANTIDAD DE MATRICULA "]
[null,null,"CANTIDAD DE SECCIONES",null,null,null,null,null,null,null,null,null,{"$f":"SUM(N222:N268)","v":0}]
[null,"TOTAL LECCIONES CURSOS LIBRES:",null,null,null,null,null,null,null,null,null,null,null,null,null,{"$f":"IF(SUM(P222:P268)=0,\"\",SUM(P222:P268))","v":""}]

{"sheet":"Hoja3","index":7,"n_rows":225,"n_cols":4,"rows_kept":225,"cut":false,"hidden":true,"merged":[[29,0,30,0],[125,0,125,3],[126,0,127,0],[126,1,127,1],[126,2,127,2],[126,3,127,3],[55,0,56,0],[55,1,56,1],[55,2,56,2],[55,3,56,3],[29,1,30,1],[29,2,30,2],[29,3,30,3],[54,0,54,3],[74,0,74,3],[75,0,76,0],[0,0,0,3],[28,0,28,3],[1,0,2,0],[1,1,2,1],[1,2,2,2],[1,3,2,3],[75,1,76,1],[75,2,76,2],[75,3,76,3],[175,0,175,3],[176,0,177,0],[176,1,177,1],[176,2,177,2],[176,3,177,3]]}
["I NIVEL"]
["No.","Descripción del Módulo","Atinencia","Lecciones por Módulo"]
[]
[]
[1,"Aplicaciones cotidianas de la matemática","Matemáticas",4]
[2,"Disfrutando del mundo de las palabras","Español",4]
[3,"Construyamos nuestro bienestar personal y comunitario","Ciencias",3]
[4,"Vida Cotidiana: Deberes y Derechos en el entorno cercano","Estudios Sociales",3]
[5,"Promovamos el desarrollo humano en forma equitativa y sostenible","Ciencias",3]
[6,"Relieve de mi Cantón: Conociendo mi patrimonio natural y cultural","Estudios Sociales",3]
[7,"Historia y Geografia de mi provincia","Estudios Sociales",3]
[8,"Actividades humanas asociadas a los paisajes geográficos de mi provincia","Estudios Sociales",3]
[9,"Costa Rica: Una sociedad intercultural, multiétnica y plurilingüe","Estudios Sociales",2]
[10,"Cuidemos nuestro planeta y toda forma de vida","Ciencias",3]
[11,"Adoptemos estilos de vida saludables","Ciencias",2]
[12,"Convivamos en entornos naturales y socioculturales seguros","Ciencias",2]
[13,"Modifiquemos nuestros patrones de consumo y producción para salvaguardar la integridad del planeta","Ciencias",3]
[15,"Protejamos y restauremos los procesos naturales que sustentan la vida","Ciencias",3]
[16,"Nos comunicamos en otras lenguas","Idioma Extranjero",5]
[17,"Descubriendo mi estilo de aprendizaje","Psicología",2]
[18,"Valoramos la importancia de la igualdad y la libertad a partir de nuestra historia colonial","Estudios Sociales",2]
[20,"Construcción de nuestro estado nación para el fortalecimiento de la identidad nacional","Estudios Sociales",2]
[21,"La sociedad costarricense actual: sus desafios y oportunidades en el contexto mundial","Estudios Sociales",2]
[22,"Espacios de participación y representación de mi cantón","Estudios Sociales",3]
[23,"Planificando mi fururo","Psicología",2]
[24,"Aplicaciones cotidianas de la matemática","Matemáticas",4]
[25,"¡Comunicandonos en la cotidianidad!","Español",4]
[]
["II NIVEL"]
["No.","Descripción del Módulo","Atinencia","Lecciones por Módulo"]
[]
[30,"La ciencia de lo humano para el desarrollo científico","Ciencias",4]
[{"$f":"+A32+1","v":31},"¿Por qué es importante el estudio del espacio geográfico en el planeta tierra?","Estudios Sociales",4]
[{"$f":"+A33+1","v":32},"Crecemos en el lenguaje","Español",4]
[{"$f":"+A34+1","v":33},"Entorno Científico: seres vivos y energía en sostenibilidad","Ciencias",2]
[35,"La adaptación del ser humano aun medio ambiente cambiante","Estudios Sociales",2]
[{"$f":"+A36+1","v":36},"Razonamiento de los números, la geometría y el álgebra para la cotidianidad","Matemáticas",6]
[37,"Seguridad de las personas en Costa Rica","Educación Cívica",4]
[38,"Variedades de la lengua","Español",3]
[39,"Participación, representación y derechos humanos en la sociedad democrática","Educación Cívica",4]
[40,"Estadística básica","Matemáticas",2]
[41,"Química de la tierra y su formación","Ciencias",3]
[42,"Comprendiendo la historia: de la edad media al renacimiento del siglo V al XVI","Estudios Sociales",2]
[43,"Materia y energía en sociedad","Ciencias",3]
[44,"Los procesos plurisignificativos de la comunicación literaria","Español",3]
[45,"Materia Planetaria en sostenibilidad","Ciencias",2]
[46,"Nos cominicamos en otras lenguas","Idioma Extranjero",5]
[48,"Cotidianidad del ser humano: desde la Edad Moderno en Europa y América siglos XVI-XIX","Estudios Sociales",3]
[{"$f":"+A48+1","v":49},"Vivencia de la sexualidad en el contexto familiar y social","Ciencias",3]
[{"$f":"+A49+1","v":50},"Roles de trabajo y formas de comunicación en el mundo antiguo","Estudios Sociales",4]
[{"$f":"+A50+1","v":51},"Construyamos nuestra identidad ciudadana","Educación Cívica",4]
[52,"Aplicaciones de los números, la geometría y el álgebra en nuetro entorno","Matemáticas",5]
[53,"Comprendiendo  nuestro entorno a través de la estadística","Matemáticas",2]
[]
["III NIVEL"]
["No.","Descripción del Módulo","Atinencia","Lecciones por Módulo"]
[]
[60,"Nos comunicamos mejor","Español",4]
[{"$f":"+A58+1","v":61},"Sistemas y Regímenes políticos, el estado costarricense garante de oporunidades para la construcción de la cultura democrática","Educación Cívica",2]
[62,"¿Cómo las transformaciones sociales, económicas, y políticas del mundo comtemporáneo impactan a la sociedad actual? (siglo XIX-Epoca actual)","Estudios Sociales",3]
[63,"Una mirada a las problemáticas contemporáneas; Repercusiones de la dinámica poblacional y movilización espacial","Estudios Sociales",3]
[64,"Interdependencia e interconexión: Los patrones espaciales en la sociedad globalizado","Estudios Sociales",3]
[65,"Seres vivos en población","Ciencias (Biología)",4]
[66,"Valorando nuestra sociedad (siglo XX-XXI)","Estudios Sociales",3]
[68,"Aplicación de la química en el hogar y la comunidad","Ciencias (Química)",4]
[69,"Aplicaciones de la física en la vida diaria","Ciencias (Física)",4]
[{"$f":"+A66+1","v":70},"¿Dónde está presente la estadística?","Matemáticas",2]
[71,"Nos comunicamos en otras lenguas","Idioma Extranjero",5]
[72,"¿Cómo aplicar la estadística y la probabilidad en la vida diaria?","Matemáticas",2]
[73,"Construyamos el futuro","Ciencias (Biología)",3]
[74,"¿Cómo relacionar la geometría y las relaciones algebraicas con nuestro entorno?","Matemáticas",4]
[75,"¿Cómo nos puede ayudar las relaciones, el álgebra y la geometría a entender el mundo que nos rodea?","Matemáticas",4]
[76,"Ética Profesional","Filosofía",2]
[]
["OPCIONALES I NIVEL"]
["No.","Descripción del Módulo","Atinencia","Lecciones por Módulo"]
[]
[80,"Administración de la pequeña empresa","Contabilidad",5]
[81,"Aprendamos a apreciar la música","Música",5]
[83,"¿Cómo administrar recursos humanos y financieros?","Contabilidad ",3]
[84,"Reconociendo a las personas con discapacidad como sujetas de derecho","Enseñanza Especial Generalista",3]
[85,"¿Cómo comunicarnos en una lengua indígena?","Educación Indígena",5]
[86,"¡A comunicarnos se ha dicho!","Español",3]
[87,"Conozcamos nuestra cultura autóctona","Estudios Sociales",3]
[88,"Contabilidad para la pequeña empresa","Contabilidad",3]
[89,"Creando con el lenguaje","Español",5]
[90,"Desarrollo mi creatividad","Español",3]
[93,"El camino para iniciar su propia empresa","Contabilidad",5]
[94,"El Bribri, Maleku, Cabecar, como mi lengua materna","Ingles, Educación Indigena",3]
[97,"Formación de líderes democráticos","Estudios Sociales",5]
[100,"Importancia de la actividad física: juegos pre-deportivos tradicionales y gimnasia formativa","Educación Física",5]
[102,"Relaciones humanas","Psicología",3]
[103,"Los pueblos y sus expresiones culturales","Estudios Sociales",4]
[106,"Mundo del turismo","Turismo Ecológico",2]
[107,"Nos organizamos para enfrentar desastres","Ciencias",2]
[108,"Orientación vocacional y profesional","Psicología",5]
[109,"Primeros auxilios","Educación Física",5]
[110,"Problemas y soluciones planetarios","Ciencias",3]
[111,"Promoción y defensa de los deberes y derechos del ciudadano","Estudios Sociales",3]
[118,"Vida en el planeta","Ciencias",5]
[119,"Visualicemos el futuro","Ciencias",5]
[120,"Planificando mi futuro","Psicología",2]
[121,"Descubriendo mi estilo de aprendizaje","Psicología",2]
[123,"Fortalecimiento de la matemática (OPCIONAL 1 NIVEL)","Matemática",3]
[124,"Fortalecimiento del Ingles","Ingles",3]
[125,"Fortalecimiento de los Estudios Sociales (OPCIONAL 1 NIVEL)","Estudios Sociales",3]
[126,"Fortalecimiento de la Biología","Ciencias",3]
[127,"Fortalecimiento de la Educación Cívica","Estudios Sociales",3]
[128,"Fortalecimiento del Español (OPCIONAL 1 NIVEL)","Español",3]
[129,"Fortalecimiento del Francés","Francés",3]
[130,"Fortalecimiento de la Quimica para Bachillerato","Ciencias",3]
[131,"Fortalecimiento de la Física para Bachillerato","Ciencias",3]
[139,"Tecnología y Trabajo","Informatica Educatica/ Desarrollo Sofware/ Progración Redes de Computadoras en Soporte",5]
[140,"Tecnología y Comunidad","Informatica Educatica/ Desarrollo Sofware/ Progración Redes de Computadoras en Soporte",5]
[141,"Tecnología y Emprendedurismo","Informatica Educatica/ Desarrollo Sofware/ Progración Redes de Computadoras en Soporte",5]
[142,"Expreción o Creción Musical","Música",5]
[143,"Desarrollo Comunitario (II Nivel)","Cualquier especilidad acádemica",2]
[144,"Desarrollo Comunitario (III Nivel)","Cualquier especilidad acádemica",3]
[145,"Introducción a la robótica","Informática, Informática educativa ambas con conocimiento en robótica",2]
[146,"Poniéndome en acción: entrenándome haciendo deporte y baile","Educación Física",5]
[147,"Promoviendo salud, venciendo desafíos","Educación Física",5]
[148,"Afectividad y sexualidad desde la cotidianidad","Psicología",2]
[149,"¡Qué lindo aprender Cabécar!","Educación indígena, especialidad lengua materna, subespecialidad: Cabécar",2]
[]
[]
["OPCIONALES II NIVEL Y III NIVEL"]
["No.","Descripción del Módulo","Atinencia","Lecciones por Módulo"]
[]
[80,"Administración de la pequeña empresa","Contabilidad",5]
[81,"Aprendamos a apreciar la música","Música",5]
[83,"¿Cómo administrar recursos humanos y financieros?","Contabilidad ",3]
[84,"Reconociendo a las personas con discapacidad como sujetas de derecho","Enseñanza Especial Generalista",3]
[85,"¿Cómo comunicarnos en una lengua indígena?","Educación Indígena",5]
[86,"¡A comunicarnos se ha dicho!","Español",3]
[87,"Conozcamos nuestra cultura autóctona","Estudios Sociales",3]
[88,"Contabilidad para la pequeña empresa","Contabilidad",3]
[89,"Creando con el lenguaje","Español",5]
[90,"Desarrollo mi creatividad","Español",3]
[93,"El camino para iniciar su propia empresa","Contabilidad",5]
[94,"El Bribri, Maleku, Cabecar, como mi lengua materna","Ingles, Educación Indigena",3]
[97,"Formación de líderes democráticos","Estudios Sociales",5]
[100,"Importancia de la actividad física: juegos pre-deportivos tradicionales y gimnasia formativa","Educación Física",5]
[102,"Relaciones humanas","Psicología",3]
[103,"Los pueblos y sus expresiones culturales","Estudios Sociales",4]
[106,"Mundo del turismo","Turismo Ecológico",2]
[107,"Nos organizamos para enfrentar desastres","Ciencias",2]
[108,"Orientación vocacional y profesional","Psicología",5]
[109,"Primeros auxilios","Educación Física",5]
[110,"Problemas y soluciones planetarios","Ciencias",3]
[111,"Promoción y defensa de los deberes y derechos del ciudadano","Estudios Sociales",3]
[118,"Vida en el planeta","Ciencias",5]
[119,"Visualicemos el futuro","Ciencias",5]
[120,"Planificando mi futuro","Psicología",2]
[121,"Descubriendo mi estilo de aprendizaje","Psicología",2]
[123,"Fortalecimiento de la matemática (OPCIONAL 1 NIVEL)","Matemática",3]
[124,"Fortalecimiento del Ingles","Ingles",3]
[125,"Fortalecimiento de los Estudios Sociales (OPCIONAL 1 NIVEL)","Estudios Sociales",3]
[126,"Fortalecimiento de la Biología","Ciencias",3]
[127,"Fortalecimiento de la Educación Cívica","Estudios Sociales",3]
[128,"Fortalecimiento del Español (OPCIONAL 1 NIVEL)","Español",3]
[129,"Fortalecimiento del Francés","Francés",3]
[130,"Fortalecimiento de la Quimica para Bachillerato","Ciencias",3]
[131,"Fortalecimiento de la Física para Bachillerato","Ciencias",3]
[139,"Tecnología y Trabajo","Informatica Educatica/ Desarrollo Sofware/ Progración Redes de Computadoras en Soporte",5]
[140,"Tecnología y Comunidad","Informatica Educatica/ Desarrollo Sofware/ Progración Redes de Computadoras en Soporte",5]
[141,"Tecnología y Emprendedurismo","Informatica Educatica/ Desarrollo Sofware/ Progración Redes de Computadoras en Soporte",5]
[142,"Expreción o Creción Musical","Música",5]
[143,"Desarrollo Comunitario (II Nivel)","Cualquier especilidad acádemica",2]
[144,"Desarrollo Comunitario (III Nivel)","Cualquier especilidad acádemica",3]
[145,"Introducción a la robótica","Informática, Informática educativa ambas con conocimiento en robótica",2]
[146,"Poniéndome en acción: entrenándome haciendo deporte y baile","Educación Física",5]
[147,"Promoviendo salud, venciendo desafíos","Educación Física",5]
[148,"Afectividad y sexualidad desde la cotidianidad","Psicología",2]
[149,"¡Qué lindo aprender Cabécar!","Educación indígena, especialidad lengua materna, subespecialidad: Cabécar",2]
[]
["CURSOS EMERGENTE"]
["No.","Descripción del Módulo","Atinencia","Lecciones por Módulo"]
[]
[250,"Preparación y productos de repostería","Educ/hogar",5]
[271,"Mantenimiento preventivo de computadoras","Informática de desarrollo del software, en programación, en redes de computadoras, en soporte.",5]
[259,"Bases de datos ","Informática de desarrollo del software, en programación, en redes de computadoras, en soporte.",5]
[260,"Diseño  WEB","Informática en desarrollo del software",5]
[255,"Técnicas Secretariales","Secretariado ejecutivo, secretariado bilingüe o ejecutivo para centros de servicio",5]
[265,"Oficina moderna","Secretariado ejecutivo, secretariado bilingüe o ejecutivo para centros de servicio",5]
[261,"Ingles conversacional  inicial I NIVEL","Inglés",5]
[262,"Ingles conversacional intermedio II NIVEL","Inglés",5]
[263,"Ingles conversacional  avanzado III NIVEL","Inglés",5]
[253,"Principios de contabilidad","Contabilidad",5]
[256,"Técnicas de manejo de hidroponía y abono orgánico","Agroecología",3]
[279,"El mundo de los negocios de capital individual y asociativo","Contabilidad o profesor de estado de educación comercial y de servicios.",3]
[280,"Doctrina cooperativa","Estudios Sociales",3]
[281,"Gestión Cooperativa","Estudios Sociales",3]
[282,"Líderes y gestores de iniciativas de negocios","Contabilidad o profesor de estado de educación comercial y de servicios",3]
[258,"Montajes eléctricos básicos","Electrónica industrial y electrotecnia",5]
[269,"Refrigeración doméstica","Refrigeración y aire acondicionado",5]
[272,"Técnicas de bisutería y orfebrería","Educ/hogar",5]
[252,"Confección de accesorios para el hogar","Educ/hogar",5]
[254,"Técnica manuales y  confección de artículos con material de desecho","Educ/hogar",5]
[266,"Hagamos artesanías","Educ/hogar o artesanías",5]
[257,"Alta costura","Educ/hogar",5]
[270,"Corte y confección","Educ/hogar",5]
[267,"Técnicas de estética y estilismo","Educ/hogar",5]
[268,"Corte de cabello clásico y alta peluquería","Educ/hogar",5]
[264,"Dibujo Técnico","Artes plásticas",5]
[273,"Servicio al cliente","Secretariado ejecutivo, secretariado bilingüe o ejecutivo para centros de servicio",5]
[274,"Taller de Teatro","Teatro",5]
[275,"Taller de pintura","Artes  Plásticas",5]
[276,"Taller en música","Música",5]
[277,"Promoción de la salud","Física",5]
[278,"Preparacion de Bebidas","Turismo: alimentos y bebidas. Hotelería y eventos especiales.",5]
[283,"Educación Solidarista","Estudios Sociales",3]
[284,"Principios de administración solidarista","Estudios Sociales",3]
[285,"Reparaciones básicas en la casa","Diseño y construcción de muebles y estructuras.",5]
[286,"AL disfrutar del movimiento, mejora mi salud","Educ/Fisica",5]
[287,"Educación Vial","Doc. de cualquier especialidad académica, que cuente con el aval de la Dirección General de Educación Vial",2]
[288,"Hagamos arte ","Artes Plásticas",5]
[289,"Manipulación de Alimentos","Técnico en agro-industria, tecnología de alimentos, Nutricionista",3]
[290,"¡Cuidemos a nuestros adultos mayores!","Doc. De cualquier especialidad academica que cuente con el certificado del IDP sobre gerontología",5]
[291,"Prevención y seguridad laboral","Salud ocupacional",5]
[292,"Preparación de comidas nacionales","Educación para el Hogar",5]
[293,"Preparación de comidas internacionales","Educación para el Hogar",5]
[294,"Elaboración de confites, chocolates y postres","Educación para el Hogar",5]
[295,"Elaboración y decoración de pastelería","Educación para el Hogar",5]
[296,"¿Cómo desarollor el pensamiento matemático a través de la creatividad?","Matemática",2]
[297,"Búsqueda del conocimiento al alcance de todos","Docentes de cualquier especialidad académica",2]

{"sheet":"EDUCAC TECNICA SEDE CENTRAL","index":8,"n_rows":114,"n_cols":20,"rows_kept":114,"cut":false,"hidden":false,"merged":[[110,5,110,8],[9,19,9,25],[29,19,29,25],[30,19,30,25],[31,19,32,19],[31,20,31,22],[31,23,31,25],[11,19,12,19],[11,20,11,22],[11,23,11,25],[10,19,10,25],[10,0,10,17],[30,3,30,5],[30,8,30,10],[30,13,30,15],[11,0,11,17],[12,16,12,17],[12,2,13,2],[12,3,12,5],[12,8,12,10],[12,11,12,12],[12,13,12,15],[12,6,12,7],[107,5,107,8],[99,11,99,12],[106,5,106,8],[100,11,100,12],[105,5,105,8],[104,5,104,8],[100,0,100,10],[29,0,29,15],[50,0,50,15],[30,1,31,1],[30,2,31,2],[51,1,52,1],[47,11,47,12],[79,11,79,12],[83,13,83,17],[82,0,82,17],[84,3,84,5],[84,8,84,10],[84,13,84,15],[51,2,52,2],[51,3,51,5],[0,0,2,17],[6,1,7,2],[8,2,8,3],[102,5,102,9],[103,5,103,8],[9,0,9,17],[84,16,84,17],[26,13,26,15],[51,8,51,10],[51,13,51,15],[12,0,13,0],[12,1,13,1],[26,3,26,5],[27,3,27,5],[4,0,4,17],[5,0,5,17]]}
[{"$error":"#VALUE!"}]
[]
[]
[]
["IPEC"]
["CURSO LECTIVO 2024"]
[null,"***NOTA: SE DEBE INCLUIR PRIMERO LA MATRICULA Y LUEGO SECCIONES (LLENAR SOLO SI CUENTAN CON APROBACION)"]
[]
[null,"NOMBRE DE SATELITE 1:"]
["5) DISTRIBUCIÓN DE MATRÍCULA Y LECCIONES: EDUCACIÓN TÉCNICA"]
["Utilizar SOLO para Grupos Completos "]
["PLAN 2 AÑOS "]
["No.","Especialidad","Lecciones por Módulo",null,null,null,"Matricula PLAN DOS AÑOS",null,null,null,null,"SECCIONES PLAN DOS AÑOS",null,null,null,null,"LECCIONES PLAN DOS AÑOS"]
[null,null,null,null,null,null,"I NIVEL","II NIVEL",null,null,null,"I NIVEL","II NIVEL",null,null,null,"I NIVEL","II NIVEL"]
[155,"Secretariado Ejecutivo PLAN DOS AÑOS",38,null,null,null,null,null,null,null,null,null,null,null,null,null,{"$f":"IF(L15=\"\",\"\",IF(G15/L15<15,\"Incomp.\",$C15*L15))","v":""},{"$f":"IF(M15=\"\",\"\",IF(H15/M15<15,\"Incomp.\",$C15*M15))","v":""}]
[{"$f":"+A15+1","v":156},"Informática en Soporte PLAN DOS AÑOS",38,null,null,null,null,null,null,null,null,null,null,null,null,null,{"$f":"IF(L16=\"\",\"\",IF(G16/L16<15,\"Incomp.\",$C16*L16))","v":""},{"$f":"IF(M16=\"\",\"\",IF(H16/M16<15,\"Incomp.\",$C16*M16))","v":""}]
[157,"Ecoturismo PLAN DOS AÑOS",38,null,null,null,null,null,null,null,null,null,null,null,null,null,"",""]
[158,"Contabilidad y Finanzas PLAN DOS AÑOS",38,null,null,null,null,null,null,null,null,null,null,null,null,null,"","","→"]
[159,"Informática en Redes de computadoras PLAN DOS AÑOS",38,null,null,null,null,null,null,null,null,null,null,null,null,null,"",""]
[160,"Operación en Empresas de Alojamiento PLAN DOS AÑOS",38,null,null,null,null,null,null,null,null,null,null,null,null,null,"",""]
[161,"Salud Ocupacional PLAN DOS AÑOS",38,null,null,null,null,null,null,null,null,null,null,null,null,null,"",""]
[null,"Diseño y confeccion de la moda PLAN DOS AÑOS",38,null,null,null,null,null,null,null,null,null,null,null,null,null,"",""]
[null,"Ciberseguridad PLAN DOS AÑOS",38,null,null,null,null,null,null,null,null,null,null,null,null,null,"",""]
[null,"Productividad y Calidad PLAN DOS AÑOS",38,null,null,null,null,null,null,null,null,null,null,null,null,null,"",""]
[null,"Administración, Logística y distribución PLAN DOS AÑOS",38,null,null,null,null,null,null,null,null,null,null,null,null,null,"",""]
[null,"Contabilidad PLAN DOS AÑOS",38,null,null,null,null,null,null,null,null,null,null,null,null,null,"",""]
[null,null,null,"MATRICULA POR NIVELES",null,null,{"$f":"SUM(G15:G26)","v":0},{"$f":"SUM(H15:H26)","v":0},null,null,null,null,null,"TOTAL LECC PLAN 2 AÑOS",null,null,{"$f":"SUM(Q15:Q26)","v":0},{"$f":"SUM(R15:R26)","v":0}]
[null,null,null,"MATRICULA TOTAL",null,null,{"$f":"G27+H27","v":0}]
[]
["PLAN REGULAR 3 AÑOS DIURNA",null,null,null,null,null,null,null,null,null,null,null,null,null,null,null,null,null,null,"PARA GUIARSE"]
[null,"Especialidad","Lecciones por Módulo","Matrícula PLAN REGULAR",null,null,null,null,"SECCIONES PLAN REGULAR",null,null,null,null,"LECCIONES PLAN REGULAR"]
[null,null,null,"10°","11°","12°",null,null,"10°","11°","12°",null,null,"10°","11°","12°"]
[162,"Informática en Soporte DIURNA",24,null,null,null,null,null,null,null,null,null,null,{"$f":"IF(I33=\"\",\"\",IF(D33/I33<15,\"Incomp.\",$C33*I33))","v":""},{"$f":"IF(J33=\"\",\"\",IF(E33/J33<12,\"Incomp.\",$C33*J33))","v":""},{"$f":"IF(K33=\"\",\"\",IF(F33/K33<12,\"Incomp.\",$C33*K33))","v":""}]
[163,"Turismo en Alimentos y bebidas DIURNA",24,null,null,null,null,null,null,null,null,null,null,"","",""]
[164,"Secretariado Ejecutivo DIURNA",24,null,null,null,null,null,null,null,null,null,null,"","",""]
[165,"Banca y Finanzas DIURNA",24,null,null,null,null,null,null,null,null,null,null,"","",""]
[166,"Contabilidad DIURNA",24,null,null,null,null,null,null,null,null,null,null,"","",""]
[167,"Contabilidad y Finanzas DIURNA",24,null,null,null,null,null,null,null,null,null,null,"","",""]
[168,"Contabilidad y Control Interno DIURNA",24,null,null,null,null,null,null,null,null,null,null,"","",""]
[169,"Salud Ocupacional DIURNA",24,null,null,null,null,null,null,null,null,null,null,"","",""]
[170,"Operación en Empresas de Alojamiento DIURNA",24,null,null,null,null,null,null,null,null,null,null,"","",""]
[171,"Turismo Rural DIURNA",24,null,null,null,null,null,null,null,null,null,null,"","",""]
[172," Informática en Desarrollo del Software DIURNA",24,null,null,null,null,null,null,null,null,null,null,"","",""]
[173,"Administración, Logística y distribución DIURNA",24,null,null,null,null,null,null,null,null,null,null,"","",""]
[174,"Ejecutivo Comercial y Servicio al Cliente DIURNA",24,null,null,null,null,null,null,null,null,null,null,"","",""]
[null,"Productividad y Calidad DIURNA",24,null,null,null,null,null,null,null,null,null,null,"","",""]
[175,"Administración y Operación Aduanera DIURNA",24,null,null,null,null,null,null,null,null,null,null,"","",""]
[null,null,"MATRICULA POR NIVELES",{"$f":"SUM(D33:D47)","v":0},{"$f":"SUM(E33:E47)","v":0},{"$f":"SUM(F33:F47)","v":0},null,null,null,null,null,"TOTAL LECC DIURNA",null,{"$f":"SUM(N33:N47)","v":0},{"$f":"SUM(O33:O47)","v":0},{"$f":"SUM(P33:P47)","v":0}]
[null,null,"MATRICULA TOTAL",{"$f":"D48+E48+F48","v":0}]
[]
["PLAN REGULAR 3 AÑOS NOCTURNA"]
[null,"Especialidad","Lecciones por Módulo","Matrícula PLAN REGULAR",null,null,null,null,"SECCIONES PLAN REGULAR",null,null,null,null,"LECCIONES PLAN REGULAR"]
[null,null,null,"10°","11°","12°",null,null,"10°","11°","12°",null,null,"10°","11°","12°"]
[162,"Informática en Soporte NOCTURNO",24,null,null,null,null,null,null,null,null,null,null,{"$f":"IF(I54=\"\",\"\",IF(D54/I54<15,\"Incomp.\",$C54*I54))","v":""},{"$f":"IF(J54=\"\",\"\",IF(E54/J54<12,\"Incomp.\",$C54*J54))","v":""},{"$f":"IF(K54=\"\",\"\",IF(F54/K54<12,\"Incomp.\",$C54*K54))","v":""}]
[163,"Turismo en Alimentos y bebidas NOCTURNO",24,null,null,null,null,null,null,null,null,null,null,"","",""]
[164,"Secretariado Ejecutivo NOCTURNO",24,null,null,null,null,null,null,null,null,null,null,"","",""]
[165,"Banca y Finanzas NOCTURNO",24,null,null,null,null,null,null,null,null,null,null,"","",""]
[166,"Contabilidad  NOCTURNO",24,null,null,null,null,null,null,null,null,null,null,"","",""]
[167,"Contabilidad y Finanzas NOCTURNO",24,null,null,null,null,null,null,null,null,null,null,"","",""]
[168,"Contabilidad y Control Interno NOCTURNO",24,null,null," ",null,null,null,null,null,null,null,"","",""]
[169,"Salud Ocupacional NOCTURNO ",24,null,null,null,null,null,null,null,null,null,null,"","",""]
[170,"Operación en Empresas de Alojamiento NOCTURNO",24,null,null,null,null,null,null,null,null,null,null,"","",""]
[171,"Turismo Rural NOCTURNO",24,null,null,null,null,null,null,null,null,null,null,"","",""]
[172," Informática en Desarrollo del Software NOCTURNO",24,null,null,null,null,null,null,null,null,null,null,"","",""]
[173,"Administración, Logística y distribución NOCTURNO",24,null,null,null,null,null,null,null,null,null,null,"","",""]
[null,"Mecanica General NOCTURNO",24,null,null,null,null,null,null,null,null,null,null,"","",""]
[null,"Desarrollo Web NOCTURNO",24,null,null,null,null,null,null,null,null,null,null,"","",""]
[null,"Mercadeo NOCTURNO",24,null,null,null,null,null,null,null,null,null,null,"","",""]
[null,"Ejecutivo Comercial y Servicio al Cliente NOCTURNO",24,null,null,null,null,null,null,null,null,null,null,"","",""]
[null,"Bilingual Secretary NOCTURNO",24,null,null,null,null,null,null,null,null,null,null,"","",""]
[null,"Ciberseguridad NOCTURNO",24,null,null,null,null,null,null,null,null,null,null,"","",""]
[null,"Productividad y Calidad NOCTURNO",24,null,null,null,null,null,null,null,null,null,null,"","",""]
[null,"Ecoturismo NOCTURNO",24,null,null,null,null,null,null,null,null,null,null,"","",""]
[null,"Construccion Civil NOCTURNO",24,null,null,null,null,null,null,null,null,null,null,"","",""]
[null,"Diseño y Confección de la Moda NOCTURNO",24,null,null,null,null,null,null,null,null,null,null,"","",""]
[null,"Configuración y soporte de redes de comunic y sistem operativ",24,null,null,null,null,null,null,null,null,null,null,"","",""]
[null,"Informática Empresarial NOCTURNO",24,null,null,null,null,null,null,null,null,null,null,"","",""]
[null,"Informática en Redes de Computadoras NOCTURNO",24,null,null,null,null,null,null,null,null,null,null,"","",""]
[175,"Administración y Operación Aduanera NOCTURNO",24,null,null,null,null,null,null,null,null,null,null,"","",""]
[null,null,"MATRICULA POR NIVELES",{"$f":"SUM(D54:D79)","v":0},{"$f":"SUM(E54:E79)","v":0},{"$f":"SUM(F54:F79)","v":0},null,null,null,null,null,"TOTAL LECC NOCTURN",null,{"$f":"SUM(N54:N79)","v":0},{"$f":"SUM(O54:O79)","v":0},{"$f":"SUM(P54:P79)","v":0}]
[null,null,"MATRICULA TOTAL",{"$f":"D80+E80+F80","v":0}]
[]
["Utilizar SOLO para Tutorías (Niveles de 11º Y 12º)"]
[null,null,null,null,null,null,null,null,null,null,null,null,null,"TOTALES"]
[null,null,null,"Matrícula PLAN REGULAR",null,null,null,null,"SECCIONES PLAN REGULAR",null,null,null,null,"LECCIONES PLAN REGULAR",null,null,"LECCIONES PLAN 2 AÑOS"]
[null,null,null,null,"11°","12°",null,null,null,"11°","12°",null,null,10,"11°","12°","I NIVEL","II NIVEL"]
[{"$f":"+A47+1","v":176},"Secretariado Ejecutivo nocturno","Ver nota","n.a.",null,null,null,null,null,null,null,null,null,"n.a.",{"$f":"IF(J87=0,0,IF(E87/J87=0,0,IF(E87/J87<=8,12,IF(E87/J87>14,\"Comp.\",24*J87))))","v":0},{"$f":"IF(K87=0,0,IF(F87/K87=0,0,IF(F87/K87<=5,8,IF(F87/K87<=7,12,IF(F87/K87>14,\"Comp.\",24*K87)))))","v":0}]
[{"$f":"+A87+1","v":177},"Informática en Soporte nocturno","Ver nota","n.a.",null,null,null,null,null,null,null,null,null,"n.a.",{"$f":"IF(J88=0,0,IF(E88/J88=0,0,IF(E88/J88<=8,12,IF(E88/J88>14,\"Comp.\",24*J88))))","v":0},{"$f":"IF(K88=0,0,IF(F88/K88=0,0,IF(F88/K88<=5,8,IF(F88/K88<=7,12,IF(F88/K88>14,\"Comp.\",24*K88)))))","v":0}]
[178,"Turismo en Alimentos y bebidas","Ver nota","n.a.",null,null,null,null,null,null,null,null,null,"n.a.",0,0,{"$f":"IF(L89=\"\",\"\",IF(G89/L89>14,\"Comp.\",12*L89))","v":""},""]
[179,"Contabilidad","Ver nota","n.a.",null,null,null,null,null,null,null,null,null,"n.a.",0,0,"",""]
[180,"Contabilidad y Finanzas","Ver nota","n.a.",null,null,null,null,null,null,null,null,null,"n.a.",0,0,"",""]
[181,"Salud Ocupacional","Ver nota","n.a.",null,null,null,null,null,null,null,null,null,"n.a.",0,0,"",""]
[182,"Ecoturismo","Ver nota","n.a.",null,null,null,null,null,null,null,null,null,"n.a.",0,0,"",""]
[183,"Turismo Rural","Ver nota","n.a.",null,null,null,null,null,null,null,null,null,"n.a.",0,0,"",""]
[184," Informática en Desarrollo del Software","Ver nota","n.a.",null,null,null,null,null,null,null,null,null,"n.a.",0,0,"",""]
[185,"Administración, Logística y distribución","Ver nota","n.a.",null,null,null,null,null,null,null,null,null,"n.a.",0,0,"",""]
[186,"Administración y Operación Aduanera","Ver nota","n.a.",null,null,null,null,null,null,null,null,null,"n.a.",0,0,"",""]
[187,"Salud Ocupacional","Ver nota","n.a.",null,null,null,null,null,null,null,null,null,"n.a.",0,0,"",""]
[null,null,"MATRICULA POR NIVELES",null,{"$f":"SUM(E87:E98)","v":0},{"$f":"SUM(F87:F98)","v":0}]
[null,null,"MATRICULA TOTAL",null,{"$f":"E99+F99","v":0},null,null,null,null,null,null,"TOTAL LECCI TUTORIAS",null,null,{"$f":"SUM(O87:O98)","v":0},{"$f":"SUM(P87:P98)","v":0}]
["Total de Lecciones Educación Técnica:",null,null,null,null,null,null,null,null,null,null,null,null,{"$f":"SUM(N48)+(N80)","v":0},{"$f":"IF((SUM(O87:O98)+SUM(O33:O47))=0,\"\",(SUM(O87:O98)+SUM(O33:O47)+SUM(O54:O79)))","v":""},{"$f":"IF((SUM(P87:P98)+SUM(P33:P47))=0,\"\",(SUM(P87:P98)+SUM(P33:P47)+SUM(P54:P79)))","v":""},{"$f":"SUM(Q27)","v":0},{"$f":"SUM(R27)","v":0}]
[]
[null,"NOTA:",null,null,null,"LECCIONES EDUCACION TECNICA"]
["Nota: Cálculo de lecciones para tutoría","Nota: Cálculo de lecciones para tutoría",null,null,null,"LECCIONES PLAN 2 AÑOS",null,null,null,{"$f":"SUM(Q101:R101)","v":0}]
["En 11° si los grupos de especialidad son menores de 15 estudiantes se deberá:","En 11° si los grupos de especialidad son menores de 15 estudiantes se deberá:",null,null,null,"LECCIONES PLAN REGULAR 3 AÑOS DIURNO",null,null,null,{"$f":"SUM(N48:P48)","v":0}]
[null," a) igual o mayor a 9 estudiantes: 24 lecciones",null,null,null,"LECCIONES PLAN REGULAR 3 AÑOS NOCTURNO ",null,null,null,{"$f":"SUM(N80:P80)","v":0}]
[null," b) igual o menor a 8 estudiantes: 12 lecciones",null,null,null,"LECCIONES DE TUTORIAS",null,null,null,{"$f":"SUM(O100:P100)","v":0}]
[null,null,null,null,null,"TOTAL LECCIONES TECNICAS",null,null,null,{"$f":"SUM(J104:J107)","v":0}]
["En 12° cuando los grupos de especialidad son menores de 10 estudiantes se utilizarán los siguientes criterios.","En 12° cuando los grupos de especialidad son menores de 10 estudiantes se utilizarán los siguientes criterios."]
[null,"  a) de 1 a 5 estudiantes:   8 lecciones"]
[null,"  b) de 6 a 7 estudiantes: 12 lecciones",null,null,null,"MATRICULA TOTAL DE SATELITE 1 EDUCACION TECNICA",null,null,null,{"$f":"G28+D49+D81+E100","v":0}]
[null,"  c) de 8 a 9 estudiantes: 24 lecciones"]
[]
[null,"*FUENTE: ANEXO2_ASIGNACION DE CASOS EXCEPCIONALES DETCE"]

{"sheet":"  SATELITE 2","index":9,"n_rows":271,"n_cols":22,"rows_kept":271,"cut":false,"hidden":false,"merged":[[152,8,152,11],[153,8,153,11],[154,8,154,11],[155,8,155,11],[156,8,156,11],[157,8,157,11],[143,8,143,11],[144,8,144,11],[145,8,145,11],[146,8,146,11],[147,8,147,11],[148,8,148,11],[149,8,149,11],[150,8,150,11],[151,8,151,11],[134,8,134,11],[135,8,135,11],[136,8,136,11],[137,8,137,11],[138,8,138,11],[139,8,139,11],[140,8,140,11],[141,8,141,11],[142,8,142,11],[266,7,266,11],[267,7,267,11],[112,8,112,11],[113,8,113,11],[114,8,114,11],[115,8,115,11],[116,8,116,11],[117,8,117,11],[118,8,118,11],[119,8,119,11],[120,8,120,11],[121,8,121,11],[122,8,122,11],[123,8,123,11],[124,8,124,11],[125,8,125,11],[126,8,126,11],[127,8,127,11],[128,8,128,11],[129,8,129,11],[130,8,130,11],[131,8,131,11],[132,8,132,11],[133,8,133,11],[257,7,257,11],[258,7,258,11],[259,7,259,11],[260,7,260,11],[261,7,261,11],[262,7,262,11],[263,7,263,11],[264,7,264,11],[265,7,265,11],[248,7,248,11],[249,7,249,11],[250,7,250,11],[251,7,251,11],[252,7,252,11],[253,7,253,11],[254,7,254,11],[255,7,255,11],[256,7,256,11],[239,7,239,11],[240,7,240,11],[241,7,241,11],[242,7,242,11],[243,7,243,11],[244,7,244,11],[245,7,245,11],[246,7,246,11],[247,7,247,11],[230,7,230,11],[231,7,231,11],[232,7,232,11],[233,7,233,11],[234,7,234,11],[235,7,235,11],[236,7,236,11],[237,7,237,11],[238,7,238,11],[221,7,221,11],[222,7,222,11],[223,7,223,11],[224,7,224,11],[225,7,225,11],[226,7,226,11],[227,7,227,11],[228,7,228,11],[229,7,229,11],[6,17,7,19],[8,1,8,15],[8,17,8,18],[12,12,14,12],[12,13,12,15],[12,17,12,18],[13,17,13,18],[14,17,14,18],[3,17,4,19],[3,1,6,15],[15,17,15,18],[9,1,9,15],[9,17,9,18],[10,17,10,18],[11,1,11,15],[11,17,11,18],[12,1,13,1],[12,2,13,2],[12,3,13,3],[12,4,13,4],[12,6,13,11],[45,6,46,6],[45,7,46,7],[45,8,46,9],[45,10,46,11],[45,12,46,12],[45,13,45,15],[16,17,16,18],[38,12,38,13],[39,12,39,13],[40,1,40,14],[44,1,44,15],[45,1,46,1],[45,2,46,2],[45,3,46,3],[45,4,46,4],[45,5,46,5],[41,11,41,14],[18,17,18,19],[50,8,50,9],[50,10,50,11],[51,8,51,9],[51,10,51,11],[52,8,52,9],[52,10,52,11],[47,8,47,9],[47,10,47,11],[48,8,48,9],[48,10,48,11],[49,8,49,9],[49,10,49,11],[56,8,56,9],[56,10,56,11],[57,8,57,9],[57,10,57,11],[58,8,58,9],[58,10,58,11],[53,8,53,9],[53,10,53,11],[54,8,54,9],[54,10,54,11],[55,8,55,9],[55,10,55,11],[62,8,62,9],[62,10,62,11],[63,8,63,9],[63,10,63,11],[64,8,64,9],[64,10,64,11],[59,8,59,9],[59,10,59,11],[60,8,60,9],[60,10,60,11],[61,8,61,9],[61,10,61,11],[68,8,68,9],[68,10,68,11],[69,12,69,13],[70,12,70,13],[71,1,71,14],[74,1,74,15],[65,8,65,9],[65,10,65,11],[66,8,66,9],[66,10,66,11],[67,8,67,9],[67,10,67,11],[75,8,76,9],[75,10,76,11],[75,12,76,12],[75,13,75,15],[77,8,77,9],[77,10,77,11],[75,1,76,1],[75,2,76,2],[75,3,76,3],[75,4,76,4],[75,6,76,6],[75,7,76,7],[81,8,81,9],[81,10,81,11],[82,8,82,9],[82,10,82,11],[83,8,83,9],[83,10,83,11],[78,8,78,9],[78,10,78,11],[79,8,79,9],[79,10,79,11],[80,8,80,9],[80,10,80,11],[87,8,87,9],[87,10,87,11],[88,8,88,9],[88,10,88,11],[89,8,89,9],[89,10,89,11],[84,8,84,9],[84,10,84,11],[85,8,85,9],[85,10,85,11],[86,8,86,9],[86,10,86,11],[93,12,93,13],[94,12,94,13],[95,1,95,14],[102,7,102,12],[102,13,102,16],[102,17,102,20],[90,8,90,9],[90,10,90,11],[91,8,91,9],[91,10,91,11],[92,8,92,9],[92,10,92,11],[97,1,99,15],[109,1,109,15],[110,1,111,1],[110,2,111,2],[110,3,111,3],[110,4,111,4],[110,6,111,7],[110,8,111,11],[110,12,111,12],[110,13,110,15],[112,6,112,7],[113,6,113,7],[114,6,114,7],[115,6,115,7],[116,6,116,7],[117,6,117,7],[118,6,118,7],[119,6,119,7],[120,6,120,7],[127,6,127,7],[128,6,128,7],[129,6,129,7],[130,6,130,7],[131,6,131,7],[132,6,132,7],[121,6,121,7],[122,6,122,7],[123,6,123,7],[124,6,124,7],[125,6,125,7],[126,6,126,7],[139,6,139,7],[140,6,140,7],[141,6,141,7],[142,6,142,7],[143,6,143,7],[144,6,144,7],[133,6,133,7],[134,6,134,7],[135,6,135,7],[136,6,136,7],[137,6,137,7],[138,6,138,7],[168,6,168,7],[151,6,151,7],[152,6,152,7],[153,6,153,7],[154,6,154,7],[155,6,155,7],[156,6,156,7],[145,6,145,7],[146,6,146,7],[147,6,147,7],[148,6,148,7],[149,6,149,7],[150,6,150,7],[157,6,157,7],[158,12,158,13],[159,12,159,13],[160,1,160,14],[165,1,165,15],[166,1,167,1],[166,2,167,2],[166,3,167,3],[166,4,167,4],[166,6,167,7],[161,1,161,14],[169,8,169,9],[169,10,169,11],[170,8,170,9],[170,10,170,11],[166,8,167,9],[166,10,167,11],[166,12,167,12],[166,13,166,15],[168,8,168,9],[168,10,168,11],[175,8,175,9],[175,10,175,11],[176,8,176,9],[176,10,176,11],[173,8,173,9],[173,10,173,11],[174,8,174,9],[174,10,174,11],[171,8,171,9],[171,10,171,11],[172,8,172,9],[172,10,172,11],[179,8,179,9],[179,10,179,11],[180,8,180,9],[180,10,180,11],[181,8,181,9],[177,8,177,9],[177,10,177,11],[178,8,178,9],[178,10,178,11],[186,8,186,9],[186,10,186,11],[187,8,187,9],[187,10,187,11],[184,8,184,9],[184,10,184,11],[185,8,185,9],[185,10,185,11],[181,10,181,11],[182,8,182,9],[182,10,182,11],[183,8,183,9],[183,10,183,11],[192,8,192,9],[192,10,192,11],[193,8,193,9],[193,10,193,11],[190,8,190,9],[190,10,190,11],[191,8,191,9],[191,10,191,11],[188,8,188,9],[188,10,188,11],[189,8,189,9],[189,10,189,11],[198,8,198,9],[198,10,198,11],[199,8,199,9],[199,10,199,11],[196,8,196,9],[196,10,196,11],[197,8,197,9],[197,10,197,11],[194,8,194,9],[194,10,194,11],[195,8,195,9],[195,10,195,11],[204,8,204,9],[204,10,204,11],[205,8,205,9],[205,10,205,11],[202,8,202,9],[202,10,202,11],[203,8,203,9],[203,10,203,11],[200,8,200,9],[200,10,200,11],[201,8,201,9],[201,10,201,11],[210,8,210,9],[210,10,210,11],[211,8,211,9],[211,10,211,11],[208,8,208,9],[208,10,208,11],[209,8,209,9],[209,10,209,11],[206,8,206,9],[206,10,206,11],[207,8,207,9],[207,10,207,11],[216,1,216,14],[218,1,218,15],[219,1,220,1],[219,2,220,2],[219,3,220,3],[219,4,220,4],[219,6,220,6],[219,7,220,11],[212,8,212,9],[212,10,212,11],[213,8,213,9],[213,10,213,11],[215,3,215,11],[1,1,2,2],[7,1,7,15],[268,7,268,11],[270,1,270,14],[38,3,38,11],[39,3,39,11],[69,3,69,11],[70,3,70,11],[93,3,93,11],[94,3,94,11],[158,3,158,11],[159,3,159,11],[214,3,214,11],[219,12,220,12],[219,13,219,15],[268,2,268,4],[268,12,268,13],[268,14,269,15],[269,2,269,4],[269,12,269,13],[269,6,269,11],[214,12,214,13],[215,12,215,13],[169,6,169,7],[170,6,170,7],[171,6,171,7],[172,6,172,7],[173,6,173,7],[174,6,174,7],[175,6,175,7],[176,6,176,7],[177,6,177,7],[178,6,178,7],[179,6,179,7],[180,6,180,7],[181,6,181,7],[182,6,182,7],[183,6,183,7],[184,6,184,7],[185,6,185,7],[186,6,186,7],[187,6,187,7],[188,6,188,7],[189,6,189,7],[190,6,190,7],[191,6,191,7],[192,6,192,7],[193,6,193,7],[194,6,194,7],[195,6,195,7],[196,6,196,7],[206,6,206,7],[207,6,207,7],[208,6,208,7],[209,6,209,7],[210,6,210,7],[211,6,211,7],[212,6,212,7],[213,6,213,7],[197,6,197,7],[198,6,198,7],[199,6,199,7],[200,6,200,7],[201,6,201,7],[202,6,202,7],[203,6,203,7],[204,6,204,7],[205,6,205,7]]}
[]
[null,"***NOTA: SE DEBE INCLUIR PRIMERO LA MATRICULA Y LUEGO SECCIONES "]
[]
[null,{"$error":"#VALUE!"},null,null,null,null,null,null,null,null,null,null,null,null,null,null,null,"RESUMEN DE LECCIONES Y AMPLIACION DEL SATELITE"]
[]
[]
[null,null,null,null,null,null,null,null,null,null,null,null,null,null,null,null,null,"SUMATORIA DE LAS LECCIONES POR SATELITE"]
[null,"NOMBRE DEL SATELITE N°2"]
[null,{"$f":"+'FORMULARIO '!B67:D67","v":0},null,null,null,null,null,null,null,null,null,null,null,null,null,null,null,"LECCIONES TECNICAS",null,{"$f":"SUM('EDUCAC TECNICA SATELITE 2'!J108)","v":0}]
[null,null,null,null,null,null,null,null,null,null,null,null,null,null,null,null,null,"*AMPLIACIONES I NIVEL",null,{"$f":"+SUM(P41)+(P162)","v":0}]
[null,null,null,null,null,null,null,null,null,null,null,null,null,null,null,null,null,"LECCIONES INGLES I NIVEL",null,{"$f":"SUM(P30)","v":0}]
[null,"1) DISTRIBUCIÓN DE MATRÍCULA Y LECCIONES: NIVEL I",null,null,null,null,null,null,null,null,null,null,null,null,null,null,null,"LECCIONES II NIVEL",null,{"$f":"SUM(P72)","v":0}]
[null,"No.","Descripción del Módulo","Atinencia","Lecciones por Módulo",null,"MATRICULA",null,null,null,null,null,"MATRICULA TOTAL ","Cantidad",null,null,null,"LECCIONES III NIVEL",null,{"$f":"SUM(P96)","v":0}]
[null,null,null,null,null,null,null,null,null,null,null,null,null,"Secciones","Promedio","Lecciones",null,"LECCIONES MODULARES OPCIONALES I NIVEL, II NIVEL Y III NIVEL",null,{"$f":"SUM(P217)+SUM(P161)","v":0}]
[null,null,null,null,null,null,"PERIODO 1","PERIODO 2","PERIODO 3","PERIODO 4","PERIODO 5","PERIODO 6",null,null,null,null,null,"LECCIONES I NIVEL PSICOLOGIA",null,{"$f":"SUM(P31)+SUM(P36)","v":0}]
[null,1,"Aplicaciones cotidianas de la matemática","Matemáticas",4,1,null,null,null,null,null,null,{"$f":"SUM(G16:L16)","v":0},null,{"$f":"+IF(N16=\"\",\"\",M16/N16)","v":""},{"$f":"IF(F16=1,Hoja3!D5)*N16","v":0},null,"CURSOS EMERGENTES",null,{"$f":"SUM(P271)","v":0}]
[null,2,"Disfrutando del mundo de las palabras","Español",4,1,null,null,null,null,null,null,0,null,"",{"$f":"IF(F17=1,Hoja3!D6)*N17","v":0},null,"Total Lecciones Requeridas:",null,{"$f":"SUM(T11:T16)+SUM(T9)","v":0}]
[null,3,"Construyamos nuestro bienestar personal y comunitario","Ciencias",3,1,null,null,null,null,null,null,0,null,"",{"$f":"IF(F18=1,Hoja3!D7)*N18","v":0}]
[null,4,"Vida Cotidiana: Deberes y Derechos en el entorno cercano","Estudios Sociales",3,1,null,null,null,null,null,null,0,null,"",{"$f":"IF(F19=1,Hoja3!D8)*N19","v":0},null,"*Nota: Las ampliaciones no se suman al total de lecciones."]
[null,5,"Promovamos el desarrollo humano en forma equitativa y sostenible","Ciencias",3,1,null,null,null,null,null,null,0,null,"",{"$f":"IF(F20=1,Hoja3!D9)*N20","v":0}]
[null,6,"Relieve de mi Cantón: Conociendo mi patrimonio natural y cultural","Estudios Sociales",3,1,null,null,null,null,null,null,0,null,"",{"$f":"IF(F21=1,Hoja3!D10)*N21","v":0}]
[null,7,"Historia y Geografia de mi provincia","Estudios Sociales",3,1,null,null,null,null,null,null,0,null,"",{"$f":"IF(F22=1,Hoja3!D11)*N22","v":0}]
[null,8,"Actividades humanas asociadas a los paisajes geográficos de mi provincia","Estudios Sociales",3,1,null,null,null,null,null,null,0,null,"",{"$f":"IF(F23=1,Hoja3!D12)*N23","v":0}]
[null,9,"Costa Rica: Una sociedad intercultural, multiétnica y plurilingüe","Estudios Sociales",2,1,null,null,null,null,null,null,0,null,"",{"$f":"IF(F24=1,Hoja3!D13)*N24","v":0}]
[null,10,"Cuidemos nuestro planeta y toda forma de vida","Ciencias",3,1,null,null,null,null,null,null,0,null,"",{"$f":"IF(F25=1,Hoja3!D14)*N25","v":0}]
[null,11,"Adoptemos estilos de vida saludables","Ciencias",2,1,null,null,null,null,null,null,0,null,"",{"$f":"IF(F26=1,Hoja3!D15)*N26","v":0}]
[null,12,"Convivamos en entornos naturales y socioculturales seguros","Ciencias",2,1,null,null,null,null,null,null,0,null,"",{"$f":"IF(F27=1,Hoja3!D16)*N27","v":0}]
[null,13,"Modifiquemos nuestros patrones de consumo y producción para salvaguardar la integridad del planeta","Ciencias",3,1,null,null,null,null,null,null,0,null,"",{"$f":"IF(F28=1,Hoja3!D17)*N28","v":0}]
[null,15,"Protejamos y restauremos los procesos naturales que sustentan la vida","Ciencias",3,1,null,null,null,null,null,null,0,null,"",{"$f":"IF(F29=1,Hoja3!D18)*N29","v":0}]
[null,16,"Nos comunicamos en otras lenguas","Idioma Extranjero",5,1,null,null,null,null,null,null,0,null,"",{"$f":"IF(F30=1,Hoja3!D19)*N30","v":0}]
[null,17,"Descubriendo mi estilo de aprendizaje","Psicología",2,1,null,null,null,null,null,null,0,null,"",{"$f":"IF(F31=1,Hoja3!D20)*N31","v":0}]
[null,18,"Valoramos la importancia de la igualdad y la libertad a partir de nuestra historia colonial","Estudios Sociales",2,1,null,null,null,null,null,null,0,null,"",{"$f":"IF(F32=1,Hoja3!D21)*N32","v":0}]
[null,20,"Construcción de nuestro estado nación para el fortalecimiento de la identidad nacional","Estudios Sociales",2,1,null,null,null,null,null,null,0,null,"",{"$f":"IF(F33=1,Hoja3!D22)*N33","v":0}]
[null,21,"La sociedad costarricense actual: sus desafios y oportunidades en el contexto mundial","Estudios Sociales",2,1,null,null,null,null,null,null,0,null,"",{"$f":"IF(F34=1,Hoja3!D23)*N34","v":0}]
[null,22,"Espacios de participación y representación de mi cantón","Estudios Sociales",3,1,null,null,null,null,null,null,0,null,"",{"$f":"IF(F35=1,Hoja3!D24)*N35","v":0}]
[null,23,"Planificando mi fururo","Psicología",2,1,null,null,null,null,null,null,0,null,"",{"$f":"IF(F36=1,Hoja3!D25)*N36","v":0}]
[null,24,"Aplicaciones cotidianas de la matemática","Matemáticas",4,1,null,null,null,null,null,null,0,null,"",{"$f":"IF(F37=1,Hoja3!D26)*N37","v":0}]
[null,25,"¡Comunicandonos en la cotidianidad!","Español",4,1,null,null,null,null,null,null,0,null,"",{"$f":"IF(F38=1,Hoja3!D27)*N38","v":0}]
[null,null,null,"CANTIDAD DE MATRICULA I NIVEL"]
[null,null,null,"CANTIDAD DE SECCIONES",null,null,null,null,null,null,null,null,{"$f":"SUM(N16:N38)","v":0}]
[null,"TOTAL AMPLIACIONES NIVEL I:",null,null,null,null,null,null,null,null,null,null,null,null,null,{"$f":"IF(SUM(P16:P38)=0,\"\",SUM(P16:P38)-(P30+P31+P36))","v":""}]
[null,null,null,null,null,null,null,null,null,null,null,"TOTAL LECCIONES INGLES Y PSICOLOGIA NIVEL I",null,null,null,{"$f":"SUM(P30+P31+P36)","v":0}]
[]
[]
[null,"2) DISTRIBUCIÓN DE MATRÍCULA Y LECCIONES: NIVEL II"]
[null,"No.","Descripción del Módulo","Atinencia","Lecciones por Módulo",null,"PERIODO 1","PERIODO 2","PERIODO 3",null,"PERIODO 4",null,"MATRICULA TOTAL ","Cantidad"]
[null,null,null,null,null,null,null,null,null,null,null,null,null,"Secciones","Promedio","Lecciones"]
[null,30,"La ciencia de lo humano para el desarrollo científico","Ciencias",4,1,null,null,null,null,null,null,{"$f":"SUM(G48:L48)","v":0},null,{"$f":"+IF(N48=\"\",\"\",M48/N48)","v":""},{"$f":"IF(F48=1,Hoja3!D32)*N48","v":0}]
[null,{"$f":"+B48+1","v":31},"¿Por qué es importante el estudio del espacio geográfico en el planeta tierra?","Estudios Sociales",4,1,null,null,null,null,null,null,0,null,"",{"$f":"IF(F49=1,Hoja3!D33)*N49","v":0}]
[null,{"$f":"+B49+1","v":32},"Crecemos en el lenguaje","Español",4,1,null,null,null,null,null,null,0,null,"",{"$f":"IF(F50=1,Hoja3!D34)*N50","v":0}]
[null,{"$f":"+B50+1","v":33},"Entorno Científico: seres vivos y energía en sostenibilidad","Ciencias",2,1,null,null,null,null,null,null,0,null,"",{"$f":"IF(F51=1,Hoja3!D35)*N51","v":0}]
[null,35,"La adaptación del ser humano aun medio ambiente cambiante","Estudios Sociales",2,1,null,null,null,null,null,null,0,null,"",{"$f":"IF(F52=1,Hoja3!D36)*N52","v":0}]
[null,{"$f":"+B52+1","v":36},"Razonamiento de los números, la geometría y el álgebra para la cotidianidad","Matemáticas",6,1,null,null,null,null,null,null,0,null,"",{"$f":"IF(F53=1,Hoja3!D37)*N53","v":0}]
[null,37,"Seguridad de las personas en Costa Rica","Educación Cívica",4,1,null,null,null,null,null,null,0,null,"",{"$f":"IF(F54=1,Hoja3!D38)*N54","v":0}]
[null,38,"Variedades de la lengua","Español",3,1,null,null,null,null,null,null,0,null,"",{"$f":"IF(F55=1,Hoja3!D39)*N55","v":0}]
[null,39,"Participación, representación y derechos humanos en la sociedad democrática","Educación Cívica",4,1,null,null,null,null,null,null,0,null,"",{"$f":"IF(F56=1,Hoja3!D40)*N56","v":0}]
[null,40,"Estadística básica","Matemáticas",2,1,null,null,null,null,null,null,0,null,"",{"$f":"IF(F57=1,Hoja3!D41)*N57","v":0}]
[null,41,"Química de la tierra y su formación","Ciencias",3,1,null,null,null,null,null,null,0,null,"",{"$f":"IF(F58=1,Hoja3!D42)*N58","v":0}]
[null,42,"Comprendiendo la historia: de la edad media al renacimiento del siglo V al XVI","Estudios Sociales",2,1,null,null,null,null,null,null,0,null,"",{"$f":"IF(F59=1,Hoja3!D43)*N59","v":0}]
[null,43,"Materia y energía en sociedad","Ciencias",3,1,null,null,null,null,null,null,0,null,"",{"$f":"IF(F60=1,Hoja3!D44)*N60","v":0}]
[null,44,"Los procesos plurisignificativos de la comunicación literaria","Español",3,1,null,null,null,null,null,null,0,null,"",{"$f":"IF(F61=1,Hoja3!D45)*N61","v":0}]
[null,45,"Materia Planetaria en sostenibilidad","Ciencias",2,1,null,null,null,null,null,null,0,null,"",{"$f":"IF(F62=1,Hoja3!D46)*N62","v":0}]
[null,46,"Nos cominicamos en otras lenguas","Idioma Extranjero",5,1,null,null,null,null,null,null,0,null,"",{"$f":"IF(F63=1,Hoja3!D47)*N63","v":0}]
[null,48,"Cotidianidad del ser humano: desde la Edad Moderno en Europa y América siglos XVI-XIX","Estudios Sociales",3,1,null,null,null,null,null,null,0,null,"",{"$f":"IF(F64=1,Hoja3!D48)*N64","v":0}]
[null,{"$f":"+B64+1","v":49},"Vivencia de la sexualidad en el contexto familiar y social","Ciencias",3,1,null,null,null,null,null,null,0,null,"",{"$f":"IF(F65=1,Hoja3!D49)*N65","v":0}]
[null,{"$f":"+B65+1","v":50},"Roles de trabajo y formas de comunicación en el mundo antiguo","Estudios Sociales",4,1,null,null,null,null,null,null,0,null,"",{"$f":"IF(F66=1,Hoja3!D50)*N66","v":0}]
[null,{"$f":"+B66+1","v":51},"Construyamos nuestra identidad ciudadana","Educación Cívica",4,1,null,null,null,null,null,null,0,null,"",{"$f":"IF(F67=1,Hoja3!D51)*N67","v":0}]
[null,52,"Aplicaciones de los números, la geometría y el álgebra en nuetro entorno","Matemáticas",5,1,null,null,null,null,null,null,0,null,"",{"$f":"IF(F68=1,Hoja3!D52)*N68","v":0}]
[null,53,"Comprendiendo  nuestro entorno a través de la estadística","Matemáticas",2,1,null,null,null,null,null,null,0,null,"",{"$f":"IF(F69=1,Hoja3!D53)*N69","v":0}]
[null,null,null,"CANTIDAD DE MATRICULA II NIVEL"]
[null,null,null,"CANTIDAD DE SECCIONES",null,null,null,null,null,null,null,null,{"$f":"SUM(N48:N69)","v":0}]
[null,"TOTAL LECCIONES NIVEL II:",null,null,null,null,null,null,null,null,null,null,null,null,null,{"$f":"IF(SUM(P48:P69)=0,\"\",SUM(P48:P69))","v":""}]
[]
[]
[null,"3) DISTRIBUCIÓN DE MATRÍCULA Y LECCIONES: NIVEL III"]
[null,"No.","Descripción del Módulo","Atinencia","Lecciones por Módulo",null,"PERIODO 1","PERIODO 2","PERIODO 3",null,"PERIODO 4",null,"MATRICULA TOTAL","Cantidad"]
[null,null,null,null,null,null,null,null,null,null,null,null,null,"Secciones","Promedio","Lecciones"]
[null,60,"Nos comunicamos mejor","Español",4,1,null,null,null,null,null,null,{"$f":"SUM(G78:L78)","v":0},null,{"$f":"+IF(N78=\"\",\"\",M78/N78)","v":""},{"$f":"IF(F78=1,Hoja3!D58)*N78","v":0}]
[null,{"$f":"+B78+1","v":61},"Sistemas y Regímenes políticos, el estado costarricense garante de oporunidades para la construcción de la cultura democrática","Educación Cívica",2,1,null,null,null,null,null,null,0,null,"",{"$f":"IF(F79=1,Hoja3!D59)*N79","v":0}]
[null,62,"¿Cómo las transformaciones sociales, económicas, y políticas del mundo comtemporáneo impactan a la sociedad actual? (siglo XIX-Epoca actual)","Estudios Sociales",3,1,null,null,null,null,null,null,0,null,"",{"$f":"IF(F80=1,Hoja3!D60)*N80","v":0}]
[null,63,"Una mirada a las problemáticas contemporáneas; Repercusiones de la dinámica poblacional y movilización espacial","Estudios Sociales",3,1,null,null,null,null,null,null,0,null,"",{"$f":"IF(F81=1,Hoja3!D61)*N81","v":0}]
[null,64,"Interdependencia e interconexión: Los patrones espaciales en la sociedad globalizado","Estudios Sociales",3,1,null,null,null,null,null,null,0,null,"",{"$f":"IF(F82=1,Hoja3!D62)*N82","v":0}]
[null,65,"Seres vivos en población","Ciencias (Biología)",4,1,null,null,null,null,null,null,0,null,"",{"$f":"IF(F83=1,Hoja3!D63)*N83","v":0}]
[null,66,"Valorando nuestra sociedad (siglo XX-XXI)","Estudios Sociales",3,1,null,null,null,null,null,null,0,null,"",{"$f":"IF(F84=1,Hoja3!D64)*N84","v":0}]
[null,68,"Aplicación de la química en el hogar y la comunidad","Ciencias (Química)",4,1,null,null,null,null,null,null,0,null,"",{"$f":"IF(F85=1,Hoja3!D65)*N85","v":0}]
[null,69,"Aplicaciones de la física en la vida diaria","Ciencias (Física)",4,1,null,null,null,null,null,null,0,null,"",{"$f":"IF(F86=1,Hoja3!D66)*N86","v":0}]
[null,{"$f":"+B86+1","v":70},"¿Dónde está presente la estadística?","Matemáticas",2,1,null,null,null,null,null,null,0,null,"",{"$f":"IF(F87=1,Hoja3!D67)*N87","v":0}]
[null,71,"Nos comunicamos en otras lenguas","Idioma Extranjero",5,1,null,null,null,null,null,null,0,null,"",{"$f":"IF(F88=1,Hoja3!D68)*N88","v":0}]
[null,72,"¿Cómo aplicar la estadística y la probabilidad en la vida diaria?","Matemáticas",2,1,null,null,null,null,null,null,0,null,"",{"$f":"IF(F89=1,Hoja3!D69)*N89","v":0}]
[null,73,"Construyamos el futuro","Ciencias (Biología)",3,1,null,null,null,null,null,null,0,null,"",{"$f":"IF(F90=1,Hoja3!D70)*N90","v":0}]
[null,74,"¿Cómo relacionar la geometría y las relaciones algebraicas con nuestro entorno?","Matemáticas",4,1,null,null,null,null,null,null,0,null,"",{"$f":"IF(F91=1,Hoja3!D71)*N91","v":0}]
[null,75,"¿Cómo nos puede ayudar las relaciones, el álgebra y la geometría a entender el mundo que nos rodea?","Matemáticas",4,1,null,null,null,null,null,null,0,null,"",{"$f":"IF(F92=1,Hoja3!D72)*N92","v":0}]
[null,76,"Ética Profesional","Filosofía",2,1,null,null,null,null,null,null,0,null,"",{"$f":"IF(F93=1,Hoja3!D73)*N93","v":0}]
[null,null,null,"CANTIDAD DE MATRICULA III NIVEL"]
[null,null,null,"CANTIDAD DE SECCIONES",null,null,null,null,null,null,null,null,{"$f":"SUM(N78:N93)","v":0}]
[null,"TOTAL LECCIONES NIVEL III:",null,null,null,null,null,null,null,null,null,null,null,null,null,{"$f":"IF(SUM(P78:P93)=0,\"\",SUM(P78:P93))","v":""}]
[]
[null,"CURSOS OPCIONALES PRIMERO DEBE DE ELEGIR LOS DE I NIVEL Y  POSTERIORMENTE DEBEN ELEGIR LOS CURSOS DE II Y III NIVEL (ESTO PARA MEJOR DISTRIBUCION)"]
[]
[]
[]
[null,"*****","FAVOR LLENAR LA MATRICULA Y SECCIONES A INCLUIR EN CURSOS OPCIONALES (OBLIGATORIO):"]
[null,null,null,null,null,null,null,"I NIVEL ",null,null,null,null,null,"II NIVEL ",null,null,null,"III NIVEL",null,null,null,"TOTAL"]
[null,null,null,null,null,null,null,"1 PERIODO","2 PERIODO","3 PERIODO","4 PERIODO","5 PERIODO","6 PERIODO","1 PERIODO","2 PERIODO","3 PERIODO","4 PERIODO","1 PERIODO","2 PERIODO","3 PERIODO","4 PERIODO"]
[null,null,null,null,null,null,"MATRICULA ",null,null,null,null,null,null,null,null,null,null,null,null,null,null,{"$f":"SUM(H105:U105)","v":0}]
[null,null,null,null,null,null,"SECCIONES ",null,null,null,null,null,null,null,null,null,null,null,null,null,null,{"$f":"SUM(H106:U106)","v":0}]
[]
[null,"Opcionales SOLO para I NIVEL (se subrayan las materias básicas estos se separan ya que se dan por AMPLIACIONES  y las otra atinencias por LECCIONES):"]
[]
[null,"4) DISTRIBUCIÓN DE MATRÍCULA Y LECCIONES: CURSOS MODULARES OPCIONALES I NIVEL"]
[null,"No.","Descripción del Módulo","Atinencia","Lecciones por Módulo",null,"MATRICULA I NIVEL",null,null,null,null,null,"MATRICULA TOTAL","Cantidad"]
[null,null,null,null,null,null,null,null,null,null,null,null,null,"Secciones","Promedio","Lecciones"]
[null,80,"Administración de la pequeña empresa","Contabilidad",5,1,null,null,null,null,null,null,{"$f":"SUM(G113:L113)","v":0},null,{"$f":"+IF(N113=\"\",\"\",M113/N113)","v":""},{"$f":"IF(F113,Hoja3!D129)*N113","v":0}]
[null,81,"Aprendamos a apreciar la música","Música",5,1,null,null,null,null,null,null,0,null,"",{"$f":"IF(F114,Hoja3!D130)*N114","v":0}]
[null,83,"¿Cómo administrar recursos humanos y financieros?","Contabilidad ",3,1,null,null,null,null,null,null,0,null,"",{"$f":"IF(F115,Hoja3!D131)*N115","v":0}]
[null,84,"Reconociendo a las personas con discapacidad como sujetas de derecho","Enseñanza Especial Generalista",3,1,null,null,null,null,null,null,0,null,"",{"$f":"IF(F116,Hoja3!D132)*N116","v":0}]
[null,85,"¿Cómo comunicarnos en una lengua indígena?","Educación Indígena",5,1,null,null,null,null,null,null,0,null,"",{"$f":"IF(F117,Hoja3!D133)*N117","v":0}]
[null,86,"¡A comunicarnos se ha dicho!","Español",3,1,null,null,null,null,null,null,0,null,"",{"$f":"IF(F118,Hoja3!D134)*N118","v":0}]
[null,87,"Conozcamos nuestra cultura autóctona","Estudios Sociales",3,1,null,null,null,null,null,null,0,null,"",{"$f":"IF(F119,Hoja3!D135)*N119","v":0}]
[null,88,"Contabilidad para la pequeña empresa","Contabilidad",3,1,null,null,null,null,null,null,0,null,"",{"$f":"IF(F120,Hoja3!D136)*N120","v":0}]
[null,89,"Creando con el lenguaje","Español",5,1,null,null,null,null,null,null,0,null,"",{"$f":"IF(F121,Hoja3!D137)*N121","v":0}]
[null,90,"Desarrollo mi creatividad","Español",3,1,null,null,null,null,null,null,0,null,"",{"$f":"IF(F122,Hoja3!D138)*N122","v":0}]
[null,93,"El camino para iniciar su propia empresa","Contabilidad",5,1,null,null,null,null,null,null,0,null,"",{"$f":"IF(F123,Hoja3!D139)*N123","v":0}]
[null,94,"El Bribri, Maleku, Cabecar, como mi lengua materna","Ingles, Educación Indigena",3,1,null,null,null,null,null,null,0,null,"",{"$f":"IF(F124,Hoja3!D140)*N124","v":0}]
[null,97,"Formación de líderes democráticos","Estudios Sociales",5,1,null,null,null,null,null,null,0,null,"",{"$f":"IF(F125,Hoja3!D141)*N125","v":0}]
[null,100,"Importancia de la actividad física: juegos pre-deportivos tradicionales y gimnasia formativa I NIVEL","Educación Física",5,1,null,null,null,null,null,null,0,null,"",{"$f":"IF(F126,Hoja3!D142)*N126","v":0}]
[null,102,"Relaciones humanas","Psicología",3,1,null,null,null,null,null,null,0,null,"",{"$f":"IF(F127,Hoja3!D143)*N127","v":0}]
[null,103,"Los pueblos y sus expresiones culturales","Estudios Sociales",4,1,null,null,null,null,null,null,0,null,"",{"$f":"IF(F128,Hoja3!D144)*N128","v":0}]
[null,106,"Mundo del turismo","Turismo Ecológico",2,1,null,null,null,null,null,null,0,null,"",{"$f":"IF(F129,Hoja3!D145)*N129","v":0}]
[null,107,"Nos organizamos para enfrentar desastres","Ciencias",2,1,null,null,null,null,null,null,0,null,"",{"$f":"IF(F130,Hoja3!D146)*N130","v":0}]
[null,108,"Orientación vocacional y profesional","Psicología",5,1,null,null,null,null,null,null,0,null,"",{"$f":"IF(F131,Hoja3!D147)*N131","v":0}]
[null,109,"Primeros auxilios","Educación Física",5,1,null,null,null,null,null,null,0,null,"",{"$f":"IF(F132,Hoja3!D148)*N132","v":0}]
[null,110,"Problemas y soluciones planetarios","Ciencias",3,1,null,null,null,null,null,null,0,null,"",{"$f":"IF(F133,Hoja3!D149)*N133","v":0}]
[null,111,"Promoción y defensa de los deberes y derechos del ciudadano","Estudios Sociales",3,1,null,null,null,null,null,null,0,null,"",{"$f":"IF(F134,Hoja3!D150)*N134","v":0}]
[null,118,"Vida en el planeta","Ciencias",5,1,null,null,null,null,null,null,0,null,"",{"$f":"IF(F135,Hoja3!D151)*N135","v":0}]
[null,119,"Visualicemos el futuro","Ciencias",5,1,null,null,null,null,null,null,0,null,"",{"$f":"IF(F136,Hoja3!D152)*N136","v":0}]
[null,120,"Planificando mi futuro","Psicología",2,1,null,null,null,null,null,null,0,null,"",{"$f":"IF(F137,Hoja3!D153)*N137","v":0}]
[null,121,"Descubriendo mi estilo de aprendizaje","Psicología",2,1,null,null,null,null,null,null,0,null,"",{"$f":"IF(F138,Hoja3!D154)*N138","v":0}]
[null,123,"Fortalecimiento de la matemática (OPCIONAL 1 NIVEL)","Matemática",3,1,null,null,null,null,null,null,0,null,"",{"$f":"IF(F139,Hoja3!D155)*N139","v":0}]
[null,124,"Fortalecimiento del Ingles","Ingles",3,1,null,null,null,null,null,null,0,null,"",{"$f":"IF(F140,Hoja3!D156)*N140","v":0}]
[null,125,"Fortalecimiento de los Estudios Sociales (OPCIONAL 1 NIVEL)","Estudios Sociales",3,1,null,null,null,null,null,null,0,null,"",{"$f":"IF(F141,Hoja3!D157)*N141","v":0}]
[null,126,"Fortalecimiento de la Biología","Ciencias",3,1,null,null,null,null,null,null,0,null,"",{"$f":"IF(F142,Hoja3!D158)*N142","v":0}]
[null,127,"Fortalecimiento de la Educación Cívica","Estudios Sociales",3,1,null,null,null,null,null,null,0,null,"",{"$f":"IF(F143,Hoja3!D159)*N143","v":0}]
[null,128,"Fortalecimiento del Español (OPCIONAL 1 NIVEL)","Español",3,1,null,null,null,null,null,null,0,null,"",{"$f":"IF(F144,Hoja3!D160)*N144","v":0}]
[null,129,"Fortalecimiento del Francés","Francés",3,1,null,null,null,null,null,null,0,null,"",{"$f":"IF(F145,Hoja3!D161)*N145","v":0}]
[null,130,"Fortalecimiento de la Quimica para Bachillerato","Ciencias",3,1,null,null,null,null,null,null,0,null,"",{"$f":"IF(F146,Hoja3!D162)*N146","v":0}]
[null,131,"Fortalecimiento de la Física para Bachillerato","Ciencias",3,1,null,null,null,null,null,null,0,null,"",{"$f":"IF(F147,Hoja3!D163)*N147","v":0}]
[null,139,"Tecnología y Trabajo","Informatica Educatica/ Desarrollo Sofware/ Progración Redes de Computadoras en Soporte",5,1,null,null,null,null,null,null,0,null,"",{"$f":"IF(F148,Hoja3!D164)*N148","v":0}]
[null,140,"Tecnología y Comunidad","Informatica Educatica/ Desarrollo Sofware/ Progración Redes de Computadoras en Soporte",5,1,null,null,null,null,null,null,0,null,"",{"$f":"IF(F149,Hoja3!D165)*N149","v":0}]
[null,141,"Tecnología y Emprendedurismo","Informatica Educatica/ Desarrollo Sofware/ Progración Redes de Computadoras en Soporte",5,1,null,null,null,null,null,null,0,null,"",{"$f":"IF(F150,Hoja3!D166)*N150","v":0}]
[null,142,"Expreción o Creción Musical","Música",5,1,null,null,null,null,null,null,0,null,"",{"$f":"IF(F151,Hoja3!D167)*N151","v":0}]
[null,143,"Desarrollo Comunitario (II Nivel)","Cualquier especilidad acádemica",2,1,null,null,null,null,null,null,0,null,"",{"$f":"IF(F152,Hoja3!D168)*N152","v":0}]
[null,144,"Desarrollo Comunitario (III Nivel)","Cualquier especilidad acádemica",3,1,null,null,null,null,null,null,0,null,"",{"$f":"IF(F153,Hoja3!D169)*N153","v":0}]
[null,145,"Introducción a la robótica","Informática, Informática educativa ambas con conocimiento en robótica",2,1,null,null,null,null,null,null,0,null,"",{"$f":"IF(F154,Hoja3!D170)*N154","v":0}]
[null,146,"Poniéndome en acción: entrenándome haciendo deporte y baile","Educación Física",5,1,null,null,null,null,null,null,0,null,"",{"$f":"IF(F155,Hoja3!D171)*N155","v":0}]
[null,147,"Promoviendo salud, venciendo desafíos","Educación Física",5,1,null,null,null,null,null,null,0,null,"",{"$f":"IF(F156,Hoja3!D172)*N156","v":0}]
[null,148,"Afectividad y sexualidad desde la cotidianidad","Psicología",2,1,null,null,null,null,null,null,0,null,"",{"$f":"IF(F157,Hoja3!D173)*N157","v":0}]
[null,149,"¡Qué lindo aprender Cabécar!","Educación indígena, especialidad lengua materna, subespecialidad: Cabécar",2,1,null,null,null,null,null,null,0,null,"",{"$f":"IF(F158,Hoja3!D174)*N158","v":0}]
[null,null,null,"CANTIDAD DE MATRICULA "]
[null,null,null,"CANTIDAD DE SECCIONES",null,null,null,null,null,null,null,null,{"$f":"SUM(N113:N158)","v":0}]
[null,"TOTAL LECCIONES CURSOS OPCIONALES NIVEL I:",null,null,null,null,null,null,null,null,null,null,null,null,null,{"$f":"IF(SUM(P113:P158)=0,\"\",SUM(P113:P158)+(-P118-P119-P121-P122-P125-P128-P130-P133-P134-P135-P136-P139-P141-P142-P143-P144))","v":""}]
[null,"TOTAL AMPLIACIONES CURSOS OPCIONALES NIVEL I:",null,null,null,null,null,null,null,null,null,null,null,null,null,{"$f":"SUM(P118+P119+P121+P122+P125+P128+P130+P133+P134+P135+P136+P139+P141+P142+P143+P144)","v":0}]
[]
[null,"Opcionales SOLO para II NIVEL Y III NIVEL a escoger (LECCIONES):"]
[]
[null,"4) DISTRIBUCIÓN DE MATRÍCULA Y LECCIONES: CURSOS MODULARES OPCIONALES II NIVEL Y III NIVEL "]
[null,"No.","Descripción del Módulo","Atinencia","Lecciones por Módulo",null,null,null,"II NIVEL",null,"III NIVEL",null,"MATRICULA TOTAL","Cantidad"]
[null,null,null,null,null,null,null,null,null,null,null,null,null,"Secciones","Promedio","Lecciones"]
[null,80,"Administración de la pequeña empresa","Contabilidad",5,1,null,null,null,null,null,null,{"$f":"SUM(G169:L169)","v":0},null,{"$f":"+IF(N169=\"\",\"\",M169/N169)","v":""},{"$f":"IF(F169,Hoja3!D129)*N169","v":0}]
[null,81,"Aprendamos a apreciar la música","Música",5,1,null,null,null,null,null,null,0,null,"",{"$f":"IF(F170,Hoja3!D130)*N170","v":0}]
[null,83,"¿Cómo administrar recursos humanos y financieros?","Contabilidad ",3,1,null,null,null,null,null,null,0,null,"",{"$f":"IF(F171,Hoja3!D131)*N171","v":0}]
[null,84,"Reconociendo a las personas con discapacidad como sujetas de derecho","Enseñanza Especial Generalista",3,1,null,null,null,null,null,null,0,null,"",{"$f":"IF(F172,Hoja3!D132)*N172","v":0}]
[null,85,"¿Cómo comunicarnos en una lengua indígena?","Educación Indígena",5,1,null,null,null,null,null,null,0,null,"",{"$f":"IF(F173,Hoja3!D133)*N173","v":0}]
[null,86,"¡A comunicarnos se ha dicho!","Español",3,1,null,null,null,null,null,null,0,null,"",{"$f":"IF(F174,Hoja3!D134)*N174","v":0}]
[null,87,"Conozcamos nuestra cultura autóctona","Estudios Sociales",3,1,null,null,null,null,null,null,0,null,"",{"$f":"IF(F175,Hoja3!D135)*N175","v":0}]
[null,88,"Contabilidad para la pequeña empresa","Contabilidad",3,1,null,null,null,null,null,null,0,null,"",{"$f":"IF(F176,Hoja3!D136)*N176","v":0}]
[null,89,"Creando con el lenguaje","Español",5,1,null,null,null,null,null,null,0,null,"",{"$f":"IF(F177,Hoja3!D137)*N177","v":0}]
[null,90,"Desarrollo mi creatividad","Español",3,1,null,null,null,null,null,null,0,null,"",{"$f":"IF(F178,Hoja3!D138)*N178","v":0}]
[null,93,"El camino para iniciar su propia empresa","Contabilidad",5,1,null,null,null,null,null,null,0,null,"",{"$f":"IF(F179,Hoja3!D139)*N179","v":0}]
[null,94,"El Bribri, Maleku, Cabecar, como mi lengua materna","Ingles, Educación Indigena",3,1,null,null,null,null,null,null,0,null,"",{"$f":"IF(F180,Hoja3!D140)*N180","v":0}]
[null,97,"Formación de líderes democráticos","Estudios Sociales",5,1,null,null,null,null,null,null,0,null,"",{"$f":"IF(F181,Hoja3!D141)*N181","v":0}]
[null,100,"Importancia de la actividad física: juegos pre-deportivos tradicionales y gimnasia formativa","Educación Física",5,1,null,null,null,null,null,null,0,null,"",{"$f":"IF(F182,Hoja3!D142)*N182","v":0}]
[null,102,"Relaciones humanas","Psicología",3,1,null,null,null,null,null,null,0,null,"",{"$f":"IF(F183,Hoja3!D143)*N183","v":0}]
[null,103,"Los pueblos y sus expresiones culturales","Estudios Sociales",4,1,null,null,null,null,null,null,0,null,"",{"$f":"IF(F184,Hoja3!D144)*N184","v":0}]
[null,106,"Mundo del turismo","Turismo Ecológico",2,1,null,null,null,null,null,null,0,null,"",{"$f":"IF(F185,Hoja3!D145)*N185","v":0}]
[null,107,"Nos organizamos para enfrentar desastres","Ciencias",2,1,null,null,null,null,null,null,0,null,"",{"$f":"IF(F186,Hoja3!D146)*N186","v":0}]
[null,108,"Orientación vocacional y profesional","Psicología",5,1,null,null,null,null,null,null,0,null,"",{"$f":"IF(F187,Hoja3!D147)*N187","v":0}]
[null,109,"Primeros auxilios","Educación Física",5,1,null,null,null,null,null,null,0,null,"",{"$f":"IF(F188,Hoja3!D148)*N188","v":0}]
[null,110,"Problemas y soluciones planetarios","Ciencias",3,1,null,null,null,null,null,null,0,null,"",{"$f":"IF(F189,Hoja3!D149)*N189","v":0}]
[null,111,"Promoción y defensa de los deberes y derechos del ciudadano","Estudios Sociales",3,1,null,null,null,null,null,null,0,null,"",{"$f":"IF(F190,Hoja3!D150)*N190","v":0}]
[null,118,"Vida en el planeta","Ciencias",5,1,null,null,null,null,null,null,0,null,"",{"$f":"IF(F191,Hoja3!D151)*N191","v":0}]
[null,119,"Visualicemos el futuro","Ciencias",5,1,null,null,null,null,null,null,0,null,"",{"$f":"IF(F192,Hoja3!D152)*N192","v":0}]
[null,120,"Planificando mi futuro","Psicología",2,1,null,null,null,null,null,null,0,null,"",{"$f":"IF(F193,Hoja3!D153)*N193","v":0}]
[null,121,"Descubriendo mi estilo de aprendizaje","Psicología",2,1,null,null,null,null,null,null,0,null,"",{"$f":"IF(F194,Hoja3!D154)*N194","v":0}]
[null,123,"Fortalecimiento de la matemática ","Matemática",3,1,null,null,null,null,null,null,0,null,"",{"$f":"IF(F195,Hoja3!D155)*N195-G195","v":0}]
[null,124,"Fortalecimiento del Ingles","Ingles",3,1,null,null,null,null,null,null,0,null,"",{"$f":"IF(F196,Hoja3!D156)*N196","v":0}]
[null,125,"Fortalecimiento de los Estudios Sociales","Estudios Sociales",3,1,null,null,null,null,null,null,0,null,"",{"$f":"IF(F197,Hoja3!D157)*N197","v":0}]
[null,126,"Fortalecimiento de la Biología","Ciencias",3,1,null,null,null,null,null,null,0,null,"",{"$f":"IF(F198,Hoja3!D158)*N198","v":0}]
[null,127,"Fortalecimiento de la Educación Cívica","Estudios Sociales",3,1,null,null,null,null,null,null,0,null,"",{"$f":"IF(F199,Hoja3!D159)*N199","v":0}]
[null,128,"Fortalecimiento del Español ","Español",3,1,null,null,null,null,null,null,0,null,"",{"$f":"IF(F200,Hoja3!D160)*N200","v":0}]
[null,129,"Fortalecimiento del Francés","Francés",3,1,null,null,null,null,null,null,0,null,"",{"$f":"IF(F201,Hoja3!D161)*N201","v":0}]
[null,130,"Fortalecimiento de la Quimica para Bachillerato","Ciencias",3,1,null,null,null,null,null,null,0,null,"",{"$f":"IF(F202,Hoja3!D162)*N202","v":0}]
[null,131,"Fortalecimiento de la Física para Bachillerato","Ciencias",3,1,null,null,null,null,null,null,0,null,"",{"$f":"IF(F203,Hoja3!D163)*N203","v":0}]
[null,139,"Tecnología y Trabajo","Informatica Educatica/ Desarrollo Sofware/ Progración Redes de Computadoras en Soporte",5,1,null,null,null,null,null,null,0,null,"",{"$f":"IF(F204,Hoja3!D164)*N204","v":0}]
[null,140,"Tecnología y Comunidad","Informatica Educatica/ Desarrollo Sofware/ Progración Redes de Computadoras en Soporte",5,1,null,null,null,null,null,null,0,null,"",{"$f":"IF(F205,Hoja3!D165)*N205","v":0}]
[null,141,"Tecnología y Emprendedurismo","Informatica Educatica/ Desarrollo Sofware/ Progración Redes de Computadoras en Soporte",5,1,null,null,null,null,null,null,0,null,"",{"$f":"IF(F206,Hoja3!D166)*N206","v":0}]
[null,142,"Expreción o Creción Musical","Música",5,1,null,null,null,null,null,null,0,null,"",{"$f":"IF(F207,Hoja3!D167)*N207","v":0}]
[null,143,"Desarrollo Comunitario (II Nivel)","Cualquier especilidad acádemica",2,1,null,null,null,null,null,null,0,null,"",{"$f":"IF(F208,Hoja3!D168)*N208","v":0}]
[null,144,"Desarrollo Comunitario (III Nivel)","Cualquier especilidad acádemica",3,1,null,null,null,null,null,null,0,null,"",{"$f":"IF(F209,Hoja3!D169)*N209","v":0}]
[null,145,"Introducción a la robótica","Informática, Informática educativa ambas con conocimiento en robótica",2,1,null,null,null,null,null,null,0,null,"",{"$f":"IF(F210,Hoja3!D170)*N210","v":0}]
[null,146,"Poniéndome en acción: entrenándome haciendo deporte y baile","Educación Física",5,1,null,null,null,null,null,null,0,null,"",{"$f":"IF(F211,Hoja3!D171)*N211","v":0}]
[null,147,"Promoviendo salud, venciendo desafíos","Educación Física",5,1,null,null,null,null,null,null,0,null,"",{"$f":"IF(F212,Hoja3!D172)*N212","v":0}]
[null,148,"Afectividad y sexualidad desde la cotidianidad","Psicología",2,1,null,null,null,null,null,null,0,null,"",{"$f":"IF(F213,Hoja3!D173)*N213","v":0}]
[null,149,"¡Qué lindo aprender Cabécar!","Educación indígena, especialidad lengua materna, subespecialidad: Cabécar",2,1,null,null,null,null,null,null,0,null,"",{"$f":"IF(F214,Hoja3!D174)*N214","v":0}]
[null,null,null,"CANTIDAD DE MATRICULA "]
[null,null,null,"CANTIDAD DE SECCIONES",null,null,null,null,null,null,null,null,{"$f":"SUM(N169:N214)","v":0}]
[null,"TOTAL LECCIONES CURSOS OPCIONALES NIVEL II Y III:",null,null,null,null,null,null,null,null,null,null,null,null,null,{"$f":"IF(SUM(P169:P214)=0,\"\",SUM(P169:P214))","v":""}]
[]
[null,"6) DISTRIBUCIÓN DE MATRÍCULA Y LECCIONES: CURSOS LIBRES"]
[null,"No.","Descripción del Módulo","Atinencia","Lecciones por Módulo",null,"MATRICULA POR CURSO",null,null,null,null,null,"MATRICULA TOTAL","Cantidad"]
[null,null,null,null,null,null,null,null,null,null,null,null,null,"Secciones","Promedio","Lecciones"]
[null,250,"Preparación y productos de repostería","Educ/hogar",5,1,null,null,null,null,null,null,{"$f":"G222","v":0},null,{"$f":"+IF(N222=\"\",\"\",M222/N222)","v":""},{"$f":"IF(F222,Hoja3!D179)*N222","v":0}]
[null,271,"Mantenimiento preventivo de computadoras","Informática de desarrollo del software, en programación, en redes de computadoras, en soporte.",5,1,null,null,null,null,null,null,{"$f":"G223","v":0},null,"",{"$f":"IF(F223,Hoja3!D180)*N223","v":0}]
[null,259,"Bases de datos ","Informática de desarrollo del software, en programación, en redes de computadoras, en soporte.",5,1,null,null,null,null,null,null,0,null,"",{"$f":"IF(F224,Hoja3!D181)*N224","v":0}]
[null,260,"Diseño  WEB","Informática en desarrollo del software",5,1,null,null,null,null,null,null,0,null,"",{"$f":"IF(F225,Hoja3!D182)*N225","v":0}]
[null,255,"Técnicas Secretariales","Secretariado ejecutivo, secretariado bilingüe o ejecutivo para centros de servicio",5,1,null,null,null,null,null,null,0,null,"",{"$f":"IF(F226,Hoja3!D183)*N226","v":0}]
[null,265,"Oficina moderna","Secretariado ejecutivo, secretariado bilingüe o ejecutivo para centros de servicio",5,1,null,null,null,null,null,null,0,null,"",{"$f":"IF(F227,Hoja3!D184)*N227","v":0}]
[null,261,"Ingles conversacional  inicial I NIVEL","Inglés",5,1,null,null,null,null,null,null,0,null,"",{"$f":"IF(F228,Hoja3!D185)*N228","v":0}]
[null,262,"Ingles conversacional intermedio II NIVEL","Inglés",5,1,null,null,null,null,null,null,0,null,"",{"$f":"IF(F229,Hoja3!D186)*N229","v":0}]
[null,263,"Ingles conversacional  avanzado III NIVEL","Inglés",5,1,null,null,null,null,null,null,0,null,"",{"$f":"IF(F230,Hoja3!D187)*N230","v":0}]
[null,253,"Principios de contabilidad","Contabilidad",5,1,null,null,null,null,null,null,0,null,"",{"$f":"IF(F231,Hoja3!D188)*N231","v":0}]
[null,256,"Técnicas de manejo de hidroponía y abono orgánico","Agroecología",3,1,null,null,null,null,null,null,0,null,"",{"$f":"IF(F232,Hoja3!D189)*N232","v":0}]
[null,279,"El mundo de los negocios de capital individual y asociativo","Contabilidad o profesor de estado de educación comercial y de servicios.",3,1,null,null,null,null,null,null,0,null,"",{"$f":"IF(F233,Hoja3!D190)*N233","v":0}]
[null,280,"Doctrina cooperativa","Estudios Sociales",3,1,null,null,null,null,null,null,0,null,"",{"$f":"IF(F234,Hoja3!D191)*N234","v":0}]
[null,281,"Gestión Cooperativa","Estudios Sociales",3,1,null,null,null,null,null,null,0,null,"",{"$f":"IF(F235,Hoja3!D192)*N235","v":0}]
[null,282,"Líderes y gestores de iniciativas de negocios","Contabilidad o profesor de estado de educación comercial y de servicios",3,1,null,null,null,null,null,null,0,null,"",{"$f":"IF(F236,Hoja3!D193)*N236","v":0}]
[null,258,"Montajes eléctricos básicos","Electrónica industrial y electrotecnia",5,1,null,null,null,null,null,null,0,null,"",{"$f":"IF(F237,Hoja3!D194)*N237","v":0}]
[null,269,"Refrigeración doméstica","Refrigeración y aire acondicionado",5,1,null,null,null,null,null,null,0,null,"",{"$f":"IF(F238,Hoja3!D195)*N238","v":0}]
[null,272,"Técnicas de bisutería y orfebrería","Educ/hogar",5,1,null,null,null,null,null,null,0,null,"",{"$f":"IF(F239,Hoja3!D196)*N239","v":0}]
[null,252,"Confección de accesorios para el hogar","Educ/hogar",5,1,null,null,null,null,null,null,0,null,"",{"$f":"IF(F240,Hoja3!D197)*N240","v":0}]
[null,254,"Técnica manuales y  confección de artículos con material de desecho","Educ/hogar",5,1,null,null,null,null,null,null,0,null,"",{"$f":"IF(F241,Hoja3!D198)*N241","v":0}]
[null,266,"Hagamos artesanías","Educ/hogar o artesanías",5,1,null,null,null,null,null,null,0,null,"",{"$f":"IF(F242,Hoja3!D199)*N242","v":0}]
[null,257,"Alta costura","Educ/hogar",5,1,null,null,null,null,null,null,0,null,"",{"$f":"IF(F243,Hoja3!D200)*N243","v":0}]
[null,270,"Corte y confección","Educ/hogar",5,1,null,null,null,null,null,null,0,null,"",{"$f":"IF(F244,Hoja3!D201)*N244","v":0}]
[null,267,"Técnicas de estética y estilismo","Educ/hogar",5,1,null,null,null,null,null,null,0,null,"",{"$f":"IF(F245,Hoja3!D202)*N245","v":0}]
[null,268,"Corte de cabello clásico y alta peluquería","Educ/hogar",5,1,null,null,null,null,null,null,0,null,"",{"$f":"IF(F246,Hoja3!D203)*N246","v":0}]
[null,264,"Dibujo Técnico","Artes plásticas",5,1,null,null,null,null,null,null,0,null,"",{"$f":"IF(F247,Hoja3!D204)*N247","v":0}]
[null,273,"Servicio al cliente","Secretariado ejecutivo, secretariado bilingüe o ejecutivo para centros de servicio",5,1,null,null,null,null,null,null,0,null,"",{"$f":"IF(F248,Hoja3!D205)*N248","v":0}]
[null,274,"Taller de Teatro","Teatro",5,1,null,null,null,null,null,null,0,null,"",{"$f":"IF(F249,Hoja3!D206)*N249","v":0}]
[null,275,"Taller de pintura","Artes  Plásticas",5,1,null,null,null,null,null,null,0,null,"",{"$f":"IF(F250,Hoja3!D207)*N250","v":0}]
[null,276,"Taller en música","Música",5,1,null,null,null,null,null,null,0,null,"",{"$f":"IF(F251,Hoja3!D208)*N251","v":0}]
[null,277,"Promoción de la salud","Física",5,1,null,null,null,null,null,null,0,null,"",{"$f":"IF(F252,Hoja3!D209)*N252","v":0}]
[null,278,"Preparacion de Bebidas","Turismo: alimentos y bebidas. Hotelería y eventos especiales.",5,1,null,null,null,null,null,null,0,null,"",{"$f":"IF(F253,Hoja3!D210)*N253","v":0}]
[null,283,"Educación Solidarista","Estudios Sociales",3,1,null,null,null,null,null,null,0,null,"",{"$f":"IF(F254,Hoja3!D211)*N254","v":0}]
[null,284,"Principios de administración solidarista","Estudios Sociales",3,1,null,null,null,null,null,null,0,null,"",{"$f":"IF(F255,Hoja3!D212)*N255","v":0}]
[null,285,"Reparaciones básicas en la casa","Diseño y construcción de muebles y estructuras.",5,1,null,null,null,null,null,null,0,null,"",{"$f":"IF(F256,Hoja3!D213)*N256","v":0}]
[null,286,"AL disfrutar del movimiento, mejora mi salud","Educ/Fisica",5,1,null,null,null,null,null,null,0,null,"",{"$f":"IF(F257,Hoja3!D214)*N257","v":0}]
[null,287,"Educación Vial","Doc. de cualquier especialidad académica, que cuente con el aval de la Dirección General de Educación Vial",2,1,null,null,null,null,null,null,0,null,"",{"$f":"IF(F258,Hoja3!D215)*N258","v":0}]
[null,288,"Hagamos arte ","Artes Plásticas",5,1,null,null,null,null,null,null,0,null,"",{"$f":"IF(F259,Hoja3!D216)*N259","v":0}]
[null,289,"Manipulación de Alimentos","Técnico en agro-industria, tecnología de alimentos, Nutricionista",3,1,null,null,null,null,null,null,0,null,"",{"$f":"IF(F260,Hoja3!D217)*N260","v":0}]
[null,290,"¡Cuidemos a nuestros adultos mayores!","Doc. De cualquier especialidad academica que cuente con el certificado del IDP sobre gerontología",5,1,null,null,null,null,null,null,0,null,"",{"$f":"IF(F261,Hoja3!D218)*N261","v":0}]
[null,291,"Prevención y seguridad laboral","Salud ocupacional",5,1,null,null,null,null,null,null,0,null,"",{"$f":"IF(F262,Hoja3!D219)*N262","v":0}]
[null,292,"Preparación de comidas nacionales","Educación para el Hogar",5,1,null,null,null,null,null,null,0,null,"",{"$f":"IF(F263,Hoja3!D220)*N263","v":0}]
[null,293,"Preparación de comidas internacionales","Educación para el Hogar",5,1,null,null,null,null,null,null,0,null,"",{"$f":"IF(F264,Hoja3!D221)*N264","v":0}]
[null,294,"Elaboración de confites, chocolates y postres","Educación para el Hogar",5,1,null,null,null,null,null,null,0,null,"",{"$f":"IF(F265,Hoja3!D222)*N265","v":0}]
[null,295,"Elaboración y decoración de pastelería","Educación para el Hogar",5,1,null,null,null,null,null,null,0,null,"",{"$f":"IF(F266,Hoja3!D223)*N266","v":0}]
[null,296,"¿Cómo desarollor el pensamiento matemático a través de la creatividad?","Matemática",2,1,null,null,null,null,null,null,0,null,"",{"$f":"IF(F267,Hoja3!D224)*N267","v":0}]
[null,297,"Búsqueda del conocimiento al alcance de todos","Docentes de cualquier especialidad académica",2,1,null,null,null,null,null,null,0,null,"",{"$f":"IF(F268,Hoja3!D225)*N268","v":0}]
[null,null,null,null,null,null,null,"CANTIDAD DE MATRICULA "]
[null,null,null,null,null,null,"CANTIDAD DE SECCIONES",null,null,null,null,null,{"$f":"SUM(N222:N268)","v":0}]
[null,"TOTAL LECCIONES CURSOS LIBRES:",null,null,null,null,null,null,null,null,null,null,null,null,null,{"$f":"IF(SUM(P222:P268)=0,\"\",SUM(P222:P268))","v":""}]

{"sheet":"EDUCAC TECNICA SATELITE 2","index":10,"n_rows":112,"n_cols":18,"rows_kept":112,"cut":false,"hidden":false,"merged":[[12,1,13,1],[12,2,13,2],[12,3,12,5],[12,6,12,7],[12,8,12,10],[26,13,26,15],[29,0,29,15],[26,3,26,5],[27,3,27,5],[110,5,110,8],[30,1,31,1],[30,2,31,2],[30,3,30,5],[30,8,30,10],[30,13,30,15],[84,16,84,17],[47,11,47,12],[50,0,50,15],[51,1,52,1],[51,2,52,2],[51,3,51,5],[51,8,51,10],[51,13,51,15],[105,5,105,8],[106,5,106,8],[107,5,107,8],[8,2,8,3],[99,11,99,12],[100,0,100,10],[100,11,100,12],[102,5,102,9],[103,5,103,8],[104,5,104,8],[79,11,79,12],[82,0,82,17],[83,13,83,17],[84,3,84,5],[84,8,84,10],[84,13,84,15],[0,0,3,17],[9,19,9,25],[10,19,10,25],[11,19,12,19],[11,20,11,22],[11,23,11,25],[12,11,12,12],[12,13,12,15],[12,16,12,17],[6,1,7,2],[4,0,4,17],[5,0,5,17],[9,0,9,17],[10,0,10,17],[11,0,11,17],[12,0,13,0]]}
[{"$error":"#VALUE!"}]
[]
[]
[]
["IPEC"]
["CURSO LECTIVO 2024"]
[null,"***NOTA: SE DEBE INCLUIR PRIMERO LA MATRICULA Y LUEGO SECCIONES (LLENAR SOLO SI CUENTAN CON APROBACION)"]
[]
[null,"NOMBRE DEL SATELITE 2:"]
["5) DISTRIBUCIÓN DE MATRÍCULA Y LECCIONES: EDUCACIÓN TÉCNICA"]
["Utilizar SOLO para Grupos Completos "]
["PLAN 2 AÑOS "]
["No.","Especialidad","Lecciones por Módulo",null,null,null,"Matricula PLAN DOS AÑOS",null,null,null,null,"SECCIONES PLAN DOS AÑOS",null,null,null,null,"LECCIONES PLAN DOS AÑOS"]
[null,null,null,null,null,null,"I NIVEL","II NIVEL",null,null,null,"I NIVEL","II NIVEL",null,null,null,"I NIVEL","II NIVEL"]
[155,"Secretariado Ejecutivo PLAN DOS AÑOS",38,null,null,null,null,null,null,null,null,null,null,null,null,null,{"$f":"IF(L15=\"\",\"\",IF(G15/L15<15,\"Incomp.\",$C15*L15))","v":""},{"$f":"IF(M15=\"\",\"\",IF(H15/M15<15,\"Incomp.\",$C15*M15))","v":""}]
[{"$f":"+A15+1","v":156},"Informática en Soporte PLAN DOS AÑOS",38,null,null,null,null,null,null,null,null,null,null,null,null,null,{"$f":"IF(L16=\"\",\"\",IF(G16/L16<15,\"Incomp.\",$C16*L16))","v":""},""]
[157,"Ecoturismo PLAN DOS AÑOS",38,null,null,null,null,null,null,null,null,null,null,null,null,null,"",""]
[158,"Contabilidad y Finanzas PLAN DOS AÑOS",38,null,null,null,null,null,null,null,null,null,null,null,null,null,"",""]
[159,"Informática en Redes de computadoras PLAN DOS AÑOS",38,null,null,null,null,null,null,null,null,null,null,null,null,null,"",""]
[160,"Operación en Empresas de Alojamiento PLAN DOS AÑOS",38,null,null,null,null,null,null,null,null,null,null,null,null,null,"",""]
[161,"Salud Ocupacional PLAN DOS AÑOS",38,null,null,null,null,null,null,null,null,null,null,null,null,null,"",""]
[null,"Diseño y confeccion de la moda PLAN DOS AÑOS",38,null,null,null,null,null,null,null,null,null,null,null,null,null,"",""]
[null,"Ciberseguridad PLAN DOS AÑOS",38,null,null,null,null,null,null,null,null,null,null,null,null,null,"",""]
[null,"Productividad y Calidad PLAN DOS AÑOS",38,null,null,null,null,null,null,null,null,null,null,null,null,null,"",""]
[null,"Administración, Logística y distribución PLAN DOS AÑOS",38,null,null,null,null,null,null,null,null,null,null,null,null,null,"",""]
[null,"Contabilidad PLAN DOS AÑOS",38,null,null,null,null,null,null,null,null,null,null,null,null,null,"",""]
[null,null,null,"MATRICULA POR NIVELES",null,null,{"$f":"SUM(G15:G26)","v":0},{"$f":"SUM(H15:H26)","v":0},null,null,null,null,null,"TOTAL LECC PLAN 2 AÑOS",null,null,{"$f":"SUM(Q15:Q26)","v":0},{"$f":"SUM(R15:R26)","v":0}]
[null,null,null,"MATRICULA TOTAL",null,null,{"$f":"G27+H27","v":0}]
[]
["PLAN REGULAR 3 AÑOS DIURNA"]
[null,"Especialidad","Lecciones por Módulo","Matrícula PLAN REGULAR",null,null,null,null,"SECCIONES PLAN REGULAR",null,null,null,null,"LECCIONES PLAN REGULAR"]
[null,null,null,"10°","11°","12°",null,null,"10°","11°","12°",null,null,"10°","11°","12°"]
[162,"Informática en Soporte DIURNA",24,null,null,null,null,null,null,null,null,null,null,{"$f":"IF(I33=\"\",\"\",IF(D33/I33<15,\"Incomp.\",$C33*I33))","v":""},{"$f":"IF(J33=\"\",\"\",IF(E33/J33<12,\"Incomp.\",$C33*J33))","v":""},""]
[163,"Turismo en Alimentos y bebidas DIURNA",24,null,null,null,null,null,null,null,null,null,null,"","",""]
[164,"Secretariado Ejecutivo DIURNA",24,null,null,null,null,null,null,null,null,null,null,"","",""]
[165,"Banca y Finanzas DIURNA",24,null,null,null,null,null,null,null,null,null,null,"","",""]
[166,"Contabilidad DIURNA",24,null,null,null,null,null,null,null,null,null,null,"","",""]
[167,"Contabilidad y Finanzas DIURNA",24,null,null,null,null,null,null,null,null,null,null,"","",""]
[168,"Contabilidad y Control Interno DIURNA",24,null,null,null,null,null,null,null,null,null,null,"","",""]
[169,"Salud Ocupacional DIURNA",24,null,null,null,null,null,null,null,null,null,null,"","",""]
[170,"Operación en Empresas de Alojamiento DIURNA",24,null,null,null,null,null,null,null,null,null,null,"","",""]
[171,"Turismo Rural DIURNA",24,null,null,null,null,null,null,null,null,null,null,"","",""]
[172," Informática en Desarrollo del Software DIURNA",24,null,null,null,null,null,null,null,null,null,null,"","",""]
[173,"Administración, Logística y distribución DIURNA",24,null,null,null,null,null,null,null,null,null,null,"","",""]
[174,"Ejecutivo Comercial y Servicio al Cliente DIURNA",24,null,null,null,null,null,null,null,null,null,null,"","",""]
[null,"Productividad y Calidad DIURNA",24,null,null,null,null,null,null,null,null,null,null,"","",""]
[175,"Administración y Operación Aduanera DIURNA",24,null,null,null,null,null,null,null,null,null,null,"","",""]
[null,null,"MATRICULA POR NIVELES",{"$f":"SUM(D33:D47)","v":0},{"$f":"SUM(E33:E47)","v":0},{"$f":"SUM(F33:F47)","v":0},null,null,null,null,null,"TOTAL LECC DIURNA",null,{"$f":"SUM(N33:N47)","v":0},{"$f":"SUM(O33:O47)","v":0},{"$f":"SUM(P41:P47)","v":0}]
[null,null,"MATRICULA TOTAL",{"$f":"D48+E48+F48","v":0}]
[]
["PLAN REGULAR 3 AÑOS NOCTURNA"]
[null,"Especialidad","Lecciones por Módulo","Matrícula PLAN REGULAR",null,null,null,null,"SECCIONES PLAN REGULAR",null,null,null,null,"LECCIONES PLAN REGULAR"]
[null,null,null,"10°","11°","12°",null,null,"10°","11°","12°",null,null,"10°","11°","12°"]
[162,"Informática en Soporte NOCTURNO",24,null,null,null,null,null,null,null,null,null,null,{"$f":"IF(I54=\"\",\"\",IF(D54/I54<15,\"Incomp.\",$C54*I54))","v":""},{"$f":"IF(J54=\"\",\"\",IF(E54/J54<12,\"Incomp.\",$C54*J54))","v":""},""]
[163,"Turismo en Alimentos y bebidas NOCTURNO",24,null,null,null,null,null,null,null,null,null,null,"","",""]
[164,"Secretariado Ejecutivo NOCTURNO",24,null,null,null,null,null,null,null,null,null,null,"","",""]
[165,"Banca y Finanzas NOCTURNO",24,null,null,null,null,null,null,null,null,null,null,"","",""]
[166,"Contabilidad  NOCTURNO",24,null,null,null,null,null,null,null,null,null,null,"","",""]
[167,"Contabilidad y Finanzas NOCTURNO",24,null,null,null,null,null,null,null,null,null,null,"","",""]
[168,"Contabilidad y Control Interno NOCTURNO",24,null,null,null,null,null,null,null,null,null,null,"","",""]
[169,"Salud Ocupacional NOCTURNO ",24,null,null,null,null,null,null,null,null,null,null,"","",""]
[170,"Operación en Empresas de Alojamiento NOCTURNO",24,null,null,null,null,null,null,null,null,null,null,"","",""]
[171,"Turismo Rural NOCTURNO",24,null,null,null,null,null,null,null,null,null,null,"","",""]
[172," Informática en Desarrollo del Software NOCTURNO",24,null,null,null,null,null,null,null,null,null,null,"","",""]
[173,"Administración, Logística y distribución NOCTURNO",24,null,null,null,null,null,null,null,null,null,null,"","",""]
[null,"Mecanica General NOCTURNO",24,null,null,null,null,null,null,null,null,null,null,"","",""]
[null,"Desarrollo Web NOCTURNO",24,null,null,null,null,null,null,null,null,null,null,"",{"$f":"IF(J67=\"\",\"\",IF(E67/J67<12,\"Incomp.\",$C67*J67))","v":""},""]
[null,"Mercadeo NOCTURNO",24,null,null,null,null,null,null,null,null,null,null,"","",""]
[null,"Ejecutivo Comercial y Servicio al Cliente NOCTURNO",24,null,null,null,null,null,null,null,null,null,null,"","",""]
[null,"Bilingual Secretary NOCTURNO",24,null,null,null,null,null,null,null,null,null,null,"","",""]
[null,"Ciberseguridad NOCTURNO",24,null,null,null,null,null,null,null,null,null,null,"","",""]
[null,"Productividad y Calidad NOCTURNO",24,null,null,null,null,null,null,null,null,null,null,"","",""]
[null,"Ecoturismo NOCTURNO",24,null,null,null,null,null,null,null,null,null,null,"","",""]
[null,"Construccion Civil NOCTURNO",24,null,null,null,null,null,null,null,null,null,null,"","",""]
[null,"Diseño y Confección de la Moda NOCTURNO",24,null,null,null,null,null,null,null,null,null,null,"","",""]
[null,"Configuración y soporte de redes de comunic y sistem operativ",24,null,null,null,null,null,null,null,null,null,null,"","",""]
[null,"Informática Empresarial NOCTURNO",24,null,null,null,null,null,null,null,null,null,null,"","",""]
[null,"Informática en Redes de Computadoras NOCTURNO",24,null,null,null,null,null,null,null,null,null,null,"","",""]
[175,"Administración y Operación Aduanera NOCTURNO",24,null,null,null,null,null,null,null,null,null,null,"","",""]
[null,null,"MATRICULA POR NIVELES",{"$f":"SUM(D54:D79)","v":0},{"$f":"SUM(E54:E79)","v":0},{"$f":"SUM(F54:F79)","v":0},null,null,null,null,null,"TOTAL LECC NOCTURN",null,{"$f":"SUM(N54:N79)","v":0},{"$f":"SUM(O54:O79)","v":0},{"$f":"SUM(P54:P79)","v":0}]
[null,null,"MATRICULA TOTAL",{"$f":"D80+E80+F80","v":0}]
[]
["Utilizar SOLO para Tutorías (Niveles de 11º Y 12º)"]
[null,null,null,null,null,null,null,null,null,null,null,null,null,"TOTALES"]
[null,null,null,"Matrícula PLAN REGULAR",null,null,null,null,"SECCIONES PLAN REGULAR",null,null,null,null,"LECCIONES PLAN REGULAR",null,null,"LECCIONES PLAN 2 AÑOS"]
[null,null,null,null,"11°","12°",null,null,null,"11°","12°",null,null,10,"11°","12°","I NIVEL","II NIVEL"]
[{"$f":"+A47+1","v":176},"Secretariado Ejecutivo nocturno","Ver nota","n.a.",null,null,null,null,null,null,null,null,null,"n.a.",{"$f":"IF(J87=0,0,IF(E87/J87=0,0,IF(E87/J87<=8,12,IF(E87/J87>14,\"Comp.\",24*J87))))","v":0},{"$f":"IF(K87=0,0,IF(F87/K87=0,0,IF(F87/K87<=5,8,IF(F87/K87<=7,12,IF(F87/K87>14,\"Comp.\",24*K87)))))","v":0}]
[{"$f":"+A87+1","v":177},"Informática en Soporte nocturno","Ver nota","n.a.",null,null,null,null,null,null,null,null,null,"n.a.",{"$f":"IF(J88=0,0,IF(E88/J88=0,0,IF(E88/J88<=8,12,IF(E88/J88>14,\"Comp.\",24*J88))))","v":0},{"$f":"IF(K88=0,0,IF(F88/K88=0,0,IF(F88/K88<=5,8,IF(F88/K88<=7,12,IF(F88/K88>14,\"Comp.\",24*K88)))))","v":0}]
[178,"Turismo en Alimentos y bebidas","Ver nota","n.a.",null,null,null,null,null,null,null,null,null,"n.a.",0,0,{"$f":"IF(L89=\"\",\"\",IF(G89/L89>14,\"Comp.\",12*L89))","v":""},""]
[179,"Contabilidad","Ver nota","n.a.",null,null,null,null,null,null,null,null,null,"n.a.",0,0,"",""]
[180,"Contabilidad y Finanzas","Ver nota","n.a.",null,null,null,null,null,null,null,null,null,"n.a.",0,0,"",""]
[181,"Salud Ocupacional","Ver nota","n.a.",null,null,null,null,null,null,null,null,null,"n.a.",0,0,"",""]
[182,"Ecoturismo","Ver nota","n.a.",null,null,null,null,null,null,null,null,null,"n.a.",0,0,"",""]
[183,"Turismo Rural","Ver nota","n.a.",null,null,null,null,null,null,null,null,null,"n.a.",0,0,"",""]
[184," Informática en Desarrollo del Software","Ver nota","n.a.",null,null,null,null,null,null,null,null,null,"n.a.",0,0,"",""]
[185,"Administración, Logística y distribución","Ver nota","n.a.",null,null,null,null,null,null,null,null,null,"n.a.",0,0,"",""]
[186,"Administración y Operación Aduanera","Ver nota","n.a.",null,null,null,null,null,null,null,null,null,"n.a.",0,0,"",""]
[187,"Salud Ocupacional","Ver nota","n.a.",null,null,null,null,null,null,null,null,null,"n.a.",0,0,"",""]
[null,null,"MATRICULA POR NIVELES",null,{"$f":"SUM(E87:E98)","v":0},{"$f":"SUM(F87:F98)","v":0}]
[null,null,"MATRICULA TOTAL",null,{"$f":"E99+F99","v":0},null,null,null,null,null,null,"TOTAL LECCI TUTORIAS",null,null,{"$f":"SUM(O87:O98)","v":0},{"$f":"SUM(P87:P98)","v":0}]
["Total de Lecciones Educación Técnica Plan 2 años, Plan Regular 3 años Diurno y Nocturno:",null,null,null,null,null,null,null,null,null,null,null,null,{"$f":"SUM(N48)+(N80)","v":0},{"$f":"IF((SUM(O87:O98)+SUM(O33:O47))=0,\"\",(SUM(O87:O98)+SUM(O33:O47)+SUM(O54:O79)))","v":""},{"$f":"IF((SUM(P87:P98)+SUM(P33:P47))=0,\"\",(SUM(P87:P98)+SUM(P33:P47)+SUM(P54:P79)))","v":""},{"$f":"SUM(Q27)","v":0},{"$f":"SUM(R27)","v":0}]
[]
[null,"NOTA:",null,null,null,"LECCIONES EDUCACION TECNICA"]
["Nota: Cálculo de lecciones para tutoría","Nota: Cálculo de lecciones para tutoría",null,null,null,"LECCIONES PLAN 2 AÑOS",null,null,null,{"$f":"SUM(Q101:R101)","v":0}]
["En 11° si los grupos de especialidad son menores de 15 estudiantes se deberá:","En 11° si los grupos de especialidad son menores de 15 estudiantes se deberá:",null,null,null,"LECCIONES PLAN REGULAR 3 AÑOS DIURNO",null,null,null,{"$f":"SUM(N48:P48)","v":0}]
[null," a) igual o mayor a 9 estudiantes: 24 lecciones",null,null,null,"LECCIONES PLAN REGULAR 3 AÑOS NOCTURNO ",null,null,null,{"$f":"SUM(N80:P80)","v":0}]
[null," b) igual o menor a 8 estudiantes: 12 lecciones",null,null,null,"LECCIONES DE TUTORIAS",null,null,null,{"$f":"SUM(O100:P100)","v":0}]
[null,null,null,null,null,"TOTAL LECCIONES TECNICAS",null,null,null,{"$f":"SUM(J104:J107)","v":0}]
["En 12° cuando los grupos de especialidad son menores de 10 estudiantes se utilizarán los siguientes criterios.","En 12° cuando los grupos de especialidad son menores de 10 estudiantes se utilizarán los siguientes criterios."]
[null,"  a) de 1 a 5 estudiantes:   8 lecciones"]
[null,"  b) de 6 a 7 estudiantes: 12 lecciones",null,null,null,"MATRICULA TOTAL DE SATELITE 2 EDUCACION TECNICA",null,null,null,{"$f":"G28+D49+D81+E100","v":0}]
[null,"  c) de 8 a 9 estudiantes: 24 lecciones"]

{"sheet":"  SATELITE 3","index":11,"n_rows":271,"n_cols":22,"rows_kept":271,"cut":false,"hidden":false,"merged":[[142,8,142,11],[143,8,143,11],[144,8,144,11],[145,8,145,11],[146,8,146,11],[147,8,147,11],[148,8,148,11],[149,8,149,11],[133,8,133,11],[134,8,134,11],[135,8,135,11],[136,8,136,11],[137,8,137,11],[138,8,138,11],[139,8,139,11],[140,8,140,11],[141,8,141,11],[265,7,265,11],[266,7,266,11],[267,7,267,11],[112,8,112,11],[113,8,113,11],[114,8,114,11],[115,8,115,11],[116,8,116,11],[117,8,117,11],[118,8,118,11],[119,8,119,11],[120,8,120,11],[121,8,121,11],[122,8,122,11],[123,8,123,11],[124,8,124,11],[125,8,125,11],[126,8,126,11],[127,8,127,11],[128,8,128,11],[129,8,129,11],[130,8,130,11],[131,8,131,11],[132,8,132,11],[256,7,256,11],[257,7,257,11],[258,7,258,11],[259,7,259,11],[260,7,260,11],[261,7,261,11],[262,7,262,11],[263,7,263,11],[264,7,264,11],[247,7,247,11],[248,7,248,11],[249,7,249,11],[250,7,250,11],[251,7,251,11],[252,7,252,11],[253,7,253,11],[254,7,254,11],[255,7,255,11],[238,7,238,11],[239,7,239,11],[240,7,240,11],[241,7,241,11],[242,7,242,11],[243,7,243,11],[244,7,244,11],[245,7,245,11],[246,7,246,11],[229,7,229,11],[230,7,230,11],[231,7,231,11],[232,7,232,11],[233,7,233,11],[234,7,234,11],[235,7,235,11],[236,7,236,11],[237,7,237,11],[8,1,8,15],[8,17,8,18],[9,1,9,15],[9,17,9,18],[10,17,10,18],[11,1,11,15],[11,17,11,18],[1,1,2,2],[6,17,7,19],[7,1,7,15],[3,17,4,19],[3,1,6,15],[18,17,18,19],[38,3,38,11],[38,12,38,13],[39,3,39,11],[39,12,39,13],[40,1,40,14],[12,13,12,15],[12,17,12,18],[13,17,13,18],[14,17,14,18],[15,17,15,18],[16,17,16,18],[12,1,13,1],[12,2,13,2],[12,3,13,3],[12,4,13,4],[12,6,13,11],[12,12,14,12],[41,11,41,14],[44,1,44,15],[45,1,46,1],[45,2,46,2],[45,3,46,3],[45,4,46,4],[45,5,46,5],[45,6,46,6],[45,7,46,7],[45,8,46,9],[49,8,49,9],[49,10,49,11],[50,8,50,9],[50,10,50,11],[51,8,51,9],[51,10,51,11],[45,10,46,11],[45,12,46,12],[45,13,45,15],[47,8,47,9],[47,10,47,11],[48,8,48,9],[48,10,48,11],[55,8,55,9],[55,10,55,11],[56,8,56,9],[56,10,56,11],[57,8,57,9],[57,10,57,11],[52,8,52,9],[52,10,52,11],[53,8,53,9],[53,10,53,11],[54,8,54,9],[54,10,54,11],[61,8,61,9],[61,10,61,11],[62,8,62,9],[62,10,62,11],[63,8,63,9],[63,10,63,11],[58,8,58,9],[58,10,58,11],[59,8,59,9],[59,10,59,11],[60,8,60,9],[60,10,60,11],[67,8,67,9],[67,10,67,11],[68,8,68,9],[68,10,68,11],[69,3,69,11],[69,12,69,13],[64,8,64,9],[64,10,64,11],[65,8,65,9],[65,10,65,11],[66,8,66,9],[66,10,66,11],[75,8,76,9],[75,10,76,11],[75,12,76,12],[75,13,75,15],[77,8,77,9],[77,10,77,11],[70,3,70,11],[70,12,70,13],[71,1,71,14],[74,1,74,15],[75,1,76,1],[75,2,76,2],[75,3,76,3],[75,4,76,4],[75,6,76,6],[75,7,76,7],[81,8,81,9],[81,10,81,11],[82,8,82,9],[82,10,82,11],[83,8,83,9],[83,10,83,11],[78,8,78,9],[78,10,78,11],[79,8,79,9],[79,10,79,11],[80,8,80,9],[80,10,80,11],[87,8,87,9],[87,10,87,11],[88,8,88,9],[88,10,88,11],[89,8,89,9],[89,10,89,11],[84,8,84,9],[84,10,84,11],[85,8,85,9],[85,10,85,11],[86,8,86,9],[86,10,86,11],[93,3,93,11],[93,12,93,13],[94,3,94,11],[94,12,94,13],[95,1,95,14],[97,1,99,15],[90,8,90,9],[90,10,90,11],[91,8,91,9],[91,10,91,11],[92,8,92,9],[92,10,92,11],[102,7,102,12],[102,13,102,16],[102,17,102,20],[109,1,109,15],[110,1,111,1],[110,2,111,2],[110,3,111,3],[110,4,111,4],[110,6,111,7],[110,8,111,11],[119,6,119,7],[120,6,120,7],[121,6,121,7],[122,6,122,7],[123,6,123,7],[124,6,124,7],[110,12,111,12],[110,13,110,15],[112,6,112,7],[113,6,113,7],[114,6,114,7],[115,6,115,7],[116,6,116,7],[117,6,117,7],[118,6,118,7],[131,6,131,7],[132,6,132,7],[133,6,133,7],[134,6,134,7],[135,6,135,7],[136,6,136,7],[125,6,125,7],[126,6,126,7],[127,6,127,7],[128,6,128,7],[129,6,129,7],[130,6,130,7],[143,6,143,7],[144,6,144,7],[145,6,145,7],[146,6,146,7],[147,6,147,7],[148,6,148,7],[137,6,137,7],[138,6,138,7],[139,6,139,7],[140,6,140,7],[141,6,141,7],[142,6,142,7],[149,6,149,7],[150,6,150,7],[151,6,151,7],[152,6,152,7],[153,6,153,7],[154,6,154,7],[150,8,150,11],[151,8,151,11],[152,8,152,11],[153,8,153,11],[154,8,154,11],[168,10,168,11],[169,8,169,9],[169,10,169,11],[155,6,155,7],[156,6,156,7],[157,6,157,7],[158,3,158,11],[158,12,158,13],[159,3,159,11],[159,12,159,13],[155,8,155,11],[156,8,156,11],[157,8,157,11],[160,1,160,14],[165,1,165,15],[166,1,167,1],[166,2,167,2],[166,3,167,3],[166,4,167,4],[166,6,167,7],[166,8,167,9],[166,10,167,11],[166,12,167,12],[168,6,168,7],[169,6,169,7],[170,6,170,7],[171,6,171,7],[172,6,172,7],[173,6,173,7],[174,6,174,7],[175,6,175,7],[168,8,168,9],[178,8,178,9],[177,6,177,7],[178,6,178,7],[178,10,178,11],[179,8,179,9],[179,10,179,11],[180,8,180,9],[180,10,180,11],[175,8,175,9],[175,10,175,11],[161,1,161,14],[166,13,166,15],[170,8,170,9],[170,10,170,11],[171,8,171,9],[171,10,171,11],[176,8,176,9],[176,10,176,11],[177,8,177,9],[177,10,177,11],[172,8,172,9],[172,10,172,11],[173,8,173,9],[173,10,173,11],[174,8,174,9],[174,10,174,11],[176,6,176,7],[185,8,185,9],[185,10,185,11],[186,8,186,9],[186,10,186,11],[181,8,181,9],[181,10,181,11],[182,8,182,9],[182,10,182,11],[183,8,183,9],[183,10,183,11],[184,8,184,9],[184,10,184,11],[190,8,190,9],[190,10,190,11],[191,8,191,9],[191,10,191,11],[192,8,192,9],[192,10,192,11],[187,8,187,9],[187,10,187,11],[188,8,188,9],[188,10,188,11],[189,8,189,9],[189,10,189,11],[196,8,196,9],[196,10,196,11],[197,8,197,9],[197,10,197,11],[198,8,198,9],[198,10,198,11],[193,8,193,9],[193,10,193,11],[194,8,194,9],[194,10,194,11],[195,8,195,9],[195,10,195,11],[202,8,202,9],[202,10,202,11],[203,8,203,9],[203,10,203,11],[204,8,204,9],[204,10,204,11],[199,8,199,9],[199,10,199,11],[200,8,200,9],[200,10,200,11],[201,8,201,9],[201,10,201,11],[208,8,208,9],[208,10,208,11],[209,8,209,9],[209,10,209,11],[210,8,210,9],[210,10,210,11],[205,8,205,9],[205,10,205,11],[206,8,206,9],[206,10,206,11],[207,8,207,9],[207,10,207,11],[214,3,214,11],[214,12,214,13],[215,3,215,11],[215,12,215,13],[216,1,216,14],[218,1,218,15],[211,8,211,9],[211,10,211,11],[212,8,212,9],[212,10,212,11],[213,8,213,9],[213,10,213,11],[213,6,213,7],[212,6,212,7],[270,1,270,14],[219,12,220,12],[219,13,219,15],[268,2,268,4],[268,7,268,11],[268,12,268,13],[268,14,269,15],[269,2,269,4],[269,6,269,11],[269,12,269,13],[219,1,220,1],[219,2,220,2],[219,3,220,3],[219,4,220,4],[219,6,220,6],[219,7,220,11],[221,7,221,11],[222,7,222,11],[223,7,223,11],[224,7,224,11],[225,7,225,11],[226,7,226,11],[227,7,227,11],[228,7,228,11],[179,6,179,7],[180,6,180,7],[181,6,181,7],[182,6,182,7],[183,6,183,7],[184,6,184,7],[185,6,185,7],[186,6,186,7],[187,6,187,7],[188,6,188,7],[189,6,189,7],[190,6,190,7],[191,6,191,7],[192,6,192,7],[193,6,193,7],[194,6,194,7],[195,6,195,7],[196,6,196,7],[206,6,206,7],[207,6,207,7],[208,6,208,7],[209,6,209,7],[210,6,210,7],[211,6,211,7],[197,6,197,7],[198,6,198,7],[199,6,199,7],[200,6,200,7],[201,6,201,7],[202,6,202,7],[203,6,203,7],[204,6,204,7],[205,6,205,7]]}
[]
[null,"***NOTA: SE DEBE INCLUIR PRIMERO LA MATRICULA Y LUEGO SECCIONES "]
[]
[null,{"$error":"#VALUE!"},null,null,null,null,null,null,null,null,null,null,null,null,null,null,null,"RESUMEN DE LECCIONES Y AMPLIACION DEL SATELITE"]
[]
[]
[null,null,null,null,null,null,null,null,null,null,null,null,null,null,null,null,null,"SUMATORIA DE LAS LECCIONES POR SATELITE"]
[null,"NOMBRE DEL SATELITE N°3"]
[null,{"$f":"'FORMULARIO '!B94:D94","v":0},null,null,null,null,null,null,null,null,null,null,null,null,null,null,null,"LECCIONES TECNICAS"]
[null,null,null,null,null,null,null,null,null,null,null,null,null,null,null,null,null,"*AMPLIACIONES I NIVEL",null,{"$f":"+SUM(P41)+(P162)","v":0}]
[null,null,null,null,null,null,null,null,null,null,null,null,null,null,null,null,null,"LECCIONES INGLES I NIVEL",null,{"$f":"SUM(P30)","v":0}]
[null,"1) DISTRIBUCIÓN DE MATRÍCULA Y LECCIONES: NIVEL I",null,null,null,null,null,null,null,null,null,null,null,null,null,null,null,"LECCIONES II NIVEL",null,{"$f":"SUM(P72)","v":0}]
[null,"No.","Descripción del Módulo","Atinencia","Lecciones por Módulo",null,"MATRICULA",null,null,null,null,null,"MATRICULA TOTAL ","Cantidad",null,null,null,"LECCIONES III NIVEL",null,{"$f":"SUM(P96)","v":0}]
[null,null,null,null,null,null,null,null,null,null,null,null,null,"Secciones","Promedio","Lecciones",null,"LECCIONES MODULARES OPCIONALES I NIVEL, II NIVEL Y III NIVEL",null,{"$f":"SUM(P217)+SUM(P161)","v":0}]
[null,null,null,null,null,null,"PERIODO 1","PERIODO 2","PERIODO 3","PERIODO 4","PERIODO 5","PERIODO 6",null,null,null,null,null,"LECCIONES I NIVEL PSICOLOGIA",null,{"$f":"SUM(P31)+SUM(P36)","v":0}]
[null,1,"Aplicaciones cotidianas de la matemática","Matemáticas",4,1,null,null,null,null,null,null,{"$f":"SUM(G16:L16)","v":0},null,{"$f":"+IF(N16=\"\",\"\",M16/N16)","v":""},{"$f":"IF(F16=1,Hoja3!D5)*N16","v":0},null,"CURSOS EMERGENTES",null,{"$f":"SUM(P271)","v":0}]
[null,2,"Disfrutando del mundo de las palabras","Español",4,1,null,null,null,null,null,null,0,null,"",{"$f":"IF(F17=1,Hoja3!D6)*N17","v":0},null,"Total Lecciones Requeridas:",null,{"$f":"SUM(T11:T16)+SUM(T9)","v":0}]
[null,3,"Construyamos nuestro bienestar personal y comunitario","Ciencias",3,1,null,null,null,null,null,null,0,null,"",{"$f":"IF(F18=1,Hoja3!D7)*N18","v":0}]
[null,4,"Vida Cotidiana: Deberes y Derechos en el entorno cercano","Estudios Sociales",3,1,null,null,null,null,null,null,0,null,"",{"$f":"IF(F19=1,Hoja3!D8)*N19","v":0},null,"*Nota: Las ampliaciones no se suman al total de lecciones."]
[null,5,"Promovamos el desarrollo humano en forma equitativa y sostenible","Ciencias",3,1,null,null,null,null,null,null,0,null,"",{"$f":"IF(F20=1,Hoja3!D9)*N20","v":0}]
[null,6,"Relieve de mi Cantón: Conociendo mi patrimonio natural y cultural","Estudios Sociales",3,1,null,null,null,null,null,null,0,null,"",{"$f":"IF(F21=1,Hoja3!D10)*N21","v":0}]
[null,7,"Historia y Geografia de mi provincia","Estudios Sociales",3,1,null,null,null,null,null,null,0,null,"",{"$f":"IF(F22=1,Hoja3!D11)*N22","v":0}]
[null,8,"Actividades humanas asociadas a los paisajes geográficos de mi provincia","Estudios Sociales",3,1,null,null,null,null,null,null,0,null,"",{"$f":"IF(F23=1,Hoja3!D12)*N23","v":0}]
[null,9,"Costa Rica: Una sociedad intercultural, multiétnica y plurilingüe","Estudios Sociales",2,1,null,null,null,null,null,null,0,null,"",{"$f":"IF(F24=1,Hoja3!D13)*N24","v":0}]
[null,10,"Cuidemos nuestro planeta y toda forma de vida","Ciencias",3,1,null,null,null,null,null,null,0,null,"",{"$f":"IF(F25=1,Hoja3!D14)*N25","v":0}]
[null,11,"Adoptemos estilos de vida saludables","Ciencias",2,1,null,null,null,null,null,null,0,null,"",{"$f":"IF(F26=1,Hoja3!D15)*N26","v":0}]
[null,12,"Convivamos en entornos naturales y socioculturales seguros","Ciencias",2,1,null,null,null,null,null,null,0,null,"",{"$f":"IF(F27=1,Hoja3!D16)*N27","v":0}]
[null,13,"Modifiquemos nuestros patrones de consumo y producción para salvaguardar la integridad del planeta","Ciencias",3,1,null,null,null,null,null,null,0,null,"",{"$f":"IF(F28=1,Hoja3!D17)*N28","v":0}]
[null,15,"Protejamos y restauremos los procesos naturales que sustentan la vida","Ciencias",3,1,null,null,null,null,null,null,0,null,"",{"$f":"IF(F29=1,Hoja3!D18)*N29","v":0}]
[null,16,"Nos comunicamos en otras lenguas","Idioma Extranjero",5,1,null,null,null,null,null,null,0,null,"",{"$f":"IF(F30=1,Hoja3!D19)*N30","v":0}]
[null,17,"Descubriendo mi estilo de aprendizaje","Psicología",2,1,null,null,null,null,null,null,0,null,"",{"$f":"IF(F31=1,Hoja3!D20)*N31","v":0}]
[null,18,"Valoramos la importancia de la igualdad y la libertad a partir de nuestra historia colonial","Estudios Sociales",2,1,null,null,null,null,null,null,0,null,"",{"$f":"IF(F32=1,Hoja3!D21)*N32","v":0}]
[null,20,"Construcción de nuestro estado nación para el fortalecimiento de la identidad nacional","Estudios Sociales",2,1,null,null,null,null,null,null,0,null,"",{"$f":"IF(F33=1,Hoja3!D22)*N33","v":0}]
[null,21,"La sociedad costarricense actual: sus desafios y oportunidades en el contexto mundial","Estudios Sociales",2,1,null,null,null,null,null,null,0,null,"",{"$f":"IF(F34=1,Hoja3!D23)*N34","v":0}]
[null,22,"Espacios de participación y representación de mi cantón","Estudios Sociales",3,1,null,null,null,null,null,null,0,null,"",{"$f":"IF(F35=1,Hoja3!D24)*N35","v":0}]
[null,23,"Planificando mi fururo","Psicología",2,1,null,null,null,null,null,null,0,null,"",{"$f":"IF(F36=1,Hoja3!D25)*N36","v":0}]
[null,24,"Aplicaciones cotidianas de la matemática","Matemáticas",4,1,null,null,null,null,null,null,0,null,"",{"$f":"IF(F37=1,Hoja3!D26)*N37","v":0}]
[null,25,"¡Comunicandonos en la cotidianidad!","Español",4,1,null,null,null,null,null,null,0,null,"",{"$f":"IF(F38=1,Hoja3!D27)*N38","v":0}]
[null,null,null,"CANTIDAD DE MATRICULA I NIVEL"]
[null,null,null,"CANTIDAD DE SECCIONES"]
[null,"TOTAL AMPLIACIONES NIVEL I:",null,null,null,null,null,null,null,null,null,null,null,null,null,{"$f":"IF(SUM(P16:P38)=0,\"\",SUM(P16:P38)-(P30+P31+P36))","v":""}]
[null,null,null,null,null,null,null,null,null,null,null,"TOTAL LECCIONES INGLES Y PSICOLOGIA",null,null,null,{"$f":"SUM(P30+P31+P36)","v":0}]
[]
[]
[null,"2) DISTRIBUCIÓN DE MATRÍCULA Y LECCIONES: NIVEL II"]
[null,"No.","Descripción del Módulo","Atinencia","Lecciones por Módulo",null,"PERIODO 1","PERIODO 2","PERIODO 3",null,"PERIODO 4",null,"MATRICULA TOTAL ","Cantidad"]
[null,null,null,null,null,null,null,null,null,null,null,null,null,"Secciones","Promedio","Lecciones"]
[null,30,"La ciencia de lo humano para el desarrollo científico","Ciencias",4,1,null,null,null,null,null,null,{"$f":"SUM(G48:L48)","v":0},null,{"$f":"+IF(N48=\"\",\"\",M48/N48)","v":""},{"$f":"IF(F48=1,Hoja3!D32)*N48","v":0}]
[null,{"$f":"+B48+1","v":31},"¿Por qué es importante el estudio del espacio geográfico en el planeta tierra?","Estudios Sociales",4,1,null,null,null,null,null,null,0,null,"",{"$f":"IF(F49=1,Hoja3!D33)*N49","v":0}]
[null,{"$f":"+B49+1","v":32},"Crecemos en el lenguaje","Español",4,1,null,null,null,null,null,null,0,null,"",{"$f":"IF(F50=1,Hoja3!D34)*N50","v":0}]
[null,{"$f":"+B50+1","v":33},"Entorno Científico: seres vivos y energía en sostenibilidad","Ciencias",2,1,null,null,null,null,null,null,0,null,"",{"$f":"IF(F51=1,Hoja3!D35)*N51","v":0}]
[null,35,"La adaptación del ser humano aun medio ambiente cambiante","Estudios Sociales",2,1,null,null,null,null,null,null,0,null,"",{"$f":"IF(F52=1,Hoja3!D36)*N52","v":0}]
[null,{"$f":"+B52+1","v":36},"Razonamiento de los números, la geometría y el álgebra para la cotidianidad","Matemáticas",6,1,null,null,null,null,null,null,0,null,"",{"$f":"IF(F53=1,Hoja3!D37)*N53","v":0}]
[null,37,"Seguridad de las personas en Costa Rica","Educación Cívica",4,1,null,null,null,null,null,null,0,null,"",{"$f":"IF(F54=1,Hoja3!D38)*N54","v":0}]
[null,38,"Variedades de la lengua","Español",3,1,null,null,null,null,null,null,0,null,"",{"$f":"IF(F55=1,Hoja3!D39)*N55","v":0}]
[null,39,"Participación, representación y derechos humanos en la sociedad democrática","Educación Cívica",4,1,null,null,null,null,null,null,0,null,"",{"$f":"IF(F56=1,Hoja3!D40)*N56","v":0}]
[null,40,"Estadística básica","Matemáticas",2,1,null,null,null,null,null,null,0,null,"",{"$f":"IF(F57=1,Hoja3!D41)*N57","v":0}]
[null,41,"Química de la tierra y su formación","Ciencias",3,1,null,null,null,null,null,null,0,null,"",{"$f":"IF(F58=1,Hoja3!D42)*N58","v":0}]
[null,42,"Comprendiendo la historia: de la edad media al renacimiento del siglo V al XVI","Estudios Sociales",2,1,null,null,null,null,null,null,0,null,"",{"$f":"IF(F59=1,Hoja3!D43)*N59","v":0}]
[null,43,"Materia y energía en sociedad","Ciencias",3,1,null,null,null,null,null,null,0,null,"",{"$f":"IF(F60=1,Hoja3!D44)*N60","v":0}]
[null,44,"Los procesos plurisignificativos de la comunicación literaria","Español",3,1,null,null,null,null,null,null,0,null,"",{"$f":"IF(F61=1,Hoja3!D45)*N61","v":0}]
[null,45,"Materia Planetaria en sostenibilidad","Ciencias",2,1,null,null,null,null,null,null,0,null,"",{"$f":"IF(F62=1,Hoja3!D46)*N62","v":0}]
[null,46,"Nos cominicamos en otras lenguas","Idioma Extranjero",5,1,null,null,null,null,null,null,0,null,"",{"$f":"IF(F63=1,Hoja3!D47)*N63","v":0}]
[null,48,"Cotidianidad del ser humano: desde la Edad Moderno en Europa y América siglos XVI-XIX","Estudios Sociales",3,1,null,null,null,null,null,null,0,null,"",{"$f":"IF(F64=1,Hoja3!D48)*N64","v":0}]
[null,{"$f":"+B64+1","v":49},"Vivencia de la sexualidad en el contexto familiar y social","Ciencias",3,1,null,null,null,null,null,null,0,null,"",{"$f":"IF(F65=1,Hoja3!D49)*N65","v":0}]
[null,{"$f":"+B65+1","v":50},"Roles de trabajo y formas de comunicación en el mundo antiguo","Estudios Sociales",4,1,null,null,null,null,null,null,0,null,"",{"$f":"IF(F66=1,Hoja3!D50)*N66","v":0}]
[null,{"$f":"+B66+1","v":51},"Construyamos nuestra identidad ciudadana","Educación Cívica",4,1,null,null,null,null,null,null,0,null,"",{"$f":"IF(F67=1,Hoja3!D51)*N67","v":0}]
[null,52,"Aplicaciones de los números, la geometría y el álgebra en nuetro entorno","Matemáticas",5,1,null,null,null,null,null,null,0,null,"",{"$f":"IF(F68=1,Hoja3!D52)*N68","v":0}]
[null,53,"Comprendiendo  nuestro entorno a través de la estadística","Matemáticas",2,1,null,null,null,null,null,null,0,null,"",{"$f":"IF(F69=1,Hoja3!D53)*N69","v":0}]
[null,null,null,"CANTIDAD DE MATRICULA II NIVEL"]
[null,null,null,"CANTIDAD DE SECCIONES",null,null,null,null,null,null,null,null,{"$f":"SUM(N48:N69)","v":0}]
[null,"TOTAL LECCIONES NIVEL II:",null,null,null,null,null,null,null,null,null,null,null,null,null,{"$f":"IF(SUM(P48:P69)=0,\"\",SUM(P48:P69))","v":""}]
[]
[]
[null,"3) DISTRIBUCIÓN DE MATRÍCULA Y LECCIONES: NIVEL III"]
[null,"No.","Descripción del Módulo","Atinencia","Lecciones por Módulo",null,"PERIODO 1","PERIODO 2","PERIODO 3",null,"PERIODO 4",null,"MATRICULA TOTAL","Cantidad"]
[null,null,null,null,null,null,null,null,null,null,null,null,null,"Secciones","Promedio","Lecciones"]
[null,60,"Nos comunicamos mejor","Español",4,1,null,null,null,null,null,null,{"$f":"SUM(G78:L78)","v":0},null,{"$f":"+IF(N78=\"\",\"\",M78/N78)","v":""},{"$f":"IF(F78=1,Hoja3!D58)*N78","v":0}]
[null,{"$f":"+B78+1","v":61},"Sistemas y Regímenes políticos, el estado costarricense garante de oporunidades para la construcción de la cultura democrática","Educación Cívica",2,1,null,null,null,null,null,null,0,null,"",{"$f":"IF(F79=1,Hoja3!D59)*N79","v":0}]
[null,62,"¿Cómo las transformaciones sociales, económicas, y políticas del mundo comtemporáneo impactan a la sociedad actual? (siglo XIX-Epoca actual)","Estudios Sociales",3,1,null,null,null,null,null,null,0,null,"",{"$f":"IF(F80=1,Hoja3!D60)*N80","v":0}]
[null,63,"Una mirada a las problemáticas contemporáneas; Repercusiones de la dinámica poblacional y movilización espacial","Estudios Sociales",3,1,null,null,null,null,null,null,0,null,"",{"$f":"IF(F81=1,Hoja3!D61)*N81","v":0}]
[null,64,"Interdependencia e interconexión: Los patrones espaciales en la sociedad globalizado","Estudios Sociales",3,1,null,null,null,null,null,null,0,null,"",{"$f":"IF(F82=1,Hoja3!D62)*N82","v":0}]
[null,65,"Seres vivos en población","Ciencias (Biología)",4,1,null,null,null,null,null,null,0,null,"",{"$f":"IF(F83=1,Hoja3!D63)*N83","v":0}]
[null,66,"Valorando nuestra sociedad (siglo XX-XXI)","Estudios Sociales",3,1,null,null,null,null,null,null,0,null,"",{"$f":"IF(F84=1,Hoja3!D64)*N84","v":0}]
[null,68,"Aplicación de la química en el hogar y la comunidad","Ciencias (Química)",4,1,null,null,null,null,null,null,0,null,"",{"$f":"IF(F85=1,Hoja3!D65)*N85","v":0}]
[null,69,"Aplicaciones de la física en la vida diaria","Ciencias (Física)",4,1,null,null,null,null,null,null,0,null,"",{"$f":"IF(F86=1,Hoja3!D66)*N86","v":0}]
[null,{"$f":"+B86+1","v":70},"¿Dónde está presente la estadística?","Matemáticas",2,1,null,null,null,null,null,null,0,null,"",{"$f":"IF(F87=1,Hoja3!D67)*N87","v":0}]
[null,71,"Nos comunicamos en otras lenguas","Idioma Extranjero",5,1,null,null,null,null,null,null,0,null,"",{"$f":"IF(F88=1,Hoja3!D68)*N88","v":0}]
[null,72,"¿Cómo aplicar la estadística y la probabilidad en la vida diaria?","Matemáticas",2,1,null,null,null,null,null,null,0,null,"",{"$f":"IF(F89=1,Hoja3!D69)*N89","v":0}]
[null,73,"Construyamos el futuro","Ciencias (Biología)",3,1,null,null,null,null,null,null,0,null,"",{"$f":"IF(F90=1,Hoja3!D70)*N90","v":0}]
[null,74,"¿Cómo relacionar la geometría y las relaciones algebraicas con nuestro entorno?","Matemáticas",4,1,null,null,null,null,null,null,0,null,"",{"$f":"IF(F91=1,Hoja3!D71)*N91","v":0}]
[null,75,"¿Cómo nos puede ayudar las relaciones, el álgebra y la geometría a entender el mundo que nos rodea?","Matemáticas",4,1,null,null,null,null,null,null,0,null,"",{"$f":"IF(F92=1,Hoja3!D72)*N92","v":0}]
[null,76,"Ética Profesional","Filosofía",2,1,null,null,null,null,null,null,0,null,"",{"$f":"IF(F93=1,Hoja3!D73)*N93","v":0}]
[null,null,null,"CANTIDAD DE MATRICULA III NIVEL"]
[null,null,null,"CANTIDAD DE SECCIONES",null,null,null,null,null,null,null,null,{"$f":"SUM(N78:N93)","v":0}]
[null,"TOTAL LECCIONES NIVELES III:",null,null,null,null,null,null,null,null,null,null,null,null,null,{"$f":"IF(SUM(P78:P93)=0,\"\",SUM(P78:P93))","v":""}]
[]
[null,"CURSOS OPCIONALES PRIMERO DEBE DE ELEGIR LOS DE I NIVEL Y  POSTERIORMENTE DEBEN ELEGIR LOS CURSOS DE II Y III NIVEL (ESTO PARA MEJOR DISTRIBUCION)"]
[]
[]
[]
[null,"*****","FAVOR LLENAR LA MATRICULA Y SECCIONES A INCLUIR EN CURSOS OPCIONALES (OBLIGATORIO):"]
[null,null,null,null,null,null,null,"I NIVEL ",null,null,null,null,null,"II NIVEL ",null,null,null,"III NIVEL",null,null,null,"TOTAL"]
[null,null,null,null,null,null,null,"1 PERIODO","2 PERIODO","3 PERIODO","4 PERIODO","5 PERIODO","6 PERIODO","1 PERIODO","2 PERIODO","3 PERIODO","4 PERIODO","1 PERIODO","2 PERIODO","3 PERIODO","4 PERIODO"]
[null,null,null,null,null,null,"MATRICULA ",null,null,null,null,null,null,null,null,null,null,null,null,null,null,{"$f":"SUM(H105:U105)","v":0}]
[null,null,null,null,null,null,"SECCIONES ",null,null,null,null,null,null,null,null,null,null,null,null,null,null,{"$f":"SUM(H106:U106)","v":0}]
[]
[null,"Opcionales SOLO para I NIVEL (se subrayan las materias básicas estos se separan ya que se dan por AMPLIACIONES  y las otra atinencias por LECCIONES):"]
[]
[null,"4) DISTRIBUCIÓN DE MATRÍCULA Y LECCIONES: CURSOS MODULARES OPCIONALES I NIVEL"]
[null,"No.","Descripción del Módulo","Atinencia","Lecciones por Módulo",null,"MATRICULA I NIVEL",null,null,null,null,null,"MATRICULA TOTAL","Cantidad"]
[null,null,null,null,null,null,null,null,null,null,null,null,null,"Secciones","Promedio","Lecciones"]
[null,80,"Administración de la pequeña empresa","Contabilidad",5,1,null,null,null,null,null,null,{"$f":"SUM(G113:L113)","v":0},null,{"$f":"+IF(N113=\"\",\"\",M113/N113)","v":""},{"$f":"IF(F113,Hoja3!D129)*N113","v":0}]
[null,81,"Aprendamos a apreciar la música","Música",5,1,null,null,null,null,null,null,0,null,"",{"$f":"IF(F114,Hoja3!D130)*N114","v":0}]
[null,83,"¿Cómo administrar recursos humanos y financieros?","Contabilidad ",3,1,null,null,null,null,null,null,0,null,"",{"$f":"IF(F115,Hoja3!D131)*N115","v":0}]
[null,84,"Reconociendo a las personas con discapacidad como sujetas de derecho","Enseñanza Especial Generalista",3,1,null,null,null,null,null,null,0,null,"",{"$f":"IF(F116,Hoja3!D132)*N116","v":0}]
[null,85,"¿Cómo comunicarnos en una lengua indígena?","Educación Indígena",5,1,null,null,null,null,null,null,0,null,"",{"$f":"IF(F117,Hoja3!D133)*N117","v":0}]
[null,86,"¡A comunicarnos se ha dicho!","Español",3,1,null,null,null,null,null,null,0,null,"",{"$f":"IF(F118,Hoja3!D134)*N118","v":0}]
[null,87,"Conozcamos nuestra cultura autóctona","Estudios Sociales",3,1,null,null,null,null,null,null,0,null,"",{"$f":"IF(F119,Hoja3!D135)*N119","v":0}]
[null,88,"Contabilidad para la pequeña empresa","Contabilidad",3,1,null,null,null,null,null,null,0,null,"",{"$f":"IF(F120,Hoja3!D136)*N120","v":0}]
[null,89,"Creando con el lenguaje","Español",5,1,null,null,null,null,null,null,0,null,"",{"$f":"IF(F121,Hoja3!D137)*N121","v":0}]
[null,90,"Desarrollo mi creatividad","Español",3,1,null,null,null,null,null,null,0,null,"",{"$f":"IF(F122,Hoja3!D138)*N122","v":0}]
[null,93,"El camino para iniciar su propia empresa","Contabilidad",5,1,null,null,null,null,null,null,0,null,"",{"$f":"IF(F123,Hoja3!D139)*N123","v":0}]
[null,94,"El Bribri, Maleku, Cabecar, como mi lengua materna","Ingles, Educación Indigena",3,1,null,null,null,null,null,null,0,null,"",{"$f":"IF(F124,Hoja3!D140)*N124","v":0}]
[null,97,"Formación de líderes democráticos","Estudios Sociales",5,1,null,null,null,null,null,null,0,null,"",{"$f":"IF(F125,Hoja3!D141)*N125","v":0}]
[null,100,"Importancia de la actividad física: juegos pre-deportivos tradicionales y gimnasia formativa I NIVEL","Educación Física",5,1,null,null,null,null,null,null,0,null,"",{"$f":"IF(F126,Hoja3!D142)*N126","v":0}]
[null,102,"Relaciones humanas","Psicología",3,1,null,null,null,null,null,null,0,null,"",{"$f":"IF(F127,Hoja3!D143)*N127","v":0}]
[null,103,"Los pueblos y sus expresiones culturales","Estudios Sociales",4,1,null,null,null,null,null,null,0,null,"",{"$f":"IF(F128,Hoja3!D144)*N128","v":0}]
[null,106,"Mundo del turismo","Turismo Ecológico",2,1,null,null,null,null,null,null,0,null,"",{"$f":"IF(F129,Hoja3!D145)*N129","v":0}]
[null,107,"Nos organizamos para enfrentar desastres","Ciencias",2,1,null,null,null,null,null,null,0,null,"",{"$f":"IF(F130,Hoja3!D146)*N130","v":0}]
[null,108,"Orientación vocacional y profesional","Psicología",5,1,null,null,null,null,null,null,0,null,"",{"$f":"IF(F131,Hoja3!D147)*N131","v":0}]
[null,109,"Primeros auxilios","Educación Física",5,1,null,null,null,null,null,null,0,null,"",{"$f":"IF(F132,Hoja3!D148)*N132","v":0}]
[null,110,"Problemas y soluciones planetarios","Ciencias",3,1,null,null,null,null,null,null,0,null,"",{"$f":"IF(F133,Hoja3!D149)*N133","v":0}]
[null,111,"Promoción y defensa de los deberes y derechos del ciudadano","Estudios Sociales",3,1,null,null,null,null,null,null,0,null,"",{"$f":"IF(F134,Hoja3!D150)*N134","v":0}]
[null,118,"Vida en el planeta","Ciencias",5,1,null,null,null,null,null,null,0,null,"",{"$f":"IF(F135,Hoja3!D151)*N135","v":0}]
[null,119,"Visualicemos el futuro","Ciencias",5,1,null,null,null,null,null,null,0,null,"",{"$f":"IF(F136,Hoja3!D152)*N136","v":0}]
[null,120,"Planificando mi futuro","Psicología",2,1,null,null,null,null,null,null,0,null,"",{"$f":"IF(F137,Hoja3!D153)*N137","v":0}]
[null,121,"Descubriendo mi estilo de aprendizaje","Psicología",2,1,null,null,null,null,null,null,0,null,"",{"$f":"IF(F138,Hoja3!D154)*N138","v":0}]
[null,123,"Fortalecimiento de la matemática (OPCIONAL 1 NIVEL)","Matemática",3,1,null,null,null,null,null,null,0,null,"",{"$f":"IF(F139,Hoja3!D155)*N139","v":0}]
[null,124,"Fortalecimiento del Ingles","Ingles",3,1,null,null,null,null,null,null,0,null,"",{"$f":"IF(F140,Hoja3!D156)*N140","v":0}]
[null,125,"Fortalecimiento de los Estudios Sociales (OPCIONAL 1 NIVEL)","Estudios Sociales",3,1,null,null,null,null,null,null,0,null,"",{"$f":"IF(F141,Hoja3!D157)*N141","v":0}]
[null,126,"Fortalecimiento de la Biología","Ciencias",3,1,null,null,null,null,null,null,0,null,"",{"$f":"IF(F142,Hoja3!D158)*N142","v":0}]
[null,127,"Fortalecimiento de la Educación Cívica","Estudios Sociales",3,1,null,null,null,null,null,null,0,null,"",{"$f":"IF(F143,Hoja3!D159)*N143","v":0}]
[null,128,"Fortalecimiento del Español (OPCIONAL 1 NIVEL)","Español",3,1,null,null,null,null,null,null,0,null,"",{"$f":"IF(F144,Hoja3!D160)*N144","v":0}]
[null,129,"Fortalecimiento del Francés","Francés",3,1,null,null,null,null,null,null,0,null,"",{"$f":"IF(F145,Hoja3!D161)*N145","v":0}]
[null,130,"Fortalecimiento de la Quimica para Bachillerato","Ciencias",3,1,null,null,null,null,null,null,0,null,"",{"$f":"IF(F146,Hoja3!D162)*N146","v":0}]
[null,131,"Fortalecimiento de la Física para Bachillerato","Ciencias",3,1,null,null,null,null,null,null,0,null,"",{"$f":"IF(F147,Hoja3!D163)*N147","v":0}]
[null,139,"Tecnología y Trabajo","Informatica Educatica/ Desarrollo Sofware/ Progración Redes de Computadoras en Soporte",5,1,null,null,null,null,null,null,0,null,"",{"$f":"IF(F148,Hoja3!D164)*N148","v":0}]
[null,140,"Tecnología y Comunidad","Informatica Educatica/ Desarrollo Sofware/ Progración Redes de Computadoras en Soporte",5,1,null,null,null,null,null,null,0,null,"",{"$f":"IF(F149,Hoja3!D165)*N149","v":0}]
[null,141,"Tecnología y Emprendedurismo","Informatica Educatica/ Desarrollo Sofware/ Progración Redes de Computadoras en Soporte",5,1,null,null,null,null,null,null,0,null,"",{"$f":"IF(F150,Hoja3!D166)*N150","v":0}]
[null,142,"Expreción o Creción Musical","Música",5,1,null,null,null,null,null,null,0,null,"",{"$f":"IF(F151,Hoja3!D167)*N151","v":0}]
[null,143,"Desarrollo Comunitario (II Nivel)","Cualquier especilidad acádemica",2,1,null,null,null,null,null,null,0,null,"",{"$f":"IF(F152,Hoja3!D168)*N152","v":0}]
[null,144,"Desarrollo Comunitario (III Nivel)","Cualquier especilidad acádemica",3,1,null,null,null,null,null,null,0,null,"",{"$f":"IF(F153,Hoja3!D169)*N153","v":0}]
[null,145,"Introducción a la robótica","Informática, Informática educativa ambas con conocimiento en robótica",2,1,null,null,null,null,null,null,0,null,"",{"$f":"IF(F154,Hoja3!D170)*N154","v":0}]
[null,146,"Poniéndome en acción: entrenándome haciendo deporte y baile","Educación Física",5,1,null,null,null,null,null,null,0,null,"",{"$f":"IF(F155,Hoja3!D171)*N155","v":0}]
[null,147,"Promoviendo salud, venciendo desafíos","Educación Física",5,1,null,null,null,null,null,null,0,null,"",{"$f":"IF(F156,Hoja3!D172)*N156","v":0}]
[null,148,"Afectividad y sexualidad desde la cotidianidad","Psicología",2,1,null,null,null,null,null,null,0,null,"",{"$f":"IF(F157,Hoja3!D173)*N157","v":0}]
[null,149,"¡Qué lindo aprender Cabécar!","Educación indígena, especialidad lengua materna, subespecialidad: Cabécar",2,1,null,null,null,null,null,null,0,null,"",{"$f":"IF(F158,Hoja3!D174)*N158","v":0}]
[null,null,null,"CANTIDAD DE MATRICULA "]
[null,null,null,"CANTIDAD DE SECCIONES",null,null,null,null,null,null,null,null,{"$f":"SUM(N113:N158)","v":0}]
[null,"TOTAL LECCIONES DE CURSOS OPCIONALES I NIVEL:",null,null,null,null,null,null,null,null,null,null,null,null,null,{"$f":"IF(SUM(P113:P158)=0,\"\",SUM(P113:P158)+(-P118-P119-P121-P122-P125-P128-P130-P133-P134-P135-P136-P139-P141-P142-P143-P144))","v":""}]
[null,"TOTAL AMPLIACIONES CURSOS OPCIONALES I NIVEL",null,null,null,null,null,null,null,null,null,null,null,null,null,{"$f":"SUM(P118+P119+P121+P122+P125+P128+P130+P133+P134+P135+P136+P139+P141+P142+P143+P144)","v":0}]
[]
[null,"Opcionales SOLO para II NIVEL Y III NIVEL a escoger (LECCIONES):"]
[]
[null,"4) DISTRIBUCIÓN DE MATRÍCULA Y LECCIONES: CURSOS MODULARES OPCIONALES II NIVEL Y III NIVEL "]
[null,"No.","Descripción del Módulo","Atinencia","Lecciones por Módulo",null,null,null,"II NIVEL",null,"III NIVEL",null,"MATRICULA TOTAL","Cantidad"]
[null,null,null,null,null,null,null,null,null,null,null,null,null,"Secciones","Promedio","Lecciones"]
[null,80,"Administración de la pequeña empresa","Contabilidad",5,1,null,null,null,null,null,null,{"$f":"SUM(G169:L169)","v":0},null,{"$f":"+IF(N169=\"\",\"\",M169/N169)","v":""},{"$f":"IF(F169,Hoja3!D129)*N169","v":0}]
[null,81,"Aprendamos a apreciar la música","Música",5,1,null,null,null,null,null,null,0,null,"",{"$f":"IF(F170,Hoja3!D130)*N170","v":0}]
[null,83,"¿Cómo administrar recursos humanos y financieros?","Contabilidad ",3,1,null,null,null,null,null,null,0,null,"",{"$f":"IF(F171,Hoja3!D131)*N171","v":0}]
[null,84,"Reconociendo a las personas con discapacidad como sujetas de derecho","Enseñanza Especial Generalista",3,1,null,null,null,null,null,null,0,null,"",{"$f":"IF(F172,Hoja3!D132)*N172","v":0}]
[null,85,"¿Cómo comunicarnos en una lengua indígena?","Educación Indígena",5,1,null,null,null,null,null,null,0,null,"",{"$f":"IF(F173,Hoja3!D133)*N173","v":0}]
[null,86,"¡A comunicarnos se ha dicho!","Español",3,1,null,null,null,null,null,null,0,null,"",{"$f":"IF(F174,Hoja3!D134)*N174","v":0}]
[null,87,"Conozcamos nuestra cultura autóctona","Estudios Sociales",3,1,null,null,null,null,null,null,0,null,"",{"$f":"IF(F175,Hoja3!D135)*N175","v":0}]
[null,88,"Contabilidad para la pequeña empresa","Contabilidad",3,1,null,null,null,null,null,null,0,null,"",{"$f":"IF(F176,Hoja3!D136)*N176","v":0}]
[null,89,"Creando con el lenguaje","Español",5,1,null,null,null,null,null,null,0,null,"",{"$f":"IF(F177,Hoja3!D137)*N177","v":0}]
[null,90,"Desarrollo mi creatividad","Español",3,1,null,null,null,null,null,null,0,null,"",{"$f":"IF(F178,Hoja3!D138)*N178","v":0}]
[null,93,"El camino para iniciar su propia empresa","Contabilidad",5,1,null,null,null,null,null,null,0,null,"",{"$f":"IF(F179,Hoja3!D139)*N179","v":0}]
[null,94,"El Bribri, Maleku, Cabecar, como mi lengua materna","Ingles, Educación Indigena",3,1,null,null,null,null,null,null,0,null,"",{"$f":"IF(F180,Hoja3!D140)*N180","v":0}]
[null,97,"Formación de líderes democráticos","Estudios Sociales",5,1,null,null,null,null,null,null,0,null,"",{"$f":"IF(F181,Hoja3!D141)*N181","v":0}]
[null,100,"Importancia de la actividad física: juegos pre-deportivos tradicionales y gimnasia formativa","Educación Física",5,1,null,null,null,null,null,null,0,null,"",{"$f":"IF(F182,Hoja3!D142)*N182","v":0}]
[null,102,"Relaciones humanas","Psicología",3,1,null,null,null,null,null,null,0,null,"",{"$f":"IF(F183,Hoja3!D143)*N183","v":0}]
[null,103,"Los pueblos y sus expresiones culturales","Estudios Sociales",4,1,null,null,null,null,null,null,0,null,"",{"$f":"IF(F184,Hoja3!D144)*N184","v":0}]
[null,106,"Mundo del turismo","Turismo Ecológico",2,1,null,null,null,null,null,null,0,null,"",{"$f":"IF(F185,Hoja3!D145)*N185","v":0}]
[null,107,"Nos organizamos para enfrentar desastres","Ciencias",2,1,null,null,null,null,null,null,0,null,"",{"$f":"IF(F186,Hoja3!D146)*N186","v":0}]
[null,108,"Orientación vocacional y profesional","Psicología",5,1,null,null,null,null,null,null,0,null,"",{"$f":"IF(F187,Hoja3!D147)*N187","v":0}]
[null,109,"Primeros auxilios","Educación Física",5,1,null,null,null,null,null,null,0,null,"",{"$f":"IF(F188,Hoja3!D148)*N188","v":0}]
[null,110,"Problemas y soluciones planetarios","Ciencias",3,1,null,null,null,null,null,null,0,null,"",{"$f":"IF(F189,Hoja3!D149)*N189","v":0}]
[null,111,"Promoción y defensa de los deberes y derechos del ciudadano","Estudios Sociales",3,1,null,null,null,null,null,null,0,null,"",{"$f":"IF(F190,Hoja3!D150)*N190","v":0}]
[null,118,"Vida en el planeta","Ciencias",5,1,null,null,null,null,null,null,0,null,"",{"$f":"IF(F191,Hoja3!D151)*N191","v":0}]
[null,119,"Visualicemos el futuro","Ciencias",5,1,null,null,null,null,null,null,0,null,"",{"$f":"IF(F192,Hoja3!D152)*N192","v":0}]
[null,120,"Planificando mi futuro","Psicología",2,1,null,null,null,null,null,null,0,null,"",{"$f":"IF(F193,Hoja3!D153)*N193","v":0}]
[null,121,"Descubriendo mi estilo de aprendizaje","Psicología",2,1,null,null,null,null,null,null,0,null,"",{"$f":"IF(F194,Hoja3!D154)*N194","v":0}]
[null,123,"Fortalecimiento de la matemática ","Matemática",3,1,null,null,null,null,null,null,0,null,"",{"$f":"IF(F195,Hoja3!D155)*N195-G195","v":0}]
[null,124,"Fortalecimiento del Ingles","Ingles",3,1,null,null,null,null,null,null,0,null,"",{"$f":"IF(F196,Hoja3!D156)*N196","v":0}]
[null,125,"Fortalecimiento de los Estudios Sociales","Estudios Sociales",3,1,null,null,null,null,null,null,0,null,"",{"$f":"IF(F197,Hoja3!D157)*N197","v":0}]
[null,126,"Fortalecimiento de la Biología","Ciencias",3,1,null,null,null,null,null,null,0,null,"",{"$f":"IF(F198,Hoja3!D158)*N198","v":0}]
[null,127,"Fortalecimiento de la Educación Cívica","Estudios Sociales",3,1,null,null,null,null,null,null,0,null,"",{"$f":"IF(F199,Hoja3!D159)*N199","v":0}]
[null,128,"Fortalecimiento del Español ","Español",3,1,null,null,null,null,null,null,0,null,"",{"$f":"IF(F200,Hoja3!D160)*N200","v":0}]
[null,129,"Fortalecimiento del Francés","Francés",3,1,null,null,null,null,null,null,0,null,"",{"$f":"IF(F201,Hoja3!D161)*N201","v":0}]
[null,130,"Fortalecimiento de la Quimica para Bachillerato","Ciencias",3,1,null,null,null,null,null,null,0,null,"",{"$f":"IF(F202,Hoja3!D162)*N202","v":0}]
[null,131,"Fortalecimiento de la Física para Bachillerato","Ciencias",3,1,null,null,null,null,null,null,0,null,"",{"$f":"IF(F203,Hoja3!D163)*N203","v":0}]
[null,139,"Tecnología y Trabajo","Informatica Educatica/ Desarrollo Sofware/ Progración Redes de Computadoras en Soporte",5,1,null,null,null,null,null,null,0,null,"",{"$f":"IF(F204,Hoja3!D164)*N204","v":0}]
[null,140,"Tecnología y Comunidad","Informatica Educatica/ Desarrollo Sofware/ Progración Redes de Computadoras en Soporte",5,1,null,null,null,null,null,null,0,null,"",{"$f":"IF(F205,Hoja3!D165)*N205","v":0}]
[null,141,"Tecnología y Emprendedurismo","Informatica Educatica/ Desarrollo Sofware/ Progración Redes de Computadoras en Soporte",5,1,null,null,null,null,null,null,0,null,"",{"$f":"IF(F206,Hoja3!D166)*N206","v":0}]
[null,142,"Expreción o Creción Musical","Música",5,1,null,null,null,null,null,null,0,null,"",{"$f":"IF(F207,Hoja3!D167)*N207","v":0}]
[null,143,"Desarrollo Comunitario (II Nivel)","Cualquier especilidad acádemica",2,1,null,null,null,null,null,null,0,null,"",{"$f":"IF(F208,Hoja3!D168)*N208","v":0}]
[null,144,"Desarrollo Comunitario (III Nivel)","Cualquier especilidad acádemica",3,1,null,null,null,null,null,null,0,null,"",{"$f":"IF(F209,Hoja3!D169)*N209","v":0}]
[null,145,"Introducción a la robótica","Informática, Informática educativa ambas con conocimiento en robótica",2,1,null,null,null,null,null,null,0,null,"",{"$f":"IF(F210,Hoja3!D170)*N210","v":0}]
[null,146,"Poniéndome en acción: entrenándome haciendo deporte y baile","Educación Física",5,1,null,null,null,null,null,null,0,null,"",{"$f":"IF(F211,Hoja3!D171)*N211","v":0}]
[null,147,"Promoviendo salud, venciendo desafíos","Educación Física",5,1,null,null,null,null,null,null,0,null,"",{"$f":"IF(F212,Hoja3!D172)*N212","v":0}]
[null,148,"Afectividad y sexualidad desde la cotidianidad","Psicología",2,1,null,null,null,null,null,null,0,null,"",{"$f":"IF(F213,Hoja3!D173)*N213","v":0}]
[null,149,"¡Qué lindo aprender Cabécar!","Educación indígena, especialidad lengua materna, subespecialidad: Cabécar",2,1,null,null,null,null,null,null,0,null,"",{"$f":"IF(F214,Hoja3!D174)*N214","v":0}]
[null,null,null,"CANTIDAD DE MATRICULA "]
[null,null,null,"CANTIDAD DE SECCIONES",null,null,null,null,null,null,null,null,{"$f":"SUM(N169:N214)","v":0}]
[null,"TOTAL LECCIONES CURSOS OPCIONALES I Y II NIVEL:",null,null,null,null,null,null,null,null,null,null,null,null,null,{"$f":"IF(SUM(P169:P214)=0,\"\",SUM(P169:P214))","v":""}]
[]
[null,"6) DISTRIBUCIÓN DE MATRÍCULA Y LECCIONES: CURSOS LIBRES"]
[null,"No.","Descripción del Módulo","Atinencia","Lecciones por Módulo",null,"MATRICULA POR CURSO",null,null,null,null,null,"MATRICULA TOTAL","Cantidad"]
[null,null,null,null,null,null,null,null,null,null,null,null,null,"Secciones","Promedio","Lecciones"]
[null,250,"Preparación y productos de repostería","Educ/hogar",5,1,null,null,null,null,null,null,{"$f":"G222","v":0},null,{"$f":"+IF(N222=\"\",\"\",M222/N222)","v":""},{"$f":"IF(F222,Hoja3!D179)*N222","v":0}]
[null,271,"Mantenimiento preventivo de computadoras","Informática de desarrollo del software, en programación, en redes de computadoras, en soporte.",5,1,null,null,null,null,null,null,{"$f":"G223","v":0},null,"",{"$f":"IF(F223,Hoja3!D180)*N223","v":0}]
[null,259,"Bases de datos ","Informática de desarrollo del software, en programación, en redes de computadoras, en soporte.",5,1,null,null,null,null,null,null,0,null,"",{"$f":"IF(F224,Hoja3!D181)*N224","v":0}]
[null,260,"Diseño  WEB","Informática en desarrollo del software",5,1,null,null,null,null,null,null,0,null,"",{"$f":"IF(F225,Hoja3!D182)*N225","v":0}]
[null,255,"Técnicas Secretariales","Secretariado ejecutivo, secretariado bilingüe o ejecutivo para centros de servicio",5,1,null,null,null,null,null,null,0,null,"",{"$f":"IF(F226,Hoja3!D183)*N226","v":0}]
[null,265,"Oficina moderna","Secretariado ejecutivo, secretariado bilingüe o ejecutivo para centros de servicio",5,1,null,null,null,null,null,null,0,null,"",{"$f":"IF(F227,Hoja3!D184)*N227","v":0}]
[null,261,"Ingles conversacional  inicial I NIVEL","Inglés",5,1,null,null,null,null,null,null,0,null,"",{"$f":"IF(F228,Hoja3!D185)*N228","v":0}]
[null,262,"Ingles conversacional intermedio II NIVEL","Inglés",5,1,null,null,null,null,null,null,0,null,"",{"$f":"IF(F229,Hoja3!D186)*N229","v":0}]
[null,263,"Ingles conversacional  avanzado III NIVEL","Inglés",5,1,null,null,null,null,null,null,0,null,"",{"$f":"IF(F230,Hoja3!D187)*N230","v":0}]
[null,253,"Principios de contabilidad","Contabilidad",5,1,null,null,null,null,null,null,0,null,"",{"$f":"IF(F231,Hoja3!D188)*N231","v":0}]
[null,256,"Técnicas de manejo de hidroponía y abono orgánico","Agroecología",3,1,null,null,null,null,null,null,0,null,"",{"$f":"IF(F232,Hoja3!D189)*N232","v":0}]
[null,279,"El mundo de los negocios de capital individual y asociativo","Contabilidad o profesor de estado de educación comercial y de servicios.",3,1,null,null,null,null,null,null,0,null,"",{"$f":"IF(F233,Hoja3!D190)*N233","v":0}]
[null,280,"Doctrina cooperativa","Estudios Sociales",3,1,null,null,null,null,null,null,0,null,"",{"$f":"IF(F234,Hoja3!D191)*N234","v":0}]
[null,281,"Gestión Cooperativa","Estudios Sociales",3,1,null,null,null,null,null,null,0,null,"",{"$f":"IF(F235,Hoja3!D192)*N235","v":0}]
[null,282,"Líderes y gestores de iniciativas de negocios","Contabilidad o profesor de estado de educación comercial y de servicios",3,1,null,null,null,null,null,null,0,null,"",{"$f":"IF(F236,Hoja3!D193)*N236","v":0}]
[null,258,"Montajes eléctricos básicos","Electrónica industrial y electrotecnia",5,1,null,null,null,null,null,null,0,null,"",{"$f":"IF(F237,Hoja3!D194)*N237","v":0}]
[null,269,"Refrigeración doméstica","Refrigeración y aire acondicionado",5,1,null,null,null,null,null,null,0,null,"",{"$f":"IF(F238,Hoja3!D195)*N238","v":0}]
[null,272,"Técnicas de bisutería y orfebrería","Educ/hogar",5,1,null,null,null,null,null,null,0,null,"",{"$f":"IF(F239,Hoja3!D196)*N239","v":0}]
[null,252,"Confección de accesorios para el hogar","Educ/hogar",5,1,null,null,null,null,null,null,0,null,"",{"$f":"IF(F240,Hoja3!D197)*N240","v":0}]
[null,254,"Técnica manuales y  confección de artículos con material de desecho","Educ/hogar",5,1,null,null,null,null,null,null,0,null,"",{"$f":"IF(F241,Hoja3!D198)*N241","v":0}]
[null,266,"Hagamos artesanías","Educ/hogar o artesanías",5,1,null,null,null,null,null,null,0,null,"",{"$f":"IF(F242,Hoja3!D199)*N242","v":0}]
[null,257,"Alta costura","Educ/hogar",5,1,null,null,null,null,null,null,0,null,"",{"$f":"IF(F243,Hoja3!D200)*N243","v":0}]
[null,270,"Corte y confección","Educ/hogar",5,1,null,null,null,null,null,null,0,null,"",{"$f":"IF(F244,Hoja3!D201)*N244","v":0}]
[null,267,"Técnicas de estética y estilismo","Educ/hogar",5,1,null,null,null,null,null,null,0,null,"",{"$f":"IF(F245,Hoja3!D202)*N245","v":0}]
[null,268,"Corte de cabello clásico y alta peluquería","Educ/hogar",5,1,null,null,null,null,null,null,0,null,"",{"$f":"IF(F246,Hoja3!D203)*N246","v":0}]
[null,264,"Dibujo Técnico","Artes plásticas",5,1,null,null,null,null,null,null,0,null,"",{"$f":"IF(F247,Hoja3!D204)*N247","v":0}]
[null,273,"Servicio al cliente","Secretariado ejecutivo, secretariado bilingüe o ejecutivo para centros de servicio",5,1,null,null,null,null,null,null,0,null,"",{"$f":"IF(F248,Hoja3!D205)*N248","v":0}]
[null,274,"Taller de Teatro","Teatro",5,1,null,null,null,null,null,null,0,null,"",{"$f":"IF(F249,Hoja3!D206)*N249","v":0}]
[null,275,"Taller de pintura","Artes  Plásticas",5,1,null,null,null,null,null,null,0,null,"",{"$f":"IF(F250,Hoja3!D207)*N250","v":0}]
[null,276,"Taller en música","Música",5,1,null,null,null,null,null,null,0,null,"",{"$f":"IF(F251,Hoja3!D208)*N251","v":0}]
[null,277,"Promoción de la salud","Física",5,1,null,null,null,null,null,null,0,null,"",{"$f":"IF(F252,Hoja3!D209)*N252","v":0}]
[null,278,"Preparacion de Bebidas","Turismo: alimentos y bebidas. Hotelería y eventos especiales.",5,1,null,null,null,null,null,null,0,null,"",{"$f":"IF(F253,Hoja3!D210)*N253","v":0}]
[null,283,"Educación Solidarista","Estudios Sociales",3,1,null,null,null,null,null,null,0,null,"",{"$f":"IF(F254,Hoja3!D211)*N254","v":0}]
[null,284,"Principios de administración solidarista","Estudios Sociales",3,1,null,null,null,null,null,null,0,null,"",{"$f":"IF(F255,Hoja3!D212)*N255","v":0}]
[null,285,"Reparaciones básicas en la casa","Diseño y construcción de muebles y estructuras.",5,1,null,null,null,null,null,null,0,null,"",{"$f":"IF(F256,Hoja3!D213)*N256","v":0}]
[null,286,"AL disfrutar del movimiento, mejora mi salud","Educ/Fisica",5,1,null,null,null,null,null,null,0,null,"",{"$f":"IF(F257,Hoja3!D214)*N257","v":0}]
[null,287,"Educación Vial","Doc. de cualquier especialidad académica, que cuente con el aval de la Dirección General de Educación Vial",2,1,null,null,null,null,null,null,0,null,"",{"$f":"IF(F258,Hoja3!D215)*N258","v":0}]
[null,288,"Hagamos arte ","Artes Plásticas",5,1,null,null,null,null,null,null,0,null,"",{"$f":"IF(F259,Hoja3!D216)*N259","v":0}]
[null,289,"Manipulación de Alimentos","Técnico en agro-industria, tecnología de alimentos, Nutricionista",3,1,null,null,null,null,null,null,0,null,"",{"$f":"IF(F260,Hoja3!D217)*N260","v":0}]
[null,290,"¡Cuidemos a nuestros adultos mayores!","Doc. De cualquier especialidad academica que cuente con el certificado del IDP sobre gerontología",5,1,null,null,null,null,null,null,0,null,"",{"$f":"IF(F261,Hoja3!D218)*N261","v":0}]
[null,291,"Prevención y seguridad laboral","Salud ocupacional",5,1,null,null,null,null,null,null,0,null,"",{"$f":"IF(F262,Hoja3!D219)*N262","v":0}]
[null,292,"Preparación de comidas nacionales","Educación para el Hogar",5,1,null,null,null,null,null,null,0,null,"",{"$f":"IF(F263,Hoja3!D220)*N263","v":0}]
[null,293,"Preparación de comidas internacionales","Educación para el Hogar",5,1,null,null,null,null,null,null,0,null,"",{"$f":"IF(F264,Hoja3!D221)*N264","v":0}]
[null,294,"Elaboración de confites, chocolates y postres","Educación para el Hogar",5,1,null,null,null,null,null,null,0,null,"",{"$f":"IF(F265,Hoja3!D222)*N265","v":0}]
[null,295,"Elaboración y decoración de pastelería","Educación para el Hogar",5,1,null,null,null,null,null,null,0,null,"",{"$f":"IF(F266,Hoja3!D223)*N266","v":0}]
[null,296,"¿Cómo desarollor el pensamiento matemático a través de la creatividad?","Matemática",2,1,null,null,null,null,null,null,0,null,"",{"$f":"IF(F267,Hoja3!D224)*N267","v":0}]
[null,297,"Búsqueda del conocimiento al alcance de todos","Docentes de cualquier especialidad académica",2,1,null,null,null,null,null,null,0,null,"",{"$f":"IF(F268,Hoja3!D225)*N268","v":0}]
[null,null,null,null,null,null,null,"CANTIDAD DE MATRICULA "]
[null,null,null,null,null,null,"CANTIDAD DE SECCIONES",null,null,null,null,null,{"$f":"SUM(N222:N268)","v":0}]
[null,"TOTAL LECCIONES CURSOS LIBRES:",null,null,null,null,null,null,null,null,null,null,null,null,null,{"$f":"IF(SUM(P222:P268)=0,\"\",SUM(P222:P268))","v":""}]

{"sheet":"  SATELITE 4","index":12,"n_rows":271,"n_cols":22,"rows_kept":271,"cut":false,"hidden":false,"merged":[[142,8,142,11],[143,8,143,11],[144,8,144,11],[145,8,145,11],[146,8,146,11],[147,8,147,11],[148,8,148,11],[149,8,149,11],[133,8,133,11],[134,8,134,11],[135,8,135,11],[136,8,136,11],[137,8,137,11],[138,8,138,11],[139,8,139,11],[140,8,140,11],[141,8,141,11],[265,7,265,11],[266,7,266,11],[267,7,267,11],[112,8,112,11],[113,8,113,11],[114,8,114,11],[115,8,115,11],[116,8,116,11],[117,8,117,11],[118,8,118,11],[119,8,119,11],[120,8,120,11],[121,8,121,11],[122,8,122,11],[123,8,123,11],[124,8,124,11],[125,8,125,11],[126,8,126,11],[127,8,127,11],[128,8,128,11],[129,8,129,11],[130,8,130,11],[131,8,131,11],[132,8,132,11],[256,7,256,11],[257,7,257,11],[258,7,258,11],[259,7,259,11],[260,7,260,11],[261,7,261,11],[262,7,262,11],[263,7,263,11],[264,7,264,11],[247,7,247,11],[248,7,248,11],[249,7,249,11],[250,7,250,11],[251,7,251,11],[252,7,252,11],[253,7,253,11],[254,7,254,11],[255,7,255,11],[238,7,238,11],[239,7,239,11],[240,7,240,11],[241,7,241,11],[242,7,242,11],[243,7,243,11],[244,7,244,11],[245,7,245,11],[246,7,246,11],[229,7,229,11],[230,7,230,11],[231,7,231,11],[232,7,232,11],[233,7,233,11],[234,7,234,11],[235,7,235,11],[236,7,236,11],[237,7,237,11],[8,1,8,15],[8,17,8,18],[9,1,9,15],[9,17,9,18],[10,17,10,18],[11,1,11,15],[11,17,11,18],[1,1,2,2],[6,17,7,19],[7,1,7,15],[3,17,4,19],[3,1,6,15],[18,17,18,19],[38,3,38,11],[38,12,38,13],[39,3,39,11],[39,12,39,13],[40,1,40,14],[12,13,12,15],[12,17,12,18],[13,17,13,18],[14,17,14,18],[15,17,15,18],[16,17,16,18],[12,1,13,1],[12,2,13,2],[12,3,13,3],[12,4,13,4],[12,6,13,11],[12,12,14,12],[41,11,41,14],[44,1,44,15],[45,1,46,1],[45,2,46,2],[45,3,46,3],[45,4,46,4],[45,5,46,5],[45,6,46,6],[45,7,46,7],[45,8,46,9],[49,8,49,9],[49,10,49,11],[50,8,50,9],[50,10,50,11],[51,8,51,9],[51,10,51,11],[45,10,46,11],[45,12,46,12],[45,13,45,15],[47,8,47,9],[47,10,47,11],[48,8,48,9],[48,10,48,11],[55,8,55,9],[55,10,55,11],[56,8,56,9],[56,10,56,11],[57,8,57,9],[57,10,57,11],[52,8,52,9],[52,10,52,11],[53,8,53,9],[53,10,53,11],[54,8,54,9],[54,10,54,11],[61,8,61,9],[61,10,61,11],[62,8,62,9],[62,10,62,11],[63,8,63,9],[63,10,63,11],[58,8,58,9],[58,10,58,11],[59,8,59,9],[59,10,59,11],[60,8,60,9],[60,10,60,11],[67,8,67,9],[67,10,67,11],[68,8,68,9],[68,10,68,11],[69,3,69,11],[69,12,69,13],[64,8,64,9],[64,10,64,11],[65,8,65,9],[65,10,65,11],[66,8,66,9],[66,10,66,11],[75,8,76,9],[75,10,76,11],[75,12,76,12],[75,13,75,15],[77,8,77,9],[77,10,77,11],[70,3,70,11],[70,12,70,13],[71,1,71,14],[74,1,74,15],[75,1,76,1],[75,2,76,2],[75,3,76,3],[75,4,76,4],[75,6,76,6],[75,7,76,7],[81,8,81,9],[81,10,81,11],[82,8,82,9],[82,10,82,11],[83,8,83,9],[83,10,83,11],[78,8,78,9],[78,10,78,11],[79,8,79,9],[79,10,79,11],[80,8,80,9],[80,10,80,11],[87,8,87,9],[87,10,87,11],[88,8,88,9],[88,10,88,11],[89,8,89,9],[89,10,89,11],[84,8,84,9],[84,10,84,11],[85,8,85,9],[85,10,85,11],[86,8,86,9],[86,10,86,11],[93,3,93,11],[93,12,93,13],[94,3,94,11],[94,12,94,13],[95,1,95,14],[97,1,99,15],[90,8,90,9],[90,10,90,11],[91,8,91,9],[91,10,91,11],[92,8,92,9],[92,10,92,11],[102,7,102,12],[102,13,102,16],[102,17,102,20],[109,1,109,15],[110,1,111,1],[110,2,111,2],[110,3,111,3],[110,4,111,4],[110,6,111,7],[110,8,111,11],[119,6,119,7],[120,6,120,7],[121,6,121,7],[122,6,122,7],[123,6,123,7],[124,6,124,7],[110,12,111,12],[110,13,110,15],[112,6,112,7],[113,6,113,7],[114,6,114,7],[115,6,115,7],[116,6,116,7],[117,6,117,7],[118,6,118,7],[131,6,131,7],[132,6,132,7],[133,6,133,7],[134,6,134,7],[135,6,135,7],[136,6,136,7],[125,6,125,7],[126,6,126,7],[127,6,127,7],[128,6,128,7],[129,6,129,7],[130,6,130,7],[143,6,143,7],[144,6,144,7],[145,6,145,7],[146,6,146,7],[147,6,147,7],[148,6,148,7],[137,6,137,7],[138,6,138,7],[139,6,139,7],[140,6,140,7],[141,6,141,7],[142,6,142,7],[149,6,149,7],[150,6,150,7],[151,6,151,7],[152,6,152,7],[153,6,153,7],[154,6,154,7],[150,8,150,11],[151,8,151,11],[152,8,152,11],[153,8,153,11],[154,8,154,11],[168,10,168,11],[169,8,169,9],[169,10,169,11],[155,6,155,7],[156,6,156,7],[157,6,157,7],[158,3,158,11],[158,12,158,13],[159,3,159,11],[159,12,159,13],[155,8,155,11],[156,8,156,11],[157,8,157,11],[160,1,160,14],[165,1,165,15],[166,1,167,1],[166,2,167,2],[166,3,167,3],[166,4,167,4],[166,6,167,7],[166,8,167,9],[166,10,167,11],[166,12,167,12],[168,6,168,7],[169,6,169,7],[170,6,170,7],[171,6,171,7],[172,6,172,7],[173,6,173,7],[174,6,174,7],[175,6,175,7],[168,8,168,9],[178,8,178,9],[177,6,177,7],[178,6,178,7],[178,10,178,11],[179,8,179,9],[179,10,179,11],[180,8,180,9],[180,10,180,11],[175,8,175,9],[175,10,175,11],[161,1,161,14],[166,13,166,15],[170,8,170,9],[170,10,170,11],[171,8,171,9],[171,10,171,11],[176,8,176,9],[176,10,176,11],[177,8,177,9],[177,10,177,11],[172,8,172,9],[172,10,172,11],[173,8,173,9],[173,10,173,11],[174,8,174,9],[174,10,174,11],[176,6,176,7],[185,8,185,9],[185,10,185,11],[186,8,186,9],[186,10,186,11],[181,8,181,9],[181,10,181,11],[182,8,182,9],[182,10,182,11],[183,8,183,9],[183,10,183,11],[184,8,184,9],[184,10,184,11],[190,8,190,9],[190,10,190,11],[191,8,191,9],[191,10,191,11],[192,8,192,9],[192,10,192,11],[187,8,187,9],[187,10,187,11],[188,8,188,9],[188,10,188,11],[189,8,189,9],[189,10,189,11],[196,8,196,9],[196,10,196,11],[197,8,197,9],[197,10,197,11],[198,8,198,9],[198,10,198,11],[193,8,193,9],[193,10,193,11],[194,8,194,9],[194,10,194,11],[195,8,195,9],[195,10,195,11],[202,8,202,9],[202,10,202,11],[203,8,203,9],[203,10,203,11],[204,8,204,9],[204,10,204,11],[199,8,199,9],[199,10,199,11],[200,8,200,9],[200,10,200,11],[201,8,201,9],[201,10,201,11],[208,8,208,9],[208,10,208,11],[209,8,209,9],[209,10,209,11],[210,8,210,9],[210,10,210,11],[205,8,205,9],[205,10,205,11],[206,8,206,9],[206,10,206,11],[207,8,207,9],[207,10,207,11],[214,3,214,11],[214,12,214,13],[215,3,215,11],[215,12,215,13],[216,1,216,14],[218,1,218,15],[211,8,211,9],[211,10,211,11],[212,8,212,9],[212,10,212,11],[213,8,213,9],[213,10,213,11],[213,6,213,7],[212,6,212,7],[270,1,270,14],[219,12,220,12],[219,13,219,15],[268,2,268,4],[268,7,268,11],[268,12,268,13],[268,14,269,15],[269,2,269,4],[269,6,269,11],[269,12,269,13],[219,1,220,1],[219,2,220,2],[219,3,220,3],[219,4,220,4],[219,6,220,6],[219,7,220,11],[221,7,221,11],[222,7,222,11],[223,7,223,11],[224,7,224,11],[225,7,225,11],[226,7,226,11],[227,7,227,11],[228,7,228,11],[179,6,179,7],[180,6,180,7],[181,6,181,7],[182,6,182,7],[183,6,183,7],[184,6,184,7],[185,6,185,7],[186,6,186,7],[187,6,187,7],[188,6,188,7],[189,6,189,7],[190,6,190,7],[191,6,191,7],[192,6,192,7],[193,6,193,7],[194,6,194,7],[195,6,195,7],[196,6,196,7],[206,6,206,7],[207,6,207,7],[208,6,208,7],[209,6,209,7],[210,6,210,7],[211,6,211,7],[197,6,197,7],[198,6,198,7],[199,6,199,7],[200,6,200,7],[201,6,201,7],[202,6,202,7],[203,6,203,7],[204,6,204,7],[205,6,205,7]]}
[]
[null,"***NOTA: SE DEBE INCLUIR PRIMERO LA MATRICULA Y LUEGO SECCIONES "]
[]
[null,{"$error":"#VALUE!"},null,null,null,null,null,null,null,null,null,null,null,null,null,null,null,"RESUMEN DE LECCIONES Y AMPLIACION DEL SATELITE"]
[]
[]
[null,null,null,null,null,null,null,null,null,null,null,null,null,null,null,null,null,"SUMATORIA DE LAS LECCIONES POR SATELITE"]
[null,"NOMBRE DEL SATELITE N°4"]
[null,{"$f":"'FORMULARIO '!B121:D121","v":0},null,null,null,null,null,null,null,null,null,null,null,null,null,null,null,"LECCIONES TECNICAS"]
[null,null,null,null,null,null,null,null,null,null,null,null,null,null,null,null,null,"*AMPLIACIONES I NIVEL",null,{"$f":"+SUM(P41)+(P162)","v":0}]
[null,null,null,null,null,null,null,null,null,null,null,null,null,null,null,null,null,"LECCIONES INGLES I NIVEL",null,{"$f":"SUM(P30)","v":0}]
[null,"1) DISTRIBUCIÓN DE MATRÍCULA Y LECCIONES: NIVEL I",null,null,null,null,null,null,null,null,null,null,null,null,null,null,null,"LECCIONES II NIVEL",null,{"$f":"SUM(P72)","v":0}]
[null,"No.","Descripción del Módulo","Atinencia","Lecciones por Módulo",null,"MATRICULA",null,null,null,null,null,"MATRICULA TOTAL ","Cantidad",null,null,null,"LECCIONES III NIVEL",null,{"$f":"SUM(P96)","v":0}]
[null,null,null,null,null,null,null,null,null,null,null,null,null,"Secciones","Promedio","Lecciones",null,"LECCIONES MODULARES OPCIONALES I NIVEL, II NIVEL Y III NIVEL",null,{"$f":"SUM(P217)+SUM(P161)","v":0}]
[null,null,null,null,null,null,"PERIODO 1","PERIODO 2","PERIODO 3","PERIODO 4","PERIODO 5","PERIODO 6",null,null,null,null,null,"LECCIONES I NIVEL PSICOLOGIA",null,{"$f":"SUM(P31)+SUM(P36)","v":0}]
[null,1,"Aplicaciones cotidianas de la matemática","Matemáticas",4,1,null,null,null,null,null,null,{"$f":"SUM(G16:L16)","v":0},null,{"$f":"+IF(N16=\"\",\"\",M16/N16)","v":""},{"$f":"IF(F16=1,Hoja3!D5)*N16","v":0},null,"CURSOS EMERGENTES",null,{"$f":"SUM(P271)","v":0}]
[null,2,"Disfrutando del mundo de las palabras","Español",4,1,null,null,null,null,null,null,0,null,"",{"$f":"IF(F17=1,Hoja3!D6)*N17","v":0},null,"Total Lecciones Requeridas:",null,{"$f":"SUM(T11:T16)+SUM(T9)","v":0}]
[null,3,"Construyamos nuestro bienestar personal y comunitario","Ciencias",3,1,null,null,null,null,null,null,0,null,"",{"$f":"IF(F18=1,Hoja3!D7)*N18","v":0}]
[null,4,"Vida Cotidiana: Deberes y Derechos en el entorno cercano","Estudios Sociales",3,1,null,null,null,null,null,null,0,null,"",{"$f":"IF(F19=1,Hoja3!D8)*N19","v":0},null,"*Nota: Las ampliaciones no se suman al total de lecciones."]
[null,5,"Promovamos el desarrollo humano en forma equitativa y sostenible","Ciencias",3,1,null,null,null,null,null,null,0,null,"",{"$f":"IF(F20=1,Hoja3!D9)*N20","v":0}]
[null,6,"Relieve de mi Cantón: Conociendo mi patrimonio natural y cultural","Estudios Sociales",3,1,null,null,null,null,null,null,0,null,"",{"$f":"IF(F21=1,Hoja3!D10)*N21","v":0}]
[null,7,"Historia y Geografia de mi provincia","Estudios Sociales",3,1,null,null,null,null,null,null,0,null,"",{"$f":"IF(F22=1,Hoja3!D11)*N22","v":0}]
[null,8,"Actividades humanas asociadas a los paisajes geográficos de mi provincia","Estudios Sociales",3,1,null,null,null,null,null,null,0,null,"",{"$f":"IF(F23=1,Hoja3!D12)*N23","v":0}]
[null,9,"Costa Rica: Una sociedad intercultural, multiétnica y plurilingüe","Estudios Sociales",2,1,null,null,null,null,null,null,0,null,"",{"$f":"IF(F24=1,Hoja3!D13)*N24","v":0}]
[null,10,"Cuidemos nuestro planeta y toda forma de vida","Ciencias",3,1,null,null,null,null,null,null,0,null,"",{"$f":"IF(F25=1,Hoja3!D14)*N25","v":0}]
[null,11,"Adoptemos estilos de vida saludables","Ciencias",2,1,null,null,null,null,null,null,0,null,"",{"$f":"IF(F26=1,Hoja3!D15)*N26","v":0}]
[null,12,"Convivamos en entornos naturales y socioculturales seguros","Ciencias",2,1,null,null,null,null,null,null,0,null,"",{"$f":"IF(F27=1,Hoja3!D16)*N27","v":0}]
[null,13,"Modifiquemos nuestros patrones de consumo y producción para salvaguardar la integridad del planeta","Ciencias",3,1,null,null,null,null,null,null,0,null,"",{"$f":"IF(F28=1,Hoja3!D17)*N28","v":0}]
[null,15,"Protejamos y restauremos los procesos naturales que sustentan la vida","Ciencias",3,1,null,null,null,null,null,null,0,null,"",{"$f":"IF(F29=1,Hoja3!D18)*N29","v":0}]
[null,16,"Nos comunicamos en otras lenguas","Idioma Extranjero",5,1,null,null,null,null,null,null,0,null,"",{"$f":"IF(F30=1,Hoja3!D19)*N30","v":0}]
[null,17,"Descubriendo mi estilo de aprendizaje","Psicología",2,1,null,null,null,null,null,null,0,null,"",{"$f":"IF(F31=1,Hoja3!D20)*N31","v":0}]
[null,18,"Valoramos la importancia de la igualdad y la libertad a partir de nuestra historia colonial","Estudios Sociales",2,1,null,null,null,null,null,null,0,null,"",{"$f":"IF(F32=1,Hoja3!D21)*N32","v":0}]
[null,20,"Construcción de nuestro estado nación para el fortalecimiento de la identidad nacional","Estudios Sociales",2,1,null,null,null,null,null,null,0,null,"",{"$f":"IF(F33=1,Hoja3!D22)*N33","v":0}]
[null,21,"La sociedad costarricense actual: sus desafios y oportunidades en el contexto mundial","Estudios Sociales",2,1,null,null,null,null,null,null,0,null,"",{"$f":"IF(F34=1,Hoja3!D23)*N34","v":0}]
[null,22,"Espacios de participación y representación de mi cantón","Estudios Sociales",3,1,null,null,null,null,null,null,0,null,"",{"$f":"IF(F35=1,Hoja3!D24)*N35","v":0}]
[null,23,"Planificando mi fururo","Psicología",2,1,null,null,null,null,null,null,0,null,"",{"$f":"IF(F36=1,Hoja3!D25)*N36","v":0}]
[null,24,"Aplicaciones cotidianas de la matemática","Matemáticas",4,1,null,null,null,null,null,null,0,null,"",{"$f":"IF(F37=1,Hoja3!D26)*N37","v":0}]
[null,25,"¡Comunicandonos en la cotidianidad!","Español",4,1,null,null,null,null,null,null,0,null,"",{"$f":"IF(F38=1,Hoja3!D27)*N38","v":0}]
[null,null,null,"CANTIDAD DE MATRICULA I NIVEL"]
[null,null,null,"CANTIDAD DE SECCIONES"]
[null,"TOTAL AMPLIACIONES NIVEL I:",null,null,null,null,null,null,null,null,null,null,null,null,null,{"$f":"IF(SUM(P16:P38)=0,\"\",SUM(P16:P38)-(P30+P31+P36))","v":""}]
[null,null,null,null,null,null,null,null,null,null,null,"TOTAL LECCIONES INGLES Y PSICOLOGIA",null,null,null,{"$f":"SUM(P30+P31+P36)","v":0}]
[]
[]
[null,"2) DISTRIBUCIÓN DE MATRÍCULA Y LECCIONES: NIVEL II"]
[null,"No.","Descripción del Módulo","Atinencia","Lecciones por Módulo",null,"PERIODO 1","PERIODO 2","PERIODO 3",null,"PERIODO 4",null,"MATRICULA TOTAL ","Cantidad"]
[null,null,null,null,null,null,null,null,null,null,null,null,null,"Secciones","Promedio","Lecciones"]
[null,30,"La ciencia de lo humano para el desarrollo científico","Ciencias",4,1,null,null,null,null,null,null,{"$f":"SUM(G48:L48)","v":0},null,{"$f":"+IF(N48=\"\",\"\",M48/N48)","v":""},{"$f":"IF(F48=1,Hoja3!D32)*N48","v":0}]
[null,{"$f":"+B48+1","v":31},"¿Por qué es importante el estudio del espacio geográfico en el planeta tierra?","Estudios Sociales",4,1,null,null,null,null,null,null,0,null,"",{"$f":"IF(F49=1,Hoja3!D33)*N49","v":0}]
[null,{"$f":"+B49+1","v":32},"Crecemos en el lenguaje","Español",4,1,null,null,null,null,null,null,0,null,"",{"$f":"IF(F50=1,Hoja3!D34)*N50","v":0}]
[null,{"$f":"+B50+1","v":33},"Entorno Científico: seres vivos y energía en sostenibilidad","Ciencias",2,1,null,null,null,null,null,null,0,null,"",{"$f":"IF(F51=1,Hoja3!D35)*N51","v":0}]
[null,35,"La adaptación del ser humano aun medio ambiente cambiante","Estudios Sociales",2,1,null,null,null,null,null,null,0,null,"",{"$f":"IF(F52=1,Hoja3!D36)*N52","v":0}]
[null,{"$f":"+B52+1","v":36},"Razonamiento de los números, la geometría y el álgebra para la cotidianidad","Matemáticas",6,1,null,null,null,null,null,null,0,null,"",{"$f":"IF(F53=1,Hoja3!D37)*N53","v":0}]
[null,37,"Seguridad de las personas en Costa Rica","Educación Cívica",4,1,null,null,null,null,null,null,0,null,"",{"$f":"IF(F54=1,Hoja3!D38)*N54","v":0}]
[null,38,"Variedades de la lengua","Español",3,1,null,null,null,null,null,null,0,null,"",{"$f":"IF(F55=1,Hoja3!D39)*N55","v":0}]
[null,39,"Participación, representación y derechos humanos en la sociedad democrática","Educación Cívica",4,1,null,null,null,null,null,null,0,null,"",{"$f":"IF(F56=1,Hoja3!D40)*N56","v":0}]
[null,40,"Estadística básica","Matemáticas",2,1,null,null,null,null,null,null,0,null,"",{"$f":"IF(F57=1,Hoja3!D41)*N57","v":0}]
[null,41,"Química de la tierra y su formación","Ciencias",3,1,null,null,null,null,null,null,0,null,"",{"$f":"IF(F58=1,Hoja3!D42)*N58","v":0}]
[null,42,"Comprendiendo la historia: de la edad media al renacimiento del siglo V al XVI","Estudios Sociales",2,1,null,null,null,null,null,null,0,null,"",{"$f":"IF(F59=1,Hoja3!D43)*N59","v":0}]
[null,43,"Materia y energía en sociedad","Ciencias",3,1,null,null,null,null,null,null,0,null,"",{"$f":"IF(F60=1,Hoja3!D44)*N60","v":0}]
[null,44,"Los procesos plurisignificativos de la comunicación literaria","Español",3,1,null,null,null,null,null,null,0,null,"",{"$f":"IF(F61=1,Hoja3!D45)*N61","v":0}]
[null,45,"Materia Planetaria en sostenibilidad","Ciencias",2,1,null,null,null,null,null,null,0,null,"",{"$f":"IF(F62=1,Hoja3!D46)*N62","v":0}]
[null,46,"Nos cominicamos en otras lenguas","Idioma Extranjero",5,1,null,null,null,null,null,null,0,null,"",{"$f":"IF(F63=1,Hoja3!D47)*N63","v":0}]
[null,48,"Cotidianidad del ser humano: desde la Edad Moderno en Europa y América siglos XVI-XIX","Estudios Sociales",3,1,null,null,null,null,null,null,0,null,"",{"$f":"IF(F64=1,Hoja3!D48)*N64","v":0}]
[null,{"$f":"+B64+1","v":49},"Vivencia de la sexualidad en el contexto familiar y social","Ciencias",3,1,null,null,null,null,null,null,0,null,"",{"$f":"IF(F65=1,Hoja3!D49)*N65","v":0}]
[null,{"$f":"+B65+1","v":50},"Roles de trabajo y formas de comunicación en el mundo antiguo","Estudios Sociales",4,1,null,null,null,null,null,null,0,null,"",{"$f":"IF(F66=1,Hoja3!D50)*N66","v":0}]
[null,{"$f":"+B66+1","v":51},"Construyamos nuestra identidad ciudadana","Educación Cívica",4,1,null,null,null,null,null,null,0,null,"",{"$f":"IF(F67=1,Hoja3!D51)*N67","v":0}]
[null,52,"Aplicaciones de los números, la geometría y el álgebra en nuetro entorno","Matemáticas",5,1,null,null,null,null,null,null,0,null,"",{"$f":"IF(F68=1,Hoja3!D52)*N68","v":0}]
[null,53,"Comprendiendo  nuestro entorno a través de la estadística","Matemáticas",2,1,null,null,null,null,null,null,0,null,"",{"$f":"IF(F69=1,Hoja3!D53)*N69","v":0}]
[null,null,null,"CANTIDAD DE MATRICULA II NIVEL"]
[null,null,null,"CANTIDAD DE SECCIONES",null,null,null,null,null,null,null,null,{"$f":"SUM(N48:N69)","v":0}]
[null,"TOTAL LECCIONES NIVEL II:",null,null,null,null,null,null,null,null,null,null,null,null,null,{"$f":"IF(SUM(P48:P69)=0,\"\",SUM(P48:P69))","v":""}]
[]
[]
[null,"3) DISTRIBUCIÓN DE MATRÍCULA Y LECCIONES: NIVEL III"]
[null,"No.","Descripción del Módulo","Atinencia","Lecciones por Módulo",null,"PERIODO 1","PERIODO 2","PERIODO 3",null,"PERIODO 4",null,"MATRICULA TOTAL","Cantidad"]
[null,null,null,null,null,null,null,null,null,null,null,null,null,"Secciones","Promedio","Lecciones"]
[null,60,"Nos comunicamos mejor","Español",4,1,null,null,null,null,null,null,{"$f":"SUM(G78:L78)","v":0},null,{"$f":"+IF(N78=\"\",\"\",M78/N78)","v":""},{"$f":"IF(F78=1,Hoja3!D58)*N78","v":0}]
[null,{"$f":"+B78+1","v":61},"Sistemas y Regímenes políticos, el estado costarricense garante de oporunidades para la construcción de la cultura democrática","Educación Cívica",2,1,null,null,null,null,null,null,0,null,"",{"$f":"IF(F79=1,Hoja3!D59)*N79","v":0}]
[null,62,"¿Cómo las transformaciones sociales, económicas, y políticas del mundo comtemporáneo impactan a la sociedad actual? (siglo XIX-Epoca actual)","Estudios Sociales",3,1,null,null,null,null,null,null,0,null,"",{"$f":"IF(F80=1,Hoja3!D60)*N80","v":0}]
[null,63,"Una mirada a las problemáticas contemporáneas; Repercusiones de la dinámica poblacional y movilización espacial","Estudios Sociales",3,1,null,null,null,null,null,null,0,null,"",{"$f":"IF(F81=1,Hoja3!D61)*N81","v":0}]
[null,64,"Interdependencia e interconexión: Los patrones espaciales en la sociedad globalizado","Estudios Sociales",3,1,null,null,null,null,null,null,0,null,"",{"$f":"IF(F82=1,Hoja3!D62)*N82","v":0}]
[null,65,"Seres vivos en población","Ciencias (Biología)",4,1,null,null,null,null,null,null,0,null,"",{"$f":"IF(F83=1,Hoja3!D63)*N83","v":0}]
[null,66,"Valorando nuestra sociedad (siglo XX-XXI)","Estudios Sociales",3,1,null,null,null,null,null,null,0,null,"",{"$f":"IF(F84=1,Hoja3!D64)*N84","v":0}]
[null,68,"Aplicación de la química en el hogar y la comunidad","Ciencias (Química)",4,1,null,null,null,null,null,null,0,null,"",{"$f":"IF(F85=1,Hoja3!D65)*N85","v":0}]
[null,69,"Aplicaciones de la física en la vida diaria","Ciencias (Física)",4,1,null,null,null,null,null,null,0,null,"",{"$f":"IF(F86=1,Hoja3!D66)*N86","v":0}]
[null,{"$f":"+B86+1","v":70},"¿Dónde está presente la estadística?","Matemáticas",2,1,null,null,null,null,null,null,0,null,"",{"$f":"IF(F87=1,Hoja3!D67)*N87","v":0}]
[null,71,"Nos comunicamos en otras lenguas","Idioma Extranjero",5,1,null,null,null,null,null,null,0,null,"",{"$f":"IF(F88=1,Hoja3!D68)*N88","v":0}]
[null,72,"¿Cómo aplicar la estadística y la probabilidad en la vida diaria?","Matemáticas",2,1,null,null,null,null,null,null,0,null,"",{"$f":"IF(F89=1,Hoja3!D69)*N89","v":0}]
[null,73,"Construyamos el futuro","Ciencias (Biología)",3,1,null,null,null,null,null,null,0,null,"",{"$f":"IF(F90=1,Hoja3!D70)*N90","v":0}]
[null,74,"¿Cómo relacionar la geometría y las relaciones algebraicas con nuestro entorno?","Matemáticas",4,1,null,null,null,null,null,null,0,null,"",{"$f":"IF(F91=1,Hoja3!D71)*N91","v":0}]
[null,75,"¿Cómo nos puede ayudar las relaciones, el álgebra y la geometría a entender el mundo que nos rodea?","Matemáticas",4,1,null,null,null,null,null,null,0,null,"",{"$f":"IF(F92=1,Hoja3!D72)*N92","v":0}]
[null,76,"Ética Profesional","Filosofía",2,1,null,null,null,null,null,null,0,null,"",{"$f":"IF(F93=1,Hoja3!D73)*N93","v":0}]
[null,null,null,"CANTIDAD DE MATRICULA III NIVEL"]
[null,null,null,"CANTIDAD DE SECCIONES",null,null,null,null,null,null,null,null,{"$f":"SUM(N78:N93)","v":0}]
[null,"TOTAL LECCIONES NIVELES III:",null,null,null,null,null,null,null,null,null,null,null,null,null,{"$f":"IF(SUM(P78:P93)=0,\"\",SUM(P78:P93))","v":""}]
[]
[null,"CURSOS OPCIONALES PRIMERO DEBE DE ELEGIR LOS DE I NIVEL Y  POSTERIORMENTE DEBEN ELEGIR LOS CURSOS DE II Y III NIVEL (ESTO PARA MEJOR DISTRIBUCION)"]
[]
[]
[]
[null,"*****","FAVOR LLENAR LA MATRICULA Y SECCIONES A INCLUIR EN CURSOS OPCIONALES (OBLIGATORIO):"]
[null,null,null,null,null,null,null,"I NIVEL ",null,null,null,null,null,"II NIVEL ",null,null,null,"III NIVEL",null,null,null,"TOTAL"]
[null,null,null,null,null,null,null,"1 PERIODO","2 PERIODO","3 PERIODO","4 PERIODO","5 PERIODO","6 PERIODO","1 PERIODO","2 PERIODO","3 PERIODO","4 PERIODO","1 PERIODO","2 PERIODO","3 PERIODO","4 PERIODO"]
[null,null,null,null,null,null,"MATRICULA ",null,null,null,null,null,null,null,null,null,null,null,null,null,null,{"$f":"SUM(H105:U105)","v":0}]
[null,null,null,null,null,null,"SECCIONES ",null,null,null,null,null,null,null,null,null,null,null,null,null,null,{"$f":"SUM(H106:U106)","v":0}]
[]
[null,"Opcionales SOLO para I NIVEL (se subrayan las materias básicas estos se separan ya que se dan por AMPLIACIONES  y las otra atinencias por LECCIONES):"]
[]
[null,"4) DISTRIBUCIÓN DE MATRÍCULA Y LECCIONES: CURSOS MODULARES OPCIONALES I NIVEL"]
[null,"No.","Descripción del Módulo","Atinencia","Lecciones por Módulo",null,"MATRICULA I NIVEL",null,null,null,null,null,"MATRICULA TOTAL","Cantidad"]
[null,null,null,null,null,null,null,null,null,null,null,null,null,"Secciones","Promedio","Lecciones"]
[null,80,"Administración de la pequeña empresa","Contabilidad",5,1,null,null,null,null,null,null,{"$f":"SUM(G113:L113)","v":0},null,{"$f":"+IF(N113=\"\",\"\",M113/N113)","v":""},{"$f":"IF(F113,Hoja3!D129)*N113","v":0}]
[null,81,"Aprendamos a apreciar la música","Música",5,1,null,null,null,null,null,null,0,null,"",{"$f":"IF(F114,Hoja3!D130)*N114","v":0}]
[null,83,"¿Cómo administrar recursos humanos y financieros?","Contabilidad ",3,1,null,null,null,null,null,null,0,null,"",{"$f":"IF(F115,Hoja3!D131)*N115","v":0}]
[null,84,"Reconociendo a las personas con discapacidad como sujetas de derecho","Enseñanza Especial Generalista",3,1,null,null,null,null,null,null,0,null,"",{"$f":"IF(F116,Hoja3!D132)*N116","v":0}]
[null,85,"¿Cómo comunicarnos en una lengua indígena?","Educación Indígena",5,1,null,null,null,null,null,null,0,null,"",{"$f":"IF(F117,Hoja3!D133)*N117","v":0}]
[null,86,"¡A comunicarnos se ha dicho!","Español",3,1,null,null,null,null,null,null,0,null,"",{"$f":"IF(F118,Hoja3!D134)*N118","v":0}]
[null,87,"Conozcamos nuestra cultura autóctona","Estudios Sociales",3,1,null,null,null,null,null,null,0,null,"",{"$f":"IF(F119,Hoja3!D135)*N119","v":0}]
[null,88,"Contabilidad para la pequeña empresa","Contabilidad",3,1,null,null,null,null,null,null,0,null,"",{"$f":"IF(F120,Hoja3!D136)*N120","v":0}]
[null,89,"Creando con el lenguaje","Español",5,1,null,null,null,null,null,null,0,null,"",{"$f":"IF(F121,Hoja3!D137)*N121","v":0}]
[null,90,"Desarrollo mi creatividad","Español",3,1,null,null,null,null,null,null,0,null,"",{"$f":"IF(F122,Hoja3!D138)*N122","v":0}]
[null,93,"El camino para iniciar su propia empresa","Contabilidad",5,1,null,null,null,null,null,null,0,null,"",{"$f":"IF(F123,Hoja3!D139)*N123","v":0}]
[null,94,"El Bribri, Maleku, Cabecar, como mi lengua materna","Ingles, Educación Indigena",3,1,null,null,null,null,null,null,0,null,"",{"$f":"IF(F124,Hoja3!D140)*N124","v":0}]
[null,97,"Formación de líderes democráticos","Estudios Sociales",5,1,null,null,null,null,null,null,0,null,"",{"$f":"IF(F125,Hoja3!D141)*N125","v":0}]
[null,100,"Importancia de la actividad física: juegos pre-deportivos tradicionales y gimnasia formativa I NIVEL","Educación Física",5,1,null,null,null,null,null,null,0,null,"",{"$f":"IF(F126,Hoja3!D142)*N126","v":0}]
[null,102,"Relaciones humanas","Psicología",3,1,null,null,null,null,null,null,0,null,"",{"$f":"IF(F127,Hoja3!D143)*N127","v":0}]
[null,103,"Los pueblos y sus expresiones culturales","Estudios Sociales",4,1,null,null,null,null,null,null,0,null,"",{"$f":"IF(F128,Hoja3!D144)*N128","v":0}]
[null,106,"Mundo del turismo","Turismo Ecológico",2,1,null,null,null,null,null,null,0,null,"",{"$f":"IF(F129,Hoja3!D145)*N129","v":0}]
[null,107,"Nos organizamos para enfrentar desastres","Ciencias",2,1,null,null,null,null,null,null,0,null,"",{"$f":"IF(F130,Hoja3!D146)*N130","v":0}]
[null,108,"Orientación vocacional y profesional","Psicología",5,1,null,null,null,null,null,null,0,null,"",{"$f":"IF(F131,Hoja3!D147)*N131","v":0}]
[null,109,"Primeros auxilios","Educación Física",5,1,null,null,null,null,null,null,0,null,"",{"$f":"IF(F132,Hoja3!D148)*N132","v":0}]
[null,110,"Problemas y soluciones planetarios","Ciencias",3,1,null,null,null,null,null,null,0,null,"",{"$f":"IF(F133,Hoja3!D149)*N133","v":0}]
[null,111,"Promoción y defensa de los deberes y derechos del ciudadano","Estudios Sociales",3,1,null,null,null,null,null,null,0,null,"",{"$f":"IF(F134,Hoja3!D150)*N134","v":0}]
[null,118,"Vida en el planeta","Ciencias",5,1,null,null,null,null,null,null,0,null,"",{"$f":"IF(F135,Hoja3!D151)*N135","v":0}]
[null,119,"Visualicemos el futuro","Ciencias",5,1,null,null,null,null,null,null,0,null,"",{"$f":"IF(F136,Hoja3!D152)*N136","v":0}]
[null,120,"Planificando mi futuro","Psicología",2,1,null,null,null,null,null,null,0,null,"",{"$f":"IF(F137,Hoja3!D153)*N137","v":0}]
[null,121,"Descubriendo mi estilo de aprendizaje","Psicología",2,1,null,null,null,null,null,null,0,null,"",{"$f":"IF(F138,Hoja3!D154)*N138","v":0}]
[null,123,"Fortalecimiento de la matemática (OPCIONAL 1 NIVEL)","Matemática",3,1,null,null,null,null,null,null,0,null,"",{"$f":"IF(F139,Hoja3!D155)*N139","v":0}]
[null,124,"Fortalecimiento del Ingles","Ingles",3,1,null,null,null,null,null,null,0,null,"",{"$f":"IF(F140,Hoja3!D156)*N140","v":0}]
[null,125,"Fortalecimiento de los Estudios Sociales (OPCIONAL 1 NIVEL)","Estudios Sociales",3,1,null,null,null,null,null,null,0,null,"",{"$f":"IF(F141,Hoja3!D157)*N141","v":0}]
[null,126,"Fortalecimiento de la Biología","Ciencias",3,1,null,null,null,null,null,null,0,null,"",{"$f":"IF(F142,Hoja3!D158)*N142","v":0}]
[null,127,"Fortalecimiento de la Educación Cívica","Estudios Sociales",3,1,null,null,null,null,null,null,0,null,"",{"$f":"IF(F143,Hoja3!D159)*N143","v":0}]
[null,128,"Fortalecimiento del Español (OPCIONAL 1 NIVEL)","Español",3,1,null,null,null,null,null,null,0,null,"",{"$f":"IF(F144,Hoja3!D160)*N144","v":0}]
[null,129,"Fortalecimiento del Francés","Francés",3,1,null,null,null,null,null,null,0,null,"",{"$f":"IF(F145,Hoja3!D161)*N145","v":0}]
[null,130,"Fortalecimiento de la Quimica para Bachillerato","Ciencias",3,1,null,null,null,null,null,null,0,null,"",{"$f":"IF(F146,Hoja3!D162)*N146","v":0}]
[null,131,"Fortalecimiento de la Física para Bachillerato","Ciencias",3,1,null,null,null,null,null,null,0,null,"",{"$f":"IF(F147,Hoja3!D163)*N147","v":0}]
[null,139,"Tecnología y Trabajo","Informatica Educatica/ Desarrollo Sofware/ Progración Redes de Computadoras en Soporte",5,1,null,null,null,null,null,null,0,null,"",{"$f":"IF(F148,Hoja3!D164)*N148","v":0}]
[null,140,"Tecnología y Comunidad","Informatica Educatica/ Desarrollo Sofware/ Progración Redes de Computadoras en Soporte",5,1,null,null,null,null,null,null,0,null,"",{"$f":"IF(F149,Hoja3!D165)*N149","v":0}]
[null,141,"Tecnología y Emprendedurismo","Informatica Educatica/ Desarrollo Sofware/ Progración Redes de Computadoras en Soporte",5,1,null,null,null,null,null,null,0,null,"",{"$f":"IF(F150,Hoja3!D166)*N150","v":0}]
[null,142,"Expreción o Creción Musical","Música",5,1,null,null,null,null,null,null,0,null,"",{"$f":"IF(F151,Hoja3!D167)*N151","v":0}]
[null,143,"Desarrollo Comunitario (II Nivel)","Cualquier especilidad acádemica",2,1,null,null,null,null,null,null,0,null,"",{"$f":"IF(F152,Hoja3!D168)*N152","v":0}]
[null,144,"Desarrollo Comunitario (III Nivel)","Cualquier especilidad acádemica",3,1,null,null,null,null,null,null,0,null,"",{"$f":"IF(F153,Hoja3!D169)*N153","v":0}]
[null,145,"Introducción a la robótica","Informática, Informática educativa ambas con conocimiento en robótica",2,1,null,null,null,null,null,null,0,null,"",{"$f":"IF(F154,Hoja3!D170)*N154","v":0}]
[null,146,"Poniéndome en acción: entrenándome haciendo deporte y baile","Educación Física",5,1,null,null,null,null,null,null,0,null,"",{"$f":"IF(F155,Hoja3!D171)*N155","v":0}]
[null,147,"Promoviendo salud, venciendo desafíos","Educación Física",5,1,null,null,null,null,null,null,0,null,"",{"$f":"IF(F156,Hoja3!D172)*N156","v":0}]
[null,148,"Afectividad y sexualidad desde la cotidianidad","Psicología",2,1,null,null,null,null,null,null,0,null,"",{"$f":"IF(F157,Hoja3!D173)*N157","v":0}]
[null,149,"¡Qué lindo aprender Cabécar!","Educación indígena, especialidad lengua materna, subespecialidad: Cabécar",2,1,null,null,null,null,null,null,0,null,"",{"$f":"IF(F158,Hoja3!D174)*N158","v":0}]
[null,null,null,"CANTIDAD DE MATRICULA "]
[null,null,null,"CANTIDAD DE SECCIONES",null,null,null,null,null,null,null,null,{"$f":"SUM(N113:N158)","v":0}]
[null,"TOTAL LECCIONES DE CURSOS OPCIONALES I NIVEL:",null,null,null,null,null,null,null,null,null,null,null,null,null,{"$f":"IF(SUM(P113:P158)=0,\"\",SUM(P113:P158)+(-P118-P119-P121-P122-P125-P128-P130-P133-P134-P135-P136-P139-P141-P142-P143-P144))","v":""}]
[null,"TOTAL AMPLIACIONES CURSOS OPCIONALES I NIVEL",null,null,null,null,null,null,null,null,null,null,null,null,null,{"$f":"SUM(P118+P119+P121+P122+P125+P128+P130+P133+P134+P135+P136+P139+P141+P142+P143+P144)","v":0}]
[]
[null,"Opcionales SOLO para II NIVEL Y III NIVEL a escoger (LECCIONES):"]
[]
[null,"4) DISTRIBUCIÓN DE MATRÍCULA Y LECCIONES: CURSOS MODULARES OPCIONALES II NIVEL Y III NIVEL "]
[null,"No.","Descripción del Módulo","Atinencia","Lecciones por Módulo",null,null,null,"II NIVEL",null,"III NIVEL",null,"MATRICULA TOTAL","Cantidad"]
[null,null,null,null,null,null,null,null,null,null,null,null,null,"Secciones","Promedio","Lecciones"]
[null,80,"Administración de la pequeña empresa","Contabilidad",5,1,null,null,null,null,null,null,{"$f":"SUM(G169:L169)","v":0},null,{"$f":"+IF(N169=\"\",\"\",M169/N169)","v":""},{"$f":"IF(F169,Hoja3!D129)*N169","v":0}]
[null,81,"Aprendamos a apreciar la música","Música",5,1,null,null,null,null,null,null,0,null,"",{"$f":"IF(F170,Hoja3!D130)*N170","v":0}]
[null,83,"¿Cómo administrar recursos humanos y financieros?","Contabilidad ",3,1,null,null,null,null,null,null,0,null,"",{"$f":"IF(F171,Hoja3!D131)*N171","v":0}]
[null,84,"Reconociendo a las personas con discapacidad como sujetas de derecho","Enseñanza Especial Generalista",3,1,null,null,null,null,null,null,0,null,"",{"$f":"IF(F172,Hoja3!D132)*N172","v":0}]
[null,85,"¿Cómo comunicarnos en una lengua indígena?","Educación Indígena",5,1,null,null,null,null,null,null,0,null,"",{"$f":"IF(F173,Hoja3!D133)*N173","v":0}]
[null,86,"¡A comunicarnos se ha dicho!","Español",3,1,null,null,null,null,null,null,0,null,"",{"$f":"IF(F174,Hoja3!D134)*N174","v":0}]
[null,87,"Conozcamos nuestra cultura autóctona","Estudios Sociales",3,1,null,null,null,null,null,null,0,null,"",{"$f":"IF(F175,Hoja3!D135)*N175","v":0}]
[null,88,"Contabilidad para la pequeña empresa","Contabilidad",3,1,null,null,null,null,null,null,0,null,"",{"$f":"IF(F176,Hoja3!D136)*N176","v":0}]
[null,89,"Creando con el lenguaje","Español",5,1,null,null,null,null,null,null,0,null,"",{"$f":"IF(F177,Hoja3!D137)*N177","v":0}]
[null,90,"Desarrollo mi creatividad","Español",3,1,null,null,null,null,null,null,0,null,"",{"$f":"IF(F178,Hoja3!D138)*N178","v":0}]
[null,93,"El camino para iniciar su propia empresa","Contabilidad",5,1,null,null,null,null,null,null,0,null,"",{"$f":"IF(F179,Hoja3!D139)*N179","v":0}]
[null,94,"El Bribri, Maleku, Cabecar, como mi lengua materna","Ingles, Educación Indigena",3,1,null,null,null,null,null,null,0,null,"",{"$f":"IF(F180,Hoja3!D140)*N180","v":0}]
[null,97,"Formación de líderes democráticos","Estudios Sociales",5,1,null,null,null,null,null,null,0,null,"",{"$f":"IF(F181,Hoja3!D141)*N181","v":0}]
[null,100,"Importancia de la actividad física: juegos pre-deportivos tradicionales y gimnasia formativa","Educación Física",5,1,null,null,null,null,null,null,0,null,"",{"$f":"IF(F182,Hoja3!D142)*N182","v":0}]
[null,102,"Relaciones humanas","Psicología",3,1,null,null,null,null,null,null,0,null,"",{"$f":"IF(F183,Hoja3!D143)*N183","v":0}]
[null,103,"Los pueblos y sus expresiones culturales","Estudios Sociales",4,1,null,null,null,null,null,null,0,null,"",{"$f":"IF(F184,Hoja3!D144)*N184","v":0}]
[null,106,"Mundo del turismo","Turismo Ecológico",2,1,null,null,null,null,null,null,0,null,"",{"$f":"IF(F185,Hoja3!D145)*N185","v":0}]
[null,107,"Nos organizamos para enfrentar desastres","Ciencias",2,1,null,null,null,null,null,null,0,null,"",{"$f":"IF(F186,Hoja3!D146)*N186","v":0}]
[null,108,"Orientación vocacional y profesional","Psicología",5,1,null,null,null,null,null,null,0,null,"",{"$f":"IF(F187,Hoja3!D147)*N187","v":0}]
[null,109,"Primeros auxilios","Educación Física",5,1,null,null,null,null,null,null,0,null,"",{"$f":"IF(F188,Hoja3!D148)*N188","v":0}]
[null,110,"Problemas y soluciones planetarios","Ciencias",3,1,null,null,null,null,null,null,0,null,"",{"$f":"IF(F189,Hoja3!D149)*N189","v":0}]
[null,111,"Promoción y defensa de los deberes y derechos del ciudadano","Estudios Sociales",3,1,null,null,null,null,null,null,0,null,"",{"$f":"IF(F190,Hoja3!D150)*N190","v":0}]
[null,118,"Vida en el planeta","Ciencias",5,1,null,null,null,null,null,null,0,null,"",{"$f":"IF(F191,Hoja3!D151)*N191","v":0}]
[null,119,"Visualicemos el futuro","Ciencias",5,1,null,null,null,null,null,null,0,null,"",{"$f":"IF(F192,Hoja3!D152)*N192","v":0}]
[null,120,"Planificando mi futuro","Psicología",2,1,null,null,null,null,null,null,0,null,"",{"$f":"IF(F193,Hoja3!D153)*N193","v":0}]
[null,121,"Descubriendo mi estilo de aprendizaje","Psicología",2,1,null,null,null,null,null,null,0,null,"",{"$f":"IF(F194,Hoja3!D154)*N194","v":0}]
[null,123,"Fortalecimiento de la matemática ","Matemática",3,1,null,null,null,null,null,null,0,null,"",{"$f":"IF(F195,Hoja3!D155)*N195-G195","v":0}]
[null,124,"Fortalecimiento del Ingles","Ingles",3,1,null,null,null,null,null,null,0,null,"",{"$f":"IF(F196,Hoja3!D156)*N196","v":0}]
[null,125,"Fortalecimiento de los Estudios Sociales","Estudios Sociales",3,1,null,null,null,null,null,null,0,null,"",{"$f":"IF(F197,Hoja3!D157)*N197","v":0}]
[null,126,"Fortalecimiento de la Biología","Ciencias",3,1,null,null,null,null,null,null,0,null,"",{"$f":"IF(F198,Hoja3!D158)*N198","v":0}]
[null,127,"Fortalecimiento de la Educación Cívica","Estudios Sociales",3,1,null,null,null,null,null,null,0,null,"",{"$f":"IF(F199,Hoja3!D159)*N199","v":0}]
[null,128,"Fortalecimiento del Español ","Español",3,1,null,null,null,null,null,null,0,null,"",{"$f":"IF(F200,Hoja3!D160)*N200","v":0}]
[null,129,"Fortalecimiento del Francés","Francés",3,1,null,null,null,null,null,null,0,null,"",{"$f":"IF(F201,Hoja3!D161)*N201","v":0}]
[null,130,"Fortalecimiento de la Quimica para Bachillerato","Ciencias",3,1,null,null,null,null,null,null,0,null,"",{"$f":"IF(F202,Hoja3!D162)*N202","v":0}]
[null,131,"Fortalecimiento de la Física para Bachillerato","Ciencias",3,1,null,null,null,null,null,null,0,null,"",{"$f":"IF(F203,Hoja3!D163)*N203","v":0}]
[null,139,"Tecnología y Trabajo","Informatica Educatica/ Desarrollo Sofware/ Progración Redes de Computadoras en Soporte",5,1,null,null,null,null,null,null,0,null,"",{"$f":"IF(F204,Hoja3!D164)*N204","v":0}]
[null,140,"Tecnología y Comunidad","Informatica Educatica/ Desarrollo Sofware/ Progración Redes de Computadoras en Soporte",5,1,null,null,null,null,null,null,0,null,"",{"$f":"IF(F205,Hoja3!D165)*N205","v":0}]
[null,141,"Tecnología y Emprendedurismo","Informatica Educatica/ Desarrollo Sofware/ Progración Redes de Computadoras en Soporte",5,1,null,null,null,null,null,null,0,null,"",{"$f":"IF(F206,Hoja3!D166)*N206","v":0}]
[null,142,"Expreción o Creción Musical","Música",5,1,null,null,null,null,null,null,0,null,"",{"$f":"IF(F207,Hoja3!D167)*N207","v":0}]
[null,143,"Desarrollo Comunitario (II Nivel)","Cualquier especilidad acádemica",2,1,null,null,null,null,null,null,0,null,"",{"$f":"IF(F208,Hoja3!D168)*N208","v":0}]
[null,144,"Desarrollo Comunitario (III Nivel)","Cualquier especilidad acádemica",3,1,null,null,null,null,null,null,0,null,"",{"$f":"IF(F209,Hoja3!D169)*N209","v":0}]
[null,145,"Introducción a la robótica","Informática, Informática educativa ambas con conocimiento en robótica",2,1,null,null,null,null,null,null,0,null,"",{"$f":"IF(F210,Hoja3!D170)*N210","v":0}]
[null,146,"Poniéndome en acción: entrenándome haciendo deporte y baile","Educación Física",5,1,null,null,null,null,null,null,0,null,"",{"$f":"IF(F211,Hoja3!D171)*N211","v":0}]
[null,147,"Promoviendo salud, venciendo desafíos","Educación Física",5,1,null,null,null,null,null,null,0,null,"",{"$f":"IF(F212,Hoja3!D172)*N212","v":0}]
[null,148,"Afectividad y sexualidad desde la cotidianidad","Psicología",2,1,null,null,null,null,null,null,0,null,"",{"$f":"IF(F213,Hoja3!D173)*N213","v":0}]
[null,149,"¡Qué lindo aprender Cabécar!","Educación indígena, especialidad lengua materna, subespecialidad: Cabécar",2,1,null,null,null,null,null,null,0,null,"",{"$f":"IF(F214,Hoja3!D174)*N214","v":0}]
[null,null,null,"CANTIDAD DE MATRICULA "]
[null,null,null,"CANTIDAD DE SECCIONES",null,null,null,null,null,null,null,null,{"$f":"SUM(N169:N214)","v":0}]
[null,"TOTAL LECCIONES CURSOS OPCIONALES I Y II NIVEL:",null,null,null,null,null,null,null,null,null,null,null,null,null,{"$f":"IF(SUM(P169:P214)=0,\"\",SUM(P169:P214))","v":""}]
[]
[null,"6) DISTRIBUCIÓN DE MATRÍCULA Y LECCIONES: CURSOS LIBRES"]
[null,"No.","Descripción del Módulo","Atinencia","Lecciones por Módulo",null,"MATRICULA POR CURSO",null,null,null,null,null,"MATRICULA TOTAL","Cantidad"]
[null,null,null,null,null,null,null,null,null,null,null,null,null,"Secciones","Promedio","Lecciones"]
[null,250,"Preparación y productos de repostería","Educ/hogar",5,1,null,null,null,null,null,null,{"$f":"G222","v":0},null,{"$f":"+IF(N222=\"\",\"\",M222/N222)","v":""},{"$f":"IF(F222,Hoja3!D179)*N222","v":0}]
[null,271,"Mantenimiento preventivo de computadoras","Informática de desarrollo del software, en programación, en redes de computadoras, en soporte.",5,1,null,null,null,null,null,null,{"$f":"G223","v":0},null,"",{"$f":"IF(F223,Hoja3!D180)*N223","v":0}]
[null,259,"Bases de datos ","Informática de desarrollo del software, en programación, en redes de computadoras, en soporte.",5,1,null,null,null,null,null,null,0,null,"",{"$f":"IF(F224,Hoja3!D181)*N224","v":0}]
[null,260,"Diseño  WEB","Informática en desarrollo del software",5,1,null,null,null,null,null,null,0,null,"",{"$f":"IF(F225,Hoja3!D182)*N225","v":0}]
[null,255,"Técnicas Secretariales","Secretariado ejecutivo, secretariado bilingüe o ejecutivo para centros de servicio",5,1,null,null,null,null,null,null,0,null,"",{"$f":"IF(F226,Hoja3!D183)*N226","v":0}]
[null,265,"Oficina moderna","Secretariado ejecutivo, secretariado bilingüe o ejecutivo para centros de servicio",5,1,null,null,null,null,null,null,0,null,"",{"$f":"IF(F227,Hoja3!D184)*N227","v":0}]
[null,261,"Ingles conversacional  inicial I NIVEL","Inglés",5,1,null,null,null,null,null,null,0,null,"",{"$f":"IF(F228,Hoja3!D185)*N228","v":0}]
[null,262,"Ingles conversacional intermedio II NIVEL","Inglés",5,1,null,null,null,null,null,null,0,null,"",{"$f":"IF(F229,Hoja3!D186)*N229","v":0}]
[null,263,"Ingles conversacional  avanzado III NIVEL","Inglés",5,1,null,null,null,null,null,null,0,null,"",{"$f":"IF(F230,Hoja3!D187)*N230","v":0}]
[null,253,"Principios de contabilidad","Contabilidad",5,1,null,null,null,null,null,null,0,null,"",{"$f":"IF(F231,Hoja3!D188)*N231","v":0}]
[null,256,"Técnicas de manejo de hidroponía y abono orgánico","Agroecología",3,1,null,null,null,null,null,null,0,null,"",{"$f":"IF(F232,Hoja3!D189)*N232","v":0}]
[null,279,"El mundo de los negocios de capital individual y asociativo","Contabilidad o profesor de estado de educación comercial y de servicios.",3,1,null,null,null,null,null,null,0,null,"",{"$f":"IF(F233,Hoja3!D190)*N233","v":0}]
[null,280,"Doctrina cooperativa","Estudios Sociales",3,1,null,null,null,null,null,null,0,null,"",{"$f":"IF(F234,Hoja3!D191)*N234","v":0}]
[null,281,"Gestión Cooperativa","Estudios Sociales",3,1,null,null,null,null,null,null,0,null,"",{"$f":"IF(F235,Hoja3!D192)*N235","v":0}]
[null,282,"Líderes y gestores de iniciativas de negocios","Contabilidad o profesor de estado de educación comercial y de servicios",3,1,null,null,null,null,null,null,0,null,"",{"$f":"IF(F236,Hoja3!D193)*N236","v":0}]
[null,258,"Montajes eléctricos básicos","Electrónica industrial y electrotecnia",5,1,null,null,null,null,null,null,0,null,"",{"$f":"IF(F237,Hoja3!D194)*N237","v":0}]
[null,269,"Refrigeración doméstica","Refrigeración y aire acondicionado",5,1,null,null,null,null,null,null,0,null,"",{"$f":"IF(F238,Hoja3!D195)*N238","v":0}]
[null,272,"Técnicas de bisutería y orfebrería","Educ/hogar",5,1,null,null,null,null,null,null,0,null,"",{"$f":"IF(F239,Hoja3!D196)*N239","v":0}]
[null,252,"Confección de accesorios para el hogar","Educ/hogar",5,1,null,null,null,null,null,null,0,null,"",{"$f":"IF(F240,Hoja3!D197)*N240","v":0}]
[null,254,"Técnica manuales y  confección de artículos con material de desecho","Educ/hogar",5,1,null,null,null,null,null,null,0,null,"",{"$f":"IF(F241,Hoja3!D198)*N241","v":0}]
[null,266,"Hagamos artesanías","Educ/hogar o artesanías",5,1,null,null,null,null,null,null,0,null,"",{"$f":"IF(F242,Hoja3!D199)*N242","v":0}]
[null,257,"Alta costura","Educ/hogar",5,1,null,null,null,null,null,null,0,null,"",{"$f":"IF(F243,Hoja3!D200)*N243","v":0}]
[null,270,"Corte y confección","Educ/hogar",5,1,null,null,null,null,null,null,0,null,"",{"$f":"IF(F244,Hoja3!D201)*N244","v":0}]
[null,267,"Técnicas de estética y estilismo","Educ/hogar",5,1,null,null,null,null,null,null,0,null,"",{"$f":"IF(F245,Hoja3!D202)*N245","v":0}]
[null,268,"Corte de cabello clásico y alta peluquería","Educ/hogar",5,1,null,null,null,null,null,null,0,null,"",{"$f":"IF(F246,Hoja3!D203)*N246","v":0}]
[null,264,"Dibujo Técnico","Artes plásticas",5,1,null,null,null,null,null,null,0,null,"",{"$f":"IF(F247,Hoja3!D204)*N247","v":0}]
[null,273,"Servicio al cliente","Secretariado ejecutivo, secretariado bilingüe o ejecutivo para centros de servicio",5,1,null,null,null,null,null,null,0,null,"",{"$f":"IF(F248,Hoja3!D205)*N248","v":0}]
[null,274,"Taller de Teatro","Teatro",5,1,null,null,null,null,null,null,0,null,"",{"$f":"IF(F249,Hoja3!D206)*N249","v":0}]
[null,275,"Taller de pintura","Artes  Plásticas",5,1,null,null,null,null,null,null,0,null,"",{"$f":"IF(F250,Hoja3!D207)*N250","v":0}]
[null,276,"Taller en música","Música",5,1,null,null,null,null,null,null,0,null,"",{"$f":"IF(F251,Hoja3!D208)*N251","v":0}]
[null,277,"Promoción de la salud","Física",5,1,null,null,null,null,null,null,0,null,"",{"$f":"IF(F252,Hoja3!D209)*N252","v":0}]
[null,278,"Preparacion de Bebidas","Turismo: alimentos y bebidas. Hotelería y eventos especiales.",5,1,null,null,null,null,null,null,0,null,"",{"$f":"IF(F253,Hoja3!D210)*N253","v":0}]
[null,283,"Educación Solidarista","Estudios Sociales",3,1,null,null,null,null,null,null,0,null,"",{"$f":"IF(F254,Hoja3!D211)*N254","v":0}]
[null,284,"Principios de administración solidarista","Estudios Sociales",3,1,null,null,null,null,null,null,0,null,"",{"$f":"IF(F255,Hoja3!D212)*N255","v":0}]
[null,285,"Reparaciones básicas en la casa","Diseño y construcción de muebles y estructuras.",5,1,null,null,null,null,null,null,0,null,"",{"$f":"IF(F256,Hoja3!D213)*N256","v":0}]
[null,286,"AL disfrutar del movimiento, mejora mi salud","Educ/Fisica",5,1,null,null,null,null,null,null,0,null,"",{"$f":"IF(F257,Hoja3!D214)*N257","v":0}]
[null,287,"Educación Vial","Doc. de cualquier especialidad académica, que cuente con el aval de la Dirección General de Educación Vial",2,1,null,null,null,null,null,null,0,null,"",{"$f":"IF(F258,Hoja3!D215)*N258","v":0}]
[null,288,"Hagamos arte ","Artes Plásticas",5,1,null,null,null,null,null,null,0,null,"",{"$f":"IF(F259,Hoja3!D216)*N259","v":0}]
[null,289,"Manipulación de Alimentos","Técnico en agro-industria, tecnología de alimentos, Nutricionista",3,1,null,null,null,null,null,null,0,null,"",{"$f":"IF(F260,Hoja3!D217)*N260","v":0}]
[null,290,"¡Cuidemos a nuestros adultos mayores!","Doc. De cualquier especialidad academica que cuente con el certificado del IDP sobre gerontología",5,1,null,null,null,null,null,null,0,null,"",{"$f":"IF(F261,Hoja3!D218)*N261","v":0}]
[null,291,"Prevención y seguridad laboral","Salud ocupacional",5,1,null,null,null,null,null,null,0,null,"",{"$f":"IF(F262,Hoja3!D219)*N262","v":0}]
[null,292,"Preparación de comidas nacionales","Educación para el Hogar",5,1,null,null,null,null,null,null,0,null,"",{"$f":"IF(F263,Hoja3!D220)*N263","v":0}]
[null,293,"Preparación de comidas internacionales","Educación para el Hogar",5,1,null,null,null,null,null,null,0,null,"",{"$f":"IF(F264,Hoja3!D221)*N264","v":0}]
[null,294,"Elaboración de confites, chocolates y postres","Educación para el Hogar",5,1,null,null,null,null,null,null,0,null,"",{"$f":"IF(F265,Hoja3!D222)*N265","v":0}]
[null,295,"Elaboración y decoración de pastelería","Educación para el Hogar",5,1,null,null,null,null,null,null,0,null,"",{"$f":"IF(F266,Hoja3!D223)*N266","v":0}]
[null,296,"¿Cómo desarollor el pensamiento matemático a través de la creatividad?","Matemática",2,1,null,null,null,null,null,null,0,null,"",{"$f":"IF(F267,Hoja3!D224)*N267","v":0}]
[null,297,"Búsqueda del conocimiento al alcance de todos","Docentes de cualquier especialidad académica",2,1,null,null,null,null,null,null,0,null,"",{"$f":"IF(F268,Hoja3!D225)*N268","v":0}]
[null,null,null,null,null,null,null,"CANTIDAD DE MATRICULA "]
[null,null,null,null,null,null,"CANTIDAD DE SECCIONES"]
[null,"TOTAL LECCIONES CURSOS LIBRES:",null,null,null,null,null,null,null,null,null,null,null,null,null,{"$f":"IF(SUM(P222:P268)=0,\"\",SUM(P222:P268))","v":""}]

{"sheet":"  SATELITE 5","index":13,"n_rows":271,"n_cols":22,"rows_kept":271,"cut":false,"hidden":false,"merged":[[265,7,265,11],[266,7,266,11],[267,7,267,11],[255,7,255,11],[256,7,256,11],[257,7,257,11],[258,7,258,11],[259,7,259,11],[260,7,260,11],[261,7,261,11],[262,7,262,11],[263,7,263,11],[247,7,247,11],[248,7,248,11],[249,7,249,11],[250,7,250,11],[251,7,251,11],[252,7,252,11],[253,7,253,11],[254,7,254,11],[264,7,264,11],[238,7,238,11],[239,7,239,11],[240,7,240,11],[241,7,241,11],[242,7,242,11],[243,7,243,11],[244,7,244,11],[245,7,245,11],[246,7,246,11],[229,7,229,11],[230,7,230,11],[231,7,231,11],[232,7,232,11],[233,7,233,11],[234,7,234,11],[235,7,235,11],[236,7,236,11],[237,7,237,11],[139,8,139,11],[140,8,140,11],[141,8,141,11],[142,8,142,11],[143,8,143,11],[144,8,144,11],[145,8,145,11],[146,8,146,11],[147,8,147,11],[130,8,130,11],[131,8,131,11],[132,8,132,11],[133,8,133,11],[134,8,134,11],[135,8,135,11],[136,8,136,11],[137,8,137,11],[138,8,138,11],[8,1,8,15],[8,17,8,18],[9,1,9,15],[9,17,9,18],[10,17,10,18],[11,1,11,15],[11,17,11,18],[1,1,2,2],[6,17,7,19],[7,1,7,15],[3,17,4,19],[3,1,6,15],[18,17,18,19],[38,3,38,11],[38,12,38,13],[39,3,39,11],[39,12,39,13],[40,1,40,14],[12,13,12,15],[12,17,12,18],[13,17,13,18],[14,17,14,18],[15,17,15,18],[16,17,16,18],[12,1,13,1],[12,2,13,2],[12,3,13,3],[12,4,13,4],[12,6,13,11],[12,12,14,12],[41,11,41,14],[44,1,44,15],[45,1,46,1],[45,2,46,2],[45,3,46,3],[45,4,46,4],[45,5,46,5],[45,6,46,6],[45,7,46,7],[45,8,46,9],[49,8,49,9],[49,10,49,11],[50,8,50,9],[50,10,50,11],[51,8,51,9],[51,10,51,11],[45,10,46,11],[45,12,46,12],[45,13,45,15],[47,8,47,9],[47,10,47,11],[48,8,48,9],[48,10,48,11],[55,8,55,9],[55,10,55,11],[56,8,56,9],[56,10,56,11],[57,8,57,9],[57,10,57,11],[52,8,52,9],[52,10,52,11],[53,8,53,9],[53,10,53,11],[54,8,54,9],[54,10,54,11],[61,8,61,9],[61,10,61,11],[62,8,62,9],[62,10,62,11],[63,8,63,9],[63,10,63,11],[58,8,58,9],[58,10,58,11],[59,8,59,9],[59,10,59,11],[60,8,60,9],[60,10,60,11],[67,8,67,9],[67,10,67,11],[68,8,68,9],[68,10,68,11],[69,3,69,11],[69,12,69,13],[64,8,64,9],[64,10,64,11],[65,8,65,9],[65,10,65,11],[66,8,66,9],[66,10,66,11],[75,13,75,15],[77,8,77,9],[77,10,77,11],[70,3,70,11],[70,12,70,13],[71,1,71,14],[74,1,74,15],[75,1,76,1],[75,2,76,2],[75,3,76,3],[75,4,76,4],[75,6,76,6],[75,7,76,7],[78,8,78,9],[78,10,78,11],[79,8,79,9],[79,10,79,11],[80,8,80,9],[80,10,80,11],[75,8,76,9],[75,10,76,11],[75,12,76,12],[84,8,84,9],[84,10,84,11],[85,8,85,9],[85,10,85,11],[86,8,86,9],[86,10,86,11],[81,8,81,9],[81,10,81,11],[82,8,82,9],[82,10,82,11],[83,8,83,9],[83,10,83,11],[90,8,90,9],[90,10,90,11],[91,8,91,9],[91,10,91,11],[92,8,92,9],[92,10,92,11],[87,8,87,9],[87,10,87,11],[88,8,88,9],[88,10,88,11],[89,8,89,9],[89,10,89,11],[115,8,115,11],[116,8,116,11],[117,8,117,11],[118,8,118,11],[93,3,93,11],[93,12,93,13],[94,3,94,11],[94,12,94,13],[95,1,95,14],[97,1,99,15],[128,8,128,11],[129,8,129,11],[102,7,102,12],[102,13,102,16],[102,17,102,20],[109,1,109,15],[110,1,111,1],[110,2,111,2],[110,3,111,3],[110,4,111,4],[110,6,111,7],[110,8,111,11],[110,12,111,12],[110,13,110,15],[112,6,112,7],[113,6,113,7],[114,6,114,7],[115,6,115,7],[116,6,116,7],[117,6,117,7],[118,6,118,7],[112,8,112,11],[113,8,113,11],[114,8,114,11],[119,8,119,11],[120,8,120,11],[121,8,121,11],[122,8,122,11],[123,8,123,11],[124,8,124,11],[125,8,125,11],[126,8,126,11],[127,8,127,11],[130,6,130,7],[119,6,119,7],[120,6,120,7],[121,6,121,7],[122,6,122,7],[123,6,123,7],[124,6,124,7],[137,6,137,7],[138,6,138,7],[125,6,125,7],[126,6,126,7],[127,6,127,7],[128,6,128,7],[129,6,129,7],[139,6,139,7],[140,6,140,7],[141,6,141,7],[142,6,142,7],[131,6,131,7],[132,6,132,7],[133,6,133,7],[134,6,134,7],[135,6,135,7],[136,6,136,7],[149,6,149,7],[150,6,150,7],[151,6,151,7],[152,6,152,7],[153,6,153,7],[154,6,154,7],[157,8,157,11],[143,6,143,7],[144,6,144,7],[145,6,145,7],[146,6,146,7],[147,6,147,7],[148,6,148,7],[148,8,148,11],[149,8,149,11],[150,8,150,11],[151,8,151,11],[152,8,152,11],[153,8,153,11],[154,8,154,11],[155,8,155,11],[156,8,156,11],[168,8,168,9],[168,10,168,11],[169,8,169,9],[169,10,169,11],[155,6,155,7],[156,6,156,7],[157,6,157,7],[158,3,158,11],[158,12,158,13],[159,3,159,11],[159,12,159,13],[160,1,160,14],[165,1,165,15],[166,1,167,1],[166,2,167,2],[166,3,167,3],[166,4,167,4],[166,6,167,7],[166,8,167,9],[166,10,167,11],[166,12,167,12],[161,1,161,14],[166,13,166,15],[168,6,168,7],[170,8,170,9],[170,10,170,11],[171,8,171,9],[171,10,171,11],[176,8,176,9],[176,10,176,11],[177,8,177,9],[177,10,177,11],[184,8,184,9],[184,10,184,11],[178,8,178,9],[178,10,178,11],[179,8,179,9],[179,10,179,11],[180,8,180,9],[180,10,180,11],[175,8,175,9],[175,10,175,11],[172,8,172,9],[172,10,172,11],[173,8,173,9],[173,10,173,11],[174,8,174,9],[174,10,174,11],[185,8,185,9],[185,10,185,11],[186,8,186,9],[186,10,186,11],[181,8,181,9],[181,10,181,11],[182,8,182,9],[182,10,182,11],[183,8,183,9],[183,10,183,11],[190,8,190,9],[190,10,190,11],[191,8,191,9],[191,10,191,11],[192,8,192,9],[192,10,192,11],[187,8,187,9],[187,10,187,11],[188,8,188,9],[188,10,188,11],[189,8,189,9],[189,10,189,11],[196,8,196,9],[196,10,196,11],[197,8,197,9],[197,10,197,11],[198,8,198,9],[198,10,198,11],[193,8,193,9],[193,10,193,11],[194,8,194,9],[194,10,194,11],[195,8,195,9],[195,10,195,11],[202,8,202,9],[202,10,202,11],[203,8,203,9],[203,10,203,11],[204,8,204,9],[204,10,204,11],[199,8,199,9],[199,10,199,11],[200,8,200,9],[200,10,200,11],[201,8,201,9],[201,10,201,11],[208,8,208,9],[208,10,208,11],[209,8,209,9],[209,10,209,11],[210,8,210,9],[210,10,210,11],[205,8,205,9],[205,10,205,11],[206,8,206,9],[206,10,206,11],[207,8,207,9],[207,10,207,11],[214,3,214,11],[214,12,214,13],[215,3,215,11],[215,12,215,13],[216,1,216,14],[218,1,218,15],[211,8,211,9],[211,10,211,11],[212,8,212,9],[212,10,212,11],[213,8,213,9],[213,10,213,11],[213,6,213,7],[270,1,270,14],[219,12,220,12],[219,13,219,15],[268,2,268,4],[268,7,268,11],[268,12,268,13],[268,14,269,15],[269,2,269,4],[269,6,269,11],[269,12,269,13],[219,1,220,1],[219,2,220,2],[219,3,220,3],[219,4,220,4],[219,6,220,6],[219,7,220,11],[221,7,221,11],[222,7,222,11],[223,7,223,11],[224,7,224,11],[225,7,225,11],[226,7,226,11],[227,7,227,11],[228,7,228,11],[169,6,169,7],[170,6,170,7],[171,6,171,7],[172,6,172,7],[173,6,173,7],[174,6,174,7],[175,6,175,7],[176,6,176,7],[177,6,177,7],[178,6,178,7],[179,6,179,7],[180,6,180,7],[181,6,181,7],[182,6,182,7],[183,6,183,7],[184,6,184,7],[185,6,185,7],[186,6,186,7],[187,6,187,7],[188,6,188,7],[189,6,189,7],[190,6,190,7],[191,6,191,7],[192,6,192,7],[193,6,193,7],[194,6,194,7],[195,6,195,7],[205,6,205,7],[206,6,206,7],[207,6,207,7],[208,6,208,7],[209,6,209,7],[210,6,210,7],[211,6,211,7],[212,6,212,7],[196,6,196,7],[197,6,197,7],[198,6,198,7],[199,6,199,7],[200,6,200,7],[201,6,201,7],[202,6,202,7],[203,6,203,7],[204,6,204,7]]}
[]
[null,"***NOTA: SE DEBE INCLUIR PRIMERO LA MATRICULA Y LUEGO SECCIONES "]
[]
[null,{"$error":"#VALUE!"},null,null,null,null,null,null,null,null,null,null,null,null,null,null,null,"RESUMEN DE LECCIONES Y AMPLIACION DEL SATELITE"]
[]
[]
[null,null,null,null,null,null,null,null,null,null,null,null,null,null,null,null,null,"SUMATORIA DE LAS LECCIONES POR SATELITE"]
[null,"NOMBRE DEL SATELITE N°5"]
[null,{"$f":"'FORMULARIO '!B148:D148","v":0},null,null,null,null,null,null,null,null,null,null,null,null,null,null,null,"LECCIONES TECNICAS"]
[null,null,null,null,null,null,null,null,null,null,null,null,null,null,null,null,null,"*AMPLIACIONES I NIVEL",null,{"$f":"+SUM(P41)+(P162)","v":0}]
[null,null,null,null,null,null,null,null,null,null,null,null,null,null,null,null,null,"LECCIONES INGLES I NIVEL",null,{"$f":"SUM(P30)","v":0}]
[null,"1) DISTRIBUCIÓN DE MATRÍCULA Y LECCIONES: NIVEL I",null,null,null,null,null,null,null,null,null,null,null,null,null,null,null,"LECCIONES II NIVEL",null,{"$f":"SUM(P72)","v":0}]
[null,"No.","Descripción del Módulo","Atinencia","Lecciones por Módulo",null,"MATRICULA",null,null,null,null,null,"MATRICULA TOTAL ","Cantidad",null,null,null,"LECCIONES III NIVEL",null,{"$f":"SUM(P96)","v":0}]
[null,null,null,null,null,null,null,null,null,null,null,null,null,"Secciones","Promedio","Lecciones",null,"LECCIONES MODULARES OPCIONALES I NIVEL, II NIVEL Y III NIVEL",null,{"$f":"SUM(P217)+SUM(P161)","v":0}]
[null,null,null,null,null,null,"PERIODO 1","PERIODO 2","PERIODO 3","PERIODO 4","PERIODO 5","PERIODO 6",null,null,null,null,null,"LECCIONES I NIVEL PSICOLOGIA",null,{"$f":"SUM(P31)+SUM(P36)","v":0}]
[null,1,"Aplicaciones cotidianas de la matemática","Matemáticas",4,1,null,null,null,null,null,null,{"$f":"SUM(G16:L16)","v":0},null,{"$f":"+IF(N16=\"\",\"\",M16/N16)","v":""},{"$f":"IF(F16=1,Hoja3!D5)*N16","v":0},null,"CURSOS LIBRES",null,{"$f":"SUM(P271)","v":0}]
[null,2,"Disfrutando del mundo de las palabras","Español",4,1,null,null,null,null,null,null,0,null,"",{"$f":"IF(F17=1,Hoja3!D6)*N17","v":0},null,"Total Lecciones Requeridas:",null,{"$f":"SUM(T11:T16)+SUM(T9)","v":0}]
[null,3,"Construyamos nuestro bienestar personal y comunitario","Ciencias",3,1,null,null,null,null,null,null,0,null,"",{"$f":"IF(F18=1,Hoja3!D7)*N18","v":0}]
[null,4,"Vida Cotidiana: Deberes y Derechos en el entorno cercano","Estudios Sociales",3,1,null,null,null,null,null,null,0,null,"",{"$f":"IF(F19=1,Hoja3!D8)*N19","v":0},null,"*Nota: Las ampliaciones no se suman al total de lecciones."]
[null,5,"Promovamos el desarrollo humano en forma equitativa y sostenible","Ciencias",3,1,null,null,null,null,null,null,0,null,"",{"$f":"IF(F20=1,Hoja3!D9)*N20","v":0}]
[null,6,"Relieve de mi Cantón: Conociendo mi patrimonio natural y cultural","Estudios Sociales",3,1,null,null,null,null,null,null,0,null,"",{"$f":"IF(F21=1,Hoja3!D10)*N21","v":0}]
[null,7,"Historia y Geografia de mi provincia","Estudios Sociales",3,1,null,null,null,null,null,null,0,null,"",{"$f":"IF(F22=1,Hoja3!D11)*N22","v":0}]
[null,8,"Actividades humanas asociadas a los paisajes geográficos de mi provincia","Estudios Sociales",3,1,null,null,null,null,null,null,0,null,"",{"$f":"IF(F23=1,Hoja3!D12)*N23","v":0}]
[null,9,"Costa Rica: Una sociedad intercultural, multiétnica y plurilingüe","Estudios Sociales",2,1,null,null,null,null,null,null,0,null,"",{"$f":"IF(F24=1,Hoja3!D13)*N24","v":0}]
[null,10,"Cuidemos nuestro planeta y toda forma de vida","Ciencias",3,1,null,null,null,null,null,null,0,null,"",{"$f":"IF(F25=1,Hoja3!D14)*N25","v":0}]
[null,11,"Adoptemos estilos de vida saludables","Ciencias",2,1,null,null,null,null,null,null,0,null,"",{"$f":"IF(F26=1,Hoja3!D15)*N26","v":0}]
[null,12,"Convivamos en entornos naturales y socioculturales seguros","Ciencias",2,1,null,null,null,null,null,null,0,null,"",{"$f":"IF(F27=1,Hoja3!D16)*N27","v":0}]
[null,13,"Modifiquemos nuestros patrones de consumo y producción para salvaguardar la integridad del planeta","Ciencias",3,1,null,null,null,null,null,null,0,null,"",{"$f":"IF(F28=1,Hoja3!D17)*N28","v":0}]
[null,15,"Protejamos y restauremos los procesos naturales que sustentan la vida","Ciencias",3,1,null,null,null,null,null,null,0,null,"",{"$f":"IF(F29=1,Hoja3!D18)*N29","v":0}]
[null,16,"Nos comunicamos en otras lenguas","Idioma Extranjero",5,1,null,null,null,null,null,null,0,null,"",{"$f":"IF(F30=1,Hoja3!D19)*N30","v":0}]
[null,17,"Descubriendo mi estilo de aprendizaje","Psicología",2,1,null,null,null,null,null,null,0,null,"",{"$f":"IF(F31=1,Hoja3!D20)*N31","v":0}]
[null,18,"Valoramos la importancia de la igualdad y la libertad a partir de nuestra historia colonial","Estudios Sociales",2,1,null,null,null,null,null,null,0,null,"",{"$f":"IF(F32=1,Hoja3!D21)*N32","v":0}]
[null,20,"Construcción de nuestro estado nación para el fortalecimiento de la identidad nacional","Estudios Sociales",2,1,null,null,null,null,null,null,0,null,"",{"$f":"IF(F33=1,Hoja3!D22)*N33","v":0}]
[null,21,"La sociedad costarricense actual: sus desafios y oportunidades en el contexto mundial","Estudios Sociales",2,1,null,null,null,null,null,null,0,null,"",{"$f":"IF(F34=1,Hoja3!D23)*N34","v":0}]
[null,22,"Espacios de participación y representación de mi cantón","Estudios Sociales",3,1,null,null,null,null,null,null,0,null,"",{"$f":"IF(F35=1,Hoja3!D24)*N35","v":0}]
[null,23,"Planificando mi fururo","Psicología",2,1,null,null,null,null,null,null,0,null,"",{"$f":"IF(F36=1,Hoja3!D25)*N36","v":0}]
[null,24,"Aplicaciones cotidianas de la matemática","Matemáticas",4,1,null,null,null,null,null,null,0,null,"",{"$f":"IF(F37=1,Hoja3!D26)*N37","v":0}]
[null,25,"¡Comunicandonos en la cotidianidad!","Español",4,1,null,null,null,null,null,null,0,null,"",{"$f":"IF(F38=1,Hoja3!D27)*N38","v":0}]
[null,null,null,"CANTIDAD DE MATRICULA I NIVEL"]
[null,null,null,"CANTIDAD DE SECCIONES",null,null,null,null,null,null,null,null,{"$f":"SUM(N16:N38)","v":0}]
[null,"TOTAL AMPLIACIONES NIVEL I:",null,null,null,null,null,null,null,null,null,null,null,null,null,{"$f":"IF(SUM(P16:P38)=0,\"\",SUM(P16:P38)-(P30+P31+P36))","v":""}]
[null,null,null,null,null,null,null,null,null,null,null,"TOTAL LECCIONES INGLES Y PSICOLOGIA",null,null,null,{"$f":"SUM(P30+P31+P36)","v":0}]
[]
[]
[null,"2) DISTRIBUCIÓN DE MATRÍCULA Y LECCIONES: NIVEL II"]
[null,"No.","Descripción del Módulo","Atinencia","Lecciones por Módulo",null,"PERIODO 1","PERIODO 2","PERIODO 3",null,"PERIODO 4",null,"MATRICULA TOTAL ","Cantidad"]
[null,null,null,null,null,null,null,null,null,null,null,null,null,"Secciones","Promedio","Lecciones"]
[null,30,"La ciencia de lo humano para el desarrollo científico","Ciencias",4,1,null,null,null,null,null,null,{"$f":"SUM(G48:L48)","v":0},null,{"$f":"+IF(N48=\"\",\"\",M48/N48)","v":""},{"$f":"IF(F48=1,Hoja3!D32)*N48","v":0}]
[null,{"$f":"+B48+1","v":31},"¿Por qué es importante el estudio del espacio geográfico en el planeta tierra?","Estudios Sociales",4,1,null,null,null,null,null,null,0,null,"",{"$f":"IF(F49=1,Hoja3!D33)*N49","v":0}]
[null,{"$f":"+B49+1","v":32},"Crecemos en el lenguaje","Español",4,1,null,null,null,null,null,null,0,null,"",{"$f":"IF(F50=1,Hoja3!D34)*N50","v":0}]
[null,{"$f":"+B50+1","v":33},"Entorno Científico: seres vivos y energía en sostenibilidad","Ciencias",2,1,null,null,null,null,null,null,0,null,"",{"$f":"IF(F51=1,Hoja3!D35)*N51","v":0}]
[null,35,"La adaptación del ser humano aun medio ambiente cambiante","Estudios Sociales",2,1,null,null,null,null,null,null,0,null,"",{"$f":"IF(F52=1,Hoja3!D36)*N52","v":0}]
[null,{"$f":"+B52+1","v":36},"Razonamiento de los números, la geometría y el álgebra para la cotidianidad","Matemáticas",6,1,null,null,null,null,null,null,0,null,"",{"$f":"IF(F53=1,Hoja3!D37)*N53","v":0}]
[null,37,"Seguridad de las personas en Costa Rica","Educación Cívica",4,1,null,null,null,null,null,null,0,null,"",{"$f":"IF(F54=1,Hoja3!D38)*N54","v":0}]
[null,38,"Variedades de la lengua","Español",3,1,null,null,null,null,null,null,0,null,"",{"$f":"IF(F55=1,Hoja3!D39)*N55","v":0}]
[null,39,"Participación, representación y derechos humanos en la sociedad democrática","Educación Cívica",4,1,null,null,null,null,null,null,0,null,"",{"$f":"IF(F56=1,Hoja3!D40)*N56","v":0}]
[null,40,"Estadística básica","Matemáticas",2,1,null,null,null,null,null,null,0,null,"",{"$f":"IF(F57=1,Hoja3!D41)*N57","v":0}]
[null,41,"Química de la tierra y su formación","Ciencias",3,1,null,null,null,null,null,null,0,null,"",{"$f":"IF(F58=1,Hoja3!D42)*N58","v":0}]
[null,42,"Comprendiendo la historia: de la edad media al renacimiento del siglo V al XVI","Estudios Sociales",2,1,null,null,null,null,null,null,0,null,"",{"$f":"IF(F59=1,Hoja3!D43)*N59","v":0}]
[null,43,"Materia y energía en sociedad","Ciencias",3,1,null,null,null,null,null,null,0,null,"",{"$f":"IF(F60=1,Hoja3!D44)*N60","v":0}]
[null,44,"Los procesos plurisignificativos de la comunicación literaria","Español",3,1,null,null,null,null,null,null,0,null,"",{"$f":"IF(F61=1,Hoja3!D45)*N61","v":0}]
[null,45,"Materia Planetaria en sostenibilidad","Ciencias",2,1,null,null,null,null,null,null,0,null,"",{"$f":"IF(F62=1,Hoja3!D46)*N62","v":0}]
[null,46,"Nos cominicamos en otras lenguas","Idioma Extranjero",5,1,null,null,null,null,null,null,0,null,"",{"$f":"IF(F63=1,Hoja3!D47)*N63","v":0}]
[null,48,"Cotidianidad del ser humano: desde la Edad Moderno en Europa y América siglos XVI-XIX","Estudios Sociales",3,1,null,null,null,null,null,null,0,null,"",{"$f":"IF(F64=1,Hoja3!D48)*N64","v":0}]
[null,{"$f":"+B64+1","v":49},"Vivencia de la sexualidad en el contexto familiar y social","Ciencias",3,1,null,null,null,null,null,null,0,null,"",{"$f":"IF(F65=1,Hoja3!D49)*N65","v":0}]
[null,{"$f":"+B65+1","v":50},"Roles de trabajo y formas de comunicación en el mundo antiguo","Estudios Sociales",4,1,null,null,null,null,null,null,0,null,"",{"$f":"IF(F66=1,Hoja3!D50)*N66","v":0}]
[null,{"$f":"+B66+1","v":51},"Construyamos nuestra identidad ciudadana","Educación Cívica",4,1,null,null,null,null,null,null,0,null,"",{"$f":"IF(F67=1,Hoja3!D51)*N67","v":0}]
[null,52,"Aplicaciones de los números, la geometría y el álgebra en nuetro entorno","Matemáticas",5,1,null,null,null,null,null,null,0,null,"",{"$f":"IF(F68=1,Hoja3!D52)*N68","v":0}]
[null,53,"Comprendiendo  nuestro entorno a través de la estadística","Matemáticas",2,1,null,null,null,null,null,null,0,null,"",{"$f":"IF(F69=1,Hoja3!D53)*N69","v":0}]
[null,null,null,"CANTIDAD DE MATRICULA II NIVEL"]
[null,null,null,"CANTIDAD DE SECCIONES",null,null,null,null,null,null,null,null,{"$f":"SUM(N48:N69)","v":0}]
[null,"TOTAL LECCIONES NIVEL II:",null,null,null,null,null,null,null,null,null,null,null,null,null,{"$f":"IF(SUM(P48:P69)=0,\"\",SUM(P48:P69))","v":""}]
[]
[]
[null,"3) DISTRIBUCIÓN DE MATRÍCULA Y LECCIONES: NIVEL III"]
[null,"No.","Descripción del Módulo","Atinencia","Lecciones por Módulo",null,"PERIODO 1","PERIODO 2","PERIODO 3",null,"PERIODO 4",null,"MATRICULA TOTAL","Cantidad"]
[null,null,null,null,null,null,null,null,null,null,null,null,null,"Secciones","Promedio","Lecciones"]
[null,60,"Nos comunicamos mejor","Español",4,1,null,null,null,null,null,null,{"$f":"SUM(G78:L78)","v":0},null,{"$f":"+IF(N78=\"\",\"\",M78/N78)","v":""},{"$f":"IF(F78=1,Hoja3!D58)*N78","v":0}]
[null,{"$f":"+B78+1","v":61},"Sistemas y Regímenes políticos, el estado costarricense garante de oporunidades para la construcción de la cultura democrática","Educación Cívica",2,1,null,null,null,null,null,null,0,null,"",{"$f":"IF(F79=1,Hoja3!D59)*N79","v":0}]
[null,62,"¿Cómo las transformaciones sociales, económicas, y políticas del mundo comtemporáneo impactan a la sociedad actual? (siglo XIX-Epoca actual)","Estudios Sociales",3,1,null,null,null,null,null,null,0,null,"",{"$f":"IF(F80=1,Hoja3!D60)*N80","v":0}]
[null,63,"Una mirada a las problemáticas contemporáneas; Repercusiones de la dinámica poblacional y movilización espacial","Estudios Sociales",3,1,null,null,null,null,null,null,0,null,"",{"$f":"IF(F81=1,Hoja3!D61)*N81","v":0}]
[null,64,"Interdependencia e interconexión: Los patrones espaciales en la sociedad globalizado","Estudios Sociales",3,1,null,null,null,null,null,null,0,null,"",{"$f":"IF(F82=1,Hoja3!D62)*N82","v":0}]
[null,65,"Seres vivos en población","Ciencias (Biología)",4,1,null,null,null,null,null,null,0,null,"",{"$f":"IF(F83=1,Hoja3!D63)*N83","v":0}]
[null,66,"Valorando nuestra sociedad (siglo XX-XXI)","Estudios Sociales",3,1,null,null,null,null,null,null,0,null,"",{"$f":"IF(F84=1,Hoja3!D64)*N84","v":0}]
[null,68,"Aplicación de la química en el hogar y la comunidad","Ciencias (Química)",4,1,null,null,null,null,null,null,0,null,"",{"$f":"IF(F85=1,Hoja3!D65)*N85","v":0}]
[null,69,"Aplicaciones de la física en la vida diaria","Ciencias (Física)",4,1,null,null,null,null,null,null,0,null,"",{"$f":"IF(F86=1,Hoja3!D66)*N86","v":0}]
[null,{"$f":"+B86+1","v":70},"¿Dónde está presente la estadística?","Matemáticas",2,1,null,null,null,null,null,null,0,null,"",{"$f":"IF(F87=1,Hoja3!D67)*N87","v":0}]
[null,71,"Nos comunicamos en otras lenguas","Idioma Extranjero",5,1,null,null,null,null,null,null,0,null,"",{"$f":"IF(F88=1,Hoja3!D68)*N88","v":0}]
[null,72,"¿Cómo aplicar la estadística y la probabilidad en la vida diaria?","Matemáticas",2,1,null,null,null,null,null,null,0,null,"",{"$f":"IF(F89=1,Hoja3!D69)*N89","v":0}]
[null,73,"Construyamos el futuro","Ciencias (Biología)",3,1,null,null,null,null,null,null,0,null,"",{"$f":"IF(F90=1,Hoja3!D70)*N90","v":0}]
[null,74,"¿Cómo relacionar la geometría y las relaciones algebraicas con nuestro entorno?","Matemáticas",4,1,null,null,null,null,null,null,0,null,"",{"$f":"IF(F91=1,Hoja3!D71)*N91","v":0}]
[null,75,"¿Cómo nos puede ayudar las relaciones, el álgebra y la geometría a entender el mundo que nos rodea?","Matemáticas",4,1,null,null,null,null,null,null,0,null,"",{"$f":"IF(F92=1,Hoja3!D72)*N92","v":0}]
[null,76,"Ética Profesional","Filosofía",2,1,null,null,null,null,null,null,0,null,"",{"$f":"IF(F93=1,Hoja3!D73)*N93","v":0}]
[null,null,null,"CANTIDAD DE MATRICULA III NIVEL"]
[null,null,null,"CANTIDAD DE SECCIONES",null,null,null,null,null,null,null,null,{"$f":"SUM(N78:N93)","v":0}]
[null,"TOTAL LECCIONES NIVELES III:",null,null,null,null,null,null,null,null,null,null,null,null,null,{"$f":"IF(SUM(P78:P93)=0,\"\",SUM(P78:P93))","v":""}]
[]
[null,"CURSOS OPCIONALES PRIMERO DEBE DE ELEGIR LOS DE I NIVEL Y  POSTERIORMENTE DEBEN ELEGIR LOS CURSOS DE II Y III NIVEL (ESTO PARA MEJOR DISTRIBUCION)"]
[]
[]
[]
[null,"*****","FAVOR LLENAR LA MATRICULA Y SECCIONES A INCLUIR EN CURSOS OPCIONALES (OBLIGATORIO):"]
[null,null,null,null,null,null,null,"I NIVEL ",null,null,null,null,null,"II NIVEL ",null,null,null,"III NIVEL",null,null,null,"TOTAL"]
[null,null,null,null,null,null,null,"1 PERIODO","2 PERIODO","3 PERIODO","4 PERIODO","5 PERIODO","6 PERIODO","1 PERIODO","2 PERIODO","3 PERIODO","4 PERIODO","1 PERIODO","2 PERIODO","3 PERIODO","4 PERIODO"]
[null,null,null,null,null,null,"MATRICULA ",null,null,null,null,null,null,null,null,null,null,null,null,null,null,{"$f":"SUM(H105:U105)","v":0}]
[null,null,null,null,null,null,"SECCIONES ",null,null,null,null,null,null,null,null,null,null,null,null,null,null,{"$f":"SUM(H106:U106)","v":0}]
[]
[null,"Opcionales SOLO para I NIVEL (se subrayan las materias básicas estos se separan ya que se dan por AMPLIACIONES  y las otra atinencias por LECCIONES):"]
[]
[null,"4) DISTRIBUCIÓN DE MATRÍCULA Y LECCIONES: CURSOS MODULARES OPCIONALES I NIVEL"]
[null,"No.","Descripción del Módulo","Atinencia","Lecciones por Módulo",null,"MATRICULA I NIVEL",null,null,null,null,null,"MATRICULA TOTAL","Cantidad"]
[null,null,null,null,null,null,null,null,null,null,null,null,null,"Secciones","Promedio","Lecciones"]
[null,80,"Administración de la pequeña empresa","Contabilidad",5,1,null,null,null,null,null,null,{"$f":"SUM(G113:L113)","v":0},null,{"$f":"+IF(N113=\"\",\"\",M113/N113)","v":""},{"$f":"IF(F113,Hoja3!D129)*N113","v":0}]
[null,81,"Aprendamos a apreciar la música","Música",5,1,null,null,null,null,null,null,0,null,"",{"$f":"IF(F114,Hoja3!D130)*N114","v":0}]
[null,83,"¿Cómo administrar recursos humanos y financieros?","Contabilidad ",3,1,null,null,null,null,null,null,0,null,"",{"$f":"IF(F115,Hoja3!D131)*N115","v":0}]
[null,84,"Reconociendo a las personas con discapacidad como sujetas de derecho","Enseñanza Especial Generalista",3,1,null,null,null,null,null,null,0,null,"",{"$f":"IF(F116,Hoja3!D132)*N116","v":0}]
[null,85,"¿Cómo comunicarnos en una lengua indígena?","Educación Indígena",5,1,null,null,null,null,null,null,0,null,"",{"$f":"IF(F117,Hoja3!D133)*N117","v":0}]
[null,86,"¡A comunicarnos se ha dicho!","Español",3,1,null,null,null,null,null,null,0,null,"",{"$f":"IF(F118,Hoja3!D134)*N118","v":0}]
[null,87,"Conozcamos nuestra cultura autóctona","Estudios Sociales",3,1,null,null,null,null,null,null,0,null,"",{"$f":"IF(F119,Hoja3!D135)*N119","v":0}]
[null,88,"Contabilidad para la pequeña empresa","Contabilidad",3,1,null,null,null,null,null,null,0,null,"",{"$f":"IF(F120,Hoja3!D136)*N120","v":0}]
[null,89,"Creando con el lenguaje","Español",5,1,null,null,null,null,null,null,0,null,"",{"$f":"IF(F121,Hoja3!D137)*N121","v":0}]
[null,90,"Desarrollo mi creatividad","Español",3,1,null,null,null,null,null,null,0,null,"",{"$f":"IF(F122,Hoja3!D138)*N122","v":0}]
[null,93,"El camino para iniciar su propia empresa","Contabilidad",5,1,null,null,null,null,null,null,0,null,"",{"$f":"IF(F123,Hoja3!D139)*N123","v":0}]
[null,94,"El Bribri, Maleku, Cabecar, como mi lengua materna","Ingles, Educación Indigena",3,1,null,null,null,null,null,null,0,null,"",{"$f":"IF(F124,Hoja3!D140)*N124","v":0}]
[null,97,"Formación de líderes democráticos","Estudios Sociales",5,1,null,null,null,null,null,null,0,null,"",{"$f":"IF(F125,Hoja3!D141)*N125","v":0}]
[null,100,"Importancia de la actividad física: juegos pre-deportivos tradicionales y gimnasia formativa I NIVEL","Educación Física",5,1,null,null,null,null,null,null,0,null,"",{"$f":"IF(F126,Hoja3!D142)*N126","v":0}]
[null,102,"Relaciones humanas","Psicología",3,1,null,null,null,null,null,null,0,null,"",{"$f":"IF(F127,Hoja3!D143)*N127","v":0}]
[null,103,"Los pueblos y sus expresiones culturales","Estudios Sociales",4,1,null,null,null,null,null,null,0,null,"",{"$f":"IF(F128,Hoja3!D144)*N128","v":0}]
[null,106,"Mundo del turismo","Turismo Ecológico",2,1,null,null,null,null,null,null,0,null,"",{"$f":"IF(F129,Hoja3!D145)*N129","v":0}]
[null,107,"Nos organizamos para enfrentar desastres","Ciencias",2,1,null,null,null,null,null,null,0,null,"",{"$f":"IF(F130,Hoja3!D146)*N130","v":0}]
[null,108,"Orientación vocacional y profesional","Psicología",5,1,null,null,null,null,null,null,0,null,"",{"$f":"IF(F131,Hoja3!D147)*N131","v":0}]
[null,109,"Primeros auxilios","Educación Física",5,1,null,null,null,null,null,null,0,null,"",{"$f":"IF(F132,Hoja3!D148)*N132","v":0}]
[null,110,"Problemas y soluciones planetarios","Ciencias",3,1,null,null,null,null,null,null,0,null,"",{"$f":"IF(F133,Hoja3!D149)*N133","v":0}]
[null,111,"Promoción y defensa de los deberes y derechos del ciudadano","Estudios Sociales",3,1,null,null,null,null,null,null,0,null,"",{"$f":"IF(F134,Hoja3!D150)*N134","v":0}]
[null,118,"Vida en el planeta","Ciencias",5,1,null,null,null,null,null,null,0,null,"",{"$f":"IF(F135,Hoja3!D151)*N135","v":0}]
[null,119,"Visualicemos el futuro","Ciencias",5,1,null,null,null,null,null,null,0,null,"",{"$f":"IF(F136,Hoja3!D152)*N136","v":0}]
[null,120,"Planificando mi futuro","Psicología",2,1,null,null,null,null,null,null,0,null,"",{"$f":"IF(F137,Hoja3!D153)*N137","v":0}]
[null,121,"Descubriendo mi estilo de aprendizaje","Psicología",2,1,null,null,null,null,null,null,0,null,"",{"$f":"IF(F138,Hoja3!D154)*N138","v":0}]
[null,123,"Fortalecimiento de la matemática (OPCIONAL 1 NIVEL)","Matemática",3,1,null,null,null,null,null,null,0,null,"",{"$f":"IF(F139,Hoja3!D155)*N139","v":0}]
[null,124,"Fortalecimiento del Ingles","Ingles",3,1,null,null,null,null,null,null,0,null,"",{"$f":"IF(F140,Hoja3!D156)*N140","v":0}]
[null,125,"Fortalecimiento de los Estudios Sociales (OPCIONAL 1 NIVEL)","Estudios Sociales",3,1,null,null,null,null,null,null,0,null,"",{"$f":"IF(F141,Hoja3!D157)*N141","v":0}]
[null,126,"Fortalecimiento de la Biología","Ciencias",3,1,null,null,null,null,null,null,0,null,"",{"$f":"IF(F142,Hoja3!D158)*N142","v":0}]
[null,127,"Fortalecimiento de la Educación Cívica","Estudios Sociales",3,1,null,null,null,null,null,null,0,null,"",{"$f":"IF(F143,Hoja3!D159)*N143","v":0}]
[null,128,"Fortalecimiento del Español (OPCIONAL 1 NIVEL)","Español",3,1,null,null,null,null,null,null,0,null,"",{"$f":"IF(F144,Hoja3!D160)*N144","v":0}]
[null,129,"Fortalecimiento del Francés","Francés",3,1,null,null,null,null,null,null,0,null,"",{"$f":"IF(F145,Hoja3!D161)*N145","v":0}]
[null,130,"Fortalecimiento de la Quimica para Bachillerato","Ciencias",3,1,null,null,null,null,null,null,0,null,"",{"$f":"IF(F146,Hoja3!D162)*N146","v":0}]
[null,131,"Fortalecimiento de la Física para Bachillerato","Ciencias",3,1,null,null,null,null,null,null,0,null,"",{"$f":"IF(F147,Hoja3!D163)*N147","v":0}]
[null,139,"Tecnología y Trabajo","Informatica Educatica/ Desarrollo Sofware/ Progración Redes de Computadoras en Soporte",5,1,null,null,null,null,null,null,0,null,"",{"$f":"IF(F148,Hoja3!D164)*N148","v":0}]
[null,140,"Tecnología y Comunidad","Informatica Educatica/ Desarrollo Sofware/ Progración Redes de Computadoras en Soporte",5,1,null,null,null,null,null,null,0,null,"",{"$f":"IF(F149,Hoja3!D165)*N149","v":0}]
[null,141,"Tecnología y Emprendedurismo","Informatica Educatica/ Desarrollo Sofware/ Progración Redes de Computadoras en Soporte",5,1,null,null,null,null,null,null,0,null,"",{"$f":"IF(F150,Hoja3!D166)*N150","v":0}]
[null,142,"Expreción o Creción Musical","Música",5,1,null,null,null,null,null,null,0,null,"",{"$f":"IF(F151,Hoja3!D167)*N151","v":0}]
[null,143,"Desarrollo Comunitario (II Nivel)","Cualquier especilidad acádemica",2,1,null,null,null,null,null,null,0,null,"",{"$f":"IF(F152,Hoja3!D168)*N152","v":0}]
[null,144,"Desarrollo Comunitario (III Nivel)","Cualquier especilidad acádemica",3,1,null,null,null,null,null,null,0,null,"",{"$f":"IF(F153,Hoja3!D169)*N153","v":0}]
[null,145,"Introducción a la robótica","Informática, Informática educativa ambas con conocimiento en robótica",2,1,null,null,null,null,null,null,0,null,"",{"$f":"IF(F154,Hoja3!D170)*N154","v":0}]
[null,146,"Poniéndome en acción: entrenándome haciendo deporte y baile","Educación Física",5,1,null,null,null,null,null,null,0,null,"",{"$f":"IF(F155,Hoja3!D171)*N155","v":0}]
[null,147,"Promoviendo salud, venciendo desafíos","Educación Física",5,1,null,null,null,null,null,null,0,null,"",{"$f":"IF(F156,Hoja3!D172)*N156","v":0}]
[null,148,"Afectividad y sexualidad desde la cotidianidad","Psicología",2,1,null,null,null,null,null,null,0,null,"",{"$f":"IF(F157,Hoja3!D173)*N157","v":0}]
[null,149,"¡Qué lindo aprender Cabécar!","Educación indígena, especialidad lengua materna, subespecialidad: Cabécar",2,1,null,null,null,null,null,null,0,null,"",{"$f":"IF(F158,Hoja3!D174)*N158","v":0}]
[null,null,null,"CANTIDAD DE MATRICULA "]
[null,null,null,"CANTIDAD DE SECCIONES",null,null,null,null,null,null,null,null,{"$f":"SUM(N113:N158)","v":0}]
[null,"TOTAL LECCIONES DE CURSOS OPCIONALES I NIVEL:",null,null,null,null,null,null,null,null,null,null,null,null,null,{"$f":"IF(SUM(P113:P158)=0,\"\",SUM(P113:P158)+(-P118-P119-P121-P122-P125-P128-P130-P133-P134-P135-P136-P139-P141-P142-P143-P144))","v":""}]
[null,"TOTAL AMPLIACIONES CURSOS OPCIONALES I NIVEL",null,null,null,null,null,null,null,null,null,null,null,null,null,{"$f":"SUM(P118+P119+P121+P122+P125+P128+P130+P133+P134+P135+P136+P139+P141+P142+P143+P144)","v":0}]
[]
[null,"Opcionales SOLO para II NIVEL Y III NIVEL a escoger (LECCIONES):"]
[]
[null,"4) DISTRIBUCIÓN DE MATRÍCULA Y LECCIONES: CURSOS MODULARES OPCIONALES II NIVEL Y III NIVEL "]
[null,"No.","Descripción del Módulo","Atinencia","Lecciones por Módulo",null,null,null,"II NIVEL",null,"III NIVEL",null,"MATRICULA TOTAL","Cantidad"]
[null,null,null,null,null,null,null,null,null,null,null,null,null,"Secciones","Promedio","Lecciones"]
[null,80,"Administración de la pequeña empresa","Contabilidad",5,1,null,null,null,null,null,null,{"$f":"SUM(G169:L169)","v":0},null,{"$f":"+IF(N169=\"\",\"\",M169/N169)","v":""},{"$f":"IF(F169,Hoja3!D129)*N169","v":0}]
[null,81,"Aprendamos a apreciar la música","Música",5,1,null,null,null,null,null,null,0,null,"",{"$f":"IF(F170,Hoja3!D130)*N170","v":0}]
[null,83,"¿Cómo administrar recursos humanos y financieros?","Contabilidad ",3,1,null,null,null,null,null,null,0,null,"",{"$f":"IF(F171,Hoja3!D131)*N171","v":0}]
[null,84,"Reconociendo a las personas con discapacidad como sujetas de derecho","Enseñanza Especial Generalista",3,1,null,null,null,null,null,null,0,null,"",{"$f":"IF(F172,Hoja3!D132)*N172","v":0}]
[null,85,"¿Cómo comunicarnos en una lengua indígena?","Educación Indígena",5,1,null,null,null,null,null,null,0,null,"",{"$f":"IF(F173,Hoja3!D133)*N173","v":0}]
[null,86,"¡A comunicarnos se ha dicho!","Español",3,1,null,null,null,null,null,null,0,null,"",{"$f":"IF(F174,Hoja3!D134)*N174","v":0}]
[null,87,"Conozcamos nuestra cultura autóctona","Estudios Sociales",3,1,null,null,null,null,null,null,0,null,"",{"$f":"IF(F175,Hoja3!D135)*N175","v":0}]
[null,88,"Contabilidad para la pequeña empresa","Contabilidad",3,1,null,null,null,null,null,null,0,null,"",{"$f":"IF(F176,Hoja3!D136)*N176","v":0}]
[null,89,"Creando con el lenguaje","Español",5,1,null,null,null,null,null,null,0,null,"",{"$f":"IF(F177,Hoja3!D137)*N177","v":0}]
[null,90,"Desarrollo mi creatividad","Español",3,1,null,null,null,null,null,null,0,null,"",{"$f":"IF(F178,Hoja3!D138)*N178","v":0}]
[null,93,"El camino para iniciar su propia empresa","Contabilidad",5,1,null,null,null,null,null,null,0,null,"",{"$f":"IF(F179,Hoja3!D139)*N179","v":0}]
[null,94,"El Bribri, Maleku, Cabecar, como mi lengua materna","Ingles, Educación Indigena",3,1,null,null,null,null,null,null,0,null,"",{"$f":"IF(F180,Hoja3!D140)*N180","v":0}]
[null,97,"Formación de líderes democráticos","Estudios Sociales",5,1,null,null,null,null,null,null,0,null,"",{"$f":"IF(F181,Hoja3!D141)*N181","v":0}]
[null,100,"Importancia de la actividad física: juegos pre-deportivos tradicionales y gimnasia formativa","Educación Física",5,1,null,null,null,null,null,null,0,null,"",{"$f":"IF(F182,Hoja3!D142)*N182","v":0}]
[null,102,"Relaciones humanas","Psicología",3,1,null,null,null,null,null,null,0,null,"",{"$f":"IF(F183,Hoja3!D143)*N183","v":0}]
[null,103,"Los pueblos y sus expresiones culturales","Estudios Sociales",4,1,null,null,null,null,null,null,0,null,"",{"$f":"IF(F184,Hoja3!D144)*N184","v":0}]
[null,106,"Mundo del turismo","Turismo Ecológico",2,1,null,null,null,null,null,null,0,null,"",{"$f":"IF(F185,Hoja3!D145)*N185","v":0}]
[null,107,"Nos organizamos para enfrentar desastres","Ciencias",2,1,null,null,null,null,null,null,0,null,"",{"$f":"IF(F186,Hoja3!D146)*N186","v":0}]
[null,108,"Orientación vocacional y profesional","Psicología",5,1,null,null,null,null,null,null,0,null,"",{"$f":"IF(F187,Hoja3!D147)*N187","v":0}]
[null,109,"Primeros auxilios","Educación Física",5,1,null,null,null,null,null,null,0,null,"",{"$f":"IF(F188,Hoja3!D148)*N188","v":0}]
[null,110,"Problemas y soluciones planetarios","Ciencias",3,1,null,null,null,null,null,null,0,null,"",{"$f":"IF(F189,Hoja3!D149)*N189","v":0}]
[null,111,"Promoción y defensa de los deberes y derechos del ciudadano","Estudios Sociales",3,1,null,null,null,null,null,null,0,null,"",{"$f":"IF(F190,Hoja3!D150)*N190","v":0}]
[null,118,"Vida en el planeta","Ciencias",5,1,null,null,null,null,null,null,0,null,"",{"$f":"IF(F191,Hoja3!D151)*N191","v":0}]
[null,119,"Visualicemos el futuro","Ciencias",5,1,null,null,null,null,null,null,0,null,"",{"$f":"IF(F192,Hoja3!D152)*N192","v":0}]
[null,120,"Planificando mi futuro","Psicología",2,1,null,null,null,null,null,null,0,null,"",{"$f":"IF(F193,Hoja3!D153)*N193","v":0}]
[null,121,"Descubriendo mi estilo de aprendizaje","Psicología",2,1,null,null,null,null,null,null,0,null,"",{"$f":"IF(F194,Hoja3!D154)*N194","v":0}]
[null,123,"Fortalecimiento de la matemática ","Matemática",3,1,null,null,null,null,null,null,0,null,"",{"$f":"IF(F195,Hoja3!D155)*N195-G195","v":0}]
[null,124,"Fortalecimiento del Ingles","Ingles",3,1,null,null,null,null,null,null,0,null,"",{"$f":"IF(F196,Hoja3!D156)*N196","v":0}]
[null,125,"Fortalecimiento de los Estudios Sociales","Estudios Sociales",3,1,null,null,null,null,null,null,0,null,"",{"$f":"IF(F197,Hoja3!D157)*N197","v":0}]
[null,126,"Fortalecimiento de la Biología","Ciencias",3,1,null,null,null,null,null,null,0,null,"",{"$f":"IF(F198,Hoja3!D158)*N198","v":0}]
[null,127,"Fortalecimiento de la Educación Cívica","Estudios Sociales",3,1,null,null,null,null,null,null,0,null,"",{"$f":"IF(F199,Hoja3!D159)*N199","v":0}]
[null,128,"Fortalecimiento del Español ","Español",3,1,null,null,null,null,null,null,0,null,"",{"$f":"IF(F200,Hoja3!D160)*N200","v":0}]
[null,129,"Fortalecimiento del Francés","Francés",3,1,null,null,null,null,null,null,0,null,"",{"$f":"IF(F201,Hoja3!D161)*N201","v":0}]
[null,130,"Fortalecimiento de la Quimica para Bachillerato","Ciencias",3,1,null,null,null,null,null,null,0,null,"",{"$f":"IF(F202,Hoja3!D162)*N202","v":0}]
[null,131,"Fortalecimiento de la Física para Bachillerato","Ciencias",3,1,null,null,null,null,null,null,0,null,"",{"$f":"IF(F203,Hoja3!D163)*N203","v":0}]
[null,139,"Tecnología y Trabajo","Informatica Educatica/ Desarrollo Sofware/ Progración Redes de Computadoras en Soporte",5,1,null,null,null,null,null,null,0,null,"",{"$f":"IF(F204,Hoja3!D164)*N204","v":0}]
[null,140,"Tecnología y Comunidad","Informatica Educatica/ Desarrollo Sofware/ Progración Redes de Computadoras en Soporte",5,1,null,null,null,null,null,null,0,null,"",{"$f":"IF(F205,Hoja3!D165)*N205","v":0}]
[null,141,"Tecnología y Emprendedurismo","Informatica Educatica/ Desarrollo Sofware/ Progración Redes de Computadoras en Soporte",5,1,null,null,null,null,null,null,0,null,"",{"$f":"IF(F206,Hoja3!D166)*N206","v":0}]
[null,142,"Expreción o Creción Musical","Música",5,1,null,null,null,null,null,null,0,null,"",{"$f":"IF(F207,Hoja3!D167)*N207","v":0}]
[null,143,"Desarrollo Comunitario (II Nivel)","Cualquier especilidad acádemica",2,1,null,null,null,null,null,null,0,null,"",{"$f":"IF(F208,Hoja3!D168)*N208","v":0}]
[null,144,"Desarrollo Comunitario (III Nivel)","Cualquier especilidad acádemica",3,1,null,null,null,null,null,null,0,null,"",{"$f":"IF(F209,Hoja3!D169)*N209","v":0}]
[null,145,"Introducción a la robótica","Informática, Informática educativa ambas con conocimiento en robótica",2,1,null,null,null,null,null,null,0,null,"",{"$f":"IF(F210,Hoja3!D170)*N210","v":0}]
[null,146,"Poniéndome en acción: entrenándome haciendo deporte y baile","Educación Física",5,1,null,null,null,null,null,null,0,null,"",{"$f":"IF(F211,Hoja3!D171)*N211","v":0}]
[null,147,"Promoviendo salud, venciendo desafíos","Educación Física",5,1,null,null,null,null,null,null,0,null,"",{"$f":"IF(F212,Hoja3!D172)*N212","v":0}]
[null,148,"Afectividad y sexualidad desde la cotidianidad","Psicología",2,1,null,null,null,null,null,null,0,null,"",{"$f":"IF(F213,Hoja3!D173)*N213","v":0}]
[null,149,"¡Qué lindo aprender Cabécar!","Educación indígena, especialidad lengua materna, subespecialidad: Cabécar",2,1,null,null,null,null,null,null,0,null,"",{"$f":"IF(F214,Hoja3!D174)*N214","v":0}]
[null,null,null,"CANTIDAD DE MATRICULA "]
[null,null,null,"CANTIDAD DE SECCIONES",null,null,null,null,null,null,null,null,{"$f":"SUM(N169:N214)","v":0}]
[null,"TOTAL LECCIONES CURSOS OPCIONALES I Y II NIVEL:",null,null,null,null,null,null,null,null,null,null,null,null,null,{"$f":"IF(SUM(P169:P214)=0,\"\",SUM(P169:P214))","v":""}]
[]
[null,"6) DISTRIBUCIÓN DE MATRÍCULA Y LECCIONES: CURSOS LIBRES"]
[null,"No.","Descripción del Módulo","Atinencia","Lecciones por Módulo",null,"MATRICULA POR CURSO",null,null,null,null,null,"MATRICULA TOTAL","Cantidad"]
[null,null,null,null,null,null,null,null,null,null,null,null,null,"Secciones","Promedio","Lecciones"]
[null,250,"Preparación y productos de repostería","Educ/hogar",5,1,null,null,null,null,null,null,{"$f":"G222","v":0},null,{"$f":"+IF(N222=\"\",\"\",M222/N222)","v":""},{"$f":"IF(F222,Hoja3!D179)*N222","v":0}]
[null,271,"Mantenimiento preventivo de computadoras","Informática de desarrollo del software, en programación, en redes de computadoras, en soporte.",5,1,null,null,null,null,null,null,{"$f":"G223","v":0},null,"",{"$f":"IF(F223,Hoja3!D180)*N223","v":0}]
[null,259,"Bases de datos ","Informática de desarrollo del software, en programación, en redes de computadoras, en soporte.",5,1,null,null,null,null,null,null,0,null,"",{"$f":"IF(F224,Hoja3!D181)*N224","v":0}]
[null,260,"Diseño  WEB","Informática en desarrollo del software",5,1,null,null,null,null,null,null,0,null,"",{"$f":"IF(F225,Hoja3!D182)*N225","v":0}]
[null,255,"Técnicas Secretariales","Secretariado ejecutivo, secretariado bilingüe o ejecutivo para centros de servicio",5,1,null,null,null,null,null,null,0,null,"",{"$f":"IF(F226,Hoja3!D183)*N226","v":0}]
[null,265,"Oficina moderna","Secretariado ejecutivo, secretariado bilingüe o ejecutivo para centros de servicio",5,1,null,null,null,null,null,null,0,null,"",{"$f":"IF(F227,Hoja3!D184)*N227","v":0}]
[null,261,"Ingles conversacional  inicial I NIVEL","Inglés",5,1,null,null,null,null,null,null,0,null,"",{"$f":"IF(F228,Hoja3!D185)*N228","v":0}]
[null,262,"Ingles conversacional intermedio II NIVEL","Inglés",5,1,null,null,null,null,null,null,0,null,"",{"$f":"IF(F229,Hoja3!D186)*N229","v":0}]
[null,263,"Ingles conversacional  avanzado III NIVEL","Inglés",5,1,null,null,null,null,null,null,0,null,"",{"$f":"IF(F230,Hoja3!D187)*N230","v":0}]
[null,253,"Principios de contabilidad","Contabilidad",5,1,null,null,null,null,null,null,0,null,"",{"$f":"IF(F231,Hoja3!D188)*N231","v":0}]
[null,256,"Técnicas de manejo de hidroponía y abono orgánico","Agroecología",3,1,null,null,null,null,null,null,0,null,"",{"$f":"IF(F232,Hoja3!D189)*N232","v":0}]
[null,279,"El mundo de los negocios de capital individual y asociativo","Contabilidad o profesor de estado de educación comercial y de servicios.",3,1,null,null,null,null,null,null,0,null,"",{"$f":"IF(F233,Hoja3!D190)*N233","v":0}]
[null,280,"Doctrina cooperativa","Estudios Sociales",3,1,null,null,null,null,null,null,0,null,"",{"$f":"IF(F234,Hoja3!D191)*N234","v":0}]
[null,281,"Gestión Cooperativa","Estudios Sociales",3,1,null,null,null,null,null,null,0,null,"",{"$f":"IF(F235,Hoja3!D192)*N235","v":0}]
[null,282,"Líderes y gestores de iniciativas de negocios","Contabilidad o profesor de estado de educación comercial y de servicios",3,1,null,null,null,null,null,null,0,null,"",{"$f":"IF(F236,Hoja3!D193)*N236","v":0}]
[null,258,"Montajes eléctricos básicos","Electrónica industrial y electrotecnia",5,1,null,null,null,null,null,null,0,null,"",{"$f":"IF(F237,Hoja3!D194)*N237","v":0}]
[null,269,"Refrigeración doméstica","Refrigeración y aire acondicionado",5,1,null,null,null,null,null,null,0,null,"",{"$f":"IF(F238,Hoja3!D195)*N238","v":0}]
[null,272,"Técnicas de bisutería y orfebrería","Educ/hogar",5,1,null,null,null,null,null,null,0,null,"",{"$f":"IF(F239,Hoja3!D196)*N239","v":0}]
[null,252,"Confección de accesorios para el hogar","Educ/hogar",5,1,null,null,null,null,null,null,0,null,"",{"$f":"IF(F240,Hoja3!D197)*N240","v":0}]
[null,254,"Técnica manuales y  confección de artículos con material de desecho","Educ/hogar",5,1,null,null,null,null,null,null,0,null,"",{"$f":"IF(F241,Hoja3!D198)*N241","v":0}]
[null,266,"Hagamos artesanías","Educ/hogar o artesanías",5,1,null,null,null,null,null,null,0,null,"",{"$f":"IF(F242,Hoja3!D199)*N242","v":0}]
[null,257,"Alta costura","Educ/hogar",5,1,null,null,null,null,null,null,0,null,"",{"$f":"IF(F243,Hoja3!D200)*N243","v":0}]
[null,270,"Corte y confección","Educ/hogar",5,1,null,null,null,null,null,null,0,null,"",{"$f":"IF(F244,Hoja3!D201)*N244","v":0}]
[null,267,"Técnicas de estética y estilismo","Educ/hogar",5,1,null,null,null,null,null,null,0,null,"",{"$f":"IF(F245,Hoja3!D202)*N245","v":0}]
[null,268,"Corte de cabello clásico y alta peluquería","Educ/hogar",5,1,null,null,null,null,null,null,0,null,"",{"$f":"IF(F246,Hoja3!D203)*N246","v":0}]
[null,264,"Dibujo Técnico","Artes plásticas",5,1,null,null,null,null,null,null,0,null,"",{"$f":"IF(F247,Hoja3!D204)*N247","v":0}]
[null,273,"Servicio al cliente","Secretariado ejecutivo, secretariado bilingüe o ejecutivo para centros de servicio",5,1,null,null,null,null,null,null,0,null,"",{"$f":"IF(F248,Hoja3!D205)*N248","v":0}]
[null,274,"Taller de Teatro","Teatro",5,1,null,null,null,null,null,null,0,null,"",{"$f":"IF(F249,Hoja3!D206)*N249","v":0}]
[null,275,"Taller de pintura","Artes  Plásticas",5,1,null,null,null,null,null,null,0,null,"",{"$f":"IF(F250,Hoja3!D207)*N250","v":0}]
[null,276,"Taller en música","Música",5,1,null,null,null,null,null,null,0,null,"",{"$f":"IF(F251,Hoja3!D208)*N251","v":0}]
[null,277,"Promoción de la salud","Física",5,1,null,null,null,null,null,null,0,null,"",{"$f":"IF(F252,Hoja3!D209)*N252","v":0}]
[null,278,"Preparacion de Bebidas","Turismo: alimentos y bebidas. Hotelería y eventos especiales.",5,1,null,null,null,null,null,null,0,null,"",{"$f":"IF(F253,Hoja3!D210)*N253","v":0}]
[null,283,"Educación Solidarista","Estudios Sociales",3,1,null,null,null,null,null,null,0,null,"",{"$f":"IF(F254,Hoja3!D211)*N254","v":0}]
[null,284,"Principios de administración solidarista","Estudios Sociales",3,1,null,null,null,null,null,null,0,null,"",{"$f":"IF(F255,Hoja3!D212)*N255","v":0}]
[null,285,"Reparaciones básicas en la casa","Diseño y construcción de muebles y estructuras.",5,1,null,null,null,null,null,null,0,null,"",{"$f":"IF(F256,Hoja3!D213)*N256","v":0}]
[null,286,"AL disfrutar del movimiento, mejora mi salud","Educ/Fisica",5,1,null,null,null,null,null,null,0,null,"",{"$f":"IF(F257,Hoja3!D214)*N257","v":0}]
[null,287,"Educación Vial","Doc. de cualquier especialidad académica, que cuente con el aval de la Dirección General de Educación Vial",2,1,null,null,null,null,null,null,0,null,"",{"$f":"IF(F258,Hoja3!D215)*N258","v":0}]
[null,288,"Hagamos arte ","Artes Plásticas",5,1,null,null,null,null,null,null,0,null,"",{"$f":"IF(F259,Hoja3!D216)*N259","v":0}]
[null,289,"Manipulación de Alimentos","Técnico en agro-industria, tecnología de alimentos, Nutricionista",3,1,null,null,null,null,null,null,0,null,"",{"$f":"IF(F260,Hoja3!D217)*N260","v":0}]
[null,290,"¡Cuidemos a nuestros adultos mayores!","Doc. De cualquier especialidad academica que cuente con el certificado del IDP sobre gerontología",5,1,null,null,null,null,null,null,0,null,"",{"$f":"IF(F261,Hoja3!D218)*N261","v":0}]
[null,291,"Prevención y seguridad laboral","Salud ocupacional",3,1,null,null,null,null,null,null,0,null,"",{"$f":"IF(F262,Hoja3!D219)*N262","v":0}]
[null,292,"Preparación de comidas nacionales","Educación para el Hogar",5,1,null,null,null,null,null,null,0,null,"",{"$f":"IF(F263,Hoja3!D220)*N263","v":0}]
[null,293,"Preparación de comidas internacionales","Educación para el Hogar",5,1,null,null,null,null,null,null,0,null,"",{"$f":"IF(F264,Hoja3!D221)*N264","v":0}]
[null,294,"Elaboración de confites, chocolates y postres","Educación para el Hogar",5,1,null,null,null,null,null,null,0,null,"",{"$f":"IF(F265,Hoja3!D222)*N265","v":0}]
[null,295,"Elaboración y decoración de pastelería","Educación para el Hogar",5,1,null,null,null,null,null,null,0,null,"",{"$f":"IF(F266,Hoja3!D223)*N266","v":0}]
[null,296,"¿Cómo desarollor el pensamiento matemático a través de la creatividad?","Matemática",2,1,null,null,null,null,null,null,0,null,"",{"$f":"IF(F267,Hoja3!D224)*N267","v":0}]
[null,297,"Búsqueda del conocimiento al alcance de todos","Docentes de cualquier especialidad académica",2,1,null,null,null,null,null,null,0,null,"",{"$f":"IF(F268,Hoja3!D225)*N268","v":0}]
[null,null,null,null,null,null,null,"CANTIDAD DE MATRICULA "]
[null,null,null,null,null,null,"CANTIDAD DE SECCIONES"]
[null,"TOTAL LECCIONES CURSOS LIBRES:",null,null,null,null,null,null,null,null,null,null,null,null,null,{"$f":"IF(SUM(P222:P268)=0,\"\",SUM(P222:P268))","v":""}]

{"sheet":"  SATELITE 6","index":14,"n_rows":271,"n_cols":22,"rows_kept":271,"cut":false,"hidden":false,"merged":[[265,7,265,11],[266,7,266,11],[267,7,267,11],[255,7,255,11],[256,7,256,11],[257,7,257,11],[258,7,258,11],[259,7,259,11],[260,7,260,11],[261,7,261,11],[262,7,262,11],[263,7,263,11],[247,7,247,11],[248,7,248,11],[249,7,249,11],[250,7,250,11],[251,7,251,11],[252,7,252,11],[253,7,253,11],[254,7,254,11],[264,7,264,11],[238,7,238,11],[239,7,239,11],[240,7,240,11],[241,7,241,11],[242,7,242,11],[243,7,243,11],[244,7,244,11],[245,7,245,11],[246,7,246,11],[229,7,229,11],[230,7,230,11],[231,7,231,11],[232,7,232,11],[233,7,233,11],[234,7,234,11],[235,7,235,11],[236,7,236,11],[237,7,237,11],[143,8,143,11],[144,8,144,11],[145,8,145,11],[146,8,146,11],[147,8,147,11],[148,8,148,11],[149,8,149,11],[150,8,150,11],[151,8,151,11],[134,8,134,11],[135,8,135,11],[136,8,136,11],[137,8,137,11],[138,8,138,11],[139,8,139,11],[140,8,140,11],[141,8,141,11],[142,8,142,11],[125,8,125,11],[126,8,126,11],[127,8,127,11],[128,8,128,11],[129,8,129,11],[130,8,130,11],[131,8,131,11],[132,8,132,11],[133,8,133,11],[116,8,116,11],[117,8,117,11],[118,8,118,11],[119,8,119,11],[120,8,120,11],[121,8,121,11],[122,8,122,11],[123,8,123,11],[124,8,124,11],[270,1,270,14],[219,12,220,12],[219,13,219,15],[268,2,268,4],[268,7,268,11],[268,12,268,13],[268,14,269,15],[269,2,269,4],[269,6,269,11],[269,12,269,13],[219,1,220,1],[219,2,220,2],[219,3,220,3],[219,4,220,4],[219,6,220,6],[219,7,220,11],[221,7,221,11],[222,7,222,11],[223,7,223,11],[224,7,224,11],[225,7,225,11],[226,7,226,11],[227,7,227,11],[228,7,228,11],[214,3,214,11],[214,12,214,13],[215,3,215,11],[215,12,215,13],[216,1,216,14],[218,1,218,15],[211,8,211,9],[211,10,211,11],[212,8,212,9],[212,10,212,11],[213,8,213,9],[213,10,213,11],[213,6,213,7],[208,8,208,9],[208,10,208,11],[209,8,209,9],[209,10,209,11],[210,8,210,9],[210,10,210,11],[205,8,205,9],[205,10,205,11],[206,8,206,9],[206,10,206,11],[207,8,207,9],[207,10,207,11],[202,8,202,9],[202,10,202,11],[203,8,203,9],[203,10,203,11],[204,8,204,9],[204,10,204,11],[199,8,199,9],[199,10,199,11],[200,8,200,9],[200,10,200,11],[201,8,201,9],[201,10,201,11],[196,8,196,9],[196,10,196,11],[197,8,197,9],[197,10,197,11],[198,8,198,9],[198,10,198,11],[193,8,193,9],[193,10,193,11],[194,8,194,9],[194,10,194,11],[195,8,195,9],[195,10,195,11],[190,8,190,9],[190,10,190,11],[191,8,191,9],[191,10,191,11],[192,8,192,9],[192,10,192,11],[187,8,187,9],[187,10,187,11],[188,8,188,9],[188,10,188,11],[189,8,189,9],[189,10,189,11],[184,8,184,9],[184,10,184,11],[185,8,185,9],[185,10,185,11],[186,8,186,9],[186,10,186,11],[181,8,181,9],[181,10,181,11],[182,8,182,9],[182,10,182,11],[183,8,183,9],[183,10,183,11],[178,8,178,9],[178,10,178,11],[179,8,179,9],[179,10,179,11],[180,8,180,9],[180,10,180,11],[175,8,175,9],[175,10,175,11],[176,8,176,9],[176,10,176,11],[177,8,177,9],[177,10,177,11],[172,8,172,9],[172,10,172,11],[173,8,173,9],[173,10,173,11],[174,8,174,9],[174,10,174,11],[166,13,166,15],[168,8,168,9],[168,10,168,11],[169,8,169,9],[169,10,169,11],[170,8,170,9],[170,10,170,11],[171,8,171,9],[171,10,171,11],[160,1,160,14],[165,1,165,15],[166,1,167,1],[166,2,167,2],[166,3,167,3],[166,4,167,4],[166,6,167,7],[166,8,167,9],[166,10,167,11],[166,12,167,12],[161,1,161,14],[157,6,157,7],[158,3,158,11],[158,12,158,13],[159,3,159,11],[159,12,159,13],[149,6,149,7],[150,6,150,7],[151,6,151,7],[152,6,152,7],[153,6,153,7],[154,6,154,7],[157,8,157,11],[152,8,152,11],[153,8,153,11],[154,8,154,11],[155,8,155,11],[156,8,156,11],[148,6,148,7],[137,6,137,7],[138,6,138,7],[139,6,139,7],[140,6,140,7],[141,6,141,7],[142,6,142,7],[155,6,155,7],[156,6,156,7],[145,6,145,7],[146,6,146,7],[147,6,147,7],[143,6,143,7],[144,6,144,7],[131,6,131,7],[132,6,132,7],[133,6,133,7],[134,6,134,7],[135,6,135,7],[136,6,136,7],[116,6,116,7],[117,6,117,7],[118,6,118,7],[127,6,127,7],[128,6,128,7],[129,6,129,7],[130,6,130,7],[125,6,125,7],[126,6,126,7],[119,6,119,7],[120,6,120,7],[121,6,121,7],[122,6,122,7],[123,6,123,7],[124,6,124,7],[102,17,102,20],[109,1,109,15],[110,1,111,1],[110,2,111,2],[110,3,111,3],[110,4,111,4],[110,6,111,7],[110,8,111,11],[110,12,111,12],[110,13,110,15],[112,6,112,7],[113,6,113,7],[114,6,114,7],[115,6,115,7],[93,3,93,11],[93,12,93,13],[94,3,94,11],[94,12,94,13],[95,1,95,14],[97,1,99,15],[102,7,102,12],[102,13,102,16],[112,8,112,11],[113,8,113,11],[114,8,114,11],[115,8,115,11],[90,8,90,9],[90,10,90,11],[91,8,91,9],[91,10,91,11],[92,8,92,9],[92,10,92,11],[87,8,87,9],[87,10,87,11],[88,8,88,9],[88,10,88,11],[89,8,89,9],[89,10,89,11],[84,8,84,9],[84,10,84,11],[85,8,85,9],[85,10,85,11],[86,8,86,9],[86,10,86,11],[81,8,81,9],[81,10,81,11],[82,8,82,9],[82,10,82,11],[83,8,83,9],[83,10,83,11],[78,8,78,9],[78,10,78,11],[79,8,79,9],[79,10,79,11],[80,8,80,9],[80,10,80,11],[75,8,76,9],[75,10,76,11],[75,12,76,12],[75,13,75,15],[77,8,77,9],[77,10,77,11],[70,3,70,11],[70,12,70,13],[71,1,71,14],[74,1,74,15],[75,1,76,1],[75,2,76,2],[75,3,76,3],[75,4,76,4],[75,6,76,6],[75,7,76,7],[67,8,67,9],[67,10,67,11],[68,8,68,9],[68,10,68,11],[69,3,69,11],[69,12,69,13],[64,8,64,9],[64,10,64,11],[65,8,65,9],[65,10,65,11],[66,8,66,9],[66,10,66,11],[61,8,61,9],[61,10,61,11],[62,8,62,9],[62,10,62,11],[63,8,63,9],[63,10,63,11],[58,8,58,9],[58,10,58,11],[59,8,59,9],[59,10,59,11],[60,8,60,9],[60,10,60,11],[55,8,55,9],[55,10,55,11],[56,8,56,9],[56,10,56,11],[57,8,57,9],[57,10,57,11],[52,8,52,9],[52,10,52,11],[53,8,53,9],[53,10,53,11],[54,8,54,9],[54,10,54,11],[49,8,49,9],[49,10,49,11],[50,8,50,9],[50,10,50,11],[51,8,51,9],[51,10,51,11],[45,10,46,11],[45,12,46,12],[45,13,45,15],[47,8,47,9],[47,10,47,11],[48,8,48,9],[48,10,48,11],[41,11,41,14],[44,1,44,15],[45,1,46,1],[45,2,46,2],[45,3,46,3],[45,4,46,4],[45,5,46,5],[45,6,46,6],[45,7,46,7],[45,8,46,9],[18,17,18,19],[38,3,38,11],[38,12,38,13],[39,3,39,11],[39,12,39,13],[40,1,40,14],[12,13,12,15],[12,17,12,18],[13,17,13,18],[14,17,14,18],[15,17,15,18],[16,17,16,18],[12,1,13,1],[12,2,13,2],[12,3,13,3],[12,4,13,4],[12,6,13,11],[12,12,14,12],[8,1,8,15],[8,17,8,18],[9,1,9,15],[9,17,9,18],[10,17,10,18],[11,1,11,15],[11,17,11,18],[1,1,2,2],[6,17,7,19],[7,1,7,15],[3,17,4,19],[3,1,6,15],[168,6,168,7],[169,6,169,7],[170,6,170,7],[171,6,171,7],[172,6,172,7],[173,6,173,7],[174,6,174,7],[175,6,175,7],[176,6,176,7],[177,6,177,7],[178,6,178,7],[179,6,179,7],[180,6,180,7],[181,6,181,7],[182,6,182,7],[183,6,183,7],[184,6,184,7],[185,6,185,7],[186,6,186,7],[187,6,187,7],[188,6,188,7],[189,6,189,7],[190,6,190,7],[191,6,191,7],[192,6,192,7],[193,6,193,7],[194,6,194,7],[195,6,195,7],[196,6,196,7],[197,6,197,7],[198,6,198,7],[199,6,199,7],[200,6,200,7],[201,6,201,7],[202,6,202,7],[203,6,203,7],[204,6,204,7],[205,6,205,7],[206,6,206,7],[207,6,207,7],[208,6,208,7],[209,6,209,7],[210,6,210,7],[211,6,211,7],[212,6,212,7]]}
[]
[null,"***NOTA: SE DEBE INCLUIR PRIMERO LA MATRICULA Y LUEGO SECCIONES "]
[]
[null,{"$error":"#VALUE!"},null,null,null,null,null,null,null,null,null,null,null,null,null,null,null,"RESUMEN DE LECCIONES Y AMPLIACION DEL SATELITE"]
[]
[]
[null,null,null,null,null,null,null,null,null,null,null,null,null,null,null,null,null,"SUMATORIA DE LAS LECCIONES POR SATELITE"]
[null,"NOMBRE DEL SATELITE N°6"]
[null,{"$f":"'FORMULARIO '!B175:D175","v":0},null,null,null,null,null,null,null,null,null,null,null,null,null,null,null,"LECCIONES TECNICAS"]
[null,null,null,null,null,null,null,null,null,null,null,null,null,null,null,null,null,"*AMPLIACIONES I NIVEL",null,{"$f":"+SUM(P41)+(P162)","v":0}]
[null,null,null,null,null,null,null,null,null,null,null,null,null,null,null,null,null,"LECCIONES INGLES I NIVEL",null,{"$f":"SUM(P30)","v":0}]
[null,"1) DISTRIBUCIÓN DE MATRÍCULA Y LECCIONES: NIVEL I",null,null,null,null,null,null,null,null,null,null,null,null,null,null,null,"LECCIONES II NIVEL",null,{"$f":"SUM(P72)","v":0}]
[null,"No.","Descripción del Módulo","Atinencia","Lecciones por Módulo",null,"MATRICULA",null,null,null,null,null,"MATRICULA TOTAL ","Cantidad",null,null,null,"LECCIONES III NIVEL",null,{"$f":"SUM(P96)","v":0}]
[null,null,null,null,null,null,null,null,null,null,null,null,null,"Secciones","Promedio","Lecciones",null,"LECCIONES MODULARES OPCIONALES I NIVEL, II NIVEL Y III NIVEL",null,{"$f":"SUM(P217)+SUM(P161)","v":0}]
[null,null,null,null,null,null,"PERIODO 1","PERIODO 2","PERIODO 3","PERIODO 4","PERIODO 5","PERIODO 6",null,null,null,null,null,"LECCIONES I NIVEL PSICOLOGIA",null,{"$f":"SUM(P31)+SUM(P36)","v":0}]
[null,1,"Aplicaciones cotidianas de la matemática","Matemáticas",4,1,null,null,null,null,null,null,{"$f":"SUM(G16:L16)","v":0},null,{"$f":"+IF(N16=\"\",\"\",M16/N16)","v":""},{"$f":"IF(F16=1,Hoja3!D5)*N16","v":0},null,"CURSOS LIBRES",null,{"$f":"SUM(P271)","v":0}]
[null,2,"Disfrutando del mundo de las palabras","Español",4,1,null,null,null,null,null,null,0,null,"",{"$f":"IF(F17=1,Hoja3!D6)*N17","v":0},null,"Total Lecciones Requeridas:",null,{"$f":"SUM(T11:T16)+SUM(T9)","v":0}]
[null,3,"Construyamos nuestro bienestar personal y comunitario","Ciencias",3,1,null,null,null,null,null,null,0,null,"",{"$f":"IF(F18=1,Hoja3!D7)*N18","v":0}]
[null,4,"Vida Cotidiana: Deberes y Derechos en el entorno cercano","Estudios Sociales",3,1,null,null,null,null,null,null,0,null,"",{"$f":"IF(F19=1,Hoja3!D8)*N19","v":0},null,"*Nota: Las ampliaciones no se suman al total de lecciones."]
[null,5,"Promovamos el desarrollo humano en forma equitativa y sostenible","Ciencias",3,1,null,null,null,null,null,null,0,null,"",{"$f":"IF(F20=1,Hoja3!D9)*N20","v":0}]
[null,6,"Relieve de mi Cantón: Conociendo mi patrimonio natural y cultural","Estudios Sociales",3,1,null,null,null,null,null,null,0,null,"",{"$f":"IF(F21=1,Hoja3!D10)*N21","v":0}]
[null,7,"Historia y Geografia de mi provincia","Estudios Sociales",3,1,null,null,null,null,null,null,0,null,"",{"$f":"IF(F22=1,Hoja3!D11)*N22","v":0}]
[null,8,"Actividades humanas asociadas a los paisajes geográficos de mi provincia","Estudios Sociales",3,1,null,null,null,null,null,null,0,null,"",{"$f":"IF(F23=1,Hoja3!D12)*N23","v":0}]
[null,9,"Costa Rica: Una sociedad intercultural, multiétnica y plurilingüe","Estudios Sociales",2,1,null,null,null,null,null,null,0,null,"",{"$f":"IF(F24=1,Hoja3!D13)*N24","v":0}]
[null,10,"Cuidemos nuestro planeta y toda forma de vida","Ciencias",3,1,null,null,null,null,null,null,0,null,"",{"$f":"IF(F25=1,Hoja3!D14)*N25","v":0}]
[null,11,"Adoptemos estilos de vida saludables","Ciencias",2,1,null,null,null,null,null,null,0,null,"",{"$f":"IF(F26=1,Hoja3!D15)*N26","v":0}]
[null,12,"Convivamos en entornos naturales y socioculturales seguros","Ciencias",2,1,null,null,null,null,null,null,0,null,"",{"$f":"IF(F27=1,Hoja3!D16)*N27","v":0}]
[null,13,"Modifiquemos nuestros patrones de consumo y producción para salvaguardar la integridad del planeta","Ciencias",3,1,null,null,null,null,null,null,0,null,"",{"$f":"IF(F28=1,Hoja3!D17)*N28","v":0}]
[null,15,"Protejamos y restauremos los procesos naturales que sustentan la vida","Ciencias",3,1,null,null,null,null,null,null,0,null,"",{"$f":"IF(F29=1,Hoja3!D18)*N29","v":0}]
[null,16,"Nos comunicamos en otras lenguas","Idioma Extranjero",5,1,null,null,null,null,null,null,0,null,"",{"$f":"IF(F30=1,Hoja3!D19)*N30","v":0}]
[null,17,"Descubriendo mi estilo de aprendizaje","Psicología",2,1,null,null,null,null,null,null,0,null,"",{"$f":"IF(F31=1,Hoja3!D20)*N31","v":0}]
[null,18,"Valoramos la importancia de la igualdad y la libertad a partir de nuestra historia colonial","Estudios Sociales",2,1,null,null,null,null,null,null,0,null,"",{"$f":"IF(F32=1,Hoja3!D21)*N32","v":0}]
[null,20,"Construcción de nuestro estado nación para el fortalecimiento de la identidad nacional","Estudios Sociales",2,1,null,null,null,null,null,null,0,null,"",{"$f":"IF(F33=1,Hoja3!D22)*N33","v":0}]
[null,21,"La sociedad costarricense actual: sus desafios y oportunidades en el contexto mundial","Estudios Sociales",2,1,null,null,null,null,null,null,0,null,"",{"$f":"IF(F34=1,Hoja3!D23)*N34","v":0}]
[null,22,"Espacios de participación y representación de mi cantón","Estudios Sociales",3,1,null,null,null,null,null,null,0,null,"",{"$f":"IF(F35=1,Hoja3!D24)*N35","v":0}]
[null,23,"Planificando mi fururo","Psicología",2,1,null,null,null,null,null,null,0,null,"",{"$f":"IF(F36=1,Hoja3!D25)*N36","v":0}]
[null,24,"Aplicaciones cotidianas de la matemática","Matemáticas",4,1,null,null,null,null,null,null,0,null,"",{"$f":"IF(F37=1,Hoja3!D26)*N37","v":0}]
[null,25,"¡Comunicandonos en la cotidianidad!","Español",4,1,null,null,null,null,null,null,0,null,"",{"$f":"IF(F38=1,Hoja3!D27)*N38","v":0}]
[null,null,null,"CANTIDAD DE MATRICULA I NIVEL"]
[null,null,null,"CANTIDAD DE SECCIONES",null,null,null,null,null,null,null,null,{"$f":"SUM(N16:N38)","v":0}]
[null,"TOTAL AMPLIACIONES NIVEL I:",null,null,null,null,null,null,null,null,null,null,null,null,null,{"$f":"IF(SUM(P16:P38)=0,\"\",SUM(P16:P38)-(P30+P31+P36))","v":""}]
[null,null,null,null,null,null,null,null,null,null,null,"TOTAL LECCIONES INGLES Y PSICOLOGIA",null,null,null,{"$f":"SUM(P30+P31+P36)","v":0}]
[]
[]
[null,"2) DISTRIBUCIÓN DE MATRÍCULA Y LECCIONES: NIVEL II"]
[null,"No.","Descripción del Módulo","Atinencia","Lecciones por Módulo",null,"PERIODO 1","PERIODO 2","PERIODO 3",null,"PERIODO 4",null,"MATRICULA TOTAL ","Cantidad"]
[null,null,null,null,null,null,null,null,null,null,null,null,null,"Secciones","Promedio","Lecciones"]
[null,30,"La ciencia de lo humano para el desarrollo científico","Ciencias",4,1,null,null,null,null,null,null,{"$f":"SUM(G48:L48)","v":0},null,{"$f":"+IF(N48=\"\",\"\",M48/N48)","v":""},{"$f":"IF(F48=1,Hoja3!D32)*N48","v":0}]
[null,{"$f":"+B48+1","v":31},"¿Por qué es importante el estudio del espacio geográfico en el planeta tierra?","Estudios Sociales",4,1,null,null,null,null,null,null,0,null,"",{"$f":"IF(F49=1,Hoja3!D33)*N49","v":0}]
[null,{"$f":"+B49+1","v":32},"Crecemos en el lenguaje","Español",4,1,null,null,null,null,null,null,0,null,"",{"$f":"IF(F50=1,Hoja3!D34)*N50","v":0}]
[null,{"$f":"+B50+1","v":33},"Entorno Científico: seres vivos y energía en sostenibilidad","Ciencias",2,1,null,null,null,null,null,null,0,null,"",{"$f":"IF(F51=1,Hoja3!D35)*N51","v":0}]
[null,35,"La adaptación del ser humano aun medio ambiente cambiante","Estudios Sociales",2,1,null,null,null,null,null,null,0,null,"",{"$f":"IF(F52=1,Hoja3!D36)*N52","v":0}]
[null,{"$f":"+B52+1","v":36},"Razonamiento de los números, la geometría y el álgebra para la cotidianidad","Matemáticas",6,1,null,null,null,null,null,null,0,null,"",{"$f":"IF(F53=1,Hoja3!D37)*N53","v":0}]
[null,37,"Seguridad de las personas en Costa Rica","Educación Cívica",4,1,null,null,null,null,null,null,0,null,"",{"$f":"IF(F54=1,Hoja3!D38)*N54","v":0}]
[null,38,"Variedades de la lengua","Español",3,1,null,null,null,null,null,null,0,null,"",{"$f":"IF(F55=1,Hoja3!D39)*N55","v":0}]
[null,39,"Participación, representación y derechos humanos en la sociedad democrática","Educación Cívica",4,1,null,null,null,null,null,null,0,null,"",{"$f":"IF(F56=1,Hoja3!D40)*N56","v":0}]
[null,40,"Estadística básica","Matemáticas",2,1,null,null,null,null,null,null,0,null,"",{"$f":"IF(F57=1,Hoja3!D41)*N57","v":0}]
[null,41,"Química de la tierra y su formación","Ciencias",3,1,null,null,null,null,null,null,0,null,"",{"$f":"IF(F58=1,Hoja3!D42)*N58","v":0}]
[null,42,"Comprendiendo la historia: de la edad media al renacimiento del siglo V al XVI","Estudios Sociales",2,1,null,null,null,null,null,null,0,null,"",{"$f":"IF(F59=1,Hoja3!D43)*N59","v":0}]
[null,43,"Materia y energía en sociedad","Ciencias",3,1,null,null,null,null,null,null,0,null,"",{"$f":"IF(F60=1,Hoja3!D44)*N60","v":0}]
[null,44,"Los procesos plurisignificativos de la comunicación literaria","Español",3,1,null,null,null,null,null,null,0,null,"",{"$f":"IF(F61=1,Hoja3!D45)*N61","v":0}]
[null,45,"Materia Planetaria en sostenibilidad","Ciencias",2,1,null,null,null,null,null,null,0,null,"",{"$f":"IF(F62=1,Hoja3!D46)*N62","v":0}]
[null,46,"Nos cominicamos en otras lenguas","Idioma Extranjero",5,1,null,null,null,null,null,null,0,null,"",{"$f":"IF(F63=1,Hoja3!D47)*N63","v":0}]
[null,48,"Cotidianidad del ser humano: desde la Edad Moderno en Europa y América siglos XVI-XIX","Estudios Sociales",3,1,null,null,null,null,null,null,0,null,"",{"$f":"IF(F64=1,Hoja3!D48)*N64","v":0}]
[null,{"$f":"+B64+1","v":49},"Vivencia de la sexualidad en el contexto familiar y social","Ciencias",3,1,null,null,null,null,null,null,0,null,"",{"$f":"IF(F65=1,Hoja3!D49)*N65","v":0}]
[null,{"$f":"+B65+1","v":50},"Roles de trabajo y formas de comunicación en el mundo antiguo","Estudios Sociales",4,1,null,null,null,null,null,null,0,null,"",{"$f":"IF(F66=1,Hoja3!D50)*N66","v":0}]
[null,{"$f":"+B66+1","v":51},"Construyamos nuestra identidad ciudadana","Educación Cívica",4,1,null,null,null,null,null,null,0,null,"",{"$f":"IF(F67=1,Hoja3!D51)*N67","v":0}]
[null,52,"Aplicaciones de los números, la geometría y el álgebra en nuetro entorno","Matemáticas",5,1,null,null,null,null,null,null,0,null,"",{"$f":"IF(F68=1,Hoja3!D52)*N68","v":0}]
[null,53,"Comprendiendo  nuestro entorno a través de la estadística","Matemáticas",2,1,null,null,null,null,null,null,0,null,"",{"$f":"IF(F69=1,Hoja3!D53)*N69","v":0}]
[null,null,null,"CANTIDAD DE MATRICULA II NIVEL"]
[null,null,null,"CANTIDAD DE SECCIONES",null,null,null,null,null,null,null,null,{"$f":"SUM(N48:N69)","v":0}]
[null,"TOTAL LECCIONES NIVEL II:",null,null,null,null,null,null,null,null,null,null,null,null,null,{"$f":"IF(SUM(P48:P69)=0,\"\",SUM(P48:P69))","v":""}]
[]
[]
[null,"3) DISTRIBUCIÓN DE MATRÍCULA Y LECCIONES: NIVEL III"]
[null,"No.","Descripción del Módulo","Atinencia","Lecciones por Módulo",null,"PERIODO 1","PERIODO 2","PERIODO 3",null,"PERIODO 4",null,"MATRICULA TOTAL","Cantidad"]
[null,null,null,null,null,null,null,null,null,null,null,null,null,"Secciones","Promedio","Lecciones"]
[null,60,"Nos comunicamos mejor","Español",4,1,null,null,null,null,null,null,{"$f":"SUM(G78:L78)","v":0},null,{"$f":"+IF(N78=\"\",\"\",M78/N78)","v":""},{"$f":"IF(F78=1,Hoja3!D58)*N78","v":0}]
[null,{"$f":"+B78+1","v":61},"Sistemas y Regímenes políticos, el estado costarricense garante de oporunidades para la construcción de la cultura democrática","Educación Cívica",2,1,null,null,null,null,null,null,0,null,"",{"$f":"IF(F79=1,Hoja3!D59)*N79","v":0}]
[null,62,"¿Cómo las transformaciones sociales, económicas, y políticas del mundo comtemporáneo impactan a la sociedad actual? (siglo XIX-Epoca actual)","Estudios Sociales",3,1,null,null,null,null,null,null,0,null,"",{"$f":"IF(F80=1,Hoja3!D60)*N80","v":0}]
[null,63,"Una mirada a las problemáticas contemporáneas; Repercusiones de la dinámica poblacional y movilización espacial","Estudios Sociales",3,1,null,null,null,null,null,null,0,null,"",{"$f":"IF(F81=1,Hoja3!D61)*N81","v":0}]
[null,64,"Interdependencia e interconexión: Los patrones espaciales en la sociedad globalizado","Estudios Sociales",3,1,null,null,null,null,null,null,0,null,"",{"$f":"IF(F82=1,Hoja3!D62)*N82","v":0}]
[null,65,"Seres vivos en población","Ciencias (Biología)",4,1,null,null,null,null,null,null,0,null,"",{"$f":"IF(F83=1,Hoja3!D63)*N83","v":0}]
[null,66,"Valorando nuestra sociedad (siglo XX-XXI)","Estudios Sociales",3,1,null,null,null,null,null,null,0,null,"",{"$f":"IF(F84=1,Hoja3!D64)*N84","v":0}]
[null,68,"Aplicación de la química en el hogar y la comunidad","Ciencias (Química)",4,1,null,null,null,null,null,null,0,null,"",{"$f":"IF(F85=1,Hoja3!D65)*N85","v":0}]
[null,69,"Aplicaciones de la física en la vida diaria","Ciencias (Física)",4,1,null,null,null,null,null,null,0,null,"",{"$f":"IF(F86=1,Hoja3!D66)*N86","v":0}]
[null,{"$f":"+B86+1","v":70},"¿Dónde está presente la estadística?","Matemáticas",2,1,null,null,null,null,null,null,0,null,"",{"$f":"IF(F87=1,Hoja3!D67)*N87","v":0}]
[null,71,"Nos comunicamos en otras lenguas","Idioma Extranjero",5,1,null,null,null,null,null,null,0,null,"",{"$f":"IF(F88=1,Hoja3!D68)*N88","v":0}]
[null,72,"¿Cómo aplicar la estadística y la probabilidad en la vida diaria?","Matemáticas",2,1,null,null,null,null,null,null,0,null,"",{"$f":"IF(F89=1,Hoja3!D69)*N89","v":0}]
[null,73,"Construyamos el futuro","Ciencias (Biología)",3,1,null,null,null,null,null,null,0,null,"",{"$f":"IF(F90=1,Hoja3!D70)*N90","v":0}]
[null,74,"¿Cómo relacionar la geometría y las relaciones algebraicas con nuestro entorno?","Matemáticas",4,1,null,null,null,null,null,null,0,null,"",{"$f":"IF(F91=1,Hoja3!D71)*N91","v":0}]
[null,75,"¿Cómo nos puede ayudar las relaciones, el álgebra y la geometría a entender el mundo que nos rodea?","Matemáticas",4,1,null,null,null,null,null,null,0,null,"",{"$f":"IF(F92=1,Hoja3!D72)*N92","v":0}]
[null,76,"Ética Profesional","Filosofía",2,1,null,null,null,null,null,null,0,null,"",{"$f":"IF(F93=1,Hoja3!D73)*N93","v":0}]
[null,null,null,"CANTIDAD DE MATRICULA III NIVEL"]
[null,null,null,"CANTIDAD DE SECCIONES",null,null,null,null,null,null,null,null,{"$f":"SUM(N78:N93)","v":0}]
[null,"TOTAL LECCIONES NIVELES III:",null,null,null,null,null,null,null,null,null,null,null,null,null,{"$f":"IF(SUM(P78:P93)=0,\"\",SUM(P78:P93))","v":""}]
[]
[null,"CURSOS OPCIONALES PRIMERO DEBE DE ELEGIR LOS DE I NIVEL Y  POSTERIORMENTE DEBEN ELEGIR LOS CURSOS DE II Y III NIVEL (ESTO PARA MEJOR DISTRIBUCION)"]
[]
[]
[]
[null,"*****","FAVOR LLENAR LA MATRICULA Y SECCIONES A INCLUIR EN CURSOS OPCIONALES (OBLIGATORIO):"]
[null,null,null,null,null,null,null,"I NIVEL ",null,null,null,null,null,"II NIVEL ",null,null,null,"III NIVEL",null,null,null,"TOTAL"]
[null,null,null,null,null,null,null,"1 PERIODO","2 PERIODO","3 PERIODO","4 PERIODO","5 PERIODO","6 PERIODO","1 PERIODO","2 PERIODO","3 PERIODO","4 PERIODO","1 PERIODO","2 PERIODO","3 PERIODO","4 PERIODO"]
[null,null,null,null,null,null,"MATRICULA ",null,null,null,null,null,null,null,null,null,null,null,null,null,null,{"$f":"SUM(H105:U105)","v":0}]
[null,null,null,null,null,null,"SECCIONES ",null,null,null,null,null,null,null,null,null,null,null,null,null,null,{"$f":"SUM(H106:U106)","v":0}]
[]
[null,"Opcionales SOLO para I NIVEL (se subrayan las materias básicas estos se separan ya que se dan por AMPLIACIONES  y las otra atinencias por LECCIONES):"]
[]
[null,"4) DISTRIBUCIÓN DE MATRÍCULA Y LECCIONES: CURSOS MODULARES OPCIONALES I NIVEL"]
[null,"No.","Descripción del Módulo","Atinencia","Lecciones por Módulo",null,"MATRICULA I NIVEL",null,null,null,null,null,"MATRICULA TOTAL","Cantidad"]
[null,null,null,null,null,null,null,null,null,null,null,null,null,"Secciones","Promedio","Lecciones"]
[null,80,"Administración de la pequeña empresa","Contabilidad",5,1,null,null,null,null,null,null,{"$f":"SUM(G113:L113)","v":0},null,{"$f":"+IF(N113=\"\",\"\",M113/N113)","v":""},{"$f":"IF(F113,Hoja3!D129)*N113","v":0}]
[null,81,"Aprendamos a apreciar la música","Música",5,1,null,null,null,null,null,null,0,null,"",{"$f":"IF(F114,Hoja3!D130)*N114","v":0}]
[null,83,"¿Cómo administrar recursos humanos y financieros?","Contabilidad ",3,1,null,null,null,null,null,null,0,null,"",{"$f":"IF(F115,Hoja3!D131)*N115","v":0}]
[null,84,"Reconociendo a las personas con discapacidad como sujetas de derecho","Enseñanza Especial Generalista",3,1,null,null,null,null,null,null,0,null,"",{"$f":"IF(F116,Hoja3!D132)*N116","v":0}]
[null,85,"¿Cómo comunicarnos en una lengua indígena?","Educación Indígena",5,1,null,null,null,null,null,null,0,null,"",{"$f":"IF(F117,Hoja3!D133)*N117","v":0}]
[null,86,"¡A comunicarnos se ha dicho!","Español",3,1,null,null,null,null,null,null,0,null,"",{"$f":"IF(F118,Hoja3!D134)*N118","v":0}]
[null,87,"Conozcamos nuestra cultura autóctona","Estudios Sociales",3,1,null,null,null,null,null,null,0,null,"",{"$f":"IF(F119,Hoja3!D135)*N119","v":0}]
[null,88,"Contabilidad para la pequeña empresa","Contabilidad",3,1,null,null,null,null,null,null,0,null,"",{"$f":"IF(F120,Hoja3!D136)*N120","v":0}]
[null,89,"Creando con el lenguaje","Español",5,1,null,null,null,null,null,null,0,null,"",{"$f":"IF(F121,Hoja3!D137)*N121","v":0}]
[null,90,"Desarrollo mi creatividad","Español",3,1,null,null,null,null,null,null,0,null,"",{"$f":"IF(F122,Hoja3!D138)*N122","v":0}]
[null,93,"El camino para iniciar su propia empresa","Contabilidad",5,1,null,null,null,null,null,null,0,null,"",{"$f":"IF(F123,Hoja3!D139)*N123","v":0}]
[null,94,"El Bribri, Maleku, Cabecar, como mi lengua materna","Ingles, Educación Indigena",3,1,null,null,null,null,null,null,0,null,"",{"$f":"IF(F124,Hoja3!D140)*N124","v":0}]
[null,97,"Formación de líderes democráticos","Estudios Sociales",5,1,null,null,null,null,null,null,0,null,"",{"$f":"IF(F125,Hoja3!D141)*N125","v":0}]
[null,100,"Importancia de la actividad física: juegos pre-deportivos tradicionales y gimnasia formativa I NIVEL","Educación Física",5,1,null,null,null,null,null,null,0,null,"",{"$f":"IF(F126,Hoja3!D142)*N126","v":0}]
[null,102,"Relaciones humanas","Psicología",3,1,null,null,null,null,null,null,0,null,"",{"$f":"IF(F127,Hoja3!D143)*N127","v":0}]
[null,103,"Los pueblos y sus expresiones culturales","Estudios Sociales",4,1,null,null,null,null,null,null,0,null,"",{"$f":"IF(F128,Hoja3!D144)*N128","v":0}]
[null,106,"Mundo del turismo","Turismo Ecológico",2,1,null,null,null,null,null,null,0,null,"",{"$f":"IF(F129,Hoja3!D145)*N129","v":0}]
[null,107,"Nos organizamos para enfrentar desastres","Ciencias",2,1,null,null,null,null,null,null,0,null,"",{"$f":"IF(F130,Hoja3!D146)*N130","v":0}]
[null,108,"Orientación vocacional y profesional","Psicología",5,1,null,null,null,null,null,null,0,null,"",{"$f":"IF(F131,Hoja3!D147)*N131","v":0}]
[null,109,"Primeros auxilios","Educación Física",5,1,null,null,null,null,null,null,0,null,"",{"$f":"IF(F132,Hoja3!D148)*N132","v":0}]
[null,110,"Problemas y soluciones planetarios","Ciencias",3,1,null,null,null,null,null,null,0,null,"",{"$f":"IF(F133,Hoja3!D149)*N133","v":0}]
[null,111,"Promoción y defensa de los deberes y derechos del ciudadano","Estudios Sociales",3,1,null,null,null,null,null,null,0,null,"",{"$f":"IF(F134,Hoja3!D150)*N134","v":0}]
[null,118,"Vida en el planeta","Ciencias",5,1,null,null,null,null,null,null,0,null,"",{"$f":"IF(F135,Hoja3!D151)*N135","v":0}]
[null,119,"Visualicemos el futuro","Ciencias",5,1,null,null,null,null,null,null,0,null,"",{"$f":"IF(F136,Hoja3!D152)*N136","v":0}]
[null,120,"Planificando mi futuro","Psicología",2,1,null,null,null,null,null,null,0,null,"",{"$f":"IF(F137,Hoja3!D153)*N137","v":0}]
[null,121,"Descubriendo mi estilo de aprendizaje","Psicología",2,1,null,null,null,null,null,null,0,null,"",{"$f":"IF(F138,Hoja3!D154)*N138","v":0}]
[null,123,"Fortalecimiento de la matemática (OPCIONAL 1 NIVEL)","Matemática",3,1,null,null,null,null,null,null,0,null,"",{"$f":"IF(F139,Hoja3!D155)*N139","v":0}]
[null,124,"Fortalecimiento del Ingles","Ingles",3,1,null,null,null,null,null,null,0,null,"",{"$f":"IF(F140,Hoja3!D156)*N140","v":0}]
[null,125,"Fortalecimiento de los Estudios Sociales (OPCIONAL 1 NIVEL)","Estudios Sociales",3,1,null,null,null,null,null,null,0,null,"",{"$f":"IF(F141,Hoja3!D157)*N141","v":0}]
[null,126,"Fortalecimiento de la Biología","Ciencias",3,1,null,null,null,null,null,null,0,null,"",{"$f":"IF(F142,Hoja3!D158)*N142","v":0}]
[null,127,"Fortalecimiento de la Educación Cívica","Estudios Sociales",3,1,null,null,null,null,null,null,0,null,"",{"$f":"IF(F143,Hoja3!D159)*N143","v":0}]
[null,128,"Fortalecimiento del Español (OPCIONAL 1 NIVEL)","Español",3,1,null,null,null,null,null,null,0,null,"",{"$f":"IF(F144,Hoja3!D160)*N144","v":0}]
[null,129,"Fortalecimiento del Francés","Francés",3,1,null,null,null,null,null,null,0,null,"",{"$f":"IF(F145,Hoja3!D161)*N145","v":0}]
[null,130,"Fortalecimiento de la Quimica para Bachillerato","Ciencias",3,1,null,null,null,null,null,null,0,null,"",{"$f":"IF(F146,Hoja3!D162)*N146","v":0}]
[null,131,"Fortalecimiento de la Física para Bachillerato","Ciencias",3,1,null,null,null,null,null,null,0,null,"",{"$f":"IF(F147,Hoja3!D163)*N147","v":0}]
[null,139,"Tecnología y Trabajo","Informatica Educatica/ Desarrollo Sofware/ Progración Redes de Computadoras en Soporte",5,1,null,null,null,null,null,null,0,null,"",{"$f":"IF(F148,Hoja3!D164)*N148","v":0}]
[null,140,"Tecnología y Comunidad","Informatica Educatica/ Desarrollo Sofware/ Progración Redes de Computadoras en Soporte",5,1,null,null,null,null,null,null,0,null,"",{"$f":"IF(F149,Hoja3!D165)*N149","v":0}]
[null,141,"Tecnología y Emprendedurismo","Informatica Educatica/ Desarrollo Sofware/ Progración Redes de Computadoras en Soporte",5,1,null,null,null,null,null,null,0,null,"",{"$f":"IF(F150,Hoja3!D166)*N150","v":0}]
[null,142,"Expreción o Creción Musical","Música",5,1,null,null,null,null,null,null,0,null,"",{"$f":"IF(F151,Hoja3!D167)*N151","v":0}]
[null,143,"Desarrollo Comunitario (II Nivel)","Cualquier especilidad acádemica",2,1,null,null,null,null,null,null,0,null,"",{"$f":"IF(F152,Hoja3!D168)*N152","v":0}]
[null,144,"Desarrollo Comunitario (III Nivel)","Cualquier especilidad acádemica",3,1,null,null,null,null,null,null,0,null,"",{"$f":"IF(F153,Hoja3!D169)*N153","v":0}]
[null,145,"Introducción a la robótica","Informática, Informática educativa ambas con conocimiento en robótica",2,1,null,null,null,null,null,null,0,null,"",{"$f":"IF(F154,Hoja3!D170)*N154","v":0}]
[null,146,"Poniéndome en acción: entrenándome haciendo deporte y baile","Educación Física",5,1,null,null,null,null,null,null,0,null,"",{"$f":"IF(F155,Hoja3!D171)*N155","v":0}]
[null,147,"Promoviendo salud, venciendo desafíos","Educación Física",5,1,null,null,null,null,null,null,0,null,"",{"$f":"IF(F156,Hoja3!D172)*N156","v":0}]
[null,148,"Afectividad y sexualidad desde la cotidianidad","Psicología",2,1,null,null,null,null,null,null,0,null,"",{"$f":"IF(F157,Hoja3!D173)*N157","v":0}]
[null,149,"¡Qué lindo aprender Cabécar!","Educación indígena, especialidad lengua materna, subespecialidad: Cabécar",2,1,null,null,null,null,null,null,0,null,"",{"$f":"IF(F158,Hoja3!D174)*N158","v":0}]
[null,null,null,"CANTIDAD DE MATRICULA "]
[null,null,null,"CANTIDAD DE SECCIONES",null,null,null,null,null,null,null,null,{"$f":"SUM(N113:N158)","v":0}]
[null,"TOTAL LECCIONES DE CURSOS OPCIONALES I NIVEL:",null,null,null,null,null,null,null,null,null,null,null,null,null,{"$f":"IF(SUM(P113:P158)=0,\"\",SUM(P113:P158)+(-P118-P119-P121-P122-P125-P128-P130-P133-P134-P135-P136-P139-P141-P142-P143-P144))","v":""}]
[null,"TOTAL AMPLIACIONES CURSOS OPCIONALES I NIVEL",null,null,null,null,null,null,null,null,null,null,null,null,null,{"$f":"SUM(P118+P119+P121+P122+P125+P128+P130+P133+P134+P135+P136+P139+P141+P142+P143+P144)","v":0}]
[]
[null,"Opcionales SOLO para II NIVEL Y III NIVEL a escoger (LECCIONES):"]
[]
[null,"4) DISTRIBUCIÓN DE MATRÍCULA Y LECCIONES: CURSOS MODULARES OPCIONALES II NIVEL Y III NIVEL "]
[null,"No.","Descripción del Módulo","Atinencia","Lecciones por Módulo",null,null,null,"II NIVEL",null,"III NIVEL",null,"MATRICULA TOTAL","Cantidad"]
[null,null,null,null,null,null,null,null,null,null,null,null,null,"Secciones","Promedio","Lecciones"]
[null,80,"Administración de la pequeña empresa","Contabilidad",5,1,null,null,null,null,null,null,{"$f":"SUM(G169:L169)","v":0},null,{"$f":"+IF(N169=\"\",\"\",M169/N169)","v":""},{"$f":"IF(F169,Hoja3!D129)*N169","v":0}]
[null,81,"Aprendamos a apreciar la música","Música",5,1,null,null,null,null,null,null,0,null,"",{"$f":"IF(F170,Hoja3!D130)*N170","v":0}]
[null,83,"¿Cómo administrar recursos humanos y financieros?","Contabilidad ",3,1,null,null,null,null,null,null,0,null,"",{"$f":"IF(F171,Hoja3!D131)*N171","v":0}]
[null,84,"Reconociendo a las personas con discapacidad como sujetas de derecho","Enseñanza Especial Generalista",3,1,null,null,null,null,null,null,0,null,"",{"$f":"IF(F172,Hoja3!D132)*N172","v":0}]
[null,85,"¿Cómo comunicarnos en una lengua indígena?","Educación Indígena",5,1,null,null,null,null,null,null,0,null,"",{"$f":"IF(F173,Hoja3!D133)*N173","v":0}]
[null,86,"¡A comunicarnos se ha dicho!","Español",3,1,null,null,null,null,null,null,0,null,"",{"$f":"IF(F174,Hoja3!D134)*N174","v":0}]
[null,87,"Conozcamos nuestra cultura autóctona","Estudios Sociales",3,1,null,null,null,null,null,null,0,null,"",{"$f":"IF(F175,Hoja3!D135)*N175","v":0}]
[null,88,"Contabilidad para la pequeña empresa","Contabilidad",3,1,null,null,null,null,null,null,0,null,"",{"$f":"IF(F176,Hoja3!D136)*N176","v":0}]
[null,89,"Creando con el lenguaje","Español",5,1,null,null,null,null,null,null,0,null,"",{"$f":"IF(F177,Hoja3!D137)*N177","v":0}]
[null,90,"Desarrollo mi creatividad","Español",3,1,null,null,null,null,null,null,0,null,"",{"$f":"IF(F178,Hoja3!D138)*N178","v":0}]
[null,93,"El camino para iniciar su propia empresa","Contabilidad",5,1,null,null,null,null,null,null,0,null,"",{"$f":"IF(F179,Hoja3!D139)*N179","v":0}]
[null,94,"El Bribri, Maleku, Cabecar, como mi lengua materna","Ingles, Educación Indigena",3,1,null,null,null,null,null,null,0,null,"",{"$f":"IF(F180,Hoja3!D140)*N180","v":0}]
[null,97,"Formación de líderes democráticos","Estudios Sociales",5,1,null,null,null,null,null,null,0,null,"",{"$f":"IF(F181,Hoja3!D141)*N181","v":0}]
[null,100,"Importancia de la actividad física: juegos pre-deportivos tradicionales y gimnasia formativa","Educación Física",5,1,null,null,null,null,null,null,0,null,"",{"$f":"IF(F182,Hoja3!D142)*N182","v":0}]
[null,102,"Relaciones humanas","Psicología",3,1,null,null,null,null,null,null,0,null,"",{"$f":"IF(F183,Hoja3!D143)*N183","v":0}]
[null,103,"Los pueblos y sus expresiones culturales","Estudios Sociales",4,1,null,null,null,null,null,null,0,null,"",{"$f":"IF(F184,Hoja3!D144)*N184","v":0}]
[null,106,"Mundo del turismo","Turismo Ecológico",2,1,null,null,null,null,null,null,0,null,"",{"$f":"IF(F185,Hoja3!D145)*N185","v":0}]
[null,107,"Nos organizamos para enfrentar desastres","Ciencias",2,1,null,null,null,null,null,null,0,null,"",{"$f":"IF(F186,Hoja3!D146)*N186","v":0}]
[null,108,"Orientación vocacional y profesional","Psicología",5,1,null,null,null,null,null,null,0,null,"",{"$f":"IF(F187,Hoja3!D147)*N187","v":0}]
[null,109,"Primeros auxilios","Educación Física",5,1,null,null,null,null,null,null,0,null,"",{"$f":"IF(F188,Hoja3!D148)*N188","v":0}]
[null,110,"Problemas y soluciones planetarios","Ciencias",3,1,null,null,null,null,null,null,0,null,"",{"$f":"IF(F189,Hoja3!D149)*N189","v":0}]
[null,111,"Promoción y defensa de los deberes y derechos del ciudadano","Estudios Sociales",3,1,null,null,null,null,null,null,0,null,"",{"$f":"IF(F190,Hoja3!D150)*N190","v":0}]
[null,118,"Vida en el planeta","Ciencias",5,1,null,null,null,null,null,null,0,null,"",{"$f":"IF(F191,Hoja3!D151)*N191","v":0}]
[null,119,"Visualicemos el futuro","Ciencias",5,1,null,null,null,null,null,null,0,null,"",{"$f":"IF(F192,Hoja3!D152)*N192","v":0}]
[null,120,"Planificando mi futuro","Psicología",2,1,null,null,null,null,null,null,0,null,"",{"$f":"IF(F193,Hoja3!D153)*N193","v":0}]
[null,121,"Descubriendo mi estilo de aprendizaje","Psicología",2,1,null,null,null,null,null,null,0,null,"",{"$f":"IF(F194,Hoja3!D154)*N194","v":0}]
[null,123,"Fortalecimiento de la matemática ","Matemática",3,1,null,null,null,null,null,null,0,null,"",{"$f":"IF(F195,Hoja3!D155)*N195-G195","v":0}]
[null,124,"Fortalecimiento del Ingles","Ingles",3,1,null,null,null,null,null,null,0,null,"",{"$f":"IF(F196,Hoja3!D156)*N196","v":0}]
[null,125,"Fortalecimiento de los Estudios Sociales","Estudios Sociales",3,1,null,null,null,null,null,null,0,null,"",{"$f":"IF(F197,Hoja3!D157)*N197","v":0}]
[null,126,"Fortalecimiento de la Biología","Ciencias",3,1,null,null,null,null,null,null,0,null,"",{"$f":"IF(F198,Hoja3!D158)*N198","v":0}]
[null,127,"Fortalecimiento de la Educación Cívica","Estudios Sociales",3,1,null,null,null,null,null,null,0,null,"",{"$f":"IF(F199,Hoja3!D159)*N199","v":0}]
[null,128,"Fortalecimiento del Español ","Español",3,1,null,null,null,null,null,null,0,null,"",{"$f":"IF(F200,Hoja3!D160)*N200","v":0}]
[null,129,"Fortalecimiento del Francés","Francés",3,1,null,null,null,null,null,null,0,null,"",{"$f":"IF(F201,Hoja3!D161)*N201","v":0}]
[null,130,"Fortalecimiento de la Quimica para Bachillerato","Ciencias",3,1,null,null,null,null,null,null,0,null,"",{"$f":"IF(F202,Hoja3!D162)*N202","v":0}]
[null,131,"Fortalecimiento de la Física para Bachillerato","Ciencias",3,1,null,null,null,null,null,null,0,null,"",{"$f":"IF(F203,Hoja3!D163)*N203","v":0}]
[null,139,"Tecnología y Trabajo","Informatica Educatica/ Desarrollo Sofware/ Progración Redes de Computadoras en Soporte",5,1,null,null,null,null,null,null,0,null,"",{"$f":"IF(F204,Hoja3!D164)*N204","v":0}]
[null,140,"Tecnología y Comunidad","Informatica Educatica/ Desarrollo Sofware/ Progración Redes de Computadoras en Soporte",5,1,null,null,null,null,null,null,0,null,"",{"$f":"IF(F205,Hoja3!D165)*N205","v":0}]
[null,141,"Tecnología y Emprendedurismo","Informatica Educatica/ Desarrollo Sofware/ Progración Redes de Computadoras en Soporte",5,1,null,null,null,null,null,null,0,null,"",{"$f":"IF(F206,Hoja3!D166)*N206","v":0}]
[null,142,"Expreción o Creción Musical","Música",5,1,null,null,null,null,null,null,0,null,"",{"$f":"IF(F207,Hoja3!D167)*N207","v":0}]
[null,143,"Desarrollo Comunitario (II Nivel)","Cualquier especilidad acádemica",2,1,null,null,null,null,null,null,0,null,"",{"$f":"IF(F208,Hoja3!D168)*N208","v":0}]
[null,144,"Desarrollo Comunitario (III Nivel)","Cualquier especilidad acádemica",3,1,null,null,null,null,null,null,0,null,"",{"$f":"IF(F209,Hoja3!D169)*N209","v":0}]
[null,145,"Introducción a la robótica","Informática, Informática educativa ambas con conocimiento en robótica",2,1,null,null,null,null,null,null,0,null,"",{"$f":"IF(F210,Hoja3!D170)*N210","v":0}]
[null,146,"Poniéndome en acción: entrenándome haciendo deporte y baile","Educación Física",5,1,null,null,null,null,null,null,0,null,"",{"$f":"IF(F211,Hoja3!D171)*N211","v":0}]
[null,147,"Promoviendo salud, venciendo desafíos","Educación Física",5,1,null,null,null,null,null,null,0,null,"",{"$f":"IF(F212,Hoja3!D172)*N212","v":0}]
[null,148,"Afectividad y sexualidad desde la cotidianidad","Psicología",2,1,null,null,null,null,null,null,0,null,"",{"$f":"IF(F213,Hoja3!D173)*N213","v":0}]
[null,149,"¡Qué lindo aprender Cabécar!","Educación indígena, especialidad lengua materna, subespecialidad: Cabécar",2,1,null,null,null,null,null,null,0,null,"",{"$f":"IF(F214,Hoja3!D174)*N214","v":0}]
[null,null,null,"CANTIDAD DE MATRICULA "]
[null,null,null,"CANTIDAD DE SECCIONES",null,null,null,null,null,null,null,null,{"$f":"SUM(N169:N214)","v":0}]
[null,"TOTAL LECCIONES CURSOS OPCIONALES I Y II NIVEL:",null,null,null,null,null,null,null,null,null,null,null,null,null,{"$f":"IF(SUM(P169:P214)=0,\"\",SUM(P169:P214))","v":""}]
[]
[null,"6) DISTRIBUCIÓN DE MATRÍCULA Y LECCIONES: CURSOS LIBRES"]
[null,"No.","Descripción del Módulo","Atinencia","Lecciones por Módulo",null,"MATRICULA POR CURSO",null,null,null,null,null,"MATRICULA TOTAL","Cantidad"]
[null,null,null,null,null,null,null,null,null,null,null,null,null,"Secciones","Promedio","Lecciones"]
[null,250,"Preparación y productos de repostería","Educ/hogar",5,1,null,null,null,null,null,null,{"$f":"G222","v":0},null,{"$f":"+IF(N222=\"\",\"\",M222/N222)","v":""},{"$f":"IF(F222,Hoja3!D179)*N222","v":0}]
[null,271,"Mantenimiento preventivo de computadoras","Informática de desarrollo del software, en programación, en redes de computadoras, en soporte.",5,1,null,null,null,null,null,null,{"$f":"G223","v":0},null,"",{"$f":"IF(F223,Hoja3!D180)*N223","v":0}]
[null,259,"Bases de datos ","Informática de desarrollo del software, en programación, en redes de computadoras, en soporte.",5,1,null,null,null,null,null,null,0,null,"",{"$f":"IF(F224,Hoja3!D181)*N224","v":0}]
[null,260,"Diseño  WEB","Informática en desarrollo del software",5,1,null,null,null,null,null,null,0,null,"",{"$f":"IF(F225,Hoja3!D182)*N225","v":0}]
[null,255,"Técnicas Secretariales","Secretariado ejecutivo, secretariado bilingüe o ejecutivo para centros de servicio",5,1,null,null,null,null,null,null,0,null,"",{"$f":"IF(F226,Hoja3!D183)*N226","v":0}]
[null,265,"Oficina moderna","Secretariado ejecutivo, secretariado bilingüe o ejecutivo para centros de servicio",5,1,null,null,null,null,null,null,0,null,"",{"$f":"IF(F227,Hoja3!D184)*N227","v":0}]
[null,261,"Ingles conversacional  inicial I NIVEL","Inglés",5,1,null,null,null,null,null,null,0,null,"",{"$f":"IF(F228,Hoja3!D185)*N228","v":0}]
[null,262,"Ingles conversacional intermedio II NIVEL","Inglés",5,1,null,null,null,null,null,null,0,null,"",{"$f":"IF(F229,Hoja3!D186)*N229","v":0}]
[null,263,"Ingles conversacional  avanzado III NIVEL","Inglés",5,1,null,null,null,null,null,null,0,null,"",{"$f":"IF(F230,Hoja3!D187)*N230","v":0}]
[null,253,"Principios de contabilidad","Contabilidad",5,1,null,null,null,null,null,null,0,null,"",{"$f":"IF(F231,Hoja3!D188)*N231","v":0}]
[null,256,"Técnicas de manejo de hidroponía y abono orgánico","Agroecología",3,1,null,null,null,null,null,null,0,null,"",{"$f":"IF(F232,Hoja3!D189)*N232","v":0}]
[null,279,"El mundo de los negocios de capital individual y asociativo","Contabilidad o profesor de estado de educación comercial y de servicios.",3,1,null,null,null,null,null,null,0,null,"",{"$f":"IF(F233,Hoja3!D190)*N233","v":0}]
[null,280,"Doctrina cooperativa","Estudios Sociales",3,1,null,null,null,null,null,null,0,null,"",{"$f":"IF(F234,Hoja3!D191)*N234","v":0}]
[null,281,"Gestión Cooperativa","Estudios Sociales",3,1,null,null,null,null,null,null,0,null,"",{"$f":"IF(F235,Hoja3!D192)*N235","v":0}]
[null,282,"Líderes y gestores de iniciativas de negocios","Contabilidad o profesor de estado de educación comercial y de servicios",3,1,null,null,null,null,null,null,0,null,"",{"$f":"IF(F236,Hoja3!D193)*N236","v":0}]
[null,258,"Montajes eléctricos básicos","Electrónica industrial y electrotecnia",5,1,null,null,null,null,null,null,0,null,"",{"$f":"IF(F237,Hoja3!D194)*N237","v":0}]
[null,269,"Refrigeración doméstica","Refrigeración y aire acondicionado",5,1,null,null,null,null,null,null,0,null,"",{"$f":"IF(F238,Hoja3!D195)*N238","v":0}]
[null,272,"Técnicas de bisutería y orfebrería","Educ/hogar",5,1,null,null,null,null,null,null,0,null,"",{"$f":"IF(F239,Hoja3!D196)*N239","v":0}]
[null,252,"Confección de accesorios para el hogar","Educ/hogar",5,1,null,null,null,null,null,null,0,null,"",{"$f":"IF(F240,Hoja3!D197)*N240","v":0}]
[null,254,"Técnica manuales y  confección de artículos con material de desecho","Educ/hogar",5,1,null,null,null,null,null,null,0,null,"",{"$f":"IF(F241,Hoja3!D198)*N241","v":0}]
[null,266,"Hagamos artesanías","Educ/hogar o artesanías",5,1,null,null,null,null,null,null,0,null,"",{"$f":"IF(F242,Hoja3!D199)*N242","v":0}]
[null,257,"Alta costura","Educ/hogar",5,1,null,null,null,null,null,null,0,null,"",{"$f":"IF(F243,Hoja3!D200)*N243","v":0}]
[null,270,"Corte y confección","Educ/hogar",5,1,null,null,null,null,null,null,0,null,"",{"$f":"IF(F244,Hoja3!D201)*N244","v":0}]
[null,267,"Técnicas de estética y estilismo","Educ/hogar",5,1,null,null,null,null,null,null,0,null,"",{"$f":"IF(F245,Hoja3!D202)*N245","v":0}]
[null,268,"Corte de cabello clásico y alta peluquería","Educ/hogar",5,1,null,null,null,null,null,null,0,null,"",{"$f":"IF(F246,Hoja3!D203)*N246","v":0}]
[null,264,"Dibujo Técnico","Artes plásticas",5,1,null,null,null,null,null,null,0,null,"",{"$f":"IF(F247,Hoja3!D204)*N247","v":0}]
[null,273,"Servicio al cliente","Secretariado ejecutivo, secretariado bilingüe o ejecutivo para centros de servicio",5,1,null,null,null,null,null,null,0,null,"",{"$f":"IF(F248,Hoja3!D205)*N248","v":0}]
[null,274,"Taller de Teatro","Teatro",5,1,null,null,null,null,null,null,0,null,"",{"$f":"IF(F249,Hoja3!D206)*N249","v":0}]
[null,275,"Taller de pintura","Artes  Plásticas",5,1,null,null,null,null,null,null,0,null,"",{"$f":"IF(F250,Hoja3!D207)*N250","v":0}]
[null,276,"Taller en música","Música",5,1,null,null,null,null,null,null,0,null,"",{"$f":"IF(F251,Hoja3!D208)*N251","v":0}]
[null,277,"Promoción de la salud","Física",5,1,null,null,null,null,null,null,0,null,"",{"$f":"IF(F252,Hoja3!D209)*N252","v":0}]
[null,278,"Preparacion de Bebidas","Turismo: alimentos y bebidas. Hotelería y eventos especiales.",5,1,null,null,null,null,null,null,0,null,"",{"$f":"IF(F253,Hoja3!D210)*N253","v":0}]
[null,283,"Educación Solidarista","Estudios Sociales",3,1,null,null,null,null,null,null,0,null,"",{"$f":"IF(F254,Hoja3!D211)*N254","v":0}]
[null,284,"Principios de administración solidarista","Estudios Sociales",3,1,null,null,null,null,null,null,0,null,"",{"$f":"IF(F255,Hoja3!D212)*N255","v":0}]
[null,285,"Reparaciones básicas en la casa","Diseño y construcción de muebles y estructuras.",5,1,null,null,null,null,null,null,0,null,"",{"$f":"IF(F256,Hoja3!D213)*N256","v":0}]
[null,286,"AL disfrutar del movimiento, mejora mi salud","Educ/Fisica",5,1,null,null,null,null,null,null,0,null,"",{"$f":"IF(F257,Hoja3!D214)*N257","v":0}]
[null,287,"Educación Vial","Doc. de cualquier especialidad académica, que cuente con el aval de la Dirección General de Educación Vial",2,1,null,null,null,null,null,null,0,null,"",{"$f":"IF(F258,Hoja3!D215)*N258","v":0}]
[null,288,"Hagamos arte ","Artes Plásticas",5,1,null,null,null,null,null,null,0,null,"",{"$f":"IF(F259,Hoja3!D216)*N259","v":0}]
[null,289,"Manipulación de Alimentos","Técnico en agro-industria, tecnología de alimentos, Nutricionista",3,1,null,null,null,null,null,null,0,null,"",{"$f":"IF(F260,Hoja3!D217)*N260","v":0}]
[null,290,"¡Cuidemos a nuestros adultos mayores!","Doc. De cualquier especialidad academica que cuente con el certificado del IDP sobre gerontología",5,1,null,null,null,null,null,null,0,null,"",{"$f":"IF(F261,Hoja3!D218)*N261","v":0}]
[null,291,"Prevención y seguridad laboral","Salud ocupacional",5,1,null,null,null,null,null,null,0,null,"",{"$f":"IF(F262,Hoja3!D219)*N262","v":0}]
[null,292,"Preparación de comidas nacionales","Educación para el Hogar",5,1,null,null,null,null,null,null,0,null,"",{"$f":"IF(F263,Hoja3!D220)*N263","v":0}]
[null,293,"Preparación de comidas internacionales","Educación para el Hogar",5,1,null,null,null,null,null,null,0,null,"",{"$f":"IF(F264,Hoja3!D221)*N264","v":0}]
[null,294,"Elaboración de confites, chocolates y postres","Educación para el Hogar",5,1,null,null,null,null,null,null,0,null,"",{"$f":"IF(F265,Hoja3!D222)*N265","v":0}]
[null,295,"Elaboración y decoración de pastelería","Educación para el Hogar",5,1,null,null,null,null,null,null,0,null,"",{"$f":"IF(F266,Hoja3!D223)*N266","v":0}]
[null,296,"¿Cómo desarollor el pensamiento matemático a través de la creatividad?","Matemática",2,1,null,null,null,null,null,null,0,null,"",{"$f":"IF(F267,Hoja3!D224)*N267","v":0}]
[null,297,"Búsqueda del conocimiento al alcance de todos","Docentes de cualquier especialidad académica",2,1,null,null,null,null,null,null,0,null,"",{"$f":"IF(F268,Hoja3!D225)*N268","v":0}]
[null,null,null,null,null,null,null,"CANTIDAD DE MATRICULA "]
[null,null,null,null,null,null,"CANTIDAD DE SECCIONES",null,null,null,null,null,{"$f":"SUM(N222:N268)","v":0}]
[null,"TOTAL LECCIONES CURSOS LIBRES:",null,null,null,null,null,null,null,null,null,null,null,null,null,{"$f":"IF(SUM(P222:P268)=0,\"\",SUM(P222:P268))","v":""}]

{"sheet":"  SATELITE 7","index":15,"n_rows":271,"n_cols":22,"rows_kept":271,"cut":false,"hidden":false,"merged":[[265,7,265,11],[266,7,266,11],[267,7,267,11],[255,7,255,11],[256,7,256,11],[257,7,257,11],[258,7,258,11],[259,7,259,11],[260,7,260,11],[261,7,261,11],[262,7,262,11],[263,7,263,11],[247,7,247,11],[248,7,248,11],[249,7,249,11],[250,7,250,11],[251,7,251,11],[252,7,252,11],[253,7,253,11],[254,7,254,11],[264,7,264,11],[238,7,238,11],[239,7,239,11],[240,7,240,11],[241,7,241,11],[242,7,242,11],[243,7,243,11],[244,7,244,11],[245,7,245,11],[246,7,246,11],[229,7,229,11],[230,7,230,11],[231,7,231,11],[232,7,232,11],[233,7,233,11],[234,7,234,11],[235,7,235,11],[236,7,236,11],[237,7,237,11],[143,8,143,11],[144,8,144,11],[145,8,145,11],[146,8,146,11],[147,8,147,11],[148,8,148,11],[149,8,149,11],[150,8,150,11],[151,8,151,11],[134,8,134,11],[135,8,135,11],[136,8,136,11],[137,8,137,11],[138,8,138,11],[139,8,139,11],[140,8,140,11],[141,8,141,11],[142,8,142,11],[125,8,125,11],[126,8,126,11],[127,8,127,11],[128,8,128,11],[129,8,129,11],[130,8,130,11],[131,8,131,11],[132,8,132,11],[133,8,133,11],[116,8,116,11],[117,8,117,11],[118,8,118,11],[119,8,119,11],[120,8,120,11],[121,8,121,11],[122,8,122,11],[123,8,123,11],[124,8,124,11],[270,1,270,14],[219,12,220,12],[219,13,219,15],[268,2,268,4],[268,7,268,11],[268,12,268,13],[268,14,269,15],[269,2,269,4],[269,6,269,11],[269,12,269,13],[219,1,220,1],[219,2,220,2],[219,3,220,3],[219,4,220,4],[219,6,220,6],[219,7,220,11],[221,7,221,11],[222,7,222,11],[223,7,223,11],[224,7,224,11],[225,7,225,11],[226,7,226,11],[227,7,227,11],[228,7,228,11],[214,3,214,11],[214,12,214,13],[215,3,215,11],[215,12,215,13],[216,1,216,14],[218,1,218,15],[211,8,211,9],[211,10,211,11],[212,8,212,9],[212,10,212,11],[213,8,213,9],[213,10,213,11],[213,6,213,7],[208,8,208,9],[208,10,208,11],[209,8,209,9],[209,10,209,11],[210,8,210,9],[210,10,210,11],[205,8,205,9],[205,10,205,11],[206,8,206,9],[206,10,206,11],[207,8,207,9],[207,10,207,11],[202,8,202,9],[202,10,202,11],[203,8,203,9],[203,10,203,11],[204,8,204,9],[204,10,204,11],[199,8,199,9],[199,10,199,11],[200,8,200,9],[200,10,200,11],[201,8,201,9],[201,10,201,11],[196,8,196,9],[196,10,196,11],[197,8,197,9],[197,10,197,11],[198,8,198,9],[198,10,198,11],[193,8,193,9],[193,10,193,11],[194,8,194,9],[194,10,194,11],[195,8,195,9],[195,10,195,11],[190,8,190,9],[190,10,190,11],[191,8,191,9],[191,10,191,11],[192,8,192,9],[192,10,192,11],[187,8,187,9],[187,10,187,11],[188,8,188,9],[188,10,188,11],[189,8,189,9],[189,10,189,11],[184,8,184,9],[184,10,184,11],[185,8,185,9],[185,10,185,11],[186,8,186,9],[186,10,186,11],[181,8,181,9],[181,10,181,11],[182,8,182,9],[182,10,182,11],[183,8,183,9],[183,10,183,11],[178,8,178,9],[178,10,178,11],[179,8,179,9],[179,10,179,11],[180,8,180,9],[180,10,180,11],[175,8,175,9],[175,10,175,11],[176,8,176,9],[176,10,176,11],[177,8,177,9],[177,10,177,11],[172,8,172,9],[172,10,172,11],[173,8,173,9],[173,10,173,11],[174,8,174,9],[174,10,174,11],[166,13,166,15],[168,8,168,9],[168,10,168,11],[169,8,169,9],[169,10,169,11],[170,8,170,9],[170,10,170,11],[171,8,171,9],[171,10,171,11],[160,1,160,14],[165,1,165,15],[166,1,167,1],[166,2,167,2],[166,3,167,3],[166,4,167,4],[166,6,167,7],[166,8,167,9],[166,10,167,11],[166,12,167,12],[161,1,161,14],[157,6,157,7],[158,3,158,11],[158,12,158,13],[159,3,159,11],[159,12,159,13],[149,6,149,7],[150,6,150,7],[151,6,151,7],[152,6,152,7],[153,6,153,7],[154,6,154,7],[157,8,157,11],[152,8,152,11],[153,8,153,11],[154,8,154,11],[155,8,155,11],[156,8,156,11],[148,6,148,7],[137,6,137,7],[138,6,138,7],[139,6,139,7],[140,6,140,7],[141,6,141,7],[142,6,142,7],[155,6,155,7],[156,6,156,7],[145,6,145,7],[146,6,146,7],[147,6,147,7],[143,6,143,7],[144,6,144,7],[131,6,131,7],[132,6,132,7],[133,6,133,7],[134,6,134,7],[135,6,135,7],[136,6,136,7],[116,6,116,7],[117,6,117,7],[118,6,118,7],[127,6,127,7],[128,6,128,7],[129,6,129,7],[130,6,130,7],[125,6,125,7],[126,6,126,7],[119,6,119,7],[120,6,120,7],[121,6,121,7],[122,6,122,7],[123,6,123,7],[124,6,124,7],[102,17,102,20],[109,1,109,15],[110,1,111,1],[110,2,111,2],[110,3,111,3],[110,4,111,4],[110,6,111,7],[110,8,111,11],[110,12,111,12],[110,13,110,15],[112,6,112,7],[113,6,113,7],[114,6,114,7],[115,6,115,7],[93,3,93,11],[93,12,93,13],[94,3,94,11],[94,12,94,13],[95,1,95,14],[97,1,99,15],[102,7,102,12],[102,13,102,16],[112,8,112,11],[113,8,113,11],[114,8,114,11],[115,8,115,11],[90,8,90,9],[90,10,90,11],[91,8,91,9],[91,10,91,11],[92,8,92,9],[92,10,92,11],[87,8,87,9],[87,10,87,11],[88,8,88,9],[88,10,88,11],[89,8,89,9],[89,10,89,11],[84,8,84,9],[84,10,84,11],[85,8,85,9],[85,10,85,11],[86,8,86,9],[86,10,86,11],[81,8,81,9],[81,10,81,11],[82,8,82,9],[82,10,82,11],[83,8,83,9],[83,10,83,11],[78,8,78,9],[78,10,78,11],[79,8,79,9],[79,10,79,11],[80,8,80,9],[80,10,80,11],[75,8,76,9],[75,10,76,11],[75,12,76,12],[75,13,75,15],[77,8,77,9],[77,10,77,11],[70,3,70,11],[70,12,70,13],[71,1,71,14],[74,1,74,15],[75,1,76,1],[75,2,76,2],[75,3,76,3],[75,4,76,4],[75,6,76,6],[75,7,76,7],[67,8,67,9],[67,10,67,11],[68,8,68,9],[68,10,68,11],[69,3,69,11],[69,12,69,13],[64,8,64,9],[64,10,64,11],[65,8,65,9],[65,10,65,11],[66,8,66,9],[66,10,66,11],[61,8,61,9],[61,10,61,11],[62,8,62,9],[62,10,62,11],[63,8,63,9],[63,10,63,11],[58,8,58,9],[58,10,58,11],[59,8,59,9],[59,10,59,11],[60,8,60,9],[60,10,60,11],[55,8,55,9],[55,10,55,11],[56,8,56,9],[56,10,56,11],[57,8,57,9],[57,10,57,11],[52,8,52,9],[52,10,52,11],[53,8,53,9],[53,10,53,11],[54,8,54,9],[54,10,54,11],[49,8,49,9],[49,10,49,11],[50,8,50,9],[50,10,50,11],[51,8,51,9],[51,10,51,11],[45,10,46,11],[45,12,46,12],[45,13,45,15],[47,8,47,9],[47,10,47,11],[48,8,48,9],[48,10,48,11],[41,11,41,14],[44,1,44,15],[45,1,46,1],[45,2,46,2],[45,3,46,3],[45,4,46,4],[45,5,46,5],[45,6,46,6],[45,7,46,7],[45,8,46,9],[18,17,18,19],[38,3,38,11],[38,12,38,13],[39,3,39,11],[39,12,39,13],[40,1,40,14],[12,13,12,15],[12,17,12,18],[13,17,13,18],[14,17,14,18],[15,17,15,18],[16,17,16,18],[12,1,13,1],[12,2,13,2],[12,3,13,3],[12,4,13,4],[12,6,13,11],[12,12,14,12],[8,1,8,15],[8,17,8,18],[9,1,9,15],[9,17,9,18],[10,17,10,18],[11,1,11,15],[11,17,11,18],[1,1,2,2],[6,17,7,19],[7,1,7,15],[3,17,4,19],[3,1,6,15],[168,6,168,7],[169,6,169,7],[170,6,170,7],[171,6,171,7],[172,6,172,7],[173,6,173,7],[174,6,174,7],[175,6,175,7],[176,6,176,7],[177,6,177,7],[178,6,178,7],[179,6,179,7],[180,6,180,7],[181,6,181,7],[182,6,182,7],[183,6,183,7],[184,6,184,7],[185,6,185,7],[186,6,186,7],[187,6,187,7],[188,6,188,7],[189,6,189,7],[190,6,190,7],[191,6,191,7],[192,6,192,7],[193,6,193,7],[194,6,194,7],[195,6,195,7],[196,6,196,7],[197,6,197,7],[198,6,198,7],[199,6,199,7],[200,6,200,7],[201,6,201,7],[202,6,202,7],[203,6,203,7],[204,6,204,7],[205,6,205,7],[206,6,206,7],[207,6,207,7],[208,6,208,7],[209,6,209,7],[210,6,210,7],[211,6,211,7],[212,6,212,7]]}
[]
[null,"***NOTA: SE DEBE INCLUIR PRIMERO LA MATRICULA Y LUEGO SECCIONES "]
[]
[null,{"$error":"#VALUE!"},null,null,null,null,null,null,null,null,null,null,null,null,null,null,null,"RESUMEN DE LECCIONES Y AMPLIACION DEL SATELITE"]
[]
[]
[null,null,null,null,null,null,null,null,null,null,null,null,null,null,null,null,null,"SUMATORIA DE LAS LECCIONES POR SATELITE"]
[null,"NOMBRE DEL SATELITE N°7"]
[null,{"$f":"'FORMULARIO '!B202:D202","v":0},null,null,null,null,null,null,null,null,null,null,null,null,null,null,null,"LECCIONES TECNICAS"]
[null,null,null,null,null,null,null,null,null,null,null,null,null,null,null,null,null,"*AMPLIACIONES I NIVEL",null,{"$f":"+SUM(P41)+(P162)","v":0}]
[null,null,null,null,null,null,null,null,null,null,null,null,null,null,null,null,null,"LECCIONES INGLES I NIVEL",null,{"$f":"SUM(P30)","v":0}]
[null,"1) DISTRIBUCIÓN DE MATRÍCULA Y LECCIONES: NIVEL I",null,null,null,null,null,null,null,null,null,null,null,null,null,null,null,"LECCIONES II NIVEL",null,{"$f":"SUM(P72)","v":0}]
[null,"No.","Descripción del Módulo","Atinencia","Lecciones por Módulo",null,"MATRICULA",null,null,null,null,null,"MATRICULA TOTAL ","Cantidad",null,null,null,"LECCIONES III NIVEL",null,{"$f":"SUM(P96)","v":0}]
[null,null,null,null,null,null,null,null,null,null,null,null,null,"Secciones","Promedio","Lecciones",null,"LECCIONES MODULARES OPCIONALES I NIVEL, II NIVEL Y III NIVEL",null,{"$f":"SUM(P217)+SUM(P161)","v":0}]
[null,null,null,null,null,null,"PERIODO 1","PERIODO 2","PERIODO 3","PERIODO 4","PERIODO 5","PERIODO 6",null,null,null,null,null,"LECCIONES I NIVEL PSICOLOGIA",null,{"$f":"SUM(P31)+SUM(P36)","v":0}]
[null,1,"Aplicaciones cotidianas de la matemática","Matemáticas",4,1,null,null,null,null,null,null,{"$f":"SUM(G16:L16)","v":0},null,{"$f":"+IF(N16=\"\",\"\",M16/N16)","v":""},{"$f":"IF(F16=1,Hoja3!D5)*N16","v":0},null,"CURSOS LIBRES",null,{"$f":"SUM(P271)","v":0}]
[null,2,"Disfrutando del mundo de las palabras","Español",4,1,null,null,null,null,null,null,0,null,"",{"$f":"IF(F17=1,Hoja3!D6)*N17","v":0},null,"Total Lecciones Requeridas:",null,{"$f":"SUM(T11:T16)+SUM(T9)","v":0}]
[null,3,"Construyamos nuestro bienestar personal y comunitario","Ciencias",3,1,null,null,null,null,null,null,0,null,"",{"$f":"IF(F18=1,Hoja3!D7)*N18","v":0}]
[null,4,"Vida Cotidiana: Deberes y Derechos en el entorno cercano","Estudios Sociales",3,1,null,null,null,null,null,null,0,null,"",{"$f":"IF(F19=1,Hoja3!D8)*N19","v":0},null,"*Nota: Las ampliaciones no se suman al total de lecciones."]
[null,5,"Promovamos el desarrollo humano en forma equitativa y sostenible","Ciencias",3,1,null,null,null,null,null,null,0,null,"",{"$f":"IF(F20=1,Hoja3!D9)*N20","v":0}]
[null,6,"Relieve de mi Cantón: Conociendo mi patrimonio natural y cultural","Estudios Sociales",3,1,null,null,null,null,null,null,0,null,"",{"$f":"IF(F21=1,Hoja3!D10)*N21","v":0}]
[null,7,"Historia y Geografia de mi provincia","Estudios Sociales",3,1,null,null,null,null,null,null,0,null,"",{"$f":"IF(F22=1,Hoja3!D11)*N22","v":0}]
[null,8,"Actividades humanas asociadas a los paisajes geográficos de mi provincia","Estudios Sociales",3,1,null,null,null,null,null,null,0,null,"",{"$f":"IF(F23=1,Hoja3!D12)*N23","v":0}]
[null,9,"Costa Rica: Una sociedad intercultural, multiétnica y plurilingüe","Estudios Sociales",2,1,null,null,null,null,null,null,0,null,"",{"$f":"IF(F24=1,Hoja3!D13)*N24","v":0}]
[null,10,"Cuidemos nuestro planeta y toda forma de vida","Ciencias",3,1,null,null,null,null,null,null,0,null,"",{"$f":"IF(F25=1,Hoja3!D14)*N25","v":0}]
[null,11,"Adoptemos estilos de vida saludables","Ciencias",2,1,null,null,null,null,null,null,0,null,"",{"$f":"IF(F26=1,Hoja3!D15)*N26","v":0}]
[null,12,"Convivamos en entornos naturales y socioculturales seguros","Ciencias",2,1,null,null,null,null,null,null,0,null,"",{"$f":"IF(F27=1,Hoja3!D16)*N27","v":0}]
[null,13,"Modifiquemos nuestros patrones de consumo y producción para salvaguardar la integridad del planeta","Ciencias",3,1,null,null,null,null,null,null,0,null,"",{"$f":"IF(F28=1,Hoja3!D17)*N28","v":0}]
[null,15,"Protejamos y restauremos los procesos naturales que sustentan la vida","Ciencias",3,1,null,null,null,null,null,null,0,null,"",{"$f":"IF(F29=1,Hoja3!D18)*N29","v":0}]
[null,16,"Nos comunicamos en otras lenguas","Idioma Extranjero",5,1,null,null,null,null,null,null,0,null,"",{"$f":"IF(F30=1,Hoja3!D19)*N30","v":0}]
[null,17,"Descubriendo mi estilo de aprendizaje","Psicología",2,1,null,null,null,null,null,null,0,null,"",{"$f":"IF(F31=1,Hoja3!D20)*N31","v":0}]
[null,18,"Valoramos la importancia de la igualdad y la libertad a partir de nuestra historia colonial","Estudios Sociales",2,1,null,null,null,null,null,null,0,null,"",{"$f":"IF(F32=1,Hoja3!D21)*N32","v":0}]
[null,20,"Construcción de nuestro estado nación para el fortalecimiento de la identidad nacional","Estudios Sociales",2,1,null,null,null,null,null,null,0,null,"",{"$f":"IF(F33=1,Hoja3!D22)*N33","v":0}]
[null,21,"La sociedad costarricense actual: sus desafios y oportunidades en el contexto mundial","Estudios Sociales",2,1,null,null,null,null,null,null,0,null,"",{"$f":"IF(F34=1,Hoja3!D23)*N34","v":0}]
[null,22,"Espacios de participación y representación de mi cantón","Estudios Sociales",3,1,null,null,null,null,null,null,0,null,"",{"$f":"IF(F35=1,Hoja3!D24)*N35","v":0}]
[null,23,"Planificando mi fururo","Psicología",2,1,null,null,null,null,null,null,0,null,"",{"$f":"IF(F36=1,Hoja3!D25)*N36","v":0}]
[null,24,"Aplicaciones cotidianas de la matemática","Matemáticas",4,1,null,null,null,null,null,null,0,null,"",{"$f":"IF(F37=1,Hoja3!D26)*N37","v":0}]
[null,25,"¡Comunicandonos en la cotidianidad!","Español",4,1,null,null,null,null,null,null,0,null,"",{"$f":"IF(F38=1,Hoja3!D27)*N38","v":0}]
[null,null,null,"CANTIDAD DE MATRICULA I NIVEL"]
[null,null,null,"CANTIDAD DE SECCIONES",null,null,null,null,null,null,null,null,{"$f":"SUM(N16:N38)","v":0}]
[null,"TOTAL AMPLIACIONES NIVEL I:",null,null,null,null,null,null,null,null,null,null,null,null,null,{"$f":"IF(SUM(P16:P38)=0,\"\",SUM(P16:P38)-(P30+P31+P36))","v":""}]
[null,null,null,null,null,null,null,null,null,null,null,"TOTAL LECCIONES INGLES Y PSICOLOGIA",null,null,null,{"$f":"SUM(P30+P31+P36)","v":0}]
[]
[]
[null,"2) DISTRIBUCIÓN DE MATRÍCULA Y LECCIONES: NIVEL II"]
[null,"No.","Descripción del Módulo","Atinencia","Lecciones por Módulo",null,"PERIODO 1","PERIODO 2","PERIODO 3",null,"PERIODO 4",null,"MATRICULA TOTAL ","Cantidad"]
[null,null,null,null,null,null,null,null,null,null,null,null,null,"Secciones","Promedio","Lecciones"]
[null,30,"La ciencia de lo humano para el desarrollo científico","Ciencias",4,1,null,null,null,null,null,null,{"$f":"SUM(G48:L48)","v":0},null,{"$f":"+IF(N48=\"\",\"\",M48/N48)","v":""},{"$f":"IF(F48=1,Hoja3!D32)*N48","v":0}]
[null,{"$f":"+B48+1","v":31},"¿Por qué es importante el estudio del espacio geográfico en el planeta tierra?","Estudios Sociales",4,1,null,null,null,null,null,null,0,null,"",{"$f":"IF(F49=1,Hoja3!D33)*N49","v":0}]
[null,{"$f":"+B49+1","v":32},"Crecemos en el lenguaje","Español",4,1,null,null,null,null,null,null,0,null,"",{"$f":"IF(F50=1,Hoja3!D34)*N50","v":0}]
[null,{"$f":"+B50+1","v":33},"Entorno Científico: seres vivos y energía en sostenibilidad","Ciencias",2,1,null,null,null,null,null,null,0,null,"",{"$f":"IF(F51=1,Hoja3!D35)*N51","v":0}]
[null,35,"La adaptación del ser humano aun medio ambiente cambiante","Estudios Sociales",2,1,null,null,null,null,null,null,0,null,"",{"$f":"IF(F52=1,Hoja3!D36)*N52","v":0}]
[null,{"$f":"+B52+1","v":36},"Razonamiento de los números, la geometría y el álgebra para la cotidianidad","Matemáticas",6,1,null,null,null,null,null,null,0,null,"",{"$f":"IF(F53=1,Hoja3!D37)*N53","v":0}]
[null,37,"Seguridad de las personas en Costa Rica","Educación Cívica",4,1,null,null,null,null,null,null,0,null,"",{"$f":"IF(F54=1,Hoja3!D38)*N54","v":0}]
[null,38,"Variedades de la lengua","Español",3,1,null,null,null,null,null,null,0,null,"",{"$f":"IF(F55=1,Hoja3!D39)*N55","v":0}]
[null,39,"Participación, representación y derechos humanos en la sociedad democrática","Educación Cívica",4,1,null,null,null,null,null,null,0,null,"",{"$f":"IF(F56=1,Hoja3!D40)*N56","v":0}]
[null,40,"Estadística básica","Matemáticas",2,1,null,null,null,null,null,null,0,null,"",{"$f":"IF(F57=1,Hoja3!D41)*N57","v":0}]
[null,41,"Química de la tierra y su formación","Ciencias",3,1,null,null,null,null,null,null,0,null,"",{"$f":"IF(F58=1,Hoja3!D42)*N58","v":0}]
[null,42,"Comprendiendo la historia: de la edad media al renacimiento del siglo V al XVI","Estudios Sociales",2,1,null,null,null,null,null,null,0,null,"",{"$f":"IF(F59=1,Hoja3!D43)*N59","v":0}]
[null,43,"Materia y energía en sociedad","Ciencias",3,1,null,null,null,null,null,null,0,null,"",{"$f":"IF(F60=1,Hoja3!D44)*N60","v":0}]
[null,44,"Los procesos plurisignificativos de la comunicación literaria","Español",3,1,null,null,null,null,null,null,0,null,"",{"$f":"IF(F61=1,Hoja3!D45)*N61","v":0}]
[null,45,"Materia Planetaria en sostenibilidad","Ciencias",2,1,null,null,null,null,null,null,0,null,"",{"$f":"IF(F62=1,Hoja3!D46)*N62","v":0}]
[null,46,"Nos cominicamos en otras lenguas","Idioma Extranjero",5,1,null,null,null,null,null,null,0,null,"",{"$f":"IF(F63=1,Hoja3!D47)*N63","v":0}]
[null,48,"Cotidianidad del ser humano: desde la Edad Moderno en Europa y América siglos XVI-XIX","Estudios Sociales",3,1,null,null,null,null,null,null,0,null,"",{"$f":"IF(F64=1,Hoja3!D48)*N64","v":0}]
[null,{"$f":"+B64+1","v":49},"Vivencia de la sexualidad en el contexto familiar y social","Ciencias",3,1,null,null,null,null,null,null,0,null,"",{"$f":"IF(F65=1,Hoja3!D49)*N65","v":0}]
[null,{"$f":"+B65+1","v":50},"Roles de trabajo y formas de comunicación en el mundo antiguo","Estudios Sociales",4,1,null,null,null,null,null,null,0,null,"",{"$f":"IF(F66=1,Hoja3!D50)*N66","v":0}]
[null,{"$f":"+B66+1","v":51},"Construyamos nuestra identidad ciudadana","Educación Cívica",4,1,null,null,null,null,null,null,0,null,"",{"$f":"IF(F67=1,Hoja3!D51)*N67","v":0}]
[null,52,"Aplicaciones de los números, la geometría y el álgebra en nuetro entorno","Matemáticas",5,1,null,null,null,null,null,null,0,null,"",{"$f":"IF(F68=1,Hoja3!D52)*N68","v":0}]
[null,53,"Comprendiendo  nuestro entorno a través de la estadística","Matemáticas",2,1,null,null,null,null,null,null,0,null,"",{"$f":"IF(F69=1,Hoja3!D53)*N69","v":0}]
[null,null,null,"CANTIDAD DE MATRICULA II NIVEL"]
[null,null,null,"CANTIDAD DE SECCIONES",null,null,null,null,null,null,null,null,{"$f":"SUM(N48:N69)","v":0}]
[null,"TOTAL LECCIONES NIVEL II:",null,null,null,null,null,null,null,null,null,null,null,null,null,{"$f":"IF(SUM(P48:P69)=0,\"\",SUM(P48:P69))","v":""}]
[]
[]
[null,"3) DISTRIBUCIÓN DE MATRÍCULA Y LECCIONES: NIVEL III"]
[null,"No.","Descripción del Módulo","Atinencia","Lecciones por Módulo",null,"PERIODO 1","PERIODO 2","PERIODO 3",null,"PERIODO 4",null,"MATRICULA TOTAL","Cantidad"]
[null,null,null,null,null,null,null,null,null,null,null,null,null,"Secciones","Promedio","Lecciones"]
[null,60,"Nos comunicamos mejor","Español",4,1,null,null,null,null,null,null,{"$f":"SUM(G78:L78)","v":0},null,{"$f":"+IF(N78=\"\",\"\",M78/N78)","v":""},{"$f":"IF(F78=1,Hoja3!D58)*N78","v":0}]
[null,{"$f":"+B78+1","v":61},"Sistemas y Regímenes políticos, el estado costarricense garante de oporunidades para la construcción de la cultura democrática","Educación Cívica",2,1,null,null,null,null,null,null,0,null,"",{"$f":"IF(F79=1,Hoja3!D59)*N79","v":0}]
[null,62,"¿Cómo las transformaciones sociales, económicas, y políticas del mundo comtemporáneo impactan a la sociedad actual? (siglo XIX-Epoca actual)","Estudios Sociales",3,1,null,null,null,null,null,null,0,null,"",{"$f":"IF(F80=1,Hoja3!D60)*N80","v":0}]
[null,63,"Una mirada a las problemáticas contemporáneas; Repercusiones de la dinámica poblacional y movilización espacial","Estudios Sociales",3,1,null,null,null,null,null,null,0,null,"",{"$f":"IF(F81=1,Hoja3!D61)*N81","v":0}]
[null,64,"Interdependencia e interconexión: Los patrones espaciales en la sociedad globalizado","Estudios Sociales",3,1,null,null,null,null,null,null,0,null,"",{"$f":"IF(F82=1,Hoja3!D62)*N82","v":0}]
[null,65,"Seres vivos en población","Ciencias (Biología)",4,1,null,null,null,null,null,null,0,null,"",{"$f":"IF(F83=1,Hoja3!D63)*N83","v":0}]
[null,66,"Valorando nuestra sociedad (siglo XX-XXI)","Estudios Sociales",3,1,null,null,null,null,null,null,0,null,"",{"$f":"IF(F84=1,Hoja3!D64)*N84","v":0}]
[null,68,"Aplicación de la química en el hogar y la comunidad","Ciencias (Química)",4,1,null,null,null,null,null,null,0,null,"",{"$f":"IF(F85=1,Hoja3!D65)*N85","v":0}]
[null,69,"Aplicaciones de la física en la vida diaria","Ciencias (Física)",4,1,null,null,null,null,null,null,0,null,"",{"$f":"IF(F86=1,Hoja3!D66)*N86","v":0}]
[null,{"$f":"+B86+1","v":70},"¿Dónde está presente la estadística?","Matemáticas",2,1,null,null,null,null,null,null,0,null,"",{"$f":"IF(F87=1,Hoja3!D67)*N87","v":0}]
[null,71,"Nos comunicamos en otras lenguas","Idioma Extranjero",5,1,null,null,null,null,null,null,0,null,"",{"$f":"IF(F88=1,Hoja3!D68)*N88","v":0}]
[null,72,"¿Cómo aplicar la estadística y la probabilidad en la vida diaria?","Matemáticas",2,1,null,null,null,null,null,null,0,null,"",{"$f":"IF(F89=1,Hoja3!D69)*N89","v":0}]
[null,73,"Construyamos el futuro","Ciencias (Biología)",3,1,null,null,null,null,null,null,0,null,"",{"$f":"IF(F90=1,Hoja3!D70)*N90","v":0}]
[null,74,"¿Cómo relacionar la geometría y las relaciones algebraicas con nuestro entorno?","Matemáticas",4,1,null,null,null,null,null,null,0,null,"",{"$f":"IF(F91=1,Hoja3!D71)*N91","v":0}]
[null,75,"¿Cómo nos puede ayudar las relaciones, el álgebra y la geometría a entender el mundo que nos rodea?","Matemáticas",4,1,null,null,null,null,null,null,0,null,"",{"$f":"IF(F92=1,Hoja3!D72)*N92","v":0}]
[null,76,"Ética Profesional","Filosofía",2,1,null,null,null,null,null,null,0,null,"",{"$f":"IF(F93=1,Hoja3!D73)*N93","v":0}]
[null,null,null,"CANTIDAD DE MATRICULA III NIVEL"]
[null,null,null,"CANTIDAD DE SECCIONES",null,null,null,null,null,null,null,null,{"$f":"SUM(N78:N93)","v":0}]
[null,"TOTAL LECCIONES NIVELES III:",null,null,null,null,null,null,null,null,null,null,null,null,null,{"$f":"IF(SUM(P78:P93)=0,\"\",SUM(P78:P93))","v":""}]
[]
[null,"CURSOS OPCIONALES PRIMERO DEBE DE ELEGIR LOS DE I NIVEL Y  POSTERIORMENTE DEBEN ELEGIR LOS CURSOS DE II Y III NIVEL (ESTO PARA MEJOR DISTRIBUCION)"]
[]
[]
[]
[null,"*****","FAVOR LLENAR LA MATRICULA Y SECCIONES A INCLUIR EN CURSOS OPCIONALES (OBLIGATORIO):"]
[null,null,null,null,null,null,null,"I NIVEL ",null,null,null,null,null,"II NIVEL ",null,null,null,"III NIVEL",null,null,null,"TOTAL"]
[null,null,null,null,null,null,null,"1 PERIODO","2 PERIODO","3 PERIODO","4 PERIODO","5 PERIODO","6 PERIODO","1 PERIODO","2 PERIODO","3 PERIODO","4 PERIODO","1 PERIODO","2 PERIODO","3 PERIODO","4 PERIODO"]
[null,null,null,null,null,null,"MATRICULA ",null,null,null,null,null,null,null,null,null,null,null,null,null,null,{"$f":"SUM(H105:U105)","v":0}]
[null,null,null,null,null,null,"SECCIONES ",null,null,null,null,null,null,null,null,null,null,null,null,null,null,{"$f":"SUM(H106:U106)","v":0}]
[]
[null,"Opcionales SOLO para I NIVEL (se subrayan las materias básicas estos se separan ya que se dan por AMPLIACIONES  y las otra atinencias por LECCIONES):"]
[]
[null,"4) DISTRIBUCIÓN DE MATRÍCULA Y LECCIONES: CURSOS MODULARES OPCIONALES I NIVEL"]
[null,"No.","Descripción del Módulo","Atinencia","Lecciones por Módulo",null,"MATRICULA I NIVEL",null,null,null,null,null,"MATRICULA TOTAL","Cantidad"]
[null,null,null,null,null,null,null,null,null,null,null,null,null,"Secciones","Promedio","Lecciones"]
[null,80,"Administración de la pequeña empresa","Contabilidad",5,1,null,null,null,null,null,null,{"$f":"SUM(G113:L113)","v":0},null,{"$f":"+IF(N113=\"\",\"\",M113/N113)","v":""},{"$f":"IF(F113,Hoja3!D129)*N113","v":0}]
[null,81,"Aprendamos a apreciar la música","Música",5,1,null,null,null,null,null,null,0,null,"",{"$f":"IF(F114,Hoja3!D130)*N114","v":0}]
[null,83,"¿Cómo administrar recursos humanos y financieros?","Contabilidad ",3,1,null,null,null,null,null,null,0,null,"",{"$f":"IF(F115,Hoja3!D131)*N115","v":0}]
[null,84,"Reconociendo a las personas con discapacidad como sujetas de derecho","Enseñanza Especial Generalista",3,1,null,null,null,null,null,null,0,null,"",{"$f":"IF(F116,Hoja3!D132)*N116","v":0}]
[null,85,"¿Cómo comunicarnos en una lengua indígena?","Educación Indígena",5,1,null,null,null,null,null,null,0,null,"",{"$f":"IF(F117,Hoja3!D133)*N117","v":0}]
[null,86,"¡A comunicarnos se ha dicho!","Español",3,1,null,null,null,null,null,null,0,null,"",{"$f":"IF(F118,Hoja3!D134)*N118","v":0}]
[null,87,"Conozcamos nuestra cultura autóctona","Estudios Sociales",3,1,null,null,null,null,null,null,0,null,"",{"$f":"IF(F119,Hoja3!D135)*N119","v":0}]
[null,88,"Contabilidad para la pequeña empresa","Contabilidad",3,1,null,null,null,null,null,null,0,null,"",{"$f":"IF(F120,Hoja3!D136)*N120","v":0}]
[null,89,"Creando con el lenguaje","Español",5,1,null,null,null,null,null,null,0,null,"",{"$f":"IF(F121,Hoja3!D137)*N121","v":0}]
[null,90,"Desarrollo mi creatividad","Español",3,1,null,null,null,null,null,null,0,null,"",{"$f":"IF(F122,Hoja3!D138)*N122","v":0}]
[null,93,"El camino para iniciar su propia empresa","Contabilidad",5,1,null,null,null,null,null,null,0,null,"",{"$f":"IF(F123,Hoja3!D139)*N123","v":0}]
[null,94,"El Bribri, Maleku, Cabecar, como mi lengua materna","Ingles, Educación Indigena",3,1,null,null,null,null,null,null,0,null,"",{"$f":"IF(F124,Hoja3!D140)*N124","v":0}]
[null,97,"Formación de líderes democráticos","Estudios Sociales",5,1,null,null,null,null,null,null,0,null,"",{"$f":"IF(F125,Hoja3!D141)*N125","v":0}]
[null,100,"Importancia de la actividad física: juegos pre-deportivos tradicionales y gimnasia formativa I NIVEL","Educación Física",5,1,null,null,null,null,null,null,0,null,"",{"$f":"IF(F126,Hoja3!D142)*N126","v":0}]
[null,102,"Relaciones humanas","Psicología",3,1,null,null,null,null,null,null,0,null,"",{"$f":"IF(F127,Hoja3!D143)*N127","v":0}]
[null,103,"Los pueblos y sus expresiones culturales","Estudios Sociales",4,1,null,null,null,null,null,null,0,null,"",{"$f":"IF(F128,Hoja3!D144)*N128","v":0}]
[null,106,"Mundo del turismo","Turismo Ecológico",2,1,null,null,null,null,null,null,0,null,"",{"$f":"IF(F129,Hoja3!D145)*N129","v":0}]
[null,107,"Nos organizamos para enfrentar desastres","Ciencias",2,1,null,null,null,null,null,null,0,null,"",{"$f":"IF(F130,Hoja3!D146)*N130","v":0}]
[null,108,"Orientación vocacional y profesional","Psicología",5,1,null,null,null,null,null,null,0,null,"",{"$f":"IF(F131,Hoja3!D147)*N131","v":0}]
[null,109,"Primeros auxilios","Educación Física",5,1,null,null,null,null,null,null,0,null,"",{"$f":"IF(F132,Hoja3!D148)*N132","v":0}]
[null,110,"Problemas y soluciones planetarios","Ciencias",3,1,null,null,null,null,null,null,0,null,"",{"$f":"IF(F133,Hoja3!D149)*N133","v":0}]
[null,111,"Promoción y defensa de los deberes y derechos del ciudadano","Estudios Sociales",3,1,null,null,null,null,null,null,0,null,"",{"$f":"IF(F134,Hoja3!D150)*N134","v":0}]
[null,118,"Vida en el planeta","Ciencias",5,1,null,null,null,null,null,null,0,null,"",{"$f":"IF(F135,Hoja3!D151)*N135","v":0}]
[null,119,"Visualicemos el futuro","Ciencias",5,1,null,null,null,null,null,null,0,null,"",{"$f":"IF(F136,Hoja3!D152)*N136","v":0}]
[null,120,"Planificando mi futuro","Psicología",2,1,null,null,null,null,null,null,0,null,"",{"$f":"IF(F137,Hoja3!D153)*N137","v":0}]
[null,121,"Descubriendo mi estilo de aprendizaje","Psicología",2,1,null,null,null,null,null,null,0,null,"",{"$f":"IF(F138,Hoja3!D154)*N138","v":0}]
[null,123,"Fortalecimiento de la matemática (OPCIONAL 1 NIVEL)","Matemática",3,1,null,null,null,null,null,null,0,null,"",{"$f":"IF(F139,Hoja3!D155)*N139","v":0}]
[null,124,"Fortalecimiento del Ingles","Ingles",3,1,null,null,null,null,null,null,0,null,"",{"$f":"IF(F140,Hoja3!D156)*N140","v":0}]
[null,125,"Fortalecimiento de los Estudios Sociales (OPCIONAL 1 NIVEL)","Estudios Sociales",3,1,null,null,null,null,null,null,0,null,"",{"$f":"IF(F141,Hoja3!D157)*N141","v":0}]
[null,126,"Fortalecimiento de la Biología","Ciencias",3,1,null,null,null,null,null,null,0,null,"",{"$f":"IF(F142,Hoja3!D158)*N142","v":0}]
[null,127,"Fortalecimiento de la Educación Cívica","Estudios Sociales",3,1,null,null,null,null,null,null,0,null,"",{"$f":"IF(F143,Hoja3!D159)*N143","v":0}]
[null,128,"Fortalecimiento del Español (OPCIONAL 1 NIVEL)","Español",3,1,null,null,null,null,null,null,0,null,"",{"$f":"IF(F144,Hoja3!D160)*N144","v":0}]
[null,129,"Fortalecimiento del Francés","Francés",3,1,null,null,null,null,null,null,0,null,"",{"$f":"IF(F145,Hoja3!D161)*N145","v":0}]
[null,130,"Fortalecimiento de la Quimica para Bachillerato","Ciencias",3,1,null,null,null,null,null,null,0,null,"",{"$f":"IF(F146,Hoja3!D162)*N146","v":0}]
[null,131,"Fortalecimiento de la Física para Bachillerato","Ciencias",3,1,null,null,null,null,null,null,0,null,"",{"$f":"IF(F147,Hoja3!D163)*N147","v":0}]
[null,139,"Tecnología y Trabajo","Informatica Educatica/ Desarrollo Sofware/ Progración Redes de Computadoras en Soporte",5,1,null,null,null,null,null,null,0,null,"",{"$f":"IF(F148,Hoja3!D164)*N148","v":0}]
[null,140,"Tecnología y Comunidad","Informatica Educatica/ Desarrollo Sofware/ Progración Redes de Computadoras en Soporte",5,1,null,null,null,null,null,null,0,null,"",{"$f":"IF(F149,Hoja3!D165)*N149","v":0}]
[null,141,"Tecnología y Emprendedurismo","Informatica Educatica/ Desarrollo Sofware/ Progración Redes de Computadoras en Soporte",5,1,null,null,null,null,null,null,0,null,"",{"$f":"IF(F150,Hoja3!D166)*N150","v":0}]
[null,142,"Expreción o Creción Musical","Música",5,1,null,null,null,null,null,null,0,null,"",{"$f":"IF(F151,Hoja3!D167)*N151","v":0}]
[null,143,"Desarrollo Comunitario (II Nivel)","Cualquier especilidad acádemica",2,1,null,null,null,null,null,null,0,null,"",{"$f":"IF(F152,Hoja3!D168)*N152","v":0}]
[null,144,"Desarrollo Comunitario (III Nivel)","Cualquier especilidad acádemica",3,1,null,null,null,null,null,null,0,null,"",{"$f":"IF(F153,Hoja3!D169)*N153","v":0}]
[null,145,"Introducción a la robótica","Informática, Informática educativa ambas con conocimiento en robótica",2,1,null,null,null,null,null,null,0,null,"",{"$f":"IF(F154,Hoja3!D170)*N154","v":0}]
[null,146,"Poniéndome en acción: entrenándome haciendo deporte y baile","Educación Física",5,1,null,null,null,null,null,null,0,null,"",{"$f":"IF(F155,Hoja3!D171)*N155","v":0}]
[null,147,"Promoviendo salud, venciendo desafíos","Educación Física",5,1,null,null,null,null,null,null,0,null,"",{"$f":"IF(F156,Hoja3!D172)*N156","v":0}]
[null,148,"Afectividad y sexualidad desde la cotidianidad","Psicología",2,1,null,null,null,null,null,null,0,null,"",{"$f":"IF(F157,Hoja3!D173)*N157","v":0}]
[null,149,"¡Qué lindo aprender Cabécar!","Educación indígena, especialidad lengua materna, subespecialidad: Cabécar",2,1,null,null,null,null,null,null,0,null,"",{"$f":"IF(F158,Hoja3!D174)*N158","v":0}]
[null,null,null,"CANTIDAD DE MATRICULA "]
[null,null,null,"CANTIDAD DE SECCIONES",null,null,null,null,null,null,null,null,{"$f":"SUM(N113:N158)","v":0}]
[null,"TOTAL LECCIONES DE CURSOS OPCIONALES I NIVEL:",null,null,null,null,null,null,null,null,null,null,null,null,null,{"$f":"IF(SUM(P113:P158)=0,\"\",SUM(P113:P158)+(-P118-P119-P121-P122-P125-P128-P130-P133-P134-P135-P136-P139-P141-P142-P143-P144))","v":""}]
[null,"TOTAL AMPLIACIONES CURSOS OPCIONALES I NIVEL",null,null,null,null,null,null,null,null,null,null,null,null,null,{"$f":"SUM(P118+P119+P121+P122+P125+P128+P130+P133+P134+P135+P136+P139+P141+P142+P143+P144)","v":0}]
[]
[null,"Opcionales SOLO para II NIVEL Y III NIVEL a escoger (LECCIONES):"]
[]
[null,"4) DISTRIBUCIÓN DE MATRÍCULA Y LECCIONES: CURSOS MODULARES OPCIONALES II NIVEL Y III NIVEL "]
[null,"No.","Descripción del Módulo","Atinencia","Lecciones por Módulo",null,null,null,"II NIVEL",null,"III NIVEL",null,"MATRICULA TOTAL","Cantidad"]
[null,null,null,null,null,null,null,null,null,null,null,null,null,"Secciones","Promedio","Lecciones"]
[null,80,"Administración de la pequeña empresa","Contabilidad",5,1,null,null,null,null,null,null,{"$f":"SUM(G169:L169)","v":0},null,{"$f":"+IF(N169=\"\",\"\",M169/N169)","v":""},{"$f":"IF(F169,Hoja3!D129)*N169","v":0}]
[null,81,"Aprendamos a apreciar la música","Música",5,1,null,null,null,null,null,null,0,null,"",{"$f":"IF(F170,Hoja3!D130)*N170","v":0}]
[null,83,"¿Cómo administrar recursos humanos y financieros?","Contabilidad ",3,1,null,null,null,null,null,null,0,null,"",{"$f":"IF(F171,Hoja3!D131)*N171","v":0}]
[null,84,"Reconociendo a las personas con discapacidad como sujetas de derecho","Enseñanza Especial Generalista",3,1,null,null,null,null,null,null,0,null,"",{"$f":"IF(F172,Hoja3!D132)*N172","v":0}]
[null,85,"¿Cómo comunicarnos en una lengua indígena?","Educación Indígena",5,1,null,null,null,null,null,null,0,null,"",{"$f":"IF(F173,Hoja3!D133)*N173","v":0}]
[null,86,"¡A comunicarnos se ha dicho!","Español",3,1,null,null,null,null,null,null,0,null,"",{"$f":"IF(F174,Hoja3!D134)*N174","v":0}]
[null,87,"Conozcamos nuestra cultura autóctona","Estudios Sociales",3,1,null,null,null,null,null,null,0,null,"",{"$f":"IF(F175,Hoja3!D135)*N175","v":0}]
[null,88,"Contabilidad para la pequeña empresa","Contabilidad",3,1,null,null,null,null,null,null,0,null,"",{"$f":"IF(F176,Hoja3!D136)*N176","v":0}]
[null,89,"Creando con el lenguaje","Español",5,1,null,null,null,null,null,null,0,null,"",{"$f":"IF(F177,Hoja3!D137)*N177","v":0}]
[null,90,"Desarrollo mi creatividad","Español",3,1,null,null,null,null,null,null,0,null,"",{"$f":"IF(F178,Hoja3!D138)*N178","v":0}]
[null,93,"El camino para iniciar su propia empresa","Contabilidad",5,1,null,null,null,null,null,null,0,null,"",{"$f":"IF(F179,Hoja3!D139)*N179","v":0}]
[null,94,"El Bribri, Maleku, Cabecar, como mi lengua materna","Ingles, Educación Indigena",3,1,null,null,null,null,null,null,0,null,"",{"$f":"IF(F180,Hoja3!D140)*N180","v":0}]
[null,97,"Formación de líderes democráticos","Estudios Sociales",5,1,null,null,null,null,null,null,0,null,"",{"$f":"IF(F181,Hoja3!D141)*N181","v":0}]
[null,100,"Importancia de la actividad física: juegos pre-deportivos tradicionales y gimnasia formativa","Educación Física",5,1,null,null,null,null,null,null,0,null,"",{"$f":"IF(F182,Hoja3!D142)*N182","v":0}]
[null,102,"Relaciones humanas","Psicología",3,1,null,null,null,null,null,null,0,null,"",{"$f":"IF(F183,Hoja3!D143)*N183","v":0}]
[null,103,"Los pueblos y sus expresiones culturales","Estudios Sociales",4,1,null,null,null,null,null,null,0,null,"",{"$f":"IF(F184,Hoja3!D144)*N184","v":0}]
[null,106,"Mundo del turismo","Turismo Ecológico",2,1,null,null,null,null,null,null,0,null,"",{"$f":"IF(F185,Hoja3!D145)*N185","v":0}]
[null,107,"Nos organizamos para enfrentar desastres","Ciencias",2,1,null,null,null,null,null,null,0,null,"",{"$f":"IF(F186,Hoja3!D146)*N186","v":0}]
[null,108,"Orientación vocacional y profesional","Psicología",5,1,null,null,null,null,null,null,0,null,"",{"$f":"IF(F187,Hoja3!D147)*N187","v":0}]
[null,109,"Primeros auxilios","Educación Física",5,1,null,null,null,null,null,null,0,null,"",{"$f":"IF(F188,Hoja3!D148)*N188","v":0}]
[null,110,"Problemas y soluciones planetarios","Ciencias",3,1,null,null,null,null,null,null,0,null,"",{"$f":"IF(F189,Hoja3!D149)*N189","v":0}]
[null,111,"Promoción y defensa de los deberes y derechos del ciudadano","Estudios Sociales",3,1,null,null,null,null,null,null,0,null,"",{"$f":"IF(F190,Hoja3!D150)*N190","v":0}]
[null,118,"Vida en el planeta","Ciencias",5,1,null,null,null,null,null,null,0,null,"",{"$f":"IF(F191,Hoja3!D151)*N191","v":0}]
[null,119,"Visualicemos el futuro","Ciencias",5,1,null,null,null,null,null,null,0,null,"",{"$f":"IF(F192,Hoja3!D152)*N192","v":0}]
[null,120,"Planificando mi futuro","Psicología",2,1,null,null,null,null,null,null,0,null,"",{"$f":"IF(F193,Hoja3!D153)*N193","v":0}]
[null,121,"Descubriendo mi estilo de aprendizaje","Psicología",2,1,null,null,null,null,null,null,0,null,"",{"$f":"IF(F194,Hoja3!D154)*N194","v":0}]
[null,123,"Fortalecimiento de la matemática ","Matemática",3,1,null,null,null,null,null,null,0,null,"",{"$f":"IF(F195,Hoja3!D155)*N195-G195","v":0}]
[null,124,"Fortalecimiento del Ingles","Ingles",3,1,null,null,null,null,null,null,0,null,"",{"$f":"IF(F196,Hoja3!D156)*N196","v":0}]
[null,125,"Fortalecimiento de los Estudios Sociales","Estudios Sociales",3,1,null,null,null,null,null,null,0,null,"",{"$f":"IF(F197,Hoja3!D157)*N197","v":0}]
[null,126,"Fortalecimiento de la Biología","Ciencias",3,1,null,null,null,null,null,null,0,null,"",{"$f":"IF(F198,Hoja3!D158)*N198","v":0}]
[null,127,"Fortalecimiento de la Educación Cívica","Estudios Sociales",3,1,null,null,null,null,null,null,0,null,"",{"$f":"IF(F199,Hoja3!D159)*N199","v":0}]
[null,128,"Fortalecimiento del Español ","Español",3,1,null,null,null,null,null,null,0,null,"",{"$f":"IF(F200,Hoja3!D160)*N200","v":0}]
[null,129,"Fortalecimiento del Francés","Francés",3,1,null,null,null,null,null,null,0,null,"",{"$f":"IF(F201,Hoja3!D161)*N201","v":0}]
[null,130,"Fortalecimiento de la Quimica para Bachillerato","Ciencias",3,1,null,null,null,null,null,null,0,null,"",{"$f":"IF(F202,Hoja3!D162)*N202","v":0}]
[null,131,"Fortalecimiento de la Física para Bachillerato","Ciencias",3,1,null,null,null,null,null,null,0,null,"",{"$f":"IF(F203,Hoja3!D163)*N203","v":0}]
[null,139,"Tecnología y Trabajo","Informatica Educatica/ Desarrollo Sofware/ Progración Redes de Computadoras en Soporte",5,1,null,null,null,null,null,null,0,null,"",{"$f":"IF(F204,Hoja3!D164)*N204","v":0}]
[null,140,"Tecnología y Comunidad","Informatica Educatica/ Desarrollo Sofware/ Progración Redes de Computadoras en Soporte",5,1,null,null,null,null,null,null,0,null,"",{"$f":"IF(F205,Hoja3!D165)*N205","v":0}]
[null,141,"Tecnología y Emprendedurismo","Informatica Educatica/ Desarrollo Sofware/ Progración Redes de Computadoras en Soporte",5,1,null,null,null,null,null,null,0,null,"",{"$f":"IF(F206,Hoja3!D166)*N206","v":0}]
[null,142,"Expreción o Creción Musical","Música",5,1,null,null,null,null,null,null,0,null,"",{"$f":"IF(F207,Hoja3!D167)*N207","v":0}]
[null,143,"Desarrollo Comunitario (II Nivel)","Cualquier especilidad acádemica",2,1,null,null,null,null,null,null,0,null,"",{"$f":"IF(F208,Hoja3!D168)*N208","v":0}]
[null,144,"Desarrollo Comunitario (III Nivel)","Cualquier especilidad acádemica",3,1,null,null,null,null,null,null,0,null,"",{"$f":"IF(F209,Hoja3!D169)*N209","v":0}]
[null,145,"Introducción a la robótica","Informática, Informática educativa ambas con conocimiento en robótica",2,1,null,null,null,null,null,null,0,null,"",{"$f":"IF(F210,Hoja3!D170)*N210","v":0}]
[null,146,"Poniéndome en acción: entrenándome haciendo deporte y baile","Educación Física",5,1,null,null,null,null,null,null,0,null,"",{"$f":"IF(F211,Hoja3!D171)*N211","v":0}]
[null,147,"Promoviendo salud, venciendo desafíos","Educación Física",5,1,null,null,null,null,null,null,0,null,"",{"$f":"IF(F212,Hoja3!D172)*N212","v":0}]
[null,148,"Afectividad y sexualidad desde la cotidianidad","Psicología",2,1,null,null,null,null,null,null,0,null,"",{"$f":"IF(F213,Hoja3!D173)*N213","v":0}]
[null,149,"¡Qué lindo aprender Cabécar!","Educación indígena, especialidad lengua materna, subespecialidad: Cabécar",2,1,null,null,null,null,null,null,0,null,"",{"$f":"IF(F214,Hoja3!D174)*N214","v":0}]
[null,null,null,"CANTIDAD DE MATRICULA "]
[null,null,null,"CANTIDAD DE SECCIONES",null,null,null,null,null,null,null,null,{"$f":"SUM(N169:N214)","v":0}]
[null,"TOTAL LECCIONES CURSOS OPCIONALES I Y II NIVEL:",null,null,null,null,null,null,null,null,null,null,null,null,null,{"$f":"IF(SUM(P169:P214)=0,\"\",SUM(P169:P214))","v":""}]
[]
[null,"6) DISTRIBUCIÓN DE MATRÍCULA Y LECCIONES: CURSOS LIBRES"]
[null,"No.","Descripción del Módulo","Atinencia","Lecciones por Módulo",null,"MATRICULA POR CURSO",null,null,null,null,null,"MATRICULA TOTAL","Cantidad"]
[null,null,null,null,null,null,null,null,null,null,null,null,null,"Secciones","Promedio","Lecciones"]
[null,250,"Preparación y productos de repostería","Educ/hogar",5,1,null,null,null,null,null,null,{"$f":"G222","v":0},null,{"$f":"+IF(N222=\"\",\"\",M222/N222)","v":""},{"$f":"IF(F222,Hoja3!D179)*N222","v":0}]
[null,271,"Mantenimiento preventivo de computadoras","Informática de desarrollo del software, en programación, en redes de computadoras, en soporte.",5,1,null,null,null,null,null,null,{"$f":"G223","v":0},null,"",{"$f":"IF(F223,Hoja3!D180)*N223","v":0}]
[null,259,"Bases de datos ","Informática de desarrollo del software, en programación, en redes de computadoras, en soporte.",5,1,null,null,null,null,null,null,0,null,"",{"$f":"IF(F224,Hoja3!D181)*N224","v":0}]
[null,260,"Diseño  WEB","Informática en desarrollo del software",5,1,null,null,null,null,null,null,0,null,"",{"$f":"IF(F225,Hoja3!D182)*N225","v":0}]
[null,255,"Técnicas Secretariales","Secretariado ejecutivo, secretariado bilingüe o ejecutivo para centros de servicio",5,1,null,null,null,null,null,null,0,null,"",{"$f":"IF(F226,Hoja3!D183)*N226","v":0}]
[null,265,"Oficina moderna","Secretariado ejecutivo, secretariado bilingüe o ejecutivo para centros de servicio",5,1,null,null,null,null,null,null,0,null,"",{"$f":"IF(F227,Hoja3!D184)*N227","v":0}]
[null,261,"Ingles conversacional  inicial I NIVEL","Inglés",5,1,null,null,null,null,null,null,0,null,"",{"$f":"IF(F228,Hoja3!D185)*N228","v":0}]
[null,262,"Ingles conversacional intermedio II NIVEL","Inglés",5,1,null,null,null,null,null,null,0,null,"",{"$f":"IF(F229,Hoja3!D186)*N229","v":0}]
[null,263,"Ingles conversacional  avanzado III NIVEL","Inglés",5,1,null,null,null,null,null,null,0,null,"",{"$f":"IF(F230,Hoja3!D187)*N230","v":0}]
[null,253,"Principios de contabilidad","Contabilidad",5,1,null,null,null,null,null,null,0,null,"",{"$f":"IF(F231,Hoja3!D188)*N231","v":0}]
[null,256,"Técnicas de manejo de hidroponía y abono orgánico","Agroecología",3,1,null,null,null,null,null,null,0,null,"",{"$f":"IF(F232,Hoja3!D189)*N232","v":0}]
[null,279,"El mundo de los negocios de capital individual y asociativo","Contabilidad o profesor de estado de educación comercial y de servicios.",3,1,null,null,null,null,null,null,0,null,"",{"$f":"IF(F233,Hoja3!D190)*N233","v":0}]
[null,280,"Doctrina cooperativa","Estudios Sociales",3,1,null,null,null,null,null,null,0,null,"",{"$f":"IF(F234,Hoja3!D191)*N234","v":0}]
[null,281,"Gestión Cooperativa","Estudios Sociales",3,1,null,null,null,null,null,null,0,null,"",{"$f":"IF(F235,Hoja3!D192)*N235","v":0}]
[null,282,"Líderes y gestores de iniciativas de negocios","Contabilidad o profesor de estado de educación comercial y de servicios",3,1,null,null,null,null,null,null,0,null,"",{"$f":"IF(F236,Hoja3!D193)*N236","v":0}]
[null,258,"Montajes eléctricos básicos","Electrónica industrial y electrotecnia",5,1,null,null,null,null,null,null,0,null,"",{"$f":"IF(F237,Hoja3!D194)*N237","v":0}]
[null,269,"Refrigeración doméstica","Refrigeración y aire acondicionado",5,1,null,null,null,null,null,null,0,null,"",{"$f":"IF(F238,Hoja3!D195)*N238","v":0}]
[null,272,"Técnicas de bisutería y orfebrería","Educ/hogar",5,1,null,null,null,null,null,null,0,null,"",{"$f":"IF(F239,Hoja3!D196)*N239","v":0}]
[null,252,"Confección de accesorios para el hogar","Educ/hogar",5,1,null,null,null,null,null,null,0,null,"",{"$f":"IF(F240,Hoja3!D197)*N240","v":0}]
[null,254,"Técnica manuales y  confección de artículos con material de desecho","Educ/hogar",5,1,null,null,null,null,null,null,0,null,"",{"$f":"IF(F241,Hoja3!D198)*N241","v":0}]
[null,266,"Hagamos artesanías","Educ/hogar o artesanías",5,1,null,null,null,null,null,null,0,null,"",{"$f":"IF(F242,Hoja3!D199)*N242","v":0}]
[null,257,"Alta costura","Educ/hogar",5,1,null,null,null,null,null,null,0,null,"",{"$f":"IF(F243,Hoja3!D200)*N243","v":0}]
[null,270,"Corte y confección","Educ/hogar",5,1,null,null,null,null,null,null,0,null,"",{"$f":"IF(F244,Hoja3!D201)*N244","v":0}]
[null,267,"Técnicas de estética y estilismo","Educ/hogar",5,1,null,null,null,null,null,null,0,null,"",{"$f":"IF(F245,Hoja3!D202)*N245","v":0}]
[null,268,"Corte de cabello clásico y alta peluquería","Educ/hogar",5,1,null,null,null,null,null,null,0,null,"",{"$f":"IF(F246,Hoja3!D203)*N246","v":0}]
[null,264,"Dibujo Técnico","Artes plásticas",5,1,null,null,null,null,null,null,0,null,"",{"$f":"IF(F247,Hoja3!D204)*N247","v":0}]
[null,273,"Servicio al cliente","Secretariado ejecutivo, secretariado bilingüe o ejecutivo para centros de servicio",5,1,null,null,null,null,null,null,0,null,"",{"$f":"IF(F248,Hoja3!D205)*N248","v":0}]
[null,274,"Taller de Teatro","Teatro",5,1,null,null,null,null,null,null,0,null,"",{"$f":"IF(F249,Hoja3!D206)*N249","v":0}]
[null,275,"Taller de pintura","Artes  Plásticas",5,1,null,null,null,null,null,null,0,null,"",{"$f":"IF(F250,Hoja3!D207)*N250","v":0}]
[null,276,"Taller en música","Música",5,1,null,null,null,null,null,null,0,null,"",{"$f":"IF(F251,Hoja3!D208)*N251","v":0}]
[null,277,"Promoción de la salud","Física",5,1,null,null,null,null,null,null,0,null,"",{"$f":"IF(F252,Hoja3!D209)*N252","v":0}]
[null,278,"Preparacion de Bebidas","Turismo: alimentos y bebidas. Hotelería y eventos especiales.",5,1,null,null,null,null,null,null,0,null,"",{"$f":"IF(F253,Hoja3!D210)*N253","v":0}]
[null,283,"Educación Solidarista","Estudios Sociales",3,1,null,null,null,null,null,null,0,null,"",{"$f":"IF(F254,Hoja3!D211)*N254","v":0}]
[null,284,"Principios de administración solidarista","Estudios Sociales",3,1,null,null,null,null,null,null,0,null,"",{"$f":"IF(F255,Hoja3!D212)*N255","v":0}]
[null,285,"Reparaciones básicas en la casa","Diseño y construcción de muebles y estructuras.",5,1,null,null,null,null,null,null,0,null,"",{"$f":"IF(F256,Hoja3!D213)*N256","v":0}]
[null,286,"AL disfrutar del movimiento, mejora mi salud","Educ/Fisica",5,1,null,null,null,null,null,null,0,null,"",{"$f":"IF(F257,Hoja3!D214)*N257","v":0}]
[null,287,"Educación Vial","Doc. de cualquier especialidad académica, que cuente con el aval de la Dirección General de Educación Vial",2,1,null,null,null,null,null,null,0,null,"",{"$f":"IF(F258,Hoja3!D215)*N258","v":0}]
[null,288,"Hagamos arte ","Artes Plásticas",5,1,null,null,null,null,null,null,0,null,"",{"$f":"IF(F259,Hoja3!D216)*N259","v":0}]
[null,289,"Manipulación de Alimentos","Técnico en agro-industria, tecnología de alimentos, Nutricionista",3,1,null,null,null,null,null,null,0,null,"",{"$f":"IF(F260,Hoja3!D217)*N260","v":0}]
[null,290,"¡Cuidemos a nuestros adultos mayores!","Doc. De cualquier especialidad academica que cuente con el certificado del IDP sobre gerontología",5,1,null,null,null,null,null,null,0,null,"",{"$f":"IF(F261,Hoja3!D218)*N261","v":0}]
[null,291,"Prevención y seguridad laboral","Salud ocupacional",5,1,null,null,null,null,null,null,0,null,"",{"$f":"IF(F262,Hoja3!D219)*N262","v":0}]
[null,292,"Preparación de comidas nacionales","Educación para el Hogar",5,1,null,null,null,null,null,null,0,null,"",{"$f":"IF(F263,Hoja3!D220)*N263","v":0}]
[null,293,"Preparación de comidas internacionales","Educación para el Hogar",5,1,null,null,null,null,null,null,0,null,"",{"$f":"IF(F264,Hoja3!D221)*N264","v":0}]
[null,294,"Elaboración de confites, chocolates y postres","Educación para el Hogar",5,1,null,null,null,null,null,null,0,null,"",{"$f":"IF(F265,Hoja3!D222)*N265","v":0}]
[null,295,"Elaboración y decoración de pastelería","Educación para el Hogar",5,1,null,null,null,null,null,null,0,null,"",{"$f":"IF(F266,Hoja3!D223)*N266","v":0}]
[null,296,"¿Cómo desarollor el pensamiento matemático a través de la creatividad?","Matemática",2,1,null,null,null,null,null,null,0,null,"",{"$f":"IF(F267,Hoja3!D224)*N267","v":0}]
[null,297,"Búsqueda del conocimiento al alcance de todos","Docentes de cualquier especialidad académica",2,1,null,null,null,null,null,null,0,null,"",{"$f":"IF(F268,Hoja3!D225)*N268","v":0}]
[null,null,null,null,null,null,null,"CANTIDAD DE MATRICULA "]
[null,null,null,null,null,null,"CANTIDAD DE SECCIONES",null,null,null,null,null,{"$f":"SUM(N222:N268)","v":0}]
[null,"TOTAL LECCIONES CURSOS LIBRES:",null,null,null,null,null,null,null,null,null,null,null,null,null,{"$f":"IF(SUM(P222:P268)=0,\"\",SUM(P222:P268))","v":""}]